Workbook

Sheet Cover
B2: PATHWAYS Output Tool
B3: Reference, Scoping Plan, and Alternative 1 Cases
B5: Prepared by:
B10: 101 Montgomery Street, Suite 1600
B11: San Francisco, CA 94104
B12: (415) 391-5100
B14: 2017-01-17
B18: Table of Contents
B19: Tab Name | C19: Description
B20: Annual GHG Emissions - Sector | C20: Breaks down the total emissions in each case by sector and case
B21: Summary Costs | C21: Provides single-year snapshot views of costs and emissions across cases
B22: Final Energy Demand | C22: Displays the final energy demand across time for a selected case
B23: Generation Portfolio | C23: Displays the generation portfolio and composition of renewables for a selected case
B24: Generation Snapshot | C24: Compares the total generation portfolio across all cases for a selected year
B25: Electricity Demand | C25: Charts the total electricity demand by case and year, and compares to IEPR projection
B26: Energy Intensity | C26: Compares energy intensity metrics across cases and years
B27: Annual Costs | C27: Calculates the total cumulative cost between two user-provided years for all cases, and compares them to a base case
B28: Fuel Shares | C28: Describes the proportion of various fuel mixes (diesel, gasoline, and natural gas) coming from renewable sources for a given year
B29: NonEnergy GHGs | C29: Greenhouse gas emissions from non-fossil fuel combustion sources
B31: Guide to Cell Coloring
B32: Cell Color | C32: Description
B33: Drop-Down Menu | C33: The user can choose an input from a dropdown menu that appears when the cell is selected
B34: Text Entry | C34: The user can enter data (usually a year) as text
B35: *
B39: * Disclaimer: All results are draft and subject to change

Sheet Annual GHG Emissions - Sector
AI1: Chart Legend
AI2: Reference
AI3: Scoping Plan
AI4: Alternative 1
I33: PATHWAYS - Reference
J34: 1990 | K34: 1991 | L34: 1992 | M34: 1993 | N34: 1994 | O34: 1995 | P34: 1996 | Q34: 1997 | R34: 1998 | S34: 1999 | T34: 2000 | U34: 2001 | V34: 2002 | W34: 2003 | X34: 2004 | Y34: 2005 | Z34: 2006 | AA34: 2007 | AB34: 2008 | AC34: 2009 | AD34: 2010 | AE34: 2011 | AF34: 2012 | AG34: 2013 | AH34: 2014 | AI34: 2015 | AJ34: 2016 | AK34: 2017 | AL34: 2018 | AM34: 2019 | AN34: 2020 | AO34: 2021 | AP34: 2022 | AQ34: 2023 | AR34: 2024 | AS34: 2025 | AT34: 2026 | AU34: 2027 | AV34: 2028 | AW34: 2029 | AX34: 2030 | AY34: 2031 | AZ34: 2032 | BA34: 2033 | BB34: 2034 | BC34: 2035 | BD34: 2036 | BE34: 2037 | BF34: 2038 | BG34: 2039 | BH34: 2040 | BI34: 2041 | BJ34: 2042 | BK34: 2043 | BL34: 2044 | BM34: 2045 | BN34: 2046 | BO34: 2047 | BP34: 2048 | BQ34: 2049 | BR34: 2050 | BT34: 2030 Gap | BU34: 2050 Gap
I35: Agriculture | AI35: 36.33502205 | AJ35: 36.304966 | AK35: 36.19665026 | AL35: 36.13911502 | AM35: 36.05451257 | AN35: 35.95083548 | AO35: 35.83680067 | AP35: 35.6912181 | AQ35: 35.547409 | AR35: 35.57442052 | AS35: 35.61011105 | AT35: 35.64486385 | AU35: 35.67889082 | AV35: 35.71178873 | AW35: 35.74489368 | AX35: 35.77492786 | AY35: 35.68412962 | AZ35: 35.72446694 | BA35: 35.76393769 | BB35: 35.80320049 | BC35: 35.74466345 | BD35: 35.78574228 | BE35: 35.82987837 | BF35: 35.86866223 | BG35: 35.90638547 | BH35: 35.93889133 | BI35: 35.97775743 | BJ35: 36.01213269 | BK35: 36.01185283 | BL35: 36.04373165 | BM35: 36.08257774 | BN35: 36.12027474 | BO35: 36.15693729 | BP35: 36.19265511 | BQ35: 36.22751732 | BR35: 36.26259321
I36: Residential and Commercial | AI36: 40.88617466 | AJ36: 41.15140039 | AK36: 41.39278137 | AL36: 41.54688821 | AM36: 41.70617261 | AN36: 41.78733502 | AO36: 41.79591957 | AP36: 41.74042559 | AQ36: 41.67725954 | AR36: 41.61078879 | AS36: 41.57311509 | AT36: 41.54387425 | AU36: 41.52870071 | AV36: 41.5231848 | AW36: 41.52015035 | AX36: 41.16033416 | AY36: 41.14579803 | AZ36: 41.15822799 | BA36: 41.19283233 | BB36: 41.23043031 | BC36: 41.28100949 | BD36: 41.33762501 | BE36: 41.41038207 | BF36: 41.49994814 | BG36: 41.6006703 | BH36: 41.70993751 | BI36: 41.82997388 | BJ36: 41.95810986 | BK36: 42.09261506 | BL36: 42.23153238 | BM36: 42.37301204 | BN36: 42.51513042 | BO36: 42.65739774 | BP36: 42.7998306 | BQ36: 42.94139065 | BR36: 43.07910999
I37: Electric Power | AI37: 74.86230267 | AJ37: 72.94028195 | AK37: 68.46852517 | AL37: 68.69142002 | AM37: 68.44701002 | AN37: 67.88362239 | AO37: 67.35547761 | AP37: 67.26723015 | AQ37: 67.22741571 | AR37: 67.41293445 | AS37: 75.05833658 | AT37: 75.24283836 | AU37: 75.1977407 | AV37: 67.87678348 | AW37: 67.8168674 | AX37: 65.00891697 | AY37: 64.04748693 | AZ37: 64.3077242 | BA37: 64.65123233 | BB37: 63.86138735 | BC37: 64.16422862 | BD37: 64.53056434 | BE37: 64.68878819 | BF37: 64.95665126 | BG37: 65.19598976 | BH37: 65.51647092 | BI37: 65.86916067 | BJ37: 66.24449174 | BK37: 66.68816097 | BL37: 67.10754263 | BM37: 67.59648029 | BN37: 68.08866216 | BO37: 68.54911524 | BP37: 69.02731447 | BQ37: 69.54403058 | BR37: 70.16138777
I38: High GWP | AI38: 18.81184626 | AJ38: 19.23798571 | AK38: 20.15494227 | AL38: 20.79624687 | AM38: 21.69725399 | AN38: 22.4720277 | AO38: 23.24170248 | AP38: 24.02106733 | AQ38: 24.80770363 | AR38: 25.60102133 | AS38: 26.35090457 | AT38: 26.85230341 | AU38: 27.35755749 | AV38: 27.86751693 | AW38: 28.38088238 | AX38: 28.89851494 | AY38: 29.00523625 | AZ38: 29.11173754 | BA38: 29.21948442 | BB38: 29.32963198 | BC38: 29.44123906 | BD38: 29.59089861 | BE38: 29.74196561 | BF38: 29.89473728 | BG38: 30.04934431 | BH38: 30.20594204 | BI38: 30.33898066 | BJ38: 30.47492948 | BK38: 30.61386439 | BL38: 30.75597766 | BM38: 30.90142256 | BN38: 31.04219704 | BO38: 31.18683035 | BP38: 31.33540568 | BQ38: 31.48812429 | BR38: 31.64511236
I39: Land | AI39: 0 | AJ39: 0 | AK39: 0 | AL39: 0 | AM39: 0 | AN39: 0 | AO39: 0 | AP39: 0 | AQ39: 0 | AR39: 0 | AS39: 0 | AT39: 0 | AU39: 0 | AV39: 0 | AW39: 0 | AX39: 0 | AY39: 0 | AZ39: 0 | BA39: 0 | BB39: 0 | BC39: 0 | BD39: 0 | BE39: 0 | BF39: 0 | BG39: 0 | BH39: 0 | BI39: 0 | BJ39: 0 | BK39: 0 | BL39: 0 | BM39: 0 | BN39: 0 | BO39: 0 | BP39: 0 | BQ39: 0 | BR39: 0
I40: Industrial | AI40: 92.39192765 | AJ40: 92.02360082 | AK40: 91.53919993 | AL40: 91.27152037 | AM40: 90.86627454 | AN40: 90.4983546 | AO40: 90.01538421 | AP40: 89.51830151 | AQ40: 89.01209581 | AR40: 88.69063153 | AS40: 88.88318841 | AT40: 89.01473763 | AU40: 89.14633024 | AV40: 89.27726339 | AW40: 89.40934689 | AX40: 87.94866512 | AY40: 87.87642197 | AZ40: 87.99322861 | BA40: 88.11013451 | BB40: 88.22770713 | BC40: 88.1996896 | BD40: 88.32105741 | BE40: 88.44932492 | BF40: 88.57565636 | BG40: 88.70129684 | BH40: 88.81948497 | BI40: 88.94867481 | BJ40: 89.07183269 | BK40: 89.14023287 | BL40: 89.26089448 | BM40: 89.39389009 | BN40: 89.52610783 | BO40: 89.65768798 | BP40: 89.78873519 | BQ40: 89.91935812 | BR40: 90.0513374
I41: Recycling and Waste | AI41: 10.73087981 | AJ41: 10.73087981 | AK41: 10.73087981 | AL41: 10.73087981 | AM41: 10.73087981 | AN41: 10.73087981 | AO41: 10.73087981 | AP41: 10.73087981 | AQ41: 10.73087981 | AR41: 10.73087981 | AS41: 10.73087981 | AT41: 10.73087981 | AU41: 10.73087981 | AV41: 10.73087981 | AW41: 10.73087981 | AX41: 10.73087981 | AY41: 10.73087981 | AZ41: 10.73087981 | BA41: 10.73087981 | BB41: 10.73087981 | BC41: 10.73087981 | BD41: 10.73087981 | BE41: 10.73087981 | BF41: 10.73087981 | BG41: 10.73087981 | BH41: 10.73087981 | BI41: 10.73087981 | BJ41: 10.73087981 | BK41: 10.73087981 | BL41: 10.73087981 | BM41: 10.73087981 | BN41: 10.73087981 | BO41: 10.73087981 | BP41: 10.73087981 | BQ41: 10.73087981 | BR41: 10.73087981
I42: Transportation (Incl. TCU) | AI42: 168.2944134 | AJ42: 167.2365435 | AK42: 164.5338332 | AL42: 160.5921378 | AM42: 155.9195068 | AN42: 151.1823826 | AO42: 146.7301949 | AP42: 141.3952595 | AQ42: 136.4261969 | AR42: 133.4397241 | AS42: 130.3878059 | AT42: 127.5556925 | AU42: 125.7879137 | AV42: 124.425718 | AW42: 123.5263847 | AX42: 122.8278121 | AY42: 120.8533543 | AZ42: 120.9320511 | BA42: 121.1048257 | BB42: 121.5146864 | BC42: 120.5486747 | BD42: 121.2231598 | BE42: 122.318997 | BF42: 123.2590823 | BG42: 124.3201841 | BH42: 125.5897956 | BI42: 127.2312654 | BJ42: 128.8751427 | BK42: 129.9957728 | BL42: 131.6961828 | BM42: 133.5486804 | BN42: 135.3998259 | BO42: 137.2356081 | BP42: 139.0561159 | BQ42: 141.0684504 | BR42: 143.2506615
I43: Total | AI43: 442.3125664 | AJ43: 439.6256582 | AK43: 433.016812 | AL43: 429.7682081 | AM43: 425.4216104 | AN43: 420.5054376 | AO43: 415.7063592 | AP43: 410.364382 | AQ43: 405.4289604 | AR43: 403.0604005 | AS43: 408.5943414 | AT43: 406.5851898 | AU43: 405.4280135 | AV43: 397.4131351 | AW43: 397.1294052 | AX43: 392.350051 | AY43: 389.3433069 | AZ43: 389.9583161 | BA43: 390.7733268 | BB43: 390.6979234 | BC43: 390.1103848 | BD43: 391.5199273 | BE43: 393.1702159 | BF43: 394.7856174 | BG43: 396.5047506 | BH43: 398.5114021 | BI43: 400.9266927 | BJ43: 403.3675189 | BK43: 405.2733787 | BL43: 407.8267414 | BM43: 410.626943 | BN43: 413.4230779 | BO43: 416.1744565 | BP43: 418.9309368 | BQ43: 421.9197511 | BR43: 425.1810821 | BT43: 133.750051 | BU43: 338.9810821
I45: PATHWAYS - Scoping Plan
J46: 1990 | K46: 1991 | L46: 1992 | M46: 1993 | N46: 1994 | O46: 1995 | P46: 1996 | Q46: 1997 | R46: 1998 | S46: 1999 | T46: 2000 | U46: 2001 | V46: 2002 | W46: 2003 | X46: 2004 | Y46: 2005 | Z46: 2006 | AA46: 2007 | AB46: 2008 | AC46: 2009 | AD46: 2010 | AE46: 2011 | AF46: 2012 | AG46: 2013 | AH46: 2014 | AI46: 2015 | AJ46: 2016 | AK46: 2017 | AL46: 2018 | AM46: 2019 | AN46: 2020 | AO46: 2021 | AP46: 2022 | AQ46: 2023 | AR46: 2024 | AS46: 2025 | AT46: 2026 | AU46: 2027 | AV46: 2028 | AW46: 2029 | AX46: 2030 | AY46: 2031 | AZ46: 2032 | BA46: 2033 | BB46: 2034 | BC46: 2035 | BD46: 2036 | BE46: 2037 | BF46: 2038 | BG46: 2039 | BH46: 2040 | BI46: 2041 | BJ46: 2042 | BK46: 2043 | BL46: 2044 | BM46: 2045 | BN46: 2046 | BO46: 2047 | BP46: 2048 | BQ46: 2049 | BR46: 2050 | BT46: 2030 Gap | BU46: 2050 Gap
I47: Agriculture | AI47: 36.33493528 | AJ47: 36.30483764 | AK47: 35.93535731 | AL47: 35.61654787 | AM47: 35.27044984 | AN47: 34.19673484 | AO47: 33.11263842 | AP47: 31.99275916 | AQ47: 30.87060289 | AR47: 29.73719652 | AS47: 28.80077908 | AT47: 27.86315058 | AU47: 26.92697709 | AV47: 25.9909751 | AW47: 24.90584799 | AX47: 23.85813149 | AY47: 23.77997846 | AZ47: 23.70896107 | BA47: 23.63255245 | BB47: 23.55653169 | BC47: 23.46961866 | BD47: 23.39077652 | BE47: 23.30728224 | BF47: 23.22027307 | BG47: 23.05422683 | BH47: 22.96942519 | BI47: 22.90944198 | BJ47: 22.84905534 | BK47: 22.78800225 | BL47: 22.72632285 | BM47: 22.66421211 | BN47: 22.6015976 | BO47: 22.53885631 | BP47: 22.47606194 | BQ47: 22.41332252 | BR47: 22.35068027
I48: Residential and Commercial | AI48: 40.56218294 | AJ48: 40.49230671 | AK48: 40.40424975 | AL48: 40.23285294 | AM48: 40.06073904 | AN48: 39.80665198 | AO48: 39.68272296 | AP48: 39.48730998 | AQ48: 39.27648779 | AR48: 39.0569491 | AS48: 38.93830099 | AT48: 38.82347818 | AU48: 38.71862816 | AV48: 38.62139759 | AW48: 38.52728701 | AX48: 38.07908997 | AY48: 37.96397233 | AZ48: 37.87906308 | BA48: 37.82053993 | BB48: 37.77109823 | BC48: 37.73983122 | BD48: 37.72022853 | BE48: 37.72123907 | BF48: 37.74325087 | BG48: 37.78076182 | BH48: 37.83083359 | BI48: 37.89538821 | BJ48: 37.9714089 | BK48: 38.05712626 | BL48: 38.15024074 | BM48: 38.24886747 | BN48: 38.3511327 | BO48: 38.45638433 | BP48: 38.56504795 | BQ48: 38.67639559 | BR48: 38.78872621
I49: Electric Power | AI49: 75.12555491 | AJ49: 73.05767464 | AK49: 68.4193171 | AL49: 68.35178523 | AM49: 67.90449064 | AN49: 66.78024729 | AO49: 64.36103298 | AP49: 62.02545255 | AQ49: 59.72390298 | AR49: 57.48008899 | AS49: 62.35226694 | AT49: 60.01879515 | AU49: 57.82390638 | AV49: 48.53778643 | AW49: 46.61459626 | AX49: 42.20577005 | AY49: 39.1947672 | AZ49: 37.64765414 | BA49: 36.25101232 | BB49: 34.09337506 | BC49: 32.78038216 | BD49: 31.55829501 | BE49: 30.31095721 | BF49: 29.2189533 | BG49: 28.11108628 | BH49: 27.12067528 | BI49: 25.91898744 | BJ49: 25.02848172 | BK49: 24.16061549 | BL49: 23.29656607 | BM49: 22.40267966 | BN49: 21.53073396 | BO49: 20.68900014 | BP49: 19.88200488 | BQ49: 19.10843609 | BR49: 18.40115855
I50: High GWP | AI50: 18.81184626 | AJ50: 19.23798571 | AK50: 19.26273119 | AL50: 18.95410728 | AM50: 18.81240865 | AN50: 18.48610798 | AO50: 18.08612601 | AP50: 17.62394705 | AQ50: 17.09660621 | AR50: 16.50274418 | AS50: 15.81164007 | AT50: 14.91638004 | AU50: 13.97794102 | AV50: 12.99619359 | AW50: 11.96996331 | AX50: 10.65532773 | AY50: 10.44930551 | AZ50: 10.24147935 | BA50: 10.03234943 | BB50: 9.82226611 | BC50: 9.610868581 | BD50: 9.409587189 | BE50: 9.206312344 | BF50: 9.001098185 | BG50: 8.793941083 | BH50: 8.584840114 | BI50: 8.36677548 | BJ50: 8.147327401 | BK50: 7.926444672 | BL50: 7.704102571 | BM50: 7.480260766 | BN50: 7.252978823 | BO50: 7.024283154 | BP50: 6.794098032 | BQ50: 6.5623696 | BR50: 6.329022471
I51: Land | AI51: 0 | AJ51: 0 | AK51: 0 | AL51: 0 | AM51: 0 | AN51: 0 | AO51: 0 | AP51: 0 | AQ51: 0 | AR51: 0 | AS51: 0 | AT51: 0 | AU51: 0 | AV51: 0 | AW51: 0 | AX51: 0 | AY51: 0 | AZ51: 0 | BA51: 0 | BB51: 0 | BC51: 0 | BD51: 0 | BE51: 0 | BF51: 0 | BG51: 0 | BH51: 0 | BI51: 0 | BJ51: 0 | BK51: 0 | BL51: 0 | BM51: 0 | BN51: 0 | BO51: 0 | BP51: 0 | BQ51: 0 | BR51: 0
I52: Industrial | AI52: 92.39183737 | AJ52: 91.97045001 | AK52: 91.19154833 | AL52: 90.62801021 | AM52: 89.92701453 | AN52: 89.21389215 | AO52: 87.84722939 | AP52: 86.46248258 | AQ52: 85.06372405 | AR52: 83.60794211 | AS52: 82.90541788 | AT52: 82.14529383 | AU52: 81.38767964 | AV52: 80.63105983 | AW52: 79.6685945 | AX52: 77.23991672 | AY52: 77.08006062 | AZ52: 76.93142787 | BA52: 76.77686411 | BB52: 76.6231946 | BC52: 76.45457423 | BD52: 76.29839191 | BE52: 76.13684689 | BF52: 75.97554728 | BG52: 75.69510842 | BH52: 75.53735277 | BI52: 75.41655688 | BJ52: 75.29606227 | BK52: 75.17540068 | BL52: 75.05405704 | BM52: 74.93222817 | BN52: 74.80978437 | BO52: 74.68669669 | BP52: 74.56262021 | BQ52: 74.43712516 | BR52: 74.30909208
I53: Recycling and Waste | AI53: 10.73087981 | AJ53: 10.73087981 | AK53: 10.73087981 | AL53: 10.73087981 | AM53: 10.73087981 | AN53: 10.59430498 | AO53: 10.45773014 | AP53: 10.32115531 | AQ53: 10.18458047 | AR53: 10.04800564 | AS53: 9.911430806 | AT53: 9.774855972 | AU53: 9.638281138 | AV53: 9.501706304 | AW53: 9.365131471 | AX53: 9.167237323 | AY53: 9.10591801 | AZ53: 9.044598697 | BA53: 8.983279384 | BB53: 8.921960071 | BC53: 8.860640757 | BD53: 8.799321444 | BE53: 8.738002131 | BF53: 8.676682818 | BG53: 8.615363505 | BH53: 8.554044191 | BI53: 8.492724878 | BJ53: 8.431405565 | BK53: 8.370086252 | BL53: 8.308766939 | BM53: 8.247447625 | BN53: 8.186128312 | BO53: 8.124808999 | BP53: 8.063489686 | BQ53: 8.002170373 | BR53: 7.940851059
I54: Transportation (Incl. TCU) | AI54: 167.7865036 | AJ54: 166.8258795 | AK54: 164.1112944 | AL54: 160.1741636 | AM54: 155.4786924 | AN54: 150.487806 | AO54: 145.2943465 | AP54: 139.04201 | AQ54: 133.1470249 | AR54: 126.8259368 | AS54: 122.7881959 | AT54: 118.6029808 | AU54: 115.105922 | AV54: 111.6317026 | AW54: 106.6764564 | AX54: 103.5758213 | AY54: 100.7650932 | AZ54: 98.27332714 | BA54: 95.51987644 | BB54: 93.01095047 | BC54: 90.30266311 | BD54: 87.8034602 | BE54: 85.35966145 | BF54: 82.72893189 | BG54: 79.15675245 | BH54: 76.42378079 | BI54: 74.57523957 | BJ54: 72.83225345 | BK54: 71.16694445 | BL54: 69.57615893 | BM54: 68.2224147 | BN54: 66.93987211 | BO54: 65.75723007 | BP54: 64.70194136 | BQ54: 64.55042103 | BR54: 64.48271525
I55: Total | AI55: 441.7437401 | AJ55: 438.6200141 | AK55: 430.0553779 | AL55: 424.6883469 | AM55: 418.184675 | AN55: 409.5657452 | AO55: 398.8418264 | AP55: 386.9551166 | AQ55: 375.3629293 | AR55: 363.2588634 | AS55: 361.5080317 | AT55: 352.1449345 | AU55: 343.5793355 | AV55: 327.9108215 | AW55: 317.7278769 | AX55: 304.7812945 | AY55: 298.3390953 | AZ55: 293.7265113 | BA55: 289.0164741 | BB55: 283.7993762 | BC55: 279.2185787 | BD55: 274.9800608 | BE55: 270.7803013 | BF55: 266.5647374 | BG55: 261.2072404 | BH55: 257.0209519 | BI55: 253.5751144 | BJ55: 250.5559946 | BK55: 247.6446201 | BL55: 244.8162151 | BM55: 242.1981105 | BN55: 239.6722279 | BO55: 237.2772597 | BP55: 235.0452641 | BQ55: 233.7502404 | BR55: 232.6022459 | BT55: 46.18129453 | BU55: 146.4022459
I57: PATHWAYS - Alternative 1
J58: 1990 | K58: 1991 | L58: 1992 | M58: 1993 | N58: 1994 | O58: 1995 | P58: 1996 | Q58: 1997 | R58: 1998 | S58: 1999 | T58: 2000 | U58: 2001 | V58: 2002 | W58: 2003 | X58: 2004 | Y58: 2005 | Z58: 2006 | AA58: 2007 | AB58: 2008 | AC58: 2009 | AD58: 2010 | AE58: 2011 | AF58: 2012 | AG58: 2013 | AH58: 2014 | AI58: 2015 | AJ58: 2016 | AK58: 2017 | AL58: 2018 | AM58: 2019 | AN58: 2020 | AO58: 2021 | AP58: 2022 | AQ58: 2023 | AR58: 2024 | AS58: 2025 | AT58: 2026 | AU58: 2027 | AV58: 2028 | AW58: 2029 | AX58: 2030 | AY58: 2031 | AZ58: 2032 | BA58: 2033 | BB58: 2034 | BC58: 2035 | BD58: 2036 | BE58: 2037 | BF58: 2038 | BG58: 2039 | BH58: 2040 | BI58: 2041 | BJ58: 2042 | BK58: 2043 | BL58: 2044 | BM58: 2045 | BN58: 2046 | BO58: 2047 | BP58: 2048 | BQ58: 2049 | BR58: 2050 | BT58: 2030 Gap | BU58: 2050 Gap
I59: Agriculture | J59: 36.33493864 | AI59: 36.33493864 | AJ59: 36.30478994 | AK59: 35.93526448 | AL59: 35.6164087 | AM59: 35.27026009 | AN59: 34.1954868 | AO59: 33.10797629 | AP59: 31.98289866 | AQ59: 30.66259973 | AR59: 29.71013532 | AS59: 28.58584633 | AT59: 27.64680613 | AU59: 26.54341554 | AV59: 25.54522815 | AW59: 24.59912312 | AX59: 23.53164534 | AY59: 23.44079116 | AZ59: 23.34787395 | BA59: 23.2452235 | BB59: 23.12749719 | BC59: 22.99872797 | BD59: 22.8617699 | BE59: 22.71356207 | BF59: 22.53975542 | BG59: 22.34316118 | BH59: 22.12010293 | BI59: 21.86014984 | BJ59: 21.72730165 | BK59: 21.60150636 | BL59: 21.47700675 | BM59: 21.35997125 | BN59: 21.24489356 | BO59: 21.13010356 | BP59: 21.01446105 | BQ59: 20.90313307 | BR59: 20.80895064
I60: Residential and Commercial | J60: 40.56748531 | AI60: 40.56748531 | AJ60: 40.47823696 | AK60: 40.37315589 | AL60: 40.19189616 | AM60: 40.02540541 | AN60: 39.8000951 | AO60: 39.71647849 | AP60: 39.53065014 | AQ60: 39.25917635 | AR60: 38.72623993 | AS60: 37.56480023 | AT60: 36.09914519 | AU60: 34.53229938 | AV60: 32.67352904 | AW60: 30.86903646 | AX60: 28.772458 | AY60: 27.22611971 | AZ60: 25.77645758 | BA60: 24.39397953 | BB60: 23.05957525 | BC60: 21.83840782 | BD60: 20.7129119 | BE60: 19.6845573 | BF60: 18.75399613 | BG60: 17.90980065 | BH60: 17.14547827 | BI60: 16.42578324 | BJ60: 15.77521915 | BK60: 15.17736319 | BL60: 14.62316299 | BM60: 14.1114978 | BN60: 13.63659443 | BO60: 13.20104106 | BP60: 12.79796903 | BQ60: 12.42677112 | BR60: 12.0855565
I61: Electric Power | J61: 74.8905743 | AI61: 74.8905743 | AJ61: 72.41977649 | AK61: 67.31674806 | AL61: 66.70813745 | AM61: 65.61671458 | AN61: 63.66880966 | AO61: 60.31150508 | AP61: 56.38422357 | AQ61: 52.60356006 | AR61: 49.08919082 | AS61: 52.55127966 | AT61: 49.42223987 | AU61: 46.4771381 | AV61: 36.61289294 | AW61: 34.21314896 | AX61: 30.03535243 | AY61: 28.75526017 | AZ61: 28.86398652 | BA61: 29.07180586 | BB61: 28.49075248 | BC61: 28.58387071 | BD61: 28.70118581 | BE61: 28.71260786 | BF61: 28.82649132 | BG61: 28.84075374 | BH61: 28.94392188 | BI61: 28.06172144 | BJ61: 27.49971497 | BK61: 26.90533929 | BL61: 26.28770916 | BM61: 25.65378349 | BN61: 25.00922974 | BO61: 24.39592749 | BP61: 23.80697154 | BQ61: 23.21603001 | BR61: 22.68791927
I62: High GWP | J62: 18.81184626 | AI62: 18.81184626 | AJ62: 19.23798571 | AK62: 19.26273119 | AL62: 18.95410728 | AM62: 18.81240865 | AN62: 18.48610798 | AO62: 18.08612601 | AP62: 17.62394705 | AQ62: 17.09660621 | AR62: 16.50274418 | AS62: 15.81164007 | AT62: 14.91638004 | AU62: 13.97794102 | AV62: 12.99619359 | AW62: 11.96996331 | AX62: 10.65532773 | AY62: 10.44930551 | AZ62: 10.24147935 | BA62: 10.03234943 | BB62: 9.82226611 | BC62: 9.610868581 | BD62: 9.409587189 | BE62: 9.206312344 | BF62: 9.001098185 | BG62: 8.793941083 | BH62: 8.584840114 | BI62: 8.36677548 | BJ62: 8.147327401 | BK62: 7.926444672 | BL62: 7.704102571 | BM62: 7.480260766 | BN62: 7.252978823 | BO62: 7.024283154 | BP62: 6.794098032 | BQ62: 6.5623696 | BR62: 6.329022471
I63: Land | J63: 0 | AI63: 0 | AJ63: 0 | AK63: 0 | AL63: 0 | AM63: 0 | AN63: 0 | AO63: 0 | AP63: 0 | AQ63: 0 | AR63: 0 | AS63: 0 | AT63: 0 | AU63: 0 | AV63: 0 | AW63: 0 | AX63: 0 | AY63: 0 | AZ63: 0 | BA63: 0 | BB63: 0 | BC63: 0 | BD63: 0 | BE63: 0 | BF63: 0 | BG63: 0 | BH63: 0 | BI63: 0 | BJ63: 0 | BK63: 0 | BL63: 0 | BM63: 0 | BN63: 0 | BO63: 0 | BP63: 0 | BQ63: 0 | BR63: 0
I64: Industrial | J64: 92.39184087 | AI64: 92.39184087 | AJ64: 91.94054114 | AK64: 91.13161568 | AL64: 90.53907274 | AM64: 89.80990627 | AN64: 88.5629086 | AO64: 86.04772526 | AP64: 83.54198363 | AQ64: 80.84423149 | AR64: 78.56253695 | AS64: 76.58334769 | AT64: 74.7558348 | AU64: 72.77390864 | AV64: 70.82587133 | AW64: 68.95233388 | AX64: 65.64230922 | AY64: 65.46859182 | AZ64: 65.31633657 | BA64: 65.15579306 | BB64: 64.96642337 | BC64: 64.7754805 | BD64: 64.57610762 | BE64: 64.36333069 | BF64: 64.1268415 | BG64: 63.86241308 | BH64: 63.56844422 | BI64: 63.2116737 | BJ64: 63.00637896 | BK64: 62.80921399 | BL64: 62.61230373 | BM64: 62.41436538 | BN64: 62.21578199 | BO64: 62.02042156 | BP64: 61.82271856 | BQ64: 61.6305009 | BR64: 61.46140837
I65: Recycling and Waste | J65: 10.73087981 | AI65: 10.73087981 | AJ65: 10.73087981 | AK65: 10.73087981 | AL65: 10.73087981 | AM65: 10.73087981 | AN65: 10.59430498 | AO65: 10.45773014 | AP65: 10.32115531 | AQ65: 10.18458047 | AR65: 10.04800564 | AS65: 9.911430806 | AT65: 9.774855972 | AU65: 9.638281138 | AV65: 9.501706304 | AW65: 9.365131471 | AX65: 9.167237323 | AY65: 9.10591801 | AZ65: 9.044598697 | BA65: 8.983279384 | BB65: 8.921960071 | BC65: 8.860640757 | BD65: 8.799321444 | BE65: 8.738002131 | BF65: 8.676682818 | BG65: 8.615363505 | BH65: 8.554044191 | BI65: 8.492724878 | BJ65: 8.431405565 | BK65: 8.370086252 | BL65: 8.308766939 | BM65: 8.247447625 | BN65: 8.186128312 | BO65: 8.124808999 | BP65: 8.063489686 | BQ65: 8.002170373 | BR65: 7.940851059
I66: Transportation (Incl. TCU) | J66: 167.887625 | AI66: 167.887625 | AJ66: 166.8237687 | AK66: 164.1070532 | AL66: 159.7275941 | AM66: 154.6088695 | AN66: 149.1807964 | AO66: 143.3005504 | AP66: 136.3837524 | AQ66: 127.518588 | AR66: 122.6929067 | AS66: 115.3431384 | AT66: 110.3706327 | AU66: 104.286442 | AV66: 100.0415806 | AW66: 95.09445424 | AX66: 90.82230425 | AY66: 87.59730032 | AZ66: 84.41410152 | BA66: 81.15907217 | BB66: 77.70962494 | BC66: 73.99369044 | BD66: 70.03294786 | BE66: 65.65140482 | BF66: 60.8032726 | BG66: 55.38085456 | BH66: 49.33563553 | BI66: 42.50445489 | BJ66: 36.85554986 | BK66: 30.91346728 | BL66: 24.55667242 | BM66: 22.5945636 | BN66: 22.31742216 | BO66: 22.06488511 | BP66: 21.76696765 | BQ66: 21.60020452 | BR66: 21.86191757
I67: Total | J67: 441.6151902 | AI67: 441.6151902 | AJ67: 437.9359787 | AK67: 428.8574483 | AL67: 422.4680963 | AM67: 414.8744443 | AN67: 404.4885096 | AO67: 391.0280916 | AP67: 375.7686107 | AQ67: 358.1693423 | AR67: 345.3317595 | AS67: 336.3514832 | AT67: 322.9858947 | AU67: 308.2294258 | AV67: 288.197002 | AW67: 275.0631914 | AX67: 258.6266343 | AY67: 252.0432867 | AZ67: 247.0048342 | BA67: 242.0415029 | BB67: 236.0980994 | BC67: 230.6616868 | BD67: 225.0938317 | BE67: 219.0697772 | BF67: 212.728138 | BG67: 205.7462878 | BH67: 198.2524671 | BI67: 188.9232835 | BJ67: 181.4428976 | BK67: 173.703421 | BL67: 165.5697245 | BM67: 161.8618899 | BN67: 159.863029 | BO67: 157.9614709 | BP67: 156.0666756 | BQ67: 154.3411796 | BR67: 153.1756259 | BT67: 0.02663429893 | BU67: 66.97562588
I70: CARB Inventory
J71: 1990 | K71: 1991 | L71: 1992 | M71: 1993 | N71: 1994 | O71: 1995 | P71: 1996 | Q71: 1997 | R71: 1998 | S71: 1999 | T71: 2000 | U71: 2001 | V71: 2002 | W71: 2003 | X71: 2004 | Y71: 2005 | Z71: 2006 | AA71: 2007 | AB71: 2008 | AC71: 2009 | AD71: 2010 | AE71: 2011 | AF71: 2012 | AG71: 2013 | AH71: 2014 | AI71: 2015 | AJ71: 2016 | AK71: 2017 | AL71: 2018 | AM71: 2019 | AN71: 2020 | AO71: 2021 | AP71: 2022 | AQ71: 2023 | AR71: 2024 | AS71: 2025 | AT71: 2026 | AU71: 2027 | AV71: 2028 | AW71: 2029 | AX71: 2030 | AY71: 2031 | AZ71: 2032 | BA71: 2033 | BB71: 2034 | BC71: 2035 | BD71: 2036 | BE71: 2037 | BF71: 2038 | BG71: 2039 | BH71: 2040 | BI71: 2041 | BJ71: 2042 | BK71: 2043 | BL71: 2044 | BM71: 2045 | BN71: 2046 | BO71: 2047 | BP71: 2048 | BQ71: 2049 | BR71: 2050
I72: Agriculture | AH72: 36.10628445
I73: Residential and Commercial | AH73: 38.3448181
I74: Electric Power | AH74: 88.2355891
I75: High GWP | AH75: 17.14806537
I76: Industrial | AH76: 93.32232358
I77: Recycling and Waste | AH77: 8.848776478
I78: Transportation | AH78: 159.5292053
I79: Total | J79: 431 | K79: 410.4031133 | L79: 412.3779657 | M79: 409.3916809 | N79: 421.812624 | O79: 411.4066445 | P79: 409.1694066 | Q79: 427.512987 | R79: 443.8572916 | S79: 451.3211493 | T79: 466.3167045 | U79: 481.2267163 | V79: 480.3167969 | W79: 483.0543085 | X79: 492.8613133 | Y79: 485.1322839 | Z79: 482.518193 | AA79: 489.1603397 | AB79: 487.1005143 | AC79: 458.4411816 | AD79: 453.055471 | AE79: 450.9431009 | AF79: 458.6846035 | AH79: 441.5350624
I80: Reduction Goals | J80: 431 | AN80: 431 | AX80: 258.6 | BR80: 86.2
I81: End Goal | J81: 86.2 | BR81: 86.2
A92: CASE 1 | B92: =actCaseAnnGHG_1 -> 0
A93: =actCaseAnnGHG_1&"#Electricity" -> #Electricity
A94: Fgas: RES# | B94: ="#"&actCaseAnnGHG_1 -> #
A95: Fgas: COM# | B95: #
A96: Fgas: IND# | B96: #
A97: Fgas: LDV# | B97: #
A98: Fgas: HDV# | B98: #
A99: Fgas: Other trans# | B99: #
A100: Fgas: Electricity# | B100: #
A101: Electricity Generation Fugitive and Process Emissions# | B101: #
A102: Land: Fire# | B102: #
A103: Land: Use change# | B103: #
A104: Waste# | B104: #
A106: Geo-Independent
A107: ="#"&I107&"#"&actCaseAnnGHG_1&"#" -> ### | B107: Agriculture: Enteric# | C107: Agriculture: Soil Emissions# | D107: Agriculture: Manure# | E107: Agriculture: Other# | H107: ="#"&I107&"#"&actCaseAnnGHG_1&"#Electricity" -> ###Electricity
A108: ### | H108: ###Electricity
A109: ### | H109: ###Electricity
A110: ### | B110: Cement# | C110: Pipeline Fugitive Emissions# | H110: ###Electricity
A111: ### | B111: Oil Extraction Fugitive Emissions# | H111: ###Electricity
A112: ### | B112: Petroleum Refining# | H112: ###Electricity
A113: ### | H113: ###Electricity
A114: ### | H114: ###Electricity
A116: LADWP
A117: ="#"&I117&"#"&actCaseAnnGHG_1&"#" -> ### | H117: ="#"&I117&"#"&actCaseAnnGHG_1&"#Electricity" -> ###Electricity
A118: ### | H118: ###Electricity
A119: ### | H119: ###Electricity
A120: ### | H120: ###Electricity
A121: ### | H121: ###Electricity
A122: ### | H122: ###Electricity
A123: ### | H123: ###Electricity
A124: ### | H124: ###Electricity
A126: Other
A127: ="#"&I127&"#"&actCaseAnnGHG_1&"#" -> ### | B127: Agriculture: Enteric# | C127: Agriculture: Soil Emissions# | D127: Agriculture: Manure# | E127: Agriculture: Other# | H127: ="#"&I127&"#"&actCaseAnnGHG_1&"#Electricity" -> ###Electricity
A128: ### | H128: ###Electricity
A129: ### | H129: ###Electricity
A130: ### | B130: Cement# | C130: Pipeline Fugitive Emissions# | H130: ###Electricity
A131: ### | B131: Oil Extraction Fugitive Emissions# | H131: ###Electricity
A132: ### | B132: Petroleum Refining# | H132: ###Electricity
A133: ### | H133: ###Electricity
A134: ### | H134: ###Electricity
A136: PG&E
A137: ="#"&I137&"#"&actCaseAnnGHG_1&"#" -> ### | H137: ="#"&I137&"#"&actCaseAnnGHG_1&"#Electricity" -> ###Electricity
A138: ### | H138: ###Electricity
A139: ### | H139: ###Electricity
A140: ### | H140: ###Electricity
A141: ### | H141: ###Electricity
A142: ### | H142: ###Electricity
A143: ### | H143: ###Electricity
A144: ### | H144: ###Electricity
A146: SCE
A147: ="#"&I147&"#"&actCaseAnnGHG_1&"#" -> ### | H147: ="#"&I147&"#"&actCaseAnnGHG_1&"#Electricity" -> ###Electricity
A148: ### | H148: ###Electricity
A149: ### | H149: ###Electricity
A150: ### | H150: ###Electricity
A151: ### | H151: ###Electricity
A152: ### | H152: ###Electricity
A153: ### | H153: ###Electricity
A154: ### | H154: ###Electricity
A156: SDG&E
A157: ="#"&I157&"#"&actCaseAnnGHG_1&"#" -> ### | H157: ="#"&I157&"#"&actCaseAnnGHG_1&"#Electricity" -> ###Electricity
A158: ### | H158: ###Electricity
A159: ### | H159: ###Electricity
A160: ### | H160: ###Electricity
A161: ### | H161: ###Electricity
A162: ### | H162: ###Electricity
A163: ### | H163: ###Electricity
A164: ### | H164: ###Electricity
A166: SMUD
A167: ="#"&I167&"#"&actCaseAnnGHG_1&"#" -> ### | H167: ="#"&I167&"#"&actCaseAnnGHG_1&"#Electricity" -> ###Electricity
A168: ### | H168: ###Electricity
A169: ### | H169: ###Electricity
A170: ### | H170: ###Electricity
A171: ### | H171: ###Electricity
A172: ### | H172: ###Electricity
A173: ### | H173: ###Electricity
A174: ### | H174: ###Electricity
A176: CASE 2
A177: =actCaseAnnGHG_2&"#Electricity" -> #Electricity
A178: Fgas: RES# | B178: ="#"&actCaseAnnGHG_2 -> #
A179: Fgas: COM# | B179: #
A180: Fgas: IND# | B180: #
A181: Fgas: LDV# | B181: #
A182: Fgas: HDV# | B182: #
A183: Fgas: Other trans# | B183: #
A184: Fgas: Electricity# | B184: #
A185: Electricity Generation Fugitive and Process Emissions# | B185: #
A186: Land: Fire# | B186: #
A187: Land: Use change# | B187: #
A188: Waste# | B188: #
A190: Geo-Independent
A191: ="#"&I191&"#"&actCaseAnnGHG_2&"#" -> ### | B191: Agriculture: Enteric# | C191: Agriculture: Soil Emissions# | D191: Agriculture: Manure# | E191: Agriculture: Other# | H191: ="#"&I191&"#"&actCaseAnnGHG_2&"#Electricity" -> ###Electricity
A192: ### | H192: ###Electricity
A193: ### | H193: ###Electricity
A194: ### | B194: Cement# | C194: Pipeline Fugitive Emissions# | H194: ###Electricity
A195: ### | B195: Oil Extraction Fugitive Emissions# | H195: ###Electricity
A196: ### | B196: Petroleum Refining# | H196: ###Electricity
A197: ### | H197: ###Electricity
A198: ### | H198: ###Electricity
A200: LADWP
A201: ="#"&I201&"#"&actCaseAnnGHG_2&"#" -> ### | H201: ="#"&I201&"#"&actCaseAnnGHG_2&"#Electricity" -> ###Electricity
A202: ### | H202: ###Electricity
A203: ### | H203: ###Electricity
A204: ### | H204: ###Electricity
A205: ### | H205: ###Electricity
A206: ### | H206: ###Electricity
A207: ### | H207: ###Electricity
A208: ### | H208: ###Electricity
A210: Other
A211: ="#"&I211&"#"&actCaseAnnGHG_2&"#" -> ### | B211: Agriculture: Enteric# | C211: Agriculture: Soil Emissions# | D211: Agriculture: Manure# | E211: Agriculture: Other# | H211: ="#"&I211&"#"&actCaseAnnGHG_2&"#Electricity" -> ###Electricity
A212: ### | H212: ###Electricity
A213: ### | H213: ###Electricity
A214: ### | B214: Cement# | C214: Pipeline Fugitive Emissions# | H214: ###Electricity
A215: ### | B215: Oil Extraction Fugitive Emissions# | H215: ###Electricity
A216: ### | B216: Petroleum Refining# | H216: ###Electricity
A217: ### | H217: ###Electricity
A218: ### | H218: ###Electricity
A220: PG&E
A221: ="#"&I221&"#"&actCaseAnnGHG_2&"#" -> ### | H221: ="#"&I221&"#"&actCaseAnnGHG_2&"#Electricity" -> ###Electricity
A222: ### | H222: ###Electricity
A223: ### | H223: ###Electricity
A224: ### | H224: ###Electricity
A225: ### | H225: ###Electricity
A226: ### | H226: ###Electricity
A227: ### | H227: ###Electricity
A228: ### | H228: ###Electricity
A230: SCE
A231: ="#"&I231&"#"&actCaseAnnGHG_2&"#" -> ### | H231: ="#"&I231&"#"&actCaseAnnGHG_2&"#Electricity" -> ###Electricity
A232: ### | H232: ###Electricity
A233: ### | H233: ###Electricity
A234: ### | H234: ###Electricity
A235: ### | H235: ###Electricity
A236: ### | H236: ###Electricity
A237: ### | H237: ###Electricity
A238: ### | H238: ###Electricity
A240: SDG&E
A241: ="#"&I241&"#"&actCaseAnnGHG_2&"#" -> ### | H241: ="#"&I241&"#"&actCaseAnnGHG_2&"#Electricity" -> ###Electricity
A242: ### | H242: ###Electricity
A243: ### | H243: ###Electricity
A244: ### | H244: ###Electricity
A245: ### | H245: ###Electricity
A246: ### | H246: ###Electricity
A247: ### | H247: ###Electricity
A248: ### | H248: ###Electricity
A250: SMUD
A251: ="#"&I251&"#"&actCaseAnnGHG_2&"#" -> ### | H251: ="#"&I251&"#"&actCaseAnnGHG_2&"#Electricity" -> ###Electricity
A252: ### | H252: ###Electricity
A253: ### | H253: ###Electricity
A254: ### | H254: ###Electricity
A255: ### | H255: ###Electricity
A256: ### | H256: ###Electricity
A257: ### | H257: ###Electricity
... 78 more rows

Sheet Summary Tables
C2: Case Name
B3: Base Case | C3: Reference
B4: Comparison Case 1 | C4: Scoping Plan
B5: Comparison Case 2 | C5: Alternative 1
B6: Year for Chart | C6: 2030
B8: ="Comparison to "&TabCostCase_1&" in "&$C$6 -> Comparison to Reference in 2030
B9: Case | C9: GHGs [MMTCO2] | D9: Stock Costs [$Billion] | E9: Fuel Costs [$Billion] | F9: Total Costs [$Billion]
B11: =IF(TabCostCase_2="",NA(),TabCostCase_2) -> Scoping Plan | C11: =IF(ISBLANK($C4),NA(),(SUMPRODUCT((Non_Energy_GHGs_index_3=$C4)*(Non_Energy_GHGs_index_2=$C$6)*(Non_Energy_GHGs_vals))+SUMPRODUCT(($C4=Energy_GHGs_by_Sect1_index_4)*(Energy_GHGs_by_Sect1_index_1='Summary Tables'!$C$6)*Energy_GHGs_by_Sect1_vals)-(SUMPRODUCT((Non_Energy_GHGs_index_3=TabCostCase_1)*(Non_Energy_GHGs_index_2=$C$6)*(Non_Energy_GHGs_vals))+SUMPRODUCT((TabCostCase_1=Energy_GHGs_by_Sect1_index_4)*(Energy_GHGs_by_Sect1_index_1='Summary Tables'!$C$6)*Energy_GHGs_by_Sect1_vals)))/1000000) -> -87.56875646 | D11: =IF($C4="",NA(),(SUMPRODUCT(($C4=IF(TabCostGeoRes,Total_Costs1_index_4,Total_Costs1_index_3))*("Stock Costs"=IF(TabCostGeoRes,Total_Costs1_index_5,Total_Costs1_index_4))*($C$6=Total_Costs1_index_1)*(Total_Costs1_vals))+SUMPRODUCT(($C4=IF(TabCostGeoRes,Total_Costs1_index_4,Total_Costs1_index_3))*("Demand Change Measure Costs"=IF(TabCostGeoRes,Total_Costs1_index_5,Total_Costs1_index_4))*($C$6=Total_Costs1_index_1)*(Total_Costs1_vals))-SUMPRODUCT((TabCostCase_1=IF(TabCostGeoRes,Total_Costs1_index_4,Total_Costs1_index_3))*("Stock Costs"=IF(TabCostGeoRes,Total_Costs1_index_5,Total_Costs1_index_4))*($C$6=Total_Costs1_index_1)*(Total_Costs1_vals))-SUMPRODUCT((TabCostCase_1=IF(TabCostGeoRes,Total_Costs1_index_4,Total_Costs1_index_3))*("Demand Change Measure Costs"=IF(TabCostGeoRes,Total_Costs1_index_5,Total_Costs1_index_4))*($C$6=Total_Costs1_index_1)*(Total_Costs1_vals)))/10^9) -> 4.918236252 | E11: =F11-D11 -> -3.946342856 | F11: =IF(ISBLANK($C4),NA(),(SUMPRODUCT(($C4=IF(TabCostGeoRes,Total_Costs1_index_4,Total_Costs1_index_3))*($C$6=Total_Costs1_index_1)*(Total_Costs1_vals))-SUMPRODUCT((TabCostCase_1=IF(TabCostGeoRes,Total_Costs1_index_4,Total_Costs1_index_3))*($C$6=Total_Costs1_index_1)*(Total_Costs1_vals)))/1000000000) -> 0.9718933958
B12: =IF(TabCostCase_3="",NA(),TabCostCase_3) -> Alternative 1 | C12: =IF(ISBLANK($C5),NA(),(SUMPRODUCT((Non_Energy_GHGs_index_3=$C5)*(Non_Energy_GHGs_index_2=$C$6)*(Non_Energy_GHGs_vals))+SUMPRODUCT(($C5=Energy_GHGs_by_Sect1_index_4)*(Energy_GHGs_by_Sect1_index_1='Summary Tables'!$C$6)*Energy_GHGs_by_Sect1_vals)-(SUMPRODUCT((Non_Energy_GHGs_index_3=TabCostCase_1)*(Non_Energy_GHGs_index_2=$C$6)*(Non_Energy_GHGs_vals))+SUMPRODUCT((TabCostCase_1=Energy_GHGs_by_Sect1_index_4)*(Energy_GHGs_by_Sect1_index_1='Summary Tables'!$C$6)*Energy_GHGs_by_Sect1_vals)))/1000000) -> -133.7234167 | D12: =IF($C5="",NA(),(SUMPRODUCT(($C5=IF(TabCostGeoRes,Total_Costs1_index_4,Total_Costs1_index_3))*("Stock Costs"=IF(TabCostGeoRes,Total_Costs1_index_5,Total_Costs1_index_4))*($C$6=Total_Costs1_index_1)*(Total_Costs1_vals))+SUMPRODUCT(($C5=IF(TabCostGeoRes,Total_Costs1_index_4,Total_Costs1_index_3))*("Demand Change Measure Costs"=IF(TabCostGeoRes,Total_Costs1_index_5,Total_Costs1_index_4))*($C$6=Total_Costs1_index_1)*(Total_Costs1_vals))-SUMPRODUCT((TabCostCase_1=IF(TabCostGeoRes,Total_Costs1_index_4,Total_Costs1_index_3))*("Stock Costs"=IF(TabCostGeoRes,Total_Costs1_index_5,Total_Costs1_index_4))*($C$6=Total_Costs1_index_1)*(Total_Costs1_vals))-SUMPRODUCT((TabCostCase_1=IF(TabCostGeoRes,Total_Costs1_index_4,Total_Costs1_index_3))*("Demand Change Measure Costs"=IF(TabCostGeoRes,Total_Costs1_index_5,Total_Costs1_index_4))*($C$6=Total_Costs1_index_1)*(Total_Costs1_vals)))/10^9) -> 11.28779846 | E12: 4.386170265 | F12: =IF(ISBLANK($C5),NA(),(SUMPRODUCT(($C5=IF(TabCostGeoRes,Total_Costs1_index_4,Total_Costs1_index_3))*($C$6=Total_Costs1_index_1)*(Total_Costs1_vals))-SUMPRODUCT((TabCostCase_1=IF(TabCostGeoRes,Total_Costs1_index_4,Total_Costs1_index_3))*($C$6=Total_Costs1_index_1)*(Total_Costs1_vals)))/1000000000) -> 15.67396872
M14: ="Change in Fuel Costs Relative to "&TabCostCase_1&" in "&$C$6&" by Sector ($Millions)" -> Change in Fuel Costs Relative to Reference in 2030 by Sector ($Millions) | O14: ="Change in Stock Costs Relative to "&TabCostCase_1&" in "&$C$6&" by Sector ($Millions)" -> Change in Stock Costs Relative to Reference in 2030 by Sector ($Millions)
C15: ="Total Costs in "&$C$6&" by Sector ($Billions)" -> Total Costs in 2030 by Sector ($Billions) | G15: ="Total Emissions in "&$C$6&" by Sector (MMTCO2e)" -> Total Emissions in 2030 by Sector (MMTCO2e)
B16: End Use Sector | C16: ARB | D16: ARB | E16: Absolute Change | F16: % Change | G16: ARB | H16: ARB | I16: Absolute Change | J16: % Change | L16: End Use Sector | M16: ARB | N16: ARB | O16: ARB | P16: ARB
C17: =TabCostCase_1 -> Reference | D17: =TabCostCase_2 -> Scoping Plan | G17: =TabCostCase_1 -> Reference | H17: =TabCostCase_2 -> Scoping Plan | M17: =TabCostCase_2 -> Scoping Plan | N17: =TabCostCase_3 -> Alternative 1 | O17: =TabCostCase_2 -> Scoping Plan | P17: =TabCostCase_3 -> Alternative 1
B18: Residential | C18: =SUMPRODUCT(($B18=IF(TabCostGeoRes,Total_Costs1_index_3,Total_Costs1_index_2))*('Summary Tables'!C$17=IF(TabCostGeoRes,Total_Costs1_index_4,Total_Costs1_index_3))*(Total_Costs1_index_1='Summary Tables'!$C$6)*Total_Costs1_vals)/1000000000 -> 50.79643039 | D18: =SUMPRODUCT(($B18=IF(TabCostGeoRes,Total_Costs1_index_3,Total_Costs1_index_2))*('Summary Tables'!D$17=IF(TabCostGeoRes,Total_Costs1_index_4,Total_Costs1_index_3))*(Total_Costs1_index_1='Summary Tables'!$C$6)*Total_Costs1_vals)/1000000000 -> 50.11556128 | E18: =D18-C18 -> -0.6808691071 | F18: =IF(C18=0,"n/a",E18/C18) -> -0.01340387704 | G18: =SUMPRODUCT(($B18=IF(TabCostGeoRes,Energy_GHGs_by_Sect1_index_3,Energy_GHGs_by_Sect1_index_2))*('Summary Tables'!G$17=IF(TabCostGeoRes,Energy_GHGs_by_Sect1_index_4,Energy_GHGs_by_Sect1_index_3))*(Energy_GHGs_by_Sect1_index_1='Summary Tables'!$C$6)*Energy_GHGs_by_Sect1_vals)/1000000 -> 47.58120421 | H18: =SUMPRODUCT(($B18=IF(TabCostGeoRes,Energy_GHGs_by_Sect1_index_3,Energy_GHGs_by_Sect1_index_2))*('Summary Tables'!H$17=IF(TabCostGeoRes,Energy_GHGs_by_Sect1_index_4,Energy_GHGs_by_Sect1_index_3))*(Energy_GHGs_by_Sect1_index_1='Summary Tables'!$C$6)*Energy_GHGs_by_Sect1_vals)/1000000 -> 38.38509044 | I18: =H18-G18 -> -9.196113767 | J18: =IF(G18=0,"n/a",I18/G18) -> -0.1932719846 | L18: Residential | M18: =(SUMPRODUCT(($B18=IF(TabCostGeoRes,Total_Costs1_index_3,Total_Costs1_index_2))*('Summary Tables'!M$17=IF(TabCostGeoRes,Total_Costs1_index_4,Total_Costs1_index_3))*(Total_Costs1_index_1='Summary Tables'!$C$6)*Total_Costs1_vals)-SUMPRODUCT(($B18=IF(TabCostGeoRes,Total_Costs1_index_3,Total_Costs1_index_2))*(TabCostCase_1=IF(TabCostGeoRes,Total_Costs1_index_4,Total_Costs1_index_3))*(Total_Costs1_index_1='Summary Tables'!$C$6)*Total_Costs1_vals))/1000000-O18 -> -793.3250928 | N18: =(SUMPRODUCT(($B18=IF(TabCostGeoRes,Total_Costs1_index_3,Total_Costs1_index_2))*('Summary Tables'!N$17=IF(TabCostGeoRes,Total_Costs1_index_4,Total_Costs1_index_3))*(Total_Costs1_index_1='Summary Tables'!$C$6)*Total_Costs1_vals)-SUMPRODUCT(($B18=IF(TabCostGeoRes,Total_Costs1_index_3,Total_Costs1_index_2))*(TabCostCase_1=IF(TabCostGeoRes,Total_Costs1_index_4,Total_Costs1_index_3))*(Total_Costs1_index_1='Summary Tables'!$C$6)*Total_Costs1_vals))/1000000-P18 -> 2560.531145 | O18: =(SUMPRODUCT(($B18=IF(TabCostGeoRes,Total_Costs1_index_3,Total_Costs1_index_2))*('Summary Tables'!O$17=IF(TabCostGeoRes,Total_Costs1_index_4,Total_Costs1_index_3))*(Total_Costs1_index_1='Summary Tables'!$C$6)*("Stock Costs"=Total_Costs1_index_5)*Total_Costs1_vals)-SUMPRODUCT(($B18=IF(TabCostGeoRes,Total_Costs1_index_3,Total_Costs1_index_2))*(TabCostCase_1=IF(TabCostGeoRes,Total_Costs1_index_4,Total_Costs1_index_3))*(Total_Costs1_index_1='Summary Tables'!$C$6)*("Stock Costs"=Total_Costs1_index_5)*Total_Costs1_vals))/1000000 -> 112.4559857 | P18: =(SUMPRODUCT(($B18=IF(TabCostGeoRes,Total_Costs1_index_3,Total_Costs1_index_2))*('Summary Tables'!P$17=IF(TabCostGeoRes,Total_Costs1_index_4,Total_Costs1_index_3))*(Total_Costs1_index_1='Summary Tables'!$C$6)*("Stock Costs"=Total_Costs1_index_5)*Total_Costs1_vals)-SUMPRODUCT(($B18=IF(TabCostGeoRes,Total_Costs1_index_3,Total_Costs1_index_2))*(TabCostCase_1=IF(TabCostGeoRes,Total_Costs1_index_4,Total_Costs1_index_3))*(Total_Costs1_index_1='Summary Tables'!$C$6)*("Stock Costs"=Total_Costs1_index_5)*Total_Costs1_vals))/1000000 -> 870.5499072
B19: Commercial | C19: =SUMPRODUCT(($B19=IF(TabCostGeoRes,Total_Costs1_index_3,Total_Costs1_index_2))*('Summary Tables'!C$17=IF(TabCostGeoRes,Total_Costs1_index_4,Total_Costs1_index_3))*(Total_Costs1_index_1='Summary Tables'!$C$6)*Total_Costs1_vals)/1000000000 -> 35.31784535 | D19: =SUMPRODUCT(($B19=IF(TabCostGeoRes,Total_Costs1_index_3,Total_Costs1_index_2))*('Summary Tables'!D$17=IF(TabCostGeoRes,Total_Costs1_index_4,Total_Costs1_index_3))*(Total_Costs1_index_1='Summary Tables'!$C$6)*Total_Costs1_vals)/1000000000 -> 34.9339165 | E19: -0.3839288527 | F19: -0.01087067597 | G19: =SUMPRODUCT(($B19=IF(TabCostGeoRes,Energy_GHGs_by_Sect1_index_3,Energy_GHGs_by_Sect1_index_2))*('Summary Tables'!G$17=IF(TabCostGeoRes,Energy_GHGs_by_Sect1_index_4,Energy_GHGs_by_Sect1_index_3))*(Energy_GHGs_by_Sect1_index_1='Summary Tables'!$C$6)*Energy_GHGs_by_Sect1_vals)/1000000 -> 37.17956772 | H19: =SUMPRODUCT(($B19=IF(TabCostGeoRes,Energy_GHGs_by_Sect1_index_3,Energy_GHGs_by_Sect1_index_2))*('Summary Tables'!H$17=IF(TabCostGeoRes,Energy_GHGs_by_Sect1_index_4,Energy_GHGs_by_Sect1_index_3))*(Energy_GHGs_by_Sect1_index_1='Summary Tables'!$C$6)*Energy_GHGs_by_Sect1_vals)/1000000 -> 26.82906646 | I19: -10.35050126 | J19: -0.2783921895 | L19: Commercial | M19: =(SUMPRODUCT(($B19=IF(TabCostGeoRes,Total_Costs1_index_3,Total_Costs1_index_2))*('Summary Tables'!M$17=IF(TabCostGeoRes,Total_Costs1_index_4,Total_Costs1_index_3))*(Total_Costs1_index_1='Summary Tables'!$C$6)*Total_Costs1_vals)-SUMPRODUCT(($B19=IF(TabCostGeoRes,Total_Costs1_index_3,Total_Costs1_index_2))*(TabCostCase_1=IF(TabCostGeoRes,Total_Costs1_index_4,Total_Costs1_index_3))*(Total_Costs1_index_1='Summary Tables'!$C$6)*Total_Costs1_vals))/1000000-O19 -> -831.4990793 | N19: =(SUMPRODUCT(($B19=IF(TabCostGeoRes,Total_Costs1_index_3,Total_Costs1_index_2))*('Summary Tables'!N$17=IF(TabCostGeoRes,Total_Costs1_index_4,Total_Costs1_index_3))*(Total_Costs1_index_1='Summary Tables'!$C$6)*Total_Costs1_vals)-SUMPRODUCT(($B19=IF(TabCostGeoRes,Total_Costs1_index_3,Total_Costs1_index_2))*(TabCostCase_1=IF(TabCostGeoRes,Total_Costs1_index_4,Total_Costs1_index_3))*(Total_Costs1_index_1='Summary Tables'!$C$6)*Total_Costs1_vals))/1000000-P19 -> 933.6622269 | O19: =(SUMPRODUCT(($B19=IF(TabCostGeoRes,Total_Costs1_index_3,Total_Costs1_index_2))*('Summary Tables'!O$17=IF(TabCostGeoRes,Total_Costs1_index_4,Total_Costs1_index_3))*(Total_Costs1_index_1='Summary Tables'!$C$6)*("Stock Costs"=Total_Costs1_index_5)*Total_Costs1_vals)-SUMPRODUCT(($B19=IF(TabCostGeoRes,Total_Costs1_index_3,Total_Costs1_index_2))*(TabCostCase_1=IF(TabCostGeoRes,Total_Costs1_index_4,Total_Costs1_index_3))*(Total_Costs1_index_1='Summary Tables'!$C$6)*("Stock Costs"=Total_Costs1_index_5)*Total_Costs1_vals))/1000000 -> 447.5702266 | P19: =(SUMPRODUCT(($B19=IF(TabCostGeoRes,Total_Costs1_index_3,Total_Costs1_index_2))*('Summary Tables'!P$17=IF(TabCostGeoRes,Total_Costs1_index_4,Total_Costs1_index_3))*(Total_Costs1_index_1='Summary Tables'!$C$6)*("Stock Costs"=Total_Costs1_index_5)*Total_Costs1_vals)-SUMPRODUCT(($B19=IF(TabCostGeoRes,Total_Costs1_index_3,Total_Costs1_index_2))*(TabCostCase_1=IF(TabCostGeoRes,Total_Costs1_index_4,Total_Costs1_index_3))*(Total_Costs1_index_1='Summary Tables'!$C$6)*("Stock Costs"=Total_Costs1_index_5)*Total_Costs1_vals))/1000000 -> 1284.848786
B20: Transportation | C20: =SUMPRODUCT(($B20=IF(TabCostGeoRes,Total_Costs1_index_3,Total_Costs1_index_2))*('Summary Tables'!C$17=IF(TabCostGeoRes,Total_Costs1_index_4,Total_Costs1_index_3))*(Total_Costs1_index_1='Summary Tables'!$C$6)*Total_Costs1_vals)/1000000000 -> 186.8673017 | D20: =SUMPRODUCT(($B20=IF(TabCostGeoRes,Total_Costs1_index_3,Total_Costs1_index_2))*('Summary Tables'!D$17=IF(TabCostGeoRes,Total_Costs1_index_4,Total_Costs1_index_3))*(Total_Costs1_index_1='Summary Tables'!$C$6)*Total_Costs1_vals)/1000000000 -> 187.3867805 | E20: 0.5194787045 | F20: 0.002779933673 | G20: =SUMPRODUCT(($B20=IF(TabCostGeoRes,Energy_GHGs_by_Sect1_index_3,Energy_GHGs_by_Sect1_index_2))*('Summary Tables'!G$17=IF(TabCostGeoRes,Energy_GHGs_by_Sect1_index_4,Energy_GHGs_by_Sect1_index_3))*(Energy_GHGs_by_Sect1_index_1='Summary Tables'!$C$6)*Energy_GHGs_by_Sect1_vals)/1000000 -> 123.1192366 | H20: =SUMPRODUCT(($B20=IF(TabCostGeoRes,Energy_GHGs_by_Sect1_index_3,Energy_GHGs_by_Sect1_index_2))*('Summary Tables'!H$17=IF(TabCostGeoRes,Energy_GHGs_by_Sect1_index_4,Energy_GHGs_by_Sect1_index_3))*(Energy_GHGs_by_Sect1_index_1='Summary Tables'!$C$6)*Energy_GHGs_by_Sect1_vals)/1000000 -> 104.0946598 | I20: -19.02457681 | J20: -0.1545215625 | L20: Transportation | M20: =(SUMPRODUCT(($B20=IF(TabCostGeoRes,Total_Costs1_index_3,Total_Costs1_index_2))*('Summary Tables'!M$17=IF(TabCostGeoRes,Total_Costs1_index_4,Total_Costs1_index_3))*(Total_Costs1_index_1='Summary Tables'!$C$6)*Total_Costs1_vals)-SUMPRODUCT(($B20=IF(TabCostGeoRes,Total_Costs1_index_3,Total_Costs1_index_2))*(TabCostCase_1=IF(TabCostGeoRes,Total_Costs1_index_4,Total_Costs1_index_3))*(Total_Costs1_index_1='Summary Tables'!$C$6)*Total_Costs1_vals))/1000000-O20 -> -3048.764732 | N20: =(SUMPRODUCT(($B20=IF(TabCostGeoRes,Total_Costs1_index_3,Total_Costs1_index_2))*('Summary Tables'!N$17=IF(TabCostGeoRes,Total_Costs1_index_4,Total_Costs1_index_3))*(Total_Costs1_index_1='Summary Tables'!$C$6)*Total_Costs1_vals)-SUMPRODUCT(($B20=IF(TabCostGeoRes,Total_Costs1_index_3,Total_Costs1_index_2))*(TabCostCase_1=IF(TabCostGeoRes,Total_Costs1_index_4,Total_Costs1_index_3))*(Total_Costs1_index_1='Summary Tables'!$C$6)*Total_Costs1_vals))/1000000-P20 -> 828.1582044 | O20: =(SUMPRODUCT(($B20=IF(TabCostGeoRes,Total_Costs1_index_3,Total_Costs1_index_2))*('Summary Tables'!O$17=IF(TabCostGeoRes,Total_Costs1_index_4,Total_Costs1_index_3))*(Total_Costs1_index_1='Summary Tables'!$C$6)*("Stock Costs"=Total_Costs1_index_5)*Total_Costs1_vals)-SUMPRODUCT(($B20=IF(TabCostGeoRes,Total_Costs1_index_3,Total_Costs1_index_2))*(TabCostCase_1=IF(TabCostGeoRes,Total_Costs1_index_4,Total_Costs1_index_3))*(Total_Costs1_index_1='Summary Tables'!$C$6)*("Stock Costs"=Total_Costs1_index_5)*Total_Costs1_vals))/1000000 -> 3568.243437 | P20: =(SUMPRODUCT(($B20=IF(TabCostGeoRes,Total_Costs1_index_3,Total_Costs1_index_2))*('Summary Tables'!P$17=IF(TabCostGeoRes,Total_Costs1_index_4,Total_Costs1_index_3))*(Total_Costs1_index_1='Summary Tables'!$C$6)*("Stock Costs"=Total_Costs1_index_5)*Total_Costs1_vals)-SUMPRODUCT(($B20=IF(TabCostGeoRes,Total_Costs1_index_3,Total_Costs1_index_2))*(TabCostCase_1=IF(TabCostGeoRes,Total_Costs1_index_4,Total_Costs1_index_3))*(Total_Costs1_index_1='Summary Tables'!$C$6)*("Stock Costs"=Total_Costs1_index_5)*Total_Costs1_vals))/1000000 -> 6773.60573
B21: Industrial | C21: =SUMPRODUCT(($B21=IF(TabCostGeoRes,Total_Costs1_index_3,Total_Costs1_index_2))*('Summary Tables'!C$17=IF(TabCostGeoRes,Total_Costs1_index_4,Total_Costs1_index_3))*(Total_Costs1_index_1='Summary Tables'!$C$6)*Total_Costs1_vals)/1000000000 -> 9.357482693 | D21: =SUMPRODUCT(($B21=IF(TabCostGeoRes,Total_Costs1_index_3,Total_Costs1_index_2))*('Summary Tables'!D$17=IF(TabCostGeoRes,Total_Costs1_index_4,Total_Costs1_index_3))*(Total_Costs1_index_1='Summary Tables'!$C$6)*Total_Costs1_vals)/1000000000 -> 9.736444281 | E21: 0.3789615877 | F21: 0.04049824083 | G21: =SUMPRODUCT(($B21=IF(TabCostGeoRes,Energy_GHGs_by_Sect1_index_3,Energy_GHGs_by_Sect1_index_2))*('Summary Tables'!G$17=IF(TabCostGeoRes,Energy_GHGs_by_Sect1_index_4,Energy_GHGs_by_Sect1_index_3))*(Energy_GHGs_by_Sect1_index_1='Summary Tables'!$C$6)*Energy_GHGs_by_Sect1_vals)/1000000 -> 32.23783631 | H21: =SUMPRODUCT(($B21=IF(TabCostGeoRes,Energy_GHGs_by_Sect1_index_3,Energy_GHGs_by_Sect1_index_2))*('Summary Tables'!H$17=IF(TabCostGeoRes,Energy_GHGs_by_Sect1_index_4,Energy_GHGs_by_Sect1_index_3))*(Energy_GHGs_by_Sect1_index_1='Summary Tables'!$C$6)*Energy_GHGs_by_Sect1_vals)/1000000 -> 27.71274186 | I21: -4.525094446 | J21: -0.1403659477 | L21: Industrial | M21: =(SUMPRODUCT(($B21=IF(TabCostGeoRes,Total_Costs1_index_3,Total_Costs1_index_2))*('Summary Tables'!M$17=IF(TabCostGeoRes,Total_Costs1_index_4,Total_Costs1_index_3))*(Total_Costs1_index_1='Summary Tables'!$C$6)*Total_Costs1_vals)-SUMPRODUCT(($B21=IF(TabCostGeoRes,Total_Costs1_index_3,Total_Costs1_index_2))*(TabCostCase_1=IF(TabCostGeoRes,Total_Costs1_index_4,Total_Costs1_index_3))*(Total_Costs1_index_1='Summary Tables'!$C$6)*Total_Costs1_vals))/1000000-O21 -> 147.0078502 | N21: =(SUMPRODUCT(($B21=IF(TabCostGeoRes,Total_Costs1_index_3,Total_Costs1_index_2))*('Summary Tables'!N$17=IF(TabCostGeoRes,Total_Costs1_index_4,Total_Costs1_index_3))*(Total_Costs1_index_1='Summary Tables'!$C$6)*Total_Costs1_vals)-SUMPRODUCT(($B21=IF(TabCostGeoRes,Total_Costs1_index_3,Total_Costs1_index_2))*(TabCostCase_1=IF(TabCostGeoRes,Total_Costs1_index_4,Total_Costs1_index_3))*(Total_Costs1_index_1='Summary Tables'!$C$6)*Total_Costs1_vals))/1000000-P21 -> -473.5939026 | O21: =(SUMPRODUCT(($B21=IF(TabCostGeoRes,Total_Costs1_index_3,Total_Costs1_index_2))*('Summary Tables'!O$17=IF(TabCostGeoRes,Total_Costs1_index_4,Total_Costs1_index_3))*(Total_Costs1_index_1='Summary Tables'!$C$6)*("Stock Costs"=Total_Costs1_index_5)*Total_Costs1_vals)-SUMPRODUCT(($B21=IF(TabCostGeoRes,Total_Costs1_index_3,Total_Costs1_index_2))*(TabCostCase_1=IF(TabCostGeoRes,Total_Costs1_index_4,Total_Costs1_index_3))*(Total_Costs1_index_1='Summary Tables'!$C$6)*("Stock Costs"=Total_Costs1_index_5)*Total_Costs1_vals))/1000000 -> 231.9537374 | P21: =(SUMPRODUCT(($B21=IF(TabCostGeoRes,Total_Costs1_index_3,Total_Costs1_index_2))*('Summary Tables'!P$17=IF(TabCostGeoRes,Total_Costs1_index_4,Total_Costs1_index_3))*(Total_Costs1_index_1='Summary Tables'!$C$6)*("Stock Costs"=Total_Costs1_index_5)*Total_Costs1_vals)-SUMPRODUCT(($B21=IF(TabCostGeoRes,Total_Costs1_index_3,Total_Costs1_index_2))*(TabCostCase_1=IF(TabCostGeoRes,Total_Costs1_index_4,Total_Costs1_index_3))*(Total_Costs1_index_1='Summary Tables'!$C$6)*("Stock Costs"=Total_Costs1_index_5)*Total_Costs1_vals))/1000000 -> 280.2232465
B22: Oil & Gas Extraction | C22: =SUMPRODUCT(($B22=IF(TabCostGeoRes,Total_Costs1_index_3,Total_Costs1_index_2))*('Summary Tables'!C$17=IF(TabCostGeoRes,Total_Costs1_index_4,Total_Costs1_index_3))*(Total_Costs1_index_1='Summary Tables'!$C$6)*Total_Costs1_vals)/1000000000 -> 1.927015943 | D22: =SUMPRODUCT(($B22=IF(TabCostGeoRes,Total_Costs1_index_3,Total_Costs1_index_2))*('Summary Tables'!D$17=IF(TabCostGeoRes,Total_Costs1_index_4,Total_Costs1_index_3))*(Total_Costs1_index_1='Summary Tables'!$C$6)*Total_Costs1_vals)/1000000000 -> 2.033442598 | E22: 0.1064266549 | F22: 0.05522873608 | G22: =SUMPRODUCT(($B22=IF(TabCostGeoRes,Energy_GHGs_by_Sect1_index_3,Energy_GHGs_by_Sect1_index_2))*('Summary Tables'!G$17=IF(TabCostGeoRes,Energy_GHGs_by_Sect1_index_4,Energy_GHGs_by_Sect1_index_3))*(Energy_GHGs_by_Sect1_index_1='Summary Tables'!$C$6)*Energy_GHGs_by_Sect1_vals)/1000000 -> 11.5734741 | H22: =SUMPRODUCT(($B22=IF(TabCostGeoRes,Energy_GHGs_by_Sect1_index_3,Energy_GHGs_by_Sect1_index_2))*('Summary Tables'!H$17=IF(TabCostGeoRes,Energy_GHGs_by_Sect1_index_4,Energy_GHGs_by_Sect1_index_3))*(Energy_GHGs_by_Sect1_index_1='Summary Tables'!$C$6)*Energy_GHGs_by_Sect1_vals)/1000000 -> 11.17863307 | I22: -0.3948410384 | J22: -0.0341160342 | L22: Oil & Gas Extraction | M22: =(SUMPRODUCT(($B22=IF(TabCostGeoRes,Total_Costs1_index_3,Total_Costs1_index_2))*('Summary Tables'!M$17=IF(TabCostGeoRes,Total_Costs1_index_4,Total_Costs1_index_3))*(Total_Costs1_index_1='Summary Tables'!$C$6)*Total_Costs1_vals)-SUMPRODUCT(($B22=IF(TabCostGeoRes,Total_Costs1_index_3,Total_Costs1_index_2))*(TabCostCase_1=IF(TabCostGeoRes,Total_Costs1_index_4,Total_Costs1_index_3))*(Total_Costs1_index_1='Summary Tables'!$C$6)*Total_Costs1_vals))/1000000-O22 -> 78.48730052 | N22: =(SUMPRODUCT(($B22=IF(TabCostGeoRes,Total_Costs1_index_3,Total_Costs1_index_2))*('Summary Tables'!N$17=IF(TabCostGeoRes,Total_Costs1_index_4,Total_Costs1_index_3))*(Total_Costs1_index_1='Summary Tables'!$C$6)*Total_Costs1_vals)-SUMPRODUCT(($B22=IF(TabCostGeoRes,Total_Costs1_index_3,Total_Costs1_index_2))*(TabCostCase_1=IF(TabCostGeoRes,Total_Costs1_index_4,Total_Costs1_index_3))*(Total_Costs1_index_1='Summary Tables'!$C$6)*Total_Costs1_vals))/1000000-P22 -> -291.7189869 | O22: =(SUMPRODUCT(($B22=IF(TabCostGeoRes,Total_Costs1_index_3,Total_Costs1_index_2))*('Summary Tables'!O$17=IF(TabCostGeoRes,Total_Costs1_index_4,Total_Costs1_index_3))*(Total_Costs1_index_1='Summary Tables'!$C$6)*("Stock Costs"=Total_Costs1_index_5)*Total_Costs1_vals)-SUMPRODUCT(($B22=IF(TabCostGeoRes,Total_Costs1_index_3,Total_Costs1_index_2))*(TabCostCase_1=IF(TabCostGeoRes,Total_Costs1_index_4,Total_Costs1_index_3))*(Total_Costs1_index_1='Summary Tables'!$C$6)*("Stock Costs"=Total_Costs1_index_5)*Total_Costs1_vals))/1000000 -> 27.93935442 | P22: =(SUMPRODUCT(($B22=IF(TabCostGeoRes,Total_Costs1_index_3,Total_Costs1_index_2))*('Summary Tables'!P$17=IF(TabCostGeoRes,Total_Costs1_index_4,Total_Costs1_index_3))*(Total_Costs1_index_1='Summary Tables'!$C$6)*("Stock Costs"=Total_Costs1_index_5)*Total_Costs1_vals)-SUMPRODUCT(($B22=IF(TabCostGeoRes,Total_Costs1_index_3,Total_Costs1_index_2))*(TabCostCase_1=IF(TabCostGeoRes,Total_Costs1_index_4,Total_Costs1_index_3))*(Total_Costs1_index_1='Summary Tables'!$C$6)*("Stock Costs"=Total_Costs1_index_5)*Total_Costs1_vals))/1000000 -> 20.47667198
B23: Petroleum Refining | C23: =SUMPRODUCT(($B23=IF(TabCostGeoRes,Total_Costs1_index_3,Total_Costs1_index_2))*('Summary Tables'!C$17=IF(TabCostGeoRes,Total_Costs1_index_4,Total_Costs1_index_3))*(Total_Costs1_index_1='Summary Tables'!$C$6)*Total_Costs1_vals)/1000000000 -> 2.197025683 | D23: =SUMPRODUCT(($B23=IF(TabCostGeoRes,Total_Costs1_index_3,Total_Costs1_index_2))*('Summary Tables'!D$17=IF(TabCostGeoRes,Total_Costs1_index_4,Total_Costs1_index_3))*(Total_Costs1_index_1='Summary Tables'!$C$6)*Total_Costs1_vals)/1000000000 -> 2.149509653 | E23: -0.0475160295 | F23: -0.02162743471 | G23: =SUMPRODUCT(($B23=IF(TabCostGeoRes,Energy_GHGs_by_Sect1_index_3,Energy_GHGs_by_Sect1_index_2))*('Summary Tables'!G$17=IF(TabCostGeoRes,Energy_GHGs_by_Sect1_index_4,Energy_GHGs_by_Sect1_index_3))*(Energy_GHGs_by_Sect1_index_1='Summary Tables'!$C$6)*Energy_GHGs_by_Sect1_vals)/1000000 -> 42.77509238 | H23: =SUMPRODUCT(($B23=IF(TabCostGeoRes,Energy_GHGs_by_Sect1_index_3,Energy_GHGs_by_Sect1_index_2))*('Summary Tables'!H$17=IF(TabCostGeoRes,Energy_GHGs_by_Sect1_index_4,Energy_GHGs_by_Sect1_index_3))*(Energy_GHGs_by_Sect1_index_1='Summary Tables'!$C$6)*Energy_GHGs_by_Sect1_vals)/1000000 -> 36.83792066 | I23: -5.93717172 | J23: -0.1387997404 | L23: Petroleum Refining | M23: =(SUMPRODUCT(($B23=IF(TabCostGeoRes,Total_Costs1_index_3,Total_Costs1_index_2))*('Summary Tables'!M$17=IF(TabCostGeoRes,Total_Costs1_index_4,Total_Costs1_index_3))*(Total_Costs1_index_1='Summary Tables'!$C$6)*Total_Costs1_vals)-SUMPRODUCT(($B23=IF(TabCostGeoRes,Total_Costs1_index_3,Total_Costs1_index_2))*(TabCostCase_1=IF(TabCostGeoRes,Total_Costs1_index_4,Total_Costs1_index_3))*(Total_Costs1_index_1='Summary Tables'!$C$6)*Total_Costs1_vals))/1000000-O23 -> -57.45395576 | N23: =(SUMPRODUCT(($B23=IF(TabCostGeoRes,Total_Costs1_index_3,Total_Costs1_index_2))*('Summary Tables'!N$17=IF(TabCostGeoRes,Total_Costs1_index_4,Total_Costs1_index_3))*(Total_Costs1_index_1='Summary Tables'!$C$6)*Total_Costs1_vals)-SUMPRODUCT(($B23=IF(TabCostGeoRes,Total_Costs1_index_3,Total_Costs1_index_2))*(TabCostCase_1=IF(TabCostGeoRes,Total_Costs1_index_4,Total_Costs1_index_3))*(Total_Costs1_index_1='Summary Tables'!$C$6)*Total_Costs1_vals))/1000000-P23 -> -44.5608448 | O23: =(SUMPRODUCT(($B23=IF(TabCostGeoRes,Total_Costs1_index_3,Total_Costs1_index_2))*('Summary Tables'!O$17=IF(TabCostGeoRes,Total_Costs1_index_4,Total_Costs1_index_3))*(Total_Costs1_index_1='Summary Tables'!$C$6)*("Stock Costs"=Total_Costs1_index_5)*Total_Costs1_vals)-SUMPRODUCT(($B23=IF(TabCostGeoRes,Total_Costs1_index_3,Total_Costs1_index_2))*(TabCostCase_1=IF(TabCostGeoRes,Total_Costs1_index_4,Total_Costs1_index_3))*(Total_Costs1_index_1='Summary Tables'!$C$6)*("Stock Costs"=Total_Costs1_index_5)*Total_Costs1_vals))/1000000 -> 9.937926262 | P23: =(SUMPRODUCT(($B23=IF(TabCostGeoRes,Total_Costs1_index_3,Total_Costs1_index_2))*('Summary Tables'!P$17=IF(TabCostGeoRes,Total_Costs1_index_4,Total_Costs1_index_3))*(Total_Costs1_index_1='Summary Tables'!$C$6)*("Stock Costs"=Total_Costs1_index_5)*Total_Costs1_vals)-SUMPRODUCT(($B23=IF(TabCostGeoRes,Total_Costs1_index_3,Total_Costs1_index_2))*(TabCostCase_1=IF(TabCostGeoRes,Total_Costs1_index_4,Total_Costs1_index_3))*(Total_Costs1_index_1='Summary Tables'!$C$6)*("Stock Costs"=Total_Costs1_index_5)*Total_Costs1_vals))/1000000 -> 9.937926262
B24: Agriculture | C24: =SUMPRODUCT(($B24=IF(TabCostGeoRes,Total_Costs1_index_3,Total_Costs1_index_2))*('Summary Tables'!C$17=IF(TabCostGeoRes,Total_Costs1_index_4,Total_Costs1_index_3))*(Total_Costs1_index_1='Summary Tables'!$C$6)*Total_Costs1_vals)/1000000000 -> 4.796437222 | D24: =SUMPRODUCT(($B24=IF(TabCostGeoRes,Total_Costs1_index_3,Total_Costs1_index_2))*('Summary Tables'!D$17=IF(TabCostGeoRes,Total_Costs1_index_4,Total_Costs1_index_3))*(Total_Costs1_index_1='Summary Tables'!$C$6)*Total_Costs1_vals)/1000000000 -> 5.569811502 | E24: 0.7733742798 | F24: 0.1612393208 | G24: =SUMPRODUCT(($B24=IF(TabCostGeoRes,Energy_GHGs_by_Sect1_index_3,Energy_GHGs_by_Sect1_index_2))*('Summary Tables'!G$17=IF(TabCostGeoRes,Energy_GHGs_by_Sect1_index_4,Energy_GHGs_by_Sect1_index_3))*(Energy_GHGs_by_Sect1_index_1='Summary Tables'!$C$6)*Energy_GHGs_by_Sect1_vals)/1000000 -> 7.949691805 | H24: =SUMPRODUCT(($B24=IF(TabCostGeoRes,Energy_GHGs_by_Sect1_index_3,Energy_GHGs_by_Sect1_index_2))*('Summary Tables'!H$17=IF(TabCostGeoRes,Energy_GHGs_by_Sect1_index_4,Energy_GHGs_by_Sect1_index_3))*(Energy_GHGs_by_Sect1_index_1='Summary Tables'!$C$6)*Energy_GHGs_by_Sect1_vals)/1000000 -> 6.034775638 | I24: -1.914916167 | J24: -0.2408792962 | L24: Agriculture | M24: =(SUMPRODUCT(($B24=IF(TabCostGeoRes,Total_Costs1_index_3,Total_Costs1_index_2))*('Summary Tables'!M$17=IF(TabCostGeoRes,Total_Costs1_index_4,Total_Costs1_index_3))*(Total_Costs1_index_1='Summary Tables'!$C$6)*Total_Costs1_vals)-SUMPRODUCT(($B24=IF(TabCostGeoRes,Total_Costs1_index_3,Total_Costs1_index_2))*(TabCostCase_1=IF(TabCostGeoRes,Total_Costs1_index_4,Total_Costs1_index_3))*(Total_Costs1_index_1='Summary Tables'!$C$6)*Total_Costs1_vals))/1000000-O24 -> 451.1847743 | N24: =(SUMPRODUCT(($B24=IF(TabCostGeoRes,Total_Costs1_index_3,Total_Costs1_index_2))*('Summary Tables'!N$17=IF(TabCostGeoRes,Total_Costs1_index_4,Total_Costs1_index_3))*(Total_Costs1_index_1='Summary Tables'!$C$6)*Total_Costs1_vals)-SUMPRODUCT(($B24=IF(TabCostGeoRes,Total_Costs1_index_3,Total_Costs1_index_2))*(TabCostCase_1=IF(TabCostGeoRes,Total_Costs1_index_4,Total_Costs1_index_3))*(Total_Costs1_index_1='Summary Tables'!$C$6)*Total_Costs1_vals))/1000000-P24 -> 946.6704863 | O24: =(SUMPRODUCT(($B24=IF(TabCostGeoRes,Total_Costs1_index_3,Total_Costs1_index_2))*('Summary Tables'!O$17=IF(TabCostGeoRes,Total_Costs1_index_4,Total_Costs1_index_3))*(Total_Costs1_index_1='Summary Tables'!$C$6)*("Stock Costs"=Total_Costs1_index_5)*Total_Costs1_vals)-SUMPRODUCT(($B24=IF(TabCostGeoRes,Total_Costs1_index_3,Total_Costs1_index_2))*(TabCostCase_1=IF(TabCostGeoRes,Total_Costs1_index_4,Total_Costs1_index_3))*(Total_Costs1_index_1='Summary Tables'!$C$6)*("Stock Costs"=Total_Costs1_index_5)*Total_Costs1_vals))/1000000 -> 322.1895054 | P24: =(SUMPRODUCT(($B24=IF(TabCostGeoRes,Total_Costs1_index_3,Total_Costs1_index_2))*('Summary Tables'!P$17=IF(TabCostGeoRes,Total_Costs1_index_4,Total_Costs1_index_3))*(Total_Costs1_index_1='Summary Tables'!$C$6)*("Stock Costs"=Total_Costs1_index_5)*Total_Costs1_vals)-SUMPRODUCT(($B24=IF(TabCostGeoRes,Total_Costs1_index_3,Total_Costs1_index_2))*(TabCostCase_1=IF(TabCostGeoRes,Total_Costs1_index_4,Total_Costs1_index_3))*(Total_Costs1_index_1='Summary Tables'!$C$6)*("Stock Costs"=Total_Costs1_index_5)*Total_Costs1_vals))/1000000 -> 1342.491467
B25: TCU | C25: =SUMPRODUCT(($B25=IF(TabCostGeoRes,Total_Costs1_index_3,Total_Costs1_index_2))*('Summary Tables'!C$17=IF(TabCostGeoRes,Total_Costs1_index_4,Total_Costs1_index_3))*(Total_Costs1_index_1='Summary Tables'!$C$6)*Total_Costs1_vals)/1000000000 -> 2.608781261 | D25: =SUMPRODUCT(($B25=IF(TabCostGeoRes,Total_Costs1_index_3,Total_Costs1_index_2))*('Summary Tables'!D$17=IF(TabCostGeoRes,Total_Costs1_index_4,Total_Costs1_index_3))*(Total_Costs1_index_1='Summary Tables'!$C$6)*Total_Costs1_vals)/1000000000 -> 2.914747419 | E25: 0.3059661582 | F25: 0.1172831785 | G25: =SUMPRODUCT(($B25=IF(TabCostGeoRes,Energy_GHGs_by_Sect1_index_3,Energy_GHGs_by_Sect1_index_2))*('Summary Tables'!G$17=IF(TabCostGeoRes,Energy_GHGs_by_Sect1_index_4,Energy_GHGs_by_Sect1_index_3))*(Energy_GHGs_by_Sect1_index_1='Summary Tables'!$C$6)*Energy_GHGs_by_Sect1_vals)/1000000 -> 5.679399896 | H25: =SUMPRODUCT(($B25=IF(TabCostGeoRes,Energy_GHGs_by_Sect1_index_3,Energy_GHGs_by_Sect1_index_2))*('Summary Tables'!H$17=IF(TabCostGeoRes,Energy_GHGs_by_Sect1_index_4,Energy_GHGs_by_Sect1_index_3))*(Energy_GHGs_by_Sect1_index_1='Summary Tables'!$C$6)*Energy_GHGs_by_Sect1_vals)/1000000 -> 4.325765055 | I25: -1.353634842 | J25: -0.2383411745 | L25: TCU | M25: =(SUMPRODUCT(($B25=IF(TabCostGeoRes,Total_Costs1_index_3,Total_Costs1_index_2))*('Summary Tables'!M$17=IF(TabCostGeoRes,Total_Costs1_index_4,Total_Costs1_index_3))*(Total_Costs1_index_1='Summary Tables'!$C$6)*Total_Costs1_vals)-SUMPRODUCT(($B25=IF(TabCostGeoRes,Total_Costs1_index_3,Total_Costs1_index_2))*(TabCostCase_1=IF(TabCostGeoRes,Total_Costs1_index_4,Total_Costs1_index_3))*(Total_Costs1_index_1='Summary Tables'!$C$6)*Total_Costs1_vals))/1000000-O25 -> 237.1842134 | N25: =(SUMPRODUCT(($B25=IF(TabCostGeoRes,Total_Costs1_index_3,Total_Costs1_index_2))*('Summary Tables'!N$17=IF(TabCostGeoRes,Total_Costs1_index_4,Total_Costs1_index_3))*(Total_Costs1_index_1='Summary Tables'!$C$6)*Total_Costs1_vals)-SUMPRODUCT(($B25=IF(TabCostGeoRes,Total_Costs1_index_3,Total_Costs1_index_2))*(TabCostCase_1=IF(TabCostGeoRes,Total_Costs1_index_4,Total_Costs1_index_3))*(Total_Costs1_index_1='Summary Tables'!$C$6)*Total_Costs1_vals))/1000000-P25 -> 563.9047145 | O25: =(SUMPRODUCT(($B25=IF(TabCostGeoRes,Total_Costs1_index_3,Total_Costs1_index_2))*('Summary Tables'!O$17=IF(TabCostGeoRes,Total_Costs1_index_4,Total_Costs1_index_3))*(Total_Costs1_index_1='Summary Tables'!$C$6)*("Stock Costs"=Total_Costs1_index_5)*Total_Costs1_vals)-SUMPRODUCT(($B25=IF(TabCostGeoRes,Total_Costs1_index_3,Total_Costs1_index_2))*(TabCostCase_1=IF(TabCostGeoRes,Total_Costs1_index_4,Total_Costs1_index_3))*(Total_Costs1_index_1='Summary Tables'!$C$6)*("Stock Costs"=Total_Costs1_index_5)*Total_Costs1_vals))/1000000 -> 68.78194482 | P25: =(SUMPRODUCT(($B25=IF(TabCostGeoRes,Total_Costs1_index_3,Total_Costs1_index_2))*('Summary Tables'!P$17=IF(TabCostGeoRes,Total_Costs1_index_4,Total_Costs1_index_3))*(Total_Costs1_index_1='Summary Tables'!$C$6)*("Stock Costs"=Total_Costs1_index_5)*Total_Costs1_vals)-SUMPRODUCT(($B25=IF(TabCostGeoRes,Total_Costs1_index_3,Total_Costs1_index_2))*(TabCostCase_1=IF(TabCostGeoRes,Total_Costs1_index_4,Total_Costs1_index_3))*(Total_Costs1_index_1='Summary Tables'!$C$6)*("Stock Costs"=Total_Costs1_index_5)*Total_Costs1_vals))/1000000 -> 68.78194482
B26: Unspecified | C26: =SUMPRODUCT(($B26=IF(TabCostGeoRes,Total_Costs1_index_3,Total_Costs1_index_2))*('Summary Tables'!C$17=IF(TabCostGeoRes,Total_Costs1_index_4,Total_Costs1_index_3))*(Total_Costs1_index_1='Summary Tables'!$C$6)*Total_Costs1_vals)/1000000000 -> 0 | D26: =SUMPRODUCT(($B26=IF(TabCostGeoRes,Total_Costs1_index_3,Total_Costs1_index_2))*('Summary Tables'!D$17=IF(TabCostGeoRes,Total_Costs1_index_4,Total_Costs1_index_3))*(Total_Costs1_index_1='Summary Tables'!$C$6)*Total_Costs1_vals)/1000000000 -> 0 | E26: 0 | F26: n/a | G26: =SUMPRODUCT(($B26=IF(TabCostGeoRes,Energy_GHGs_by_Sect1_index_3,Energy_GHGs_by_Sect1_index_2))*('Summary Tables'!G$17=IF(TabCostGeoRes,Energy_GHGs_by_Sect1_index_4,Energy_GHGs_by_Sect1_index_3))*(Energy_GHGs_by_Sect1_index_1='Summary Tables'!$C$6)*Energy_GHGs_by_Sect1_vals)/1000000 -> 0 | H26: =SUMPRODUCT(($B26=IF(TabCostGeoRes,Energy_GHGs_by_Sect1_index_3,Energy_GHGs_by_Sect1_index_2))*('Summary Tables'!H$17=IF(TabCostGeoRes,Energy_GHGs_by_Sect1_index_4,Energy_GHGs_by_Sect1_index_3))*(Energy_GHGs_by_Sect1_index_1='Summary Tables'!$C$6)*Energy_GHGs_by_Sect1_vals)/1000000 -> 0 | I26: 0 | J26: n/a | L26: Unspecified | M26: =(SUMPRODUCT(($B26=IF(TabCostGeoRes,Total_Costs1_index_3,Total_Costs1_index_2))*('Summary Tables'!M$17=IF(TabCostGeoRes,Total_Costs1_index_4,Total_Costs1_index_3))*(Total_Costs1_index_1='Summary Tables'!$C$6)*Total_Costs1_vals)-SUMPRODUCT(($B26=IF(TabCostGeoRes,Total_Costs1_index_3,Total_Costs1_index_2))*(TabCostCase_1=IF(TabCostGeoRes,Total_Costs1_index_4,Total_Costs1_index_3))*(Total_Costs1_index_1='Summary Tables'!$C$6)*Total_Costs1_vals))/1000000-O26 -> 0 | N26: =(SUMPRODUCT(($B26=IF(TabCostGeoRes,Total_Costs1_index_3,Total_Costs1_index_2))*('Summary Tables'!N$17=IF(TabCostGeoRes,Total_Costs1_index_4,Total_Costs1_index_3))*(Total_Costs1_index_1='Summary Tables'!$C$6)*Total_Costs1_vals)-SUMPRODUCT(($B26=IF(TabCostGeoRes,Total_Costs1_index_3,Total_Costs1_index_2))*(TabCostCase_1=IF(TabCostGeoRes,Total_Costs1_index_4,Total_Costs1_index_3))*(Total_Costs1_index_1='Summary Tables'!$C$6)*Total_Costs1_vals))/1000000-P26 -> 0 | O26: =(SUMPRODUCT(($B26=IF(TabCostGeoRes,Total_Costs1_index_3,Total_Costs1_index_2))*('Summary Tables'!O$17=IF(TabCostGeoRes,Total_Costs1_index_4,Total_Costs1_index_3))*(Total_Costs1_index_1='Summary Tables'!$C$6)*("Stock Costs"=Total_Costs1_index_5)*Total_Costs1_vals)-SUMPRODUCT(($B26=IF(TabCostGeoRes,Total_Costs1_index_3,Total_Costs1_index_2))*(TabCostCase_1=IF(TabCostGeoRes,Total_Costs1_index_4,Total_Costs1_index_3))*(Total_Costs1_index_1='Summary Tables'!$C$6)*("Stock Costs"=Total_Costs1_index_5)*Total_Costs1_vals))/1000000 -> 0 | P26: =(SUMPRODUCT(($B26=IF(TabCostGeoRes,Total_Costs1_index_3,Total_Costs1_index_2))*('Summary Tables'!P$17=IF(TabCostGeoRes,Total_Costs1_index_4,Total_Costs1_index_3))*(Total_Costs1_index_1='Summary Tables'!$C$6)*("Stock Costs"=Total_Costs1_index_5)*Total_Costs1_vals)-SUMPRODUCT(($B26=IF(TabCostGeoRes,Total_Costs1_index_3,Total_Costs1_index_2))*(TabCostCase_1=IF(TabCostGeoRes,Total_Costs1_index_4,Total_Costs1_index_3))*(Total_Costs1_index_1='Summary Tables'!$C$6)*("Stock Costs"=Total_Costs1_index_5)*Total_Costs1_vals))/1000000 -> 0
B27: Non-Energy GHGs | C27: n/a | D27: n/a | E27: n/a | F27: n/a | G27: =SUMPRODUCT((TabCostCase_1=Non_Energy_GHGs_index_3)*(Non_Energy_GHGs_index_2='Summary Tables'!$C$6)*Non_Energy_GHGs_vals)/1000000 -> 84.25454795 | H27: =SUMPRODUCT((TabCostCase_2=Non_Energy_GHGs_index_3)*(Non_Energy_GHGs_index_2='Summary Tables'!$C$6)*Non_Energy_GHGs_vals)/1000000 -> 49.38264154 | I27: =H27-G27 -> -34.87190641 | J27: =IF(G27=0,"n/a",I27/G27) -> -0.413887526 | L27: Non-Energy GHGs | M27: n/a | N27: n/a | O27: n/a | P27: n/a
B28: Total | C28: =SUM(C18:C26) -> 293.8683203 | D28: =SUM(D18:D26) -> 294.8402137 | E28: 0.9718933958 | F28: 0.00330724113 | G28: =SUM(G18:G27) -> 392.350051 | H28: =SUM(H18:H27) -> 304.7812945 | I28: -87.56875646 | J28: -0.2231903787 | L28: Total | M28: =SUM(M18:M26) -> -3817.178722 | N28: =SUM(N18:N26) -> 5023.053043 | O28: =SUM(O18:O26) -> 4789.072117 | P28: =SUM(P18:P26) -> 10650.91568
B30: End Use Sector | C30: ="Total Costs in "&$C$6&" by Sector ($Billions)" -> Total Costs in 2030 by Sector ($Billions)
C31: =TabCostCase_1 -> Reference | F31: =TabCostCase_2 -> Scoping Plan
C32: Stock Costs | D32: Fuel Costs | E32: Total Costs | F32: Stock Costs | G32: Fuel Costs | H32: Total Costs
B33: Residential | C33: =(SUMPRODUCT(($B33=IF(TabCostGeoRes,Total_Costs1_index_3,Total_Costs1_index_2))*('Summary Tables'!C$31=IF(TabCostGeoRes,Total_Costs1_index_4,Total_Costs1_index_3))*(Total_Costs1_index_1='Summary Tables'!$C$6)*(C$32=IF(TabCostGeoRes,Total_Costs1_index_5,Total_Costs1_index_4))*Total_Costs1_vals)+SUMPRODUCT(($B33=IF(TabCostGeoRes,Total_Costs1_index_3,Total_Costs1_index_2))*('Summary Tables'!C$31=IF(TabCostGeoRes,Total_Costs1_index_4,Total_Costs1_index_3))*(Total_Costs1_index_1='Summary Tables'!$C$6)*("Demand Change Measure Costs"=IF(TabCostGeoRes,Total_Costs1_index_5,Total_Costs1_index_4))*Total_Costs1_vals))/1000000000 -> 24.09675596 | D33: =E33-C33 -> 26.69967443 | E33: =SUMPRODUCT(($B33=IF(TabCostGeoRes,Total_Costs1_index_3,Total_Costs1_index_2))*('Summary Tables'!C$31=IF(TabCostGeoRes,Total_Costs1_index_4,Total_Costs1_index_3))*(Total_Costs1_index_1='Summary Tables'!$C$6)*Total_Costs1_vals)/1000000000 -> 50.79643039 | F33: =(SUMPRODUCT(($B33=IF(TabCostGeoRes,Total_Costs1_index_3,Total_Costs1_index_2))*('Summary Tables'!F$31=IF(TabCostGeoRes,Total_Costs1_index_4,Total_Costs1_index_3))*(Total_Costs1_index_1='Summary Tables'!$C$6)*(F$32=IF(TabCostGeoRes,Total_Costs1_index_5,Total_Costs1_index_4))*Total_Costs1_vals)+SUMPRODUCT(($B33=IF(TabCostGeoRes,Total_Costs1_index_3,Total_Costs1_index_2))*('Summary Tables'!F$31=IF(TabCostGeoRes,Total_Costs1_index_4,Total_Costs1_index_3))*(Total_Costs1_index_1='Summary Tables'!$C$6)*("Demand Change Measure Costs"=IF(TabCostGeoRes,Total_Costs1_index_5,Total_Costs1_index_4))*Total_Costs1_vals))/1000000000 -> 24.20921195 | G33: =H33-F33 -> 25.90634933 | H33: =SUMPRODUCT(($B33=IF(TabCostGeoRes,Total_Costs1_index_3,Total_Costs1_index_2))*('Summary Tables'!F$31=IF(TabCostGeoRes,Total_Costs1_index_4,Total_Costs1_index_3))*(Total_Costs1_index_1='Summary Tables'!$C$6)*Total_Costs1_vals)/1000000000 -> 50.11556128
B34: Commercial | C34: =(SUMPRODUCT(($B34=IF(TabCostGeoRes,Total_Costs1_index_3,Total_Costs1_index_2))*('Summary Tables'!C$31=IF(TabCostGeoRes,Total_Costs1_index_4,Total_Costs1_index_3))*(Total_Costs1_index_1='Summary Tables'!$C$6)*(C$32=IF(TabCostGeoRes,Total_Costs1_index_5,Total_Costs1_index_4))*Total_Costs1_vals)+SUMPRODUCT(($B34=IF(TabCostGeoRes,Total_Costs1_index_3,Total_Costs1_index_2))*('Summary Tables'!C$31=IF(TabCostGeoRes,Total_Costs1_index_4,Total_Costs1_index_3))*(Total_Costs1_index_1='Summary Tables'!$C$6)*("Demand Change Measure Costs"=IF(TabCostGeoRes,Total_Costs1_index_5,Total_Costs1_index_4))*Total_Costs1_vals))/1000000000 -> 9.533897829 | D34: =E34-C34 -> 25.78394752 | E34: =SUMPRODUCT(($B34=IF(TabCostGeoRes,Total_Costs1_index_3,Total_Costs1_index_2))*('Summary Tables'!C$31=IF(TabCostGeoRes,Total_Costs1_index_4,Total_Costs1_index_3))*(Total_Costs1_index_1='Summary Tables'!$C$6)*Total_Costs1_vals)/1000000000 -> 35.31784535 | F34: =(SUMPRODUCT(($B34=IF(TabCostGeoRes,Total_Costs1_index_3,Total_Costs1_index_2))*('Summary Tables'!F$31=IF(TabCostGeoRes,Total_Costs1_index_4,Total_Costs1_index_3))*(Total_Costs1_index_1='Summary Tables'!$C$6)*(F$32=IF(TabCostGeoRes,Total_Costs1_index_5,Total_Costs1_index_4))*Total_Costs1_vals)+SUMPRODUCT(($B34=IF(TabCostGeoRes,Total_Costs1_index_3,Total_Costs1_index_2))*('Summary Tables'!F$31=IF(TabCostGeoRes,Total_Costs1_index_4,Total_Costs1_index_3))*(Total_Costs1_index_1='Summary Tables'!$C$6)*("Demand Change Measure Costs"=IF(TabCostGeoRes,Total_Costs1_index_5,Total_Costs1_index_4))*Total_Costs1_vals))/1000000000 -> 9.981468055 | G34: =H34-F34 -> 24.95244844 | H34: =SUMPRODUCT(($B34=IF(TabCostGeoRes,Total_Costs1_index_3,Total_Costs1_index_2))*('Summary Tables'!F$31=IF(TabCostGeoRes,Total_Costs1_index_4,Total_Costs1_index_3))*(Total_Costs1_index_1='Summary Tables'!$C$6)*Total_Costs1_vals)/1000000000 -> 34.9339165
B35: Transportation | C35: =(SUMPRODUCT(($B35=IF(TabCostGeoRes,Total_Costs1_index_3,Total_Costs1_index_2))*('Summary Tables'!C$31=IF(TabCostGeoRes,Total_Costs1_index_4,Total_Costs1_index_3))*(Total_Costs1_index_1='Summary Tables'!$C$6)*(C$32=IF(TabCostGeoRes,Total_Costs1_index_5,Total_Costs1_index_4))*Total_Costs1_vals)+SUMPRODUCT(($B35=IF(TabCostGeoRes,Total_Costs1_index_3,Total_Costs1_index_2))*('Summary Tables'!C$31=IF(TabCostGeoRes,Total_Costs1_index_4,Total_Costs1_index_3))*(Total_Costs1_index_1='Summary Tables'!$C$6)*("Demand Change Measure Costs"=IF(TabCostGeoRes,Total_Costs1_index_5,Total_Costs1_index_4))*Total_Costs1_vals))/1000000000 -> 133.2096856 | D35: 53.65761612 | E35: =SUMPRODUCT(($B35=IF(TabCostGeoRes,Total_Costs1_index_3,Total_Costs1_index_2))*('Summary Tables'!C$31=IF(TabCostGeoRes,Total_Costs1_index_4,Total_Costs1_index_3))*(Total_Costs1_index_1='Summary Tables'!$C$6)*Total_Costs1_vals)/1000000000 -> 186.8673017 | F35: =(SUMPRODUCT(($B35=IF(TabCostGeoRes,Total_Costs1_index_3,Total_Costs1_index_2))*('Summary Tables'!F$31=IF(TabCostGeoRes,Total_Costs1_index_4,Total_Costs1_index_3))*(Total_Costs1_index_1='Summary Tables'!$C$6)*(F$32=IF(TabCostGeoRes,Total_Costs1_index_5,Total_Costs1_index_4))*Total_Costs1_vals)+SUMPRODUCT(($B35=IF(TabCostGeoRes,Total_Costs1_index_3,Total_Costs1_index_2))*('Summary Tables'!F$31=IF(TabCostGeoRes,Total_Costs1_index_4,Total_Costs1_index_3))*(Total_Costs1_index_1='Summary Tables'!$C$6)*("Demand Change Measure Costs"=IF(TabCostGeoRes,Total_Costs1_index_5,Total_Costs1_index_4))*Total_Costs1_vals))/1000000000 -> 136.7779291 | G35: 50.60885139 | H35: =SUMPRODUCT(($B35=IF(TabCostGeoRes,Total_Costs1_index_3,Total_Costs1_index_2))*('Summary Tables'!F$31=IF(TabCostGeoRes,Total_Costs1_index_4,Total_Costs1_index_3))*(Total_Costs1_index_1='Summary Tables'!$C$6)*Total_Costs1_vals)/1000000000 -> 187.3867805
B36: Industrial | C36: =(SUMPRODUCT(($B36=IF(TabCostGeoRes,Total_Costs1_index_3,Total_Costs1_index_2))*('Summary Tables'!C$31=IF(TabCostGeoRes,Total_Costs1_index_4,Total_Costs1_index_3))*(Total_Costs1_index_1='Summary Tables'!$C$6)*(C$32=IF(TabCostGeoRes,Total_Costs1_index_5,Total_Costs1_index_4))*Total_Costs1_vals)+SUMPRODUCT(($B36=IF(TabCostGeoRes,Total_Costs1_index_3,Total_Costs1_index_2))*('Summary Tables'!C$31=IF(TabCostGeoRes,Total_Costs1_index_4,Total_Costs1_index_3))*(Total_Costs1_index_1='Summary Tables'!$C$6)*("Demand Change Measure Costs"=IF(TabCostGeoRes,Total_Costs1_index_5,Total_Costs1_index_4))*Total_Costs1_vals))/1000000000 -> 0.08831361394 | D36: 9.269169079 | E36: =SUMPRODUCT(($B36=IF(TabCostGeoRes,Total_Costs1_index_3,Total_Costs1_index_2))*('Summary Tables'!C$31=IF(TabCostGeoRes,Total_Costs1_index_4,Total_Costs1_index_3))*(Total_Costs1_index_1='Summary Tables'!$C$6)*Total_Costs1_vals)/1000000000 -> 9.357482693 | F36: =(SUMPRODUCT(($B36=IF(TabCostGeoRes,Total_Costs1_index_3,Total_Costs1_index_2))*('Summary Tables'!F$31=IF(TabCostGeoRes,Total_Costs1_index_4,Total_Costs1_index_3))*(Total_Costs1_index_1='Summary Tables'!$C$6)*(F$32=IF(TabCostGeoRes,Total_Costs1_index_5,Total_Costs1_index_4))*Total_Costs1_vals)+SUMPRODUCT(($B36=IF(TabCostGeoRes,Total_Costs1_index_3,Total_Costs1_index_2))*('Summary Tables'!F$31=IF(TabCostGeoRes,Total_Costs1_index_4,Total_Costs1_index_3))*(Total_Costs1_index_1='Summary Tables'!$C$6)*("Demand Change Measure Costs"=IF(TabCostGeoRes,Total_Costs1_index_5,Total_Costs1_index_4))*Total_Costs1_vals))/1000000000 -> 0.3202673514 | G36: 9.416176929 | H36: =SUMPRODUCT(($B36=IF(TabCostGeoRes,Total_Costs1_index_3,Total_Costs1_index_2))*('Summary Tables'!F$31=IF(TabCostGeoRes,Total_Costs1_index_4,Total_Costs1_index_3))*(Total_Costs1_index_1='Summary Tables'!$C$6)*Total_Costs1_vals)/1000000000 -> 9.736444281
B37: Oil & Gas Extraction | C37: =(SUMPRODUCT(($B37=IF(TabCostGeoRes,Total_Costs1_index_3,Total_Costs1_index_2))*('Summary Tables'!C$31=IF(TabCostGeoRes,Total_Costs1_index_4,Total_Costs1_index_3))*(Total_Costs1_index_1='Summary Tables'!$C$6)*(C$32=IF(TabCostGeoRes,Total_Costs1_index_5,Total_Costs1_index_4))*Total_Costs1_vals)+SUMPRODUCT(($B37=IF(TabCostGeoRes,Total_Costs1_index_3,Total_Costs1_index_2))*('Summary Tables'!C$31=IF(TabCostGeoRes,Total_Costs1_index_4,Total_Costs1_index_3))*(Total_Costs1_index_1='Summary Tables'!$C$6)*("Demand Change Measure Costs"=IF(TabCostGeoRes,Total_Costs1_index_5,Total_Costs1_index_4))*Total_Costs1_vals))/1000000000 -> 0.031831329 | D37: 1.895184614 | E37: =SUMPRODUCT(($B37=IF(TabCostGeoRes,Total_Costs1_index_3,Total_Costs1_index_2))*('Summary Tables'!C$31=IF(TabCostGeoRes,Total_Costs1_index_4,Total_Costs1_index_3))*(Total_Costs1_index_1='Summary Tables'!$C$6)*Total_Costs1_vals)/1000000000 -> 1.927015943 | F37: =(SUMPRODUCT(($B37=IF(TabCostGeoRes,Total_Costs1_index_3,Total_Costs1_index_2))*('Summary Tables'!F$31=IF(TabCostGeoRes,Total_Costs1_index_4,Total_Costs1_index_3))*(Total_Costs1_index_1='Summary Tables'!$C$6)*(F$32=IF(TabCostGeoRes,Total_Costs1_index_5,Total_Costs1_index_4))*Total_Costs1_vals)+SUMPRODUCT(($B37=IF(TabCostGeoRes,Total_Costs1_index_3,Total_Costs1_index_2))*('Summary Tables'!F$31=IF(TabCostGeoRes,Total_Costs1_index_4,Total_Costs1_index_3))*(Total_Costs1_index_1='Summary Tables'!$C$6)*("Demand Change Measure Costs"=IF(TabCostGeoRes,Total_Costs1_index_5,Total_Costs1_index_4))*Total_Costs1_vals))/1000000000 -> 0.05977068342 | G37: 1.973671915 | H37: =SUMPRODUCT(($B37=IF(TabCostGeoRes,Total_Costs1_index_3,Total_Costs1_index_2))*('Summary Tables'!F$31=IF(TabCostGeoRes,Total_Costs1_index_4,Total_Costs1_index_3))*(Total_Costs1_index_1='Summary Tables'!$C$6)*Total_Costs1_vals)/1000000000 -> 2.033442598
B38: Petroleum Refining | C38: =(SUMPRODUCT(($B38=IF(TabCostGeoRes,Total_Costs1_index_3,Total_Costs1_index_2))*('Summary Tables'!C$31=IF(TabCostGeoRes,Total_Costs1_index_4,Total_Costs1_index_3))*(Total_Costs1_index_1='Summary Tables'!$C$6)*(C$32=IF(TabCostGeoRes,Total_Costs1_index_5,Total_Costs1_index_4))*Total_Costs1_vals)+SUMPRODUCT(($B38=IF(TabCostGeoRes,Total_Costs1_index_3,Total_Costs1_index_2))*('Summary Tables'!C$31=IF(TabCostGeoRes,Total_Costs1_index_4,Total_Costs1_index_3))*(Total_Costs1_index_1='Summary Tables'!$C$6)*("Demand Change Measure Costs"=IF(TabCostGeoRes,Total_Costs1_index_5,Total_Costs1_index_4))*Total_Costs1_vals))/1000000000 -> 0 | D38: 2.197025683 | E38: =SUMPRODUCT(($B38=IF(TabCostGeoRes,Total_Costs1_index_3,Total_Costs1_index_2))*('Summary Tables'!C$31=IF(TabCostGeoRes,Total_Costs1_index_4,Total_Costs1_index_3))*(Total_Costs1_index_1='Summary Tables'!$C$6)*Total_Costs1_vals)/1000000000 -> 2.197025683 | F38: =(SUMPRODUCT(($B38=IF(TabCostGeoRes,Total_Costs1_index_3,Total_Costs1_index_2))*('Summary Tables'!F$31=IF(TabCostGeoRes,Total_Costs1_index_4,Total_Costs1_index_3))*(Total_Costs1_index_1='Summary Tables'!$C$6)*(F$32=IF(TabCostGeoRes,Total_Costs1_index_5,Total_Costs1_index_4))*Total_Costs1_vals)+SUMPRODUCT(($B38=IF(TabCostGeoRes,Total_Costs1_index_3,Total_Costs1_index_2))*('Summary Tables'!F$31=IF(TabCostGeoRes,Total_Costs1_index_4,Total_Costs1_index_3))*(Total_Costs1_index_1='Summary Tables'!$C$6)*("Demand Change Measure Costs"=IF(TabCostGeoRes,Total_Costs1_index_5,Total_Costs1_index_4))*Total_Costs1_vals))/1000000000 -> 0.1391020609 | G38: 2.010407592 | H38: =SUMPRODUCT(($B38=IF(TabCostGeoRes,Total_Costs1_index_3,Total_Costs1_index_2))*('Summary Tables'!F$31=IF(TabCostGeoRes,Total_Costs1_index_4,Total_Costs1_index_3))*(Total_Costs1_index_1='Summary Tables'!$C$6)*Total_Costs1_vals)/1000000000 -> 2.149509653
B39: Agriculture | C39: =(SUMPRODUCT(($B39=IF(TabCostGeoRes,Total_Costs1_index_3,Total_Costs1_index_2))*('Summary Tables'!C$31=IF(TabCostGeoRes,Total_Costs1_index_4,Total_Costs1_index_3))*(Total_Costs1_index_1='Summary Tables'!$C$6)*(C$32=IF(TabCostGeoRes,Total_Costs1_index_5,Total_Costs1_index_4))*Total_Costs1_vals)+SUMPRODUCT(($B39=IF(TabCostGeoRes,Total_Costs1_index_3,Total_Costs1_index_2))*('Summary Tables'!C$31=IF(TabCostGeoRes,Total_Costs1_index_4,Total_Costs1_index_3))*(Total_Costs1_index_1='Summary Tables'!$C$6)*("Demand Change Measure Costs"=IF(TabCostGeoRes,Total_Costs1_index_5,Total_Costs1_index_4))*Total_Costs1_vals))/1000000000 -> 0.6525192183 | D39: 4.143918004 | E39: =SUMPRODUCT(($B39=IF(TabCostGeoRes,Total_Costs1_index_3,Total_Costs1_index_2))*('Summary Tables'!C$31=IF(TabCostGeoRes,Total_Costs1_index_4,Total_Costs1_index_3))*(Total_Costs1_index_1='Summary Tables'!$C$6)*Total_Costs1_vals)/1000000000 -> 4.796437222 | F39: =(SUMPRODUCT(($B39=IF(TabCostGeoRes,Total_Costs1_index_3,Total_Costs1_index_2))*('Summary Tables'!F$31=IF(TabCostGeoRes,Total_Costs1_index_4,Total_Costs1_index_3))*(Total_Costs1_index_1='Summary Tables'!$C$6)*(F$32=IF(TabCostGeoRes,Total_Costs1_index_5,Total_Costs1_index_4))*Total_Costs1_vals)+SUMPRODUCT(($B39=IF(TabCostGeoRes,Total_Costs1_index_3,Total_Costs1_index_2))*('Summary Tables'!F$31=IF(TabCostGeoRes,Total_Costs1_index_4,Total_Costs1_index_3))*(Total_Costs1_index_1='Summary Tables'!$C$6)*("Demand Change Measure Costs"=IF(TabCostGeoRes,Total_Costs1_index_5,Total_Costs1_index_4))*Total_Costs1_vals))/1000000000 -> 0.9747087238 | G39: 4.595102778 | H39: =SUMPRODUCT(($B39=IF(TabCostGeoRes,Total_Costs1_index_3,Total_Costs1_index_2))*('Summary Tables'!F$31=IF(TabCostGeoRes,Total_Costs1_index_4,Total_Costs1_index_3))*(Total_Costs1_index_1='Summary Tables'!$C$6)*Total_Costs1_vals)/1000000000 -> 5.569811502
B40: TCU | C40: =(SUMPRODUCT(($B40=IF(TabCostGeoRes,Total_Costs1_index_3,Total_Costs1_index_2))*('Summary Tables'!C$31=IF(TabCostGeoRes,Total_Costs1_index_4,Total_Costs1_index_3))*(Total_Costs1_index_1='Summary Tables'!$C$6)*(C$32=IF(TabCostGeoRes,Total_Costs1_index_5,Total_Costs1_index_4))*Total_Costs1_vals)+SUMPRODUCT(($B40=IF(TabCostGeoRes,Total_Costs1_index_3,Total_Costs1_index_2))*('Summary Tables'!C$31=IF(TabCostGeoRes,Total_Costs1_index_4,Total_Costs1_index_3))*(Total_Costs1_index_1='Summary Tables'!$C$6)*("Demand Change Measure Costs"=IF(TabCostGeoRes,Total_Costs1_index_5,Total_Costs1_index_4))*Total_Costs1_vals))/1000000000 -> 0.06660479606 | D40: 2.542176465 | E40: =SUMPRODUCT(($B40=IF(TabCostGeoRes,Total_Costs1_index_3,Total_Costs1_index_2))*('Summary Tables'!C$31=IF(TabCostGeoRes,Total_Costs1_index_4,Total_Costs1_index_3))*(Total_Costs1_index_1='Summary Tables'!$C$6)*Total_Costs1_vals)/1000000000 -> 2.608781261 | F40: =(SUMPRODUCT(($B40=IF(TabCostGeoRes,Total_Costs1_index_3,Total_Costs1_index_2))*('Summary Tables'!F$31=IF(TabCostGeoRes,Total_Costs1_index_4,Total_Costs1_index_3))*(Total_Costs1_index_1='Summary Tables'!$C$6)*(F$32=IF(TabCostGeoRes,Total_Costs1_index_5,Total_Costs1_index_4))*Total_Costs1_vals)+SUMPRODUCT(($B40=IF(TabCostGeoRes,Total_Costs1_index_3,Total_Costs1_index_2))*('Summary Tables'!F$31=IF(TabCostGeoRes,Total_Costs1_index_4,Total_Costs1_index_3))*(Total_Costs1_index_1='Summary Tables'!$C$6)*("Demand Change Measure Costs"=IF(TabCostGeoRes,Total_Costs1_index_5,Total_Costs1_index_4))*Total_Costs1_vals))/1000000000 -> 0.1353867409 | G40: 2.779360678 | H40: =SUMPRODUCT(($B40=IF(TabCostGeoRes,Total_Costs1_index_3,Total_Costs1_index_2))*('Summary Tables'!F$31=IF(TabCostGeoRes,Total_Costs1_index_4,Total_Costs1_index_3))*(Total_Costs1_index_1='Summary Tables'!$C$6)*Total_Costs1_vals)/1000000000 -> 2.914747419
B41: Unspecified | C41: =(SUMPRODUCT(($B41=IF(TabCostGeoRes,Total_Costs1_index_3,Total_Costs1_index_2))*('Summary Tables'!C$31=IF(TabCostGeoRes,Total_Costs1_index_4,Total_Costs1_index_3))*(Total_Costs1_index_1='Summary Tables'!$C$6)*(C$32=IF(TabCostGeoRes,Total_Costs1_index_5,Total_Costs1_index_4))*Total_Costs1_vals)+SUMPRODUCT(($B41=IF(TabCostGeoRes,Total_Costs1_index_3,Total_Costs1_index_2))*('Summary Tables'!C$31=IF(TabCostGeoRes,Total_Costs1_index_4,Total_Costs1_index_3))*(Total_Costs1_index_1='Summary Tables'!$C$6)*("Demand Change Measure Costs"=IF(TabCostGeoRes,Total_Costs1_index_5,Total_Costs1_index_4))*Total_Costs1_vals))/1000000000 -> 0 | D41: 0 | E41: =SUMPRODUCT(($B41=IF(TabCostGeoRes,Total_Costs1_index_3,Total_Costs1_index_2))*('Summary Tables'!C$31=IF(TabCostGeoRes,Total_Costs1_index_4,Total_Costs1_index_3))*(Total_Costs1_index_1='Summary Tables'!$C$6)*Total_Costs1_vals)/1000000000 -> 0 | F41: =(SUMPRODUCT(($B41=IF(TabCostGeoRes,Total_Costs1_index_3,Total_Costs1_index_2))*('Summary Tables'!F$31=IF(TabCostGeoRes,Total_Costs1_index_4,Total_Costs1_index_3))*(Total_Costs1_index_1='Summary Tables'!$C$6)*(F$32=IF(TabCostGeoRes,Total_Costs1_index_5,Total_Costs1_index_4))*Total_Costs1_vals)+SUMPRODUCT(($B41=IF(TabCostGeoRes,Total_Costs1_index_3,Total_Costs1_index_2))*('Summary Tables'!F$31=IF(TabCostGeoRes,Total_Costs1_index_4,Total_Costs1_index_3))*(Total_Costs1_index_1='Summary Tables'!$C$6)*("Demand Change Measure Costs"=IF(TabCostGeoRes,Total_Costs1_index_5,Total_Costs1_index_4))*Total_Costs1_vals))/1000000000 -> 0 | G41: 0 | H41: =SUMPRODUCT(($B41=IF(TabCostGeoRes,Total_Costs1_index_3,Total_Costs1_index_2))*('Summary Tables'!F$31=IF(TabCostGeoRes,Total_Costs1_index_4,Total_Costs1_index_3))*(Total_Costs1_index_1='Summary Tables'!$C$6)*Total_Costs1_vals)/1000000000 -> 0
B42: Total | C42: =SUM(C33:C41) -> 167.6796084 | D42: 126.1887119 | E42: 293.8683203 | F42: 172.5978446 | G42: 122.2423691 | H42: 294.8402137
B45: Statewide GHG Emissions in 2030
C46: GHGs [MMTCO2] | D46: % Reduction Below 1990 Levels | E46: Gap to 2030 Goal | F46: Cumulative Gap to 2030 Goal
B48: =IF(actCaseAnnGHG_1="",NA(),actCaseAnnGHG_1) ->  | C48: =IF(ISNA($B48),NA(),INDEX('Annual GHG Emissions - Sector'!$J$43:$BR$43,MATCH($C$6,'Annual GHG Emissions - Sector'!$J$34:$BR$34,0))) ->  | D48: =IF(ISNA(B48),NA(),('Annual GHG Emissions - Sector'!$J$80-C48)/'Annual GHG Emissions - Sector'!$J$80) ->  | E48: =C48-'Annual GHG Emissions - Sector'!$AX$80 ->  | F48: =SUM('Annual GHG Emissions - Sector'!AO43:AX43-'Annual GHG Emissions - Sector'!$AO$82:$AX$82) -> 4042.060238
B49: =IF(actCaseAnnGHG_2="",NA(),actCaseAnnGHG_2) ->  | C49: =IF(ISNA($B49),NA(),INDEX('Annual GHG Emissions - Sector'!$J$55:$BR$55,MATCH($C$6,'Annual GHG Emissions - Sector'!$J$46:$BR$46,0))) ->  | D49: =IF(ISNA(B49),NA(),('Annual GHG Emissions - Sector'!$J$80-C49)/'Annual GHG Emissions - Sector'!$J$80) ->  | E49: =C49-'Annual GHG Emissions - Sector'!$AX$80 ->  | F49: =SUM('Annual GHG Emissions - Sector'!AO55:AX55-'Annual GHG Emissions - Sector'!$AO$82:$AX$82) -> 3532.07103
B50: =IF(actCaseAnnGHG_3="",NA(),actCaseAnnGHG_3) ->  | C50: =IF(ISNA($B50),NA(),INDEX('Annual GHG Emissions - Sector'!$J$67:$BR$67,MATCH($C$6,'Annual GHG Emissions - Sector'!$J$34:$BR$34,0))) ->  | D50: =IF(ISNA(B50),NA(),('Annual GHG Emissions - Sector'!$J$80-C50)/'Annual GHG Emissions - Sector'!$J$80) ->  | E50: =C50-'Annual GHG Emissions - Sector'!$AX$80 ->  | F50: =SUM('Annual GHG Emissions - Sector'!AO67:AX67-'Annual GHG Emissions - Sector'!$AO$82:$AX$82) -> 3259.751436
B53: ="GHGs by Sector and Case, "&$C$6&" [MMTCO2e]" -> GHGs by Sector and Case, 2030 [MMTCO2e]
C54: =actCaseAnnGHG_1 -> 0 | D54: =actCaseAnnGHG_2 -> 0 | E54: Reduction [MMTCO2e] | F54: Reduction (%)
B56: Agriculture | C56: =INDEX('Annual GHG Emissions - Sector'!$J35:$BR35,MATCH($C$6,'Annual GHG Emissions - Sector'!$J$34:$BR$34,0)) -> 35.77492786 | D56: =INDEX('Annual GHG Emissions - Sector'!$J47:$BR47,MATCH($C$6,'Annual GHG Emissions - Sector'!$J$34:$BR$34,0)) -> 23.85813149 | E56: =C56-D56 -> 11.91679637 | F56: =IF(C56>0,-(D56-C56)/C56,"n/a") -> 0.3331046932
B57: Residential and Commercial | C57: =INDEX('Annual GHG Emissions - Sector'!$J36:$BR36,MATCH($C$6,'Annual GHG Emissions - Sector'!$J$34:$BR$34,0)) -> 41.16033416 | D57: =INDEX('Annual GHG Emissions - Sector'!$J48:$BR48,MATCH($C$6,'Annual GHG Emissions - Sector'!$J$34:$BR$34,0)) -> 38.07908997 | E57: 3.081244197 | F57: 0.07485955253
B58: Electric Power | C58: =INDEX('Annual GHG Emissions - Sector'!$J37:$BR37,MATCH($C$6,'Annual GHG Emissions - Sector'!$J$34:$BR$34,0)) -> 65.00891697 | D58: =INDEX('Annual GHG Emissions - Sector'!$J49:$BR49,MATCH($C$6,'Annual GHG Emissions - Sector'!$J$34:$BR$34,0)) -> 42.20577005 | E58: 22.80314692 | F58: 0.3507695249
B59: High GWP | C59: =INDEX('Annual GHG Emissions - Sector'!$J38:$BR38,MATCH($C$6,'Annual GHG Emissions - Sector'!$J$34:$BR$34,0)) -> 28.89851494 | D59: =INDEX('Annual GHG Emissions - Sector'!$J50:$BR50,MATCH($C$6,'Annual GHG Emissions - Sector'!$J$34:$BR$34,0)) -> 10.65532773 | E59: 18.24318721 | F59: 0.631284592
B60: Industrial | C60: =INDEX('Annual GHG Emissions - Sector'!$J40:$BR40,MATCH($C$6,'Annual GHG Emissions - Sector'!$J$34:$BR$34,0)) -> 87.94866512 | D60: =INDEX('Annual GHG Emissions - Sector'!$J52:$BR52,MATCH($C$6,'Annual GHG Emissions - Sector'!$J$34:$BR$34,0)) -> 77.23991672 | E60: 10.7087484 | F60: 0.1217613524
B61: Recycling and Waste | C61: =INDEX('Annual GHG Emissions - Sector'!$J41:$BR41,MATCH($C$6,'Annual GHG Emissions - Sector'!$J$34:$BR$34,0)) -> 10.73087981 | D61: =INDEX('Annual GHG Emissions - Sector'!$J53:$BR53,MATCH($C$6,'Annual GHG Emissions - Sector'!$J$34:$BR$34,0)) -> 9.167237323 | E61: 1.563642487 | F61: 0.1457142857
B62: Transportation (Incl. TCU) | C62: =INDEX('Annual GHG Emissions - Sector'!$J42:$BR42,MATCH($C$6,'Annual GHG Emissions - Sector'!$J$34:$BR$34,0)) -> 122.8278121 | D62: =INDEX('Annual GHG Emissions - Sector'!$J54:$BR54,MATCH($C$6,'Annual GHG Emissions - Sector'!$J$34:$BR$34,0)) -> 103.5758213 | E62: 19.25199087 | F62: 0.1567396711
B63: Total | C63: =SUM(C56:C62) -> 392.350051 | D63: =SUM(D56:D62) -> 304.7812945 | E63: 87.56875646 | F63: 0.2231903787

Sheet Final Energy Demand
C2: Active CSV Directory | E2: =outputDir -> S:\E3 Projects\CARB Scoping Plan Update 2016\Model\Case Outputs\LATEST CASE OUTPUTS\REF-SP-SP+
C3: Geo Resolution? | E3: =NOT(ISERROR(Energy_GHGs_by_Sect1_index_5)) -> TRUE
C4: Active Case 1 | E4: Scoping Plan
I12: ="Energy Demand by Fuel - "&actCaseFinE_1 -> Energy Demand by Fuel - Scoping Plan
A38: ="PATHWAYS - "&actCaseFinE_1 -> PATHWAYS - Scoping Plan | D38: 2015 | E38: =+D38+1 -> 2016 | F38: 2017 | G38: 2018 | H38: 2019 | I38: 2020 | J38: 2021 | K38: 2022 | L38: 2023 | M38: 2024 | N38: 2025 | O38: 2026 | P38: 2027 | Q38: 2028 | R38: 2029 | S38: 2030 | T38: 2031 | U38: 2032 | V38: 2033 | W38: 2034 | X38: 2035 | Y38: 2036 | Z38: 2037 | AA38: 2038 | AB38: 2039 | AC38: 2040 | AD38: 2041 | AE38: 2042 | AF38: 2043 | AG38: 2044 | AH38: 2045 | AI38: 2046 | AJ38: 2047 | AK38: 2048 | AL38: 2049 | AM38: 2050
A39: Pipeline Gas | D39: =SUM(D40:D43) -> 1.528370704 | E39: =SUM(E40:E43) -> 1.516465821 | F39: =SUM(F40:F43) -> 1.502799211 | G39: 1.491076081 | H39: 1.478911288 | I39: 1.465780174 | J39: 1.451123145 | K39: 1.435676565 | L39: 1.419662217 | M39: 1.403813651 | N39: 1.397608345 | O39: 1.390725654 | P39: 1.383976289 | Q39: 1.377238081 | R39: 1.3705232 | S39: 1.364129249 | T39: 1.368735281 | U39: 1.373984597 | V39: 1.379881268 | W39: 1.386060009 | X39: 1.392757078 | Y39: 1.399973177 | Z39: 1.407648372 | AA39: 1.416148088 | AB39: 1.425042505 | AC39: 1.434333379 | AD39: 1.443622218 | AE39: 1.453263777 | AF39: 1.46327772 | AG39: 1.473603553 | AH39: 1.484114361 | AI39: 1.494696396 | AJ39: 1.505224572 | AK39: 1.515666659 | AL39: 1.525959572 | AM39: 1.536067613
B40: ="#"&actCaseFinE_1&"#"&C40 -> #Scoping Plan#Natural Gas | C40: Natural Gas | D40: =IFERROR(INDEX(Pipeline_Share_vals,MATCH(D$38&$B40,Pipeline_Share_index,0))*(D$58+D$66+D$68),0) -> 1.51930747 | E40: 1.507052896 | F40: 1.482314213 | G40: 1.470047029 | H40: 1.455638261 | I40: 1.439883135 | J40: 1.422524139 | K40: 1.40418262 | L40: 1.385371208 | M40: 1.365639674 | N40: =IFERROR(INDEX(Pipeline_Share_vals,MATCH(N$38&$B40,Pipeline_Share_index,0))*(N$58+N$66+N$68),0) -> 1.358872361 | O40: 1.351065694 | P40: 1.343422237 | Q40: 1.335902061 | R40: 1.328426176 | S40: 1.321208211 | T40: 1.324430306 | U40: 1.328222596 | V40: 1.332524288 | W40: 1.336996043 | X40: =IFERROR(INDEX(Pipeline_Share_vals,MATCH(X$38&$B40,Pipeline_Share_index,0))*(X$58+X$66+X$68),0) -> 1.34182211 | Y40: 1.346868133 | Z40: 1.352329354 | AA40: 1.358285096 | AB40: 1.364531523 | AC40: 1.371021396 | AD40: 1.377782245 | AE40: 1.384758788 | AF40: 1.391905706 | AG40: 1.399189496 | AH40: =IFERROR(INDEX(Pipeline_Share_vals,MATCH(AH$38&$B40,Pipeline_Share_index,0))*(AH$58+AH$66+AH$68),0) -> 1.406563396 | AI40: 1.413978408 | AJ40: 1.421424578 | AK40: 1.429451378 | AL40: 1.45376505 | AM40: 1.477893849
B41: ="#"&actCaseFinE_1&"#"&C41 -> #Scoping Plan#Biogas | C41: Biogas | D41: 0.00906323418 | E41: 0.00941292495 | F41: 0.02048499882 | G41: 0.02102905233 | H41: 0.02327302692 | I41: 0.02589703974 | J41: 0.02859900615 | K41: 0.03149394534 | L41: 0.03429100818 | M41: 0.03817397727 | N41: 0.03873598443 | O41: 0.03965996034 | P41: 0.04055405211 | Q41: 0.04133602044 | R41: 0.04209702354 | S41: 0.04292103816 | T41: 0.044304975 | U41: 0.04576200057 | V41: 0.04735697967 | W41: 0.04906396638 | X41: 0.05093496837 | Y41: 0.05310504342 | Z41: 0.05531901804 | AA41: 0.05786299233 | AB41: 0.06051098196 | AC41: 0.06331198302 | AD41: 0.06583997277 | AE41: 0.06850498941 | AF41: 0.07137201357 | AG41: 0.07441405686 | AH41: 0.07755096492 | AI41: 0.08071798878 | AJ41: 0.08379999342 | AK41: 0.08621528058 | AL41: 0.0721945224 | AM41: 0.05817376422
B42: ="#"&actCaseFinE_1&"#Power to Gas" -> #Scoping Plan#Power to Gas | C42: Synthetic Gas | D42: 0 | E42: 0 | F42: 0 | G42: 0 | H42: 0 | I42: 0 | J42: 0 | K42: 0 | L42: 0 | M42: 0 | N42: 0 | O42: 0 | P42: 0 | Q42: 0 | R42: 0 | S42: 0 | T42: 0 | U42: 0 | V42: 0 | W42: 0 | X42: 0 | Y42: 0 | Z42: 0 | AA42: 0 | AB42: 0 | AC42: 0 | AD42: 0 | AE42: 0 | AF42: 0 | AG42: 0 | AH42: 0 | AI42: 0 | AJ42: 0 | AK42: 0 | AL42: 0 | AM42: 0
B43: ="#"&actCaseFinE_1&"#Hydrogen" -> #Scoping Plan#Hydrogen | C43: Pipeline Hydrogen | D43: 0 | E43: 0 | F43: 0 | G43: 0 | H43: 0 | I43: 0 | J43: 0 | K43: 0 | L43: 0 | M43: 0 | N43: 0 | O43: 0 | P43: 0 | Q43: 0 | R43: 0 | S43: 0 | T43: 0 | U43: 0 | V43: 0 | W43: 0 | X43: 0 | Y43: 0 | Z43: 0 | AA43: 0 | AB43: 0 | AC43: 0 | AD43: 0 | AE43: 0 | AF43: 0 | AG43: 0 | AH43: 0 | AI43: 0 | AJ43: 0 | AK43: 0 | AL43: 0 | AM43: 0
A44: Gasoline | D44: =SUM(D45:D46) -> 2.064593007 | E44: =SUM(E45:E46) -> 2.070014313 | F44: =SUM(F45:F46) -> 2.055943263 | G44: 2.002985904 | H44: 1.939217611 | I44: 1.87758033 | J44: 1.810790945 | K44: 1.733759369 | L44: 1.658931434 | M44: 1.587717201 | N44: 1.516467626 | O44: 1.442374824 | P44: 1.378713984 | Q44: 1.317328501 | R44: 1.258542069 | S44: 1.202075057 | T44: 1.1478537 | U44: 1.096606405 | V44: 1.046445899 | W44: 0.9969236092 | X44: 0.9471243763 | Y44: 0.8980962827 | Z44: 0.8493340347 | AA44: 0.8009801359 | AB44: 0.7530848425 | AC44: 0.7060893741 | AD44: 0.6618864798 | AE44: 0.6195281266 | AF44: 0.5792006521 | AG44: 0.5409771276 | AH44: 0.5074399292 | AI44: 0.4758455889 | AJ44: 0.4465159341 | AK44: 0.4193779815 | AL44: 0.3942028206 | AM44: 0.3708214502
C45: Gasoline | D45: =D$62-D$46 -> 1.913960301 | E45: 1.908159894 | F45: 1.895259574 | G45: 1.845796881 | H45: 1.786958678 | I45: 1.729919289 | J45: 1.668101491 | K45: 1.596776655 | L45: 1.530269828 | M45: 1.464513128 | N45: 1.397947665 | O45: 1.329651038 | P45: 1.270802529 | Q45: 1.212766881 | R45: 1.158472755 | S45: 1.105667797 | T45: 1.055306117 | U45: 1.007548547 | V45: 0.9566114856 | W45: 0.9096411657 | X45: 0.8612536602 | Y45: 0.8139655079 | Z45: 0.7684831135 | AA45: 0.720849042 | AB45: 0.6742231315 | AC45: 0.6249392971 | AD45: 0.5860261428 | AE45: 0.548813226 | AF45: 0.5134726657 | AG45: 0.4800714738 | AH45: 0.4509901621 | AI45: 0.4236953085 | AJ45: 0.3984930457 | AK45: 0.3753110222 | AL45: 0.3539385709 | AM45: 0.3342195557
B46: ="#"&actCaseFinE_1&"#Gasoline" -> #Scoping Plan#Gasoline | C46: Renewable Gasoline | D46: =INDEX(Liquid_Biofuel_Comp_vals,MATCH(D$38&$B46,Liquid_Biofuel_Comp_index,0))*(D$62) -> 0.1506327058 | E46: 0.1618544191 | F46: 0.1606836892 | G46: 0.1571890225 | H46: 0.152258933 | I46: 0.1476610413 | J46: 0.142689454 | K46: 0.1369827138 | L46: 0.1286616063 | M46: 0.1232040725 | N46: 0.118519961 | O46: 0.1127237868 | P46: 0.1079114545 | Q46: 0.1045616207 | R46: 0.1000693141 | S46: 0.09640725973 | T46: 0.09254758232 | U46: 0.08905785837 | V46: 0.08983441304 | W46: 0.08728244354 | X46: 0.0858707161 | Y46: 0.08413077481 | Z46: 0.08085092124 | AA46: 0.08013109391 | AB46: 0.07886171095 | AC46: 0.08115007694 | AD46: 0.07586033699 | AE46: 0.07071490064 | AF46: 0.06572798642 | AG46: 0.0609056538 | AH46: 0.05644976712 | AI46: 0.05215028045 | AJ46: 0.04802288832 | AK46: 0.04406695931 | AL46: 0.0402642497 | AM46: 0.03660189444
A47: Diesel | D47: =SUM(D48:D49) -> 0.5693716423 | E47: =SUM(E48:E49) -> 0.5678649315 | F47: =SUM(F48:F49) -> 0.5676912377 | G47: 0.5678178084 | H47: 0.5703749483 | I47: 0.572106433 | J47: 0.5781674178 | K47: 0.5840804596 | L47: 0.5913074207 | M47: 0.5906114261 | N47: 0.5893299076 | O47: 0.5879615199 | P47: 0.5872794625 | Q47: 0.5870660604 | R47: 0.5878356753 | S47: 0.5889914168 | T47: 0.5908973069 | U47: 0.59351654 | V47: 0.5962181986 | W47: 0.5990605009 | X47: 0.602072391 | Y47: 0.6059287187 | Z47: 0.6100136387 | AA47: 0.6142191343 | AB47: 0.6185962773 | AC47: 0.6230379487 | AD47: 0.6257221891 | AE47: 0.6283022211 | AF47: 0.6304655337 | AG47: 0.6321263879 | AH47: 0.6333528183 | AI47: 0.6342113917 | AJ47: 0.6348610099 | AK47: 0.6352760408 | AL47: 0.6355670112 | AM47: 0.6357476137
C48: Diesel | D48: =D$59-D$49 -> 0.5320760039 | E48: 0.5220671394 | F48: 0.4996711126 | G48: 0.4884843356 | H48: 0.4744908743 | I48: 0.4557872829 | J48: 0.4384570942 | K48: 0.4136995103 | L48: 0.3890322176 | M48: 0.3570186867 | N48: 0.3634968516 | O48: 0.3698881472 | P48: 0.3769664681 | Q48: 0.3843870739 | R48: 0.3612830833 | S48: 0.3706081989 | T48: 0.3802098341 | U48: 0.3918058923 | V48: 0.4024951877 | W48: 0.413318872 | X48: 0.422042571 | Y48: 0.4331151077 | Z48: 0.4433943844 | AA48: 0.4531462838 | AB48: 0.4459986893 | AC48: 0.4565156441 | AD48: 0.4710050466 | AE48: 0.4853902405 | AF48: 0.4993588308 | AG48: 0.5128246153 | AH48: 0.5258558602 | AI48: 0.5384707152 | AJ48: 0.5508689703 | AK48: 0.5630326381 | AL48: 0.5750721296 | AM48: 0.587001369
B49: ="#"&actCaseFinE_1&"#Diesel" -> #Scoping Plan#Diesel | C49: Renewable Diesel | D49: =INDEX(Liquid_Biofuel_Comp_vals,MATCH(D$38&$B49,Liquid_Biofuel_Comp_index,0))*(D$59) -> 0.03729563838 | E49: 0.04579779204 | F49: 0.06802012503 | G49: 0.07933347279 | H49: 0.095884074 | I49: 0.1163191501 | J49: 0.1397103236 | K49: 0.1703809493 | L49: 0.2022752031 | M49: 0.2335927394 | N49: 0.225833056 | O49: 0.2180733727 | P49: 0.2103129943 | Q49: 0.2026789865 | R49: 0.226552592 | S49: 0.2183832179 | T49: 0.2106874727 | U49: 0.2017106477 | V49: 0.1937230109 | W49: 0.1857416289 | X49: 0.18002982 | Y49: 0.172813611 | Z49: 0.1666192542 | AA49: 0.1610728505 | AB49: 0.172597588 | AC49: 0.1665223045 | AD49: 0.1547171426 | AE49: 0.1429119806 | AF49: 0.1311067029 | AG49: 0.1193017726 | AH49: 0.1074969581 | AI49: 0.09574067646 | AJ49: 0.08399203956 | AK49: 0.07224340266 | AL49: 0.06049488159 | AM49: 0.04874624469
A50: Electricity | D50: =D60 -> 1.025128136 | E50: =E60 -> 1.030999239 | F50: =F60 -> 1.037309363 | G50: 1.043298273 | H50: 1.049671991 | I50: 1.053364404 | J50: 1.05232364 | K50: 1.051022849 | L50: 1.049280033 | M50: 1.047080371 | N50: 1.046840977 | O50: 1.04583693 | P50: 1.044409483 | Q50: 1.042909755 | R50: 1.041475564 | S50: 1.040479792 | T50: 1.04026639 | U50: 1.040925159 | V50: 1.042691202 | W50: 1.045357883 | X50: 1.049028198 | Y50: 1.053809933 | Z50: 1.05945429 | AA50: 1.065854969 | AB50: 1.072821207 | AC50: 1.080238158 | AD50: 1.08858385 | AE50: 1.097152939 | AF50: 1.105860848 | AG50: 1.11462175 | AH50: 1.122577126 | AI50: 1.13057043 | AJ50: 1.138537939 | AK50: 1.146447315 | AL50: 1.154260349 | AM50: 1.16190792
A51: Hydrogen | D51: =D$63 -> 0.0001254042382 | E51: =E$63 -> 0.0001940679182 | F51: =F$63 -> 0.0002862853923 | G51: 0.0004710995041 | H51: 0.0007262418147 | I51: 0.0009849786722 | J51: 0.001270261858 | K51: 0.001882774631 | L51: 0.002752189224 | M51: 0.003774045113 | N51: 0.004958582943 | O51: 0.006159854742 | P51: 0.007575303604 | Q51: 0.00927665853 | R51: 0.01120853801 | S51: 0.01333656295 | T51: 0.01593222661 | U51: 0.0188373273 | V51: 0.02210902763 | W51: 0.02573037717 | X51: 0.02971524016 | Y51: 0.03398225427 | Z51: 0.03833011336 | AA51: 0.04273136182 | AB51: 0.04714062161 | AC51: 0.05155081857 | AD51: 0.05618617153 | AE51: 0.06076505291 | AF51: 0.06528071399 | AG51: 0.06970483627 | AH51: 0.07400698419 | AI51: 0.07816086407 | AJ51: 0.08190091029 | AK51: 0.08526457963 | AL51: 0.08826778169 | AM51: 0.09093009234
A52: Other Fuels | D52: =D72-D39-D44-D47-D50-D51 -> 0.6434656365 | E52: 0.6460406943 | F52: 0.6486928382 | G52: 0.6513511822 | H52: 0.6540894986 | I52: 0.6549000369 | J52: 0.6502578913 | K52: 0.6455706135 | L52: 0.6408576198 | M52: 0.636105957 | N52: 0.6313822203 | O52: 0.6266127085 | P52: 0.6218018691 | Q52: 0.6169269253 | R52: 0.6119516375 | S52: 0.6068953695 | T52: 0.600596418 | U52: 0.5942725031 | V52: 0.5878954126 | W52: 0.5814005168 | X52: 0.5748067381 | Y52: 0.5681039797 | Z52: 0.561317106 | AA52: 0.5544491123 | AB52: 0.547486435 | AC52: 0.5404126964 | AD52: 0.5332477247 | AE52: 0.5259848251 | AF52: 0.5186299965 | AG52: 0.5111671547 | AH52: 0.5035996932 | AI52: 0.4959343242 | AJ52: 0.48816144 | AK52: 0.4802890995 | AL52: 0.4723140241 | AM52: 0.4642328032
A53: Total | D53: =SUM(D50:D52,D47,D44,D39) -> 5.83105453 | E53: =SUM(E50:E52,E47,E44,E39) -> 5.831579067 | F53: =SUM(F50:F52,F47,F44,F39) -> 5.812722199 | G53: 5.757000348 | H53: 5.692991579 | I53: 5.624716357 | J53: 5.543933301 | K53: 5.451992631 | L53: 5.362790913 | M53: 5.269102652 | N53: 5.186587659 | O53: 5.099671492 | P53: 5.023756391 | Q53: 4.950745982 | R53: 4.881536684 | S53: 4.815907447 | T53: 4.764281322 | U53: 4.718142531 | V53: 4.675241007 | W53: 4.634532896 | X53: 4.595504021 | Y53: 4.559894345 | Z53: 4.526097555 | AA53: 4.494382801 | AB53: 4.464171888 | AC53: 4.435662375 | AD53: 4.409248633 | AE53: 4.384996942 | AF53: 4.362715464 | AG53: 4.342200809 | AH53: 4.325090912 | AI53: 4.309418995 | AJ53: 4.295201805 | AK53: 4.282321675 | AL53: 4.270571559 | AM53: 4.259707493
A55: ="PATHWAYS - "&actCaseFinE_1 -> PATHWAYS - Scoping Plan
D56: 2015 | E56: =+D56+1 -> 2016 | F56: 2017 | G56: 2018 | H56: 2019 | I56: 2020 | J56: 2021 | K56: 2022 | L56: 2023 | M56: 2024 | N56: 2025 | O56: 2026 | P56: 2027 | Q56: 2028 | R56: 2029 | S56: 2030 | T56: 2031 | U56: 2032 | V56: 2033 | W56: 2034 | X56: 2035 | Y56: 2036 | Z56: 2037 | AA56: 2038 | AB56: 2039 | AC56: 2040 | AD56: 2041 | AE56: 2042 | AF56: 2043 | AG56: 2044 | AH56: 2045 | AI56: 2046 | AJ56: 2047 | AK56: 2048 | AL56: 2049 | AM56: 2050
C57: Coke | D57: =IF(actCaseFinE_1="",NA(),SUMPRODUCT(($C57=IF(geoResFinE,Final_Energy1_index_5,Final_Energy1_index_4))*('Final Energy Demand'!D$56=Final_Energy1_index_1)*(actCaseFinE_1=IF(geoResFinE,Final_Energy1_index_4,Final_Energy1_index_3))*Final_Energy1_vals)) -> 0.05867202797 | E57: =IF(actCaseFinE_1="",NA(),SUMPRODUCT(($C57=IF(geoResFinE,Final_Energy1_index_5,Final_Energy1_index_4))*('Final Energy Demand'!E$56=Final_Energy1_index_1)*(actCaseFinE_1=IF(geoResFinE,Final_Energy1_index_4,Final_Energy1_index_3))*Final_Energy1_vals)) -> 0.05776118881 | F57: =IF(actCaseFinE_1="",NA(),SUMPRODUCT(($C57=IF(geoResFinE,Final_Energy1_index_5,Final_Energy1_index_4))*('Final Energy Demand'!F$56=Final_Energy1_index_1)*(actCaseFinE_1=IF(geoResFinE,Final_Energy1_index_4,Final_Energy1_index_3))*Final_Energy1_vals)) -> 0.05685034965 | G57: =IF(actCaseFinE_1="",NA(),SUMPRODUCT(($C57=IF(geoResFinE,Final_Energy1_index_5,Final_Energy1_index_4))*('Final Energy Demand'!G$56=Final_Energy1_index_1)*(actCaseFinE_1=IF(geoResFinE,Final_Energy1_index_4,Final_Energy1_index_3))*Final_Energy1_vals)) -> 0.05593951049 | H57: =IF(actCaseFinE_1="",NA(),SUMPRODUCT(($C57=IF(geoResFinE,Final_Energy1_index_5,Final_Energy1_index_4))*('Final Energy Demand'!H$56=Final_Energy1_index_1)*(actCaseFinE_1=IF(geoResFinE,Final_Energy1_index_4,Final_Energy1_index_3))*Final_Energy1_vals)) -> 0.05502867133 | I57: =IF(actCaseFinE_1="",NA(),SUMPRODUCT(($C57=IF(geoResFinE,Final_Energy1_index_5,Final_Energy1_index_4))*('Final Energy Demand'!I$56=Final_Energy1_index_1)*(actCaseFinE_1=IF(geoResFinE,Final_Energy1_index_4,Final_Energy1_index_3))*Final_Energy1_vals)) -> 0.05411783217 | J57: =IF(actCaseFinE_1="",NA(),SUMPRODUCT(($C57=IF(geoResFinE,Final_Energy1_index_5,Final_Energy1_index_4))*('Final Energy Demand'!J$56=Final_Energy1_index_1)*(actCaseFinE_1=IF(geoResFinE,Final_Energy1_index_4,Final_Energy1_index_3))*Final_Energy1_vals)) -> 0.05249827586 | K57: =IF(actCaseFinE_1="",NA(),SUMPRODUCT(($C57=IF(geoResFinE,Final_Energy1_index_5,Final_Energy1_index_4))*('Final Energy Demand'!K$56=Final_Energy1_index_1)*(actCaseFinE_1=IF(geoResFinE,Final_Energy1_index_4,Final_Energy1_index_3))*Final_Energy1_vals)) -> 0.05090298431 | L57: =IF(actCaseFinE_1="",NA(),SUMPRODUCT(($C57=IF(geoResFinE,Final_Energy1_index_5,Final_Energy1_index_4))*('Final Energy Demand'!L$56=Final_Energy1_index_1)*(actCaseFinE_1=IF(geoResFinE,Final_Energy1_index_4,Final_Energy1_index_3))*Final_Energy1_vals)) -> 0.04933195751 | M57: =IF(actCaseFinE_1="",NA(),SUMPRODUCT(($C57=IF(geoResFinE,Final_Energy1_index_5,Final_Energy1_index_4))*('Final Energy Demand'!M$56=Final_Energy1_index_1)*(actCaseFinE_1=IF(geoResFinE,Final_Energy1_index_4,Final_Energy1_index_3))*Final_Energy1_vals)) -> 0.04778519547 | N57: =IF(actCaseFinE_1="",NA(),SUMPRODUCT(($C57=IF(geoResFinE,Final_Energy1_index_5,Final_Energy1_index_4))*('Final Energy Demand'!N$56=Final_Energy1_index_1)*(actCaseFinE_1=IF(geoResFinE,Final_Energy1_index_4,Final_Energy1_index_3))*Final_Energy1_vals)) -> 0.04626269818 | O57: =IF(actCaseFinE_1="",NA(),SUMPRODUCT(($C57=IF(geoResFinE,Final_Energy1_index_5,Final_Energy1_index_4))*('Final Energy Demand'!O$56=Final_Energy1_index_1)*(actCaseFinE_1=IF(geoResFinE,Final_Energy1_index_4,Final_Energy1_index_3))*Final_Energy1_vals)) -> 0.04476446565 | P57: =IF(actCaseFinE_1="",NA(),SUMPRODUCT(($C57=IF(geoResFinE,Final_Energy1_index_5,Final_Energy1_index_4))*('Final Energy Demand'!P$56=Final_Energy1_index_1)*(actCaseFinE_1=IF(geoResFinE,Final_Energy1_index_4,Final_Energy1_index_3))*Final_Energy1_vals)) -> 0.04329049787 | Q57: =IF(actCaseFinE_1="",NA(),SUMPRODUCT(($C57=IF(geoResFinE,Final_Energy1_index_5,Final_Energy1_index_4))*('Final Energy Demand'!Q$56=Final_Energy1_index_1)*(actCaseFinE_1=IF(geoResFinE,Final_Energy1_index_4,Final_Energy1_index_3))*Final_Energy1_vals)) -> 0.04184079485 | R57: =IF(actCaseFinE_1="",NA(),SUMPRODUCT(($C57=IF(geoResFinE,Final_Energy1_index_5,Final_Energy1_index_4))*('Final Energy Demand'!R$56=Final_Energy1_index_1)*(actCaseFinE_1=IF(geoResFinE,Final_Energy1_index_4,Final_Energy1_index_3))*Final_Energy1_vals)) -> 0.04041535659 | S57: =IF(actCaseFinE_1="",NA(),SUMPRODUCT(($C57=IF(geoResFinE,Final_Energy1_index_5,Final_Energy1_index_4))*('Final Energy Demand'!S$56=Final_Energy1_index_1)*(actCaseFinE_1=IF(geoResFinE,Final_Energy1_index_4,Final_Energy1_index_3))*Final_Energy1_vals)) -> 0.03901418308 | T57: =IF(actCaseFinE_1="",NA(),SUMPRODUCT(($C57=IF(geoResFinE,Final_Energy1_index_5,Final_Energy1_index_4))*('Final Energy Demand'!T$56=Final_Energy1_index_1)*(actCaseFinE_1=IF(geoResFinE,Final_Energy1_index_4,Final_Energy1_index_3))*Final_Energy1_vals)) -> 0.03822466769 | U57: =IF(actCaseFinE_1="",NA(),SUMPRODUCT(($C57=IF(geoResFinE,Final_Energy1_index_5,Final_Energy1_index_4))*('Final Energy Demand'!U$56=Final_Energy1_index_1)*(actCaseFinE_1=IF(geoResFinE,Final_Energy1_index_4,Final_Energy1_index_3))*Final_Energy1_vals)) -> 0.03743515231 | V57: =IF(actCaseFinE_1="",NA(),SUMPRODUCT(($C57=IF(geoResFinE,Final_Energy1_index_5,Final_Energy1_index_4))*('Final Energy Demand'!V$56=Final_Energy1_index_1)*(actCaseFinE_1=IF(geoResFinE,Final_Energy1_index_4,Final_Energy1_index_3))*Final_Energy1_vals)) -> 0.03664563692 | W57: =IF(actCaseFinE_1="",NA(),SUMPRODUCT(($C57=IF(geoResFinE,Final_Energy1_index_5,Final_Energy1_index_4))*('Final Energy Demand'!W$56=Final_Energy1_index_1)*(actCaseFinE_1=IF(geoResFinE,Final_Energy1_index_4,Final_Energy1_index_3))*Final_Energy1_vals)) -> 0.03585612154 | X57: =IF(actCaseFinE_1="",NA(),SUMPRODUCT(($C57=IF(geoResFinE,Final_Energy1_index_5,Final_Energy1_index_4))*('Final Energy Demand'!X$56=Final_Energy1_index_1)*(actCaseFinE_1=IF(geoResFinE,Final_Energy1_index_4,Final_Energy1_index_3))*Final_Energy1_vals)) -> 0.03506660615 | Y57: =IF(actCaseFinE_1="",NA(),SUMPRODUCT(($C57=IF(geoResFinE,Final_Energy1_index_5,Final_Energy1_index_4))*('Final Energy Demand'!Y$56=Final_Energy1_index_1)*(actCaseFinE_1=IF(geoResFinE,Final_Energy1_index_4,Final_Energy1_index_3))*Final_Energy1_vals)) -> 0.03427709077 | Z57: =IF(actCaseFinE_1="",NA(),SUMPRODUCT(($C57=IF(geoResFinE,Final_Energy1_index_5,Final_Energy1_index_4))*('Final Energy Demand'!Z$56=Final_Energy1_index_1)*(actCaseFinE_1=IF(geoResFinE,Final_Energy1_index_4,Final_Energy1_index_3))*Final_Energy1_vals)) -> 0.03348757538 | AA57: =IF(actCaseFinE_1="",NA(),SUMPRODUCT(($C57=IF(geoResFinE,Final_Energy1_index_5,Final_Energy1_index_4))*('Final Energy Demand'!AA$56=Final_Energy1_index_1)*(actCaseFinE_1=IF(geoResFinE,Final_Energy1_index_4,Final_Energy1_index_3))*Final_Energy1_vals)) -> 0.03269806 | AB57: =IF(actCaseFinE_1="",NA(),SUMPRODUCT(($C57=IF(geoResFinE,Final_Energy1_index_5,Final_Energy1_index_4))*('Final Energy Demand'!AB$56=Final_Energy1_index_1)*(actCaseFinE_1=IF(geoResFinE,Final_Energy1_index_4,Final_Energy1_index_3))*Final_Energy1_vals)) -> 0.03190854462 | AC57: =IF(actCaseFinE_1="",NA(),SUMPRODUCT(($C57=IF(geoResFinE,Final_Energy1_index_5,Final_Energy1_index_4))*('Final Energy Demand'!AC$56=Final_Energy1_index_1)*(actCaseFinE_1=IF(geoResFinE,Final_Energy1_index_4,Final_Energy1_index_3))*Final_Energy1_vals)) -> 0.03111902923 | AD57: =IF(actCaseFinE_1="",NA(),SUMPRODUCT(($C57=IF(geoResFinE,Final_Energy1_index_5,Final_Energy1_index_4))*('Final Energy Demand'!AD$56=Final_Energy1_index_1)*(actCaseFinE_1=IF(geoResFinE,Final_Energy1_index_4,Final_Energy1_index_3))*Final_Energy1_vals)) -> 0.03032951385 | AE57: =IF(actCaseFinE_1="",NA(),SUMPRODUCT(($C57=IF(geoResFinE,Final_Energy1_index_5,Final_Energy1_index_4))*('Final Energy Demand'!AE$56=Final_Energy1_index_1)*(actCaseFinE_1=IF(geoResFinE,Final_Energy1_index_4,Final_Energy1_index_3))*Final_Energy1_vals)) -> 0.02953999846 | AF57: =IF(actCaseFinE_1="",NA(),SUMPRODUCT(($C57=IF(geoResFinE,Final_Energy1_index_5,Final_Energy1_index_4))*('Final Energy Demand'!AF$56=Final_Energy1_index_1)*(actCaseFinE_1=IF(geoResFinE,Final_Energy1_index_4,Final_Energy1_index_3))*Final_Energy1_vals)) -> 0.02875048308 | AG57: =IF(actCaseFinE_1="",NA(),SUMPRODUCT(($C57=IF(geoResFinE,Final_Energy1_index_5,Final_Energy1_index_4))*('Final Energy Demand'!AG$56=Final_Energy1_index_1)*(actCaseFinE_1=IF(geoResFinE,Final_Energy1_index_4,Final_Energy1_index_3))*Final_Energy1_vals)) -> 0.02796096769 | AH57: =IF(actCaseFinE_1="",NA(),SUMPRODUCT(($C57=IF(geoResFinE,Final_Energy1_index_5,Final_Energy1_index_4))*('Final Energy Demand'!AH$56=Final_Energy1_index_1)*(actCaseFinE_1=IF(geoResFinE,Final_Energy1_index_4,Final_Energy1_index_3))*Final_Energy1_vals)) -> 0.02717145231 | AI57: =IF(actCaseFinE_1="",NA(),SUMPRODUCT(($C57=IF(geoResFinE,Final_Energy1_index_5,Final_Energy1_index_4))*('Final Energy Demand'!AI$56=Final_Energy1_index_1)*(actCaseFinE_1=IF(geoResFinE,Final_Energy1_index_4,Final_Energy1_index_3))*Final_Energy1_vals)) -> 0.02638193692 | AJ57: =IF(actCaseFinE_1="",NA(),SUMPRODUCT(($C57=IF(geoResFinE,Final_Energy1_index_5,Final_Energy1_index_4))*('Final Energy Demand'!AJ$56=Final_Energy1_index_1)*(actCaseFinE_1=IF(geoResFinE,Final_Energy1_index_4,Final_Energy1_index_3))*Final_Energy1_vals)) -> 0.02559242154 | AK57: =IF(actCaseFinE_1="",NA(),SUMPRODUCT(($C57=IF(geoResFinE,Final_Energy1_index_5,Final_Energy1_index_4))*('Final Energy Demand'!AK$56=Final_Energy1_index_1)*(actCaseFinE_1=IF(geoResFinE,Final_Energy1_index_4,Final_Energy1_index_3))*Final_Energy1_vals)) -> 0.02480290615 | AL57: =IF(actCaseFinE_1="",NA(),SUMPRODUCT(($C57=IF(geoResFinE,Final_Energy1_index_5,Final_Energy1_index_4))*('Final Energy Demand'!AL$56=Final_Energy1_index_1)*(actCaseFinE_1=IF(geoResFinE,Final_Energy1_index_4,Final_Energy1_index_3))*Final_Energy1_vals)) -> 0.02401339077 | AM57: =IF(actCaseFinE_1="",NA(),SUMPRODUCT(($C57=IF(geoResFinE,Final_Energy1_index_5,Final_Energy1_index_4))*('Final Energy Demand'!AM$56=Final_Energy1_index_1)*(actCaseFinE_1=IF(geoResFinE,Final_Energy1_index_4,Final_Energy1_index_3))*Final_Energy1_vals)) -> 0.02322387538 | AP57: 0.03901418308 | AR57: =AP57=S57 -> FALSE
C58: Compressed Pipeline Gas (CNG) | D58: =IF(actCaseFinE_1="",NA(),SUMPRODUCT(($C58=IF(geoResFinE,Final_Energy1_index_5,Final_Energy1_index_4))*('Final Energy Demand'!D$56=Final_Energy1_index_1)*(actCaseFinE_1=IF(geoResFinE,Final_Energy1_index_4,Final_Energy1_index_3))*Final_Energy1_vals)) -> 0.02020199675 | E58: =IF(actCaseFinE_1="",NA(),SUMPRODUCT(($C58=IF(geoResFinE,Final_Energy1_index_5,Final_Energy1_index_4))*('Final Energy Demand'!E$56=Final_Energy1_index_1)*(actCaseFinE_1=IF(geoResFinE,Final_Energy1_index_4,Final_Energy1_index_3))*Final_Energy1_vals)) -> 0.02041597262 | F58: =IF(actCaseFinE_1="",NA(),SUMPRODUCT(($C58=IF(geoResFinE,Final_Energy1_index_5,Final_Energy1_index_4))*('Final Energy Demand'!F$56=Final_Energy1_index_1)*(actCaseFinE_1=IF(geoResFinE,Final_Energy1_index_4,Final_Energy1_index_3))*Final_Energy1_vals)) -> 0.02048192725 | G58: =IF(actCaseFinE_1="",NA(),SUMPRODUCT(($C58=IF(geoResFinE,Final_Energy1_index_5,Final_Energy1_index_4))*('Final Energy Demand'!G$56=Final_Energy1_index_1)*(actCaseFinE_1=IF(geoResFinE,Final_Energy1_index_4,Final_Energy1_index_3))*Final_Energy1_vals)) -> 0.0210257356 | H58: =IF(actCaseFinE_1="",NA(),SUMPRODUCT(($C58=IF(geoResFinE,Final_Energy1_index_5,Final_Energy1_index_4))*('Final Energy Demand'!H$56=Final_Energy1_index_1)*(actCaseFinE_1=IF(geoResFinE,Final_Energy1_index_4,Final_Energy1_index_3))*Final_Energy1_vals)) -> 0.02326983417 | I58: =IF(actCaseFinE_1="",NA(),SUMPRODUCT(($C58=IF(geoResFinE,Final_Energy1_index_5,Final_Energy1_index_4))*('Final Energy Demand'!I$56=Final_Energy1_index_1)*(actCaseFinE_1=IF(geoResFinE,Final_Energy1_index_4,Final_Energy1_index_3))*Final_Energy1_vals)) -> 0.02589373218 | J58: =IF(actCaseFinE_1="",NA(),SUMPRODUCT(($C58=IF(geoResFinE,Final_Energy1_index_5,Final_Energy1_index_4))*('Final Energy Demand'!J$56=Final_Energy1_index_1)*(actCaseFinE_1=IF(geoResFinE,Final_Energy1_index_4,Final_Energy1_index_3))*Final_Energy1_vals)) -> 0.0285947591 | K58: =IF(actCaseFinE_1="",NA(),SUMPRODUCT(($C58=IF(geoResFinE,Final_Energy1_index_5,Final_Energy1_index_4))*('Final Energy Demand'!K$56=Final_Energy1_index_1)*(actCaseFinE_1=IF(geoResFinE,Final_Energy1_index_4,Final_Energy1_index_3))*Final_Energy1_vals)) -> 0.03148941646 | L58: =IF(actCaseFinE_1="",NA(),SUMPRODUCT(($C58=IF(geoResFinE,Final_Energy1_index_5,Final_Energy1_index_4))*('Final Energy Demand'!L$56=Final_Energy1_index_1)*(actCaseFinE_1=IF(geoResFinE,Final_Energy1_index_4,Final_Energy1_index_3))*Final_Energy1_vals)) -> 0.03428584321 | M58: =IF(actCaseFinE_1="",NA(),SUMPRODUCT(($C58=IF(geoResFinE,Final_Energy1_index_5,Final_Energy1_index_4))*('Final Energy Demand'!M$56=Final_Energy1_index_1)*(actCaseFinE_1=IF(geoResFinE,Final_Energy1_index_4,Final_Energy1_index_3))*Final_Energy1_vals)) -> 0.03816861998 | N58: =IF(actCaseFinE_1="",NA(),SUMPRODUCT(($C58=IF(geoResFinE,Final_Energy1_index_5,Final_Energy1_index_4))*('Final Energy Demand'!N$56=Final_Energy1_index_1)*(actCaseFinE_1=IF(geoResFinE,Final_Energy1_index_4,Final_Energy1_index_3))*Final_Energy1_vals)) -> 0.03873065634 | O58: =IF(actCaseFinE_1="",NA(),SUMPRODUCT(($C58=IF(geoResFinE,Final_Energy1_index_5,Final_Energy1_index_4))*('Final Energy Demand'!O$56=Final_Energy1_index_1)*(actCaseFinE_1=IF(geoResFinE,Final_Energy1_index_4,Final_Energy1_index_3))*Final_Energy1_vals)) -> 0.03965450001 | P58: =IF(actCaseFinE_1="",NA(),SUMPRODUCT(($C58=IF(geoResFinE,Final_Energy1_index_5,Final_Energy1_index_4))*('Final Energy Demand'!P$56=Final_Energy1_index_1)*(actCaseFinE_1=IF(geoResFinE,Final_Energy1_index_4,Final_Energy1_index_3))*Final_Energy1_vals)) -> 0.04054881764 | Q58: =IF(actCaseFinE_1="",NA(),SUMPRODUCT(($C58=IF(geoResFinE,Final_Energy1_index_5,Final_Energy1_index_4))*('Final Energy Demand'!Q$56=Final_Energy1_index_1)*(actCaseFinE_1=IF(geoResFinE,Final_Energy1_index_4,Final_Energy1_index_3))*Final_Energy1_vals)) -> 0.04133026064 | R58: =IF(actCaseFinE_1="",NA(),SUMPRODUCT(($C58=IF(geoResFinE,Final_Energy1_index_5,Final_Energy1_index_4))*('Final Energy Demand'!R$56=Final_Energy1_index_1)*(actCaseFinE_1=IF(geoResFinE,Final_Energy1_index_4,Final_Energy1_index_3))*Final_Energy1_vals)) -> 0.04209144197 | S58: =IF(actCaseFinE_1="",NA(),SUMPRODUCT(($C58=IF(geoResFinE,Final_Energy1_index_5,Final_Energy1_index_4))*('Final Energy Demand'!S$56=Final_Energy1_index_1)*(actCaseFinE_1=IF(geoResFinE,Final_Energy1_index_4,Final_Energy1_index_3))*Final_Energy1_vals)) -> 0.042915281 | T58: =IF(actCaseFinE_1="",NA(),SUMPRODUCT(($C58=IF(geoResFinE,Final_Energy1_index_5,Final_Energy1_index_4))*('Final Energy Demand'!T$56=Final_Energy1_index_1)*(actCaseFinE_1=IF(geoResFinE,Final_Energy1_index_4,Final_Energy1_index_3))*Final_Energy1_vals)) -> 0.04429870682 | U58: =IF(actCaseFinE_1="",NA(),SUMPRODUCT(($C58=IF(geoResFinE,Final_Energy1_index_5,Final_Energy1_index_4))*('Final Energy Demand'!U$56=Final_Energy1_index_1)*(actCaseFinE_1=IF(geoResFinE,Final_Energy1_index_4,Final_Energy1_index_3))*Final_Energy1_vals)) -> 0.04575530719 | V58: =IF(actCaseFinE_1="",NA(),SUMPRODUCT(($C58=IF(geoResFinE,Final_Energy1_index_5,Final_Energy1_index_4))*('Final Energy Demand'!V$56=Final_Energy1_index_1)*(actCaseFinE_1=IF(geoResFinE,Final_Energy1_index_4,Final_Energy1_index_3))*Final_Energy1_vals)) -> 0.04735033844 | W58: =IF(actCaseFinE_1="",NA(),SUMPRODUCT(($C58=IF(geoResFinE,Final_Energy1_index_5,Final_Energy1_index_4))*('Final Energy Demand'!W$56=Final_Energy1_index_1)*(actCaseFinE_1=IF(geoResFinE,Final_Energy1_index_4,Final_Energy1_index_3))*Final_Energy1_vals)) -> 0.04905695895 | X58: =IF(actCaseFinE_1="",NA(),SUMPRODUCT(($C58=IF(geoResFinE,Final_Energy1_index_5,Final_Energy1_index_4))*('Final Energy Demand'!X$56=Final_Energy1_index_1)*(actCaseFinE_1=IF(geoResFinE,Final_Energy1_index_4,Final_Energy1_index_3))*Final_Energy1_vals)) -> 0.05092755444 | Y58: =IF(actCaseFinE_1="",NA(),SUMPRODUCT(($C58=IF(geoResFinE,Final_Energy1_index_5,Final_Energy1_index_4))*('Final Energy Demand'!Y$56=Final_Energy1_index_1)*(actCaseFinE_1=IF(geoResFinE,Final_Energy1_index_4,Final_Energy1_index_3))*Final_Energy1_vals)) -> 0.05309790355 | Z58: =IF(actCaseFinE_1="",NA(),SUMPRODUCT(($C58=IF(geoResFinE,Final_Energy1_index_5,Final_Energy1_index_4))*('Final Energy Demand'!Z$56=Final_Energy1_index_1)*(actCaseFinE_1=IF(geoResFinE,Final_Energy1_index_4,Final_Energy1_index_3))*Final_Energy1_vals)) -> 0.05531104751 | AA58: =IF(actCaseFinE_1="",NA(),SUMPRODUCT(($C58=IF(geoResFinE,Final_Energy1_index_5,Final_Energy1_index_4))*('Final Energy Demand'!AA$56=Final_Energy1_index_1)*(actCaseFinE_1=IF(geoResFinE,Final_Energy1_index_4,Final_Energy1_index_3))*Final_Energy1_vals)) -> 0.05785446813 | AB58: =IF(actCaseFinE_1="",NA(),SUMPRODUCT(($C58=IF(geoResFinE,Final_Energy1_index_5,Final_Energy1_index_4))*('Final Energy Demand'!AB$56=Final_Energy1_index_1)*(actCaseFinE_1=IF(geoResFinE,Final_Energy1_index_4,Final_Energy1_index_3))*Final_Energy1_vals)) -> 0.06050222725 | AC58: =IF(actCaseFinE_1="",NA(),SUMPRODUCT(($C58=IF(geoResFinE,Final_Energy1_index_5,Final_Energy1_index_4))*('Final Energy Demand'!AC$56=Final_Energy1_index_1)*(actCaseFinE_1=IF(geoResFinE,Final_Energy1_index_4,Final_Energy1_index_3))*Final_Energy1_vals)) -> 0.06330314704 | AD58: =IF(actCaseFinE_1="",NA(),SUMPRODUCT(($C58=IF(geoResFinE,Final_Energy1_index_5,Final_Energy1_index_4))*('Final Energy Demand'!AD$56=Final_Energy1_index_1)*(actCaseFinE_1=IF(geoResFinE,Final_Energy1_index_4,Final_Energy1_index_3))*Final_Energy1_vals)) -> 0.06583083536 | AE58: =IF(actCaseFinE_1="",NA(),SUMPRODUCT(($C58=IF(geoResFinE,Final_Energy1_index_5,Final_Energy1_index_4))*('Final Energy Demand'!AE$56=Final_Energy1_index_1)*(actCaseFinE_1=IF(geoResFinE,Final_Energy1_index_4,Final_Energy1_index_3))*Final_Energy1_vals)) -> 0.06849554698 | AF58: =IF(actCaseFinE_1="",NA(),SUMPRODUCT(($C58=IF(geoResFinE,Final_Energy1_index_5,Final_Energy1_index_4))*('Final Energy Demand'!AF$56=Final_Energy1_index_1)*(actCaseFinE_1=IF(geoResFinE,Final_Energy1_index_4,Final_Energy1_index_3))*Final_Energy1_vals)) -> 0.07136206821 | AG58: =IF(actCaseFinE_1="",NA(),SUMPRODUCT(($C58=IF(geoResFinE,Final_Energy1_index_5,Final_Energy1_index_4))*('Final Energy Demand'!AG$56=Final_Energy1_index_1)*(actCaseFinE_1=IF(geoResFinE,Final_Energy1_index_4,Final_Energy1_index_3))*Final_Energy1_vals)) -> 0.07440379611 | AH58: =IF(actCaseFinE_1="",NA(),SUMPRODUCT(($C58=IF(geoResFinE,Final_Energy1_index_5,Final_Energy1_index_4))*('Final Energy Demand'!AH$56=Final_Energy1_index_1)*(actCaseFinE_1=IF(geoResFinE,Final_Energy1_index_4,Final_Energy1_index_3))*Final_Energy1_vals)) -> 0.07754019516 | AI58: =IF(actCaseFinE_1="",NA(),SUMPRODUCT(($C58=IF(geoResFinE,Final_Energy1_index_5,Final_Energy1_index_4))*('Final Energy Demand'!AI$56=Final_Energy1_index_1)*(actCaseFinE_1=IF(geoResFinE,Final_Energy1_index_4,Final_Energy1_index_3))*Final_Energy1_vals)) -> 0.08070705029 | AJ58: =IF(actCaseFinE_1="",NA(),SUMPRODUCT(($C58=IF(geoResFinE,Final_Energy1_index_5,Final_Energy1_index_4))*('Final Energy Demand'!AJ$56=Final_Energy1_index_1)*(actCaseFinE_1=IF(geoResFinE,Final_Energy1_index_4,Final_Energy1_index_3))*Final_Energy1_vals)) -> 0.08378829557 | AK58: =IF(actCaseFinE_1="",NA(),SUMPRODUCT(($C58=IF(geoResFinE,Final_Energy1_index_5,Final_Energy1_index_4))*('Final Energy Demand'!AK$56=Final_Energy1_index_1)*(actCaseFinE_1=IF(geoResFinE,Final_Energy1_index_4,Final_Energy1_index_3))*Final_Energy1_vals)) -> 0.08676234584 | AL58: =IF(actCaseFinE_1="",NA(),SUMPRODUCT(($C58=IF(geoResFinE,Final_Energy1_index_5,Final_Energy1_index_4))*('Final Energy Demand'!AL$56=Final_Energy1_index_1)*(actCaseFinE_1=IF(geoResFinE,Final_Energy1_index_4,Final_Energy1_index_3))*Final_Energy1_vals)) -> 0.08958893768 | AM58: =IF(actCaseFinE_1="",NA(),SUMPRODUCT(($C58=IF(geoResFinE,Final_Energy1_index_5,Final_Energy1_index_4))*('Final Energy Demand'!AM$56=Final_Energy1_index_1)*(actCaseFinE_1=IF(geoResFinE,Final_Energy1_index_4,Final_Energy1_index_3))*Final_Energy1_vals)) -> 0.09229166795 | AP58: 0.042915281
C59: Diesel | D59: =IF(actCaseFinE_1="",NA(),SUMPRODUCT(($C59=IF(geoResFinE,Final_Energy1_index_5,Final_Energy1_index_4))*('Final Energy Demand'!D$56=Final_Energy1_index_1)*(actCaseFinE_1=IF(geoResFinE,Final_Energy1_index_4,Final_Energy1_index_3))*Final_Energy1_vals)) -> 0.5693716423 | E59: =IF(actCaseFinE_1="",NA(),SUMPRODUCT(($C59=IF(geoResFinE,Final_Energy1_index_5,Final_Energy1_index_4))*('Final Energy Demand'!E$56=Final_Energy1_index_1)*(actCaseFinE_1=IF(geoResFinE,Final_Energy1_index_4,Final_Energy1_index_3))*Final_Energy1_vals)) -> 0.5678649315 | F59: =IF(actCaseFinE_1="",NA(),SUMPRODUCT(($C59=IF(geoResFinE,Final_Energy1_index_5,Final_Energy1_index_4))*('Final Energy Demand'!F$56=Final_Energy1_index_1)*(actCaseFinE_1=IF(geoResFinE,Final_Energy1_index_4,Final_Energy1_index_3))*Final_Energy1_vals)) -> 0.5676912377 | G59: =IF(actCaseFinE_1="",NA(),SUMPRODUCT(($C59=IF(geoResFinE,Final_Energy1_index_5,Final_Energy1_index_4))*('Final Energy Demand'!G$56=Final_Energy1_index_1)*(actCaseFinE_1=IF(geoResFinE,Final_Energy1_index_4,Final_Energy1_index_3))*Final_Energy1_vals)) -> 0.5678178084 | H59: =IF(actCaseFinE_1="",NA(),SUMPRODUCT(($C59=IF(geoResFinE,Final_Energy1_index_5,Final_Energy1_index_4))*('Final Energy Demand'!H$56=Final_Energy1_index_1)*(actCaseFinE_1=IF(geoResFinE,Final_Energy1_index_4,Final_Energy1_index_3))*Final_Energy1_vals)) -> 0.5703749483 | I59: =IF(actCaseFinE_1="",NA(),SUMPRODUCT(($C59=IF(geoResFinE,Final_Energy1_index_5,Final_Energy1_index_4))*('Final Energy Demand'!I$56=Final_Energy1_index_1)*(actCaseFinE_1=IF(geoResFinE,Final_Energy1_index_4,Final_Energy1_index_3))*Final_Energy1_vals)) -> 0.572106433 | J59: =IF(actCaseFinE_1="",NA(),SUMPRODUCT(($C59=IF(geoResFinE,Final_Energy1_index_5,Final_Energy1_index_4))*('Final Energy Demand'!J$56=Final_Energy1_index_1)*(actCaseFinE_1=IF(geoResFinE,Final_Energy1_index_4,Final_Energy1_index_3))*Final_Energy1_vals)) -> 0.5781674178 | K59: =IF(actCaseFinE_1="",NA(),SUMPRODUCT(($C59=IF(geoResFinE,Final_Energy1_index_5,Final_Energy1_index_4))*('Final Energy Demand'!K$56=Final_Energy1_index_1)*(actCaseFinE_1=IF(geoResFinE,Final_Energy1_index_4,Final_Energy1_index_3))*Final_Energy1_vals)) -> 0.5840804596 | L59: =IF(actCaseFinE_1="",NA(),SUMPRODUCT(($C59=IF(geoResFinE,Final_Energy1_index_5,Final_Energy1_index_4))*('Final Energy Demand'!L$56=Final_Energy1_index_1)*(actCaseFinE_1=IF(geoResFinE,Final_Energy1_index_4,Final_Energy1_index_3))*Final_Energy1_vals)) -> 0.5913074207 | M59: =IF(actCaseFinE_1="",NA(),SUMPRODUCT(($C59=IF(geoResFinE,Final_Energy1_index_5,Final_Energy1_index_4))*('Final Energy Demand'!M$56=Final_Energy1_index_1)*(actCaseFinE_1=IF(geoResFinE,Final_Energy1_index_4,Final_Energy1_index_3))*Final_Energy1_vals)) -> 0.5906114261 | N59: =IF(actCaseFinE_1="",NA(),SUMPRODUCT(($C59=IF(geoResFinE,Final_Energy1_index_5,Final_Energy1_index_4))*('Final Energy Demand'!N$56=Final_Energy1_index_1)*(actCaseFinE_1=IF(geoResFinE,Final_Energy1_index_4,Final_Energy1_index_3))*Final_Energy1_vals)) -> 0.5893299076 | O59: =IF(actCaseFinE_1="",NA(),SUMPRODUCT(($C59=IF(geoResFinE,Final_Energy1_index_5,Final_Energy1_index_4))*('Final Energy Demand'!O$56=Final_Energy1_index_1)*(actCaseFinE_1=IF(geoResFinE,Final_Energy1_index_4,Final_Energy1_index_3))*Final_Energy1_vals)) -> 0.5879615199 | P59: =IF(actCaseFinE_1="",NA(),SUMPRODUCT(($C59=IF(geoResFinE,Final_Energy1_index_5,Final_Energy1_index_4))*('Final Energy Demand'!P$56=Final_Energy1_index_1)*(actCaseFinE_1=IF(geoResFinE,Final_Energy1_index_4,Final_Energy1_index_3))*Final_Energy1_vals)) -> 0.5872794625 | Q59: =IF(actCaseFinE_1="",NA(),SUMPRODUCT(($C59=IF(geoResFinE,Final_Energy1_index_5,Final_Energy1_index_4))*('Final Energy Demand'!Q$56=Final_Energy1_index_1)*(actCaseFinE_1=IF(geoResFinE,Final_Energy1_index_4,Final_Energy1_index_3))*Final_Energy1_vals)) -> 0.5870660604 | R59: =IF(actCaseFinE_1="",NA(),SUMPRODUCT(($C59=IF(geoResFinE,Final_Energy1_index_5,Final_Energy1_index_4))*('Final Energy Demand'!R$56=Final_Energy1_index_1)*(actCaseFinE_1=IF(geoResFinE,Final_Energy1_index_4,Final_Energy1_index_3))*Final_Energy1_vals)) -> 0.5878356753 | S59: =IF(actCaseFinE_1="",NA(),SUMPRODUCT(($C59=IF(geoResFinE,Final_Energy1_index_5,Final_Energy1_index_4))*('Final Energy Demand'!S$56=Final_Energy1_index_1)*(actCaseFinE_1=IF(geoResFinE,Final_Energy1_index_4,Final_Energy1_index_3))*Final_Energy1_vals)) -> 0.5889914168 | T59: =IF(actCaseFinE_1="",NA(),SUMPRODUCT(($C59=IF(geoResFinE,Final_Energy1_index_5,Final_Energy1_index_4))*('Final Energy Demand'!T$56=Final_Energy1_index_1)*(actCaseFinE_1=IF(geoResFinE,Final_Energy1_index_4,Final_Energy1_index_3))*Final_Energy1_vals)) -> 0.5908973069 | U59: =IF(actCaseFinE_1="",NA(),SUMPRODUCT(($C59=IF(geoResFinE,Final_Energy1_index_5,Final_Energy1_index_4))*('Final Energy Demand'!U$56=Final_Energy1_index_1)*(actCaseFinE_1=IF(geoResFinE,Final_Energy1_index_4,Final_Energy1_index_3))*Final_Energy1_vals)) -> 0.59351654 | V59: =IF(actCaseFinE_1="",NA(),SUMPRODUCT(($C59=IF(geoResFinE,Final_Energy1_index_5,Final_Energy1_index_4))*('Final Energy Demand'!V$56=Final_Energy1_index_1)*(actCaseFinE_1=IF(geoResFinE,Final_Energy1_index_4,Final_Energy1_index_3))*Final_Energy1_vals)) -> 0.5962181986 | W59: =IF(actCaseFinE_1="",NA(),SUMPRODUCT(($C59=IF(geoResFinE,Final_Energy1_index_5,Final_Energy1_index_4))*('Final Energy Demand'!W$56=Final_Energy1_index_1)*(actCaseFinE_1=IF(geoResFinE,Final_Energy1_index_4,Final_Energy1_index_3))*Final_Energy1_vals)) -> 0.5990605009 | X59: =IF(actCaseFinE_1="",NA(),SUMPRODUCT(($C59=IF(geoResFinE,Final_Energy1_index_5,Final_Energy1_index_4))*('Final Energy Demand'!X$56=Final_Energy1_index_1)*(actCaseFinE_1=IF(geoResFinE,Final_Energy1_index_4,Final_Energy1_index_3))*Final_Energy1_vals)) -> 0.602072391 | Y59: =IF(actCaseFinE_1="",NA(),SUMPRODUCT(($C59=IF(geoResFinE,Final_Energy1_index_5,Final_Energy1_index_4))*('Final Energy Demand'!Y$56=Final_Energy1_index_1)*(actCaseFinE_1=IF(geoResFinE,Final_Energy1_index_4,Final_Energy1_index_3))*Final_Energy1_vals)) -> 0.6059287187 | Z59: =IF(actCaseFinE_1="",NA(),SUMPRODUCT(($C59=IF(geoResFinE,Final_Energy1_index_5,Final_Energy1_index_4))*('Final Energy Demand'!Z$56=Final_Energy1_index_1)*(actCaseFinE_1=IF(geoResFinE,Final_Energy1_index_4,Final_Energy1_index_3))*Final_Energy1_vals)) -> 0.6100136387 | AA59: =IF(actCaseFinE_1="",NA(),SUMPRODUCT(($C59=IF(geoResFinE,Final_Energy1_index_5,Final_Energy1_index_4))*('Final Energy Demand'!AA$56=Final_Energy1_index_1)*(actCaseFinE_1=IF(geoResFinE,Final_Energy1_index_4,Final_Energy1_index_3))*Final_Energy1_vals)) -> 0.6142191343 | AB59: =IF(actCaseFinE_1="",NA(),SUMPRODUCT(($C59=IF(geoResFinE,Final_Energy1_index_5,Final_Energy1_index_4))*('Final Energy Demand'!AB$56=Final_Energy1_index_1)*(actCaseFinE_1=IF(geoResFinE,Final_Energy1_index_4,Final_Energy1_index_3))*Final_Energy1_vals)) -> 0.6185962773 | AC59: =IF(actCaseFinE_1="",NA(),SUMPRODUCT(($C59=IF(geoResFinE,Final_Energy1_index_5,Final_Energy1_index_4))*('Final Energy Demand'!AC$56=Final_Energy1_index_1)*(actCaseFinE_1=IF(geoResFinE,Final_Energy1_index_4,Final_Energy1_index_3))*Final_Energy1_vals)) -> 0.6230379487 | AD59: =IF(actCaseFinE_1="",NA(),SUMPRODUCT(($C59=IF(geoResFinE,Final_Energy1_index_5,Final_Energy1_index_4))*('Final Energy Demand'!AD$56=Final_Energy1_index_1)*(actCaseFinE_1=IF(geoResFinE,Final_Energy1_index_4,Final_Energy1_index_3))*Final_Energy1_vals)) -> 0.6257221891 | AE59: =IF(actCaseFinE_1="",NA(),SUMPRODUCT(($C59=IF(geoResFinE,Final_Energy1_index_5,Final_Energy1_index_4))*('Final Energy Demand'!AE$56=Final_Energy1_index_1)*(actCaseFinE_1=IF(geoResFinE,Final_Energy1_index_4,Final_Energy1_index_3))*Final_Energy1_vals)) -> 0.6283022211 | AF59: =IF(actCaseFinE_1="",NA(),SUMPRODUCT(($C59=IF(geoResFinE,Final_Energy1_index_5,Final_Energy1_index_4))*('Final Energy Demand'!AF$56=Final_Energy1_index_1)*(actCaseFinE_1=IF(geoResFinE,Final_Energy1_index_4,Final_Energy1_index_3))*Final_Energy1_vals)) -> 0.6304655337 | AG59: =IF(actCaseFinE_1="",NA(),SUMPRODUCT(($C59=IF(geoResFinE,Final_Energy1_index_5,Final_Energy1_index_4))*('Final Energy Demand'!AG$56=Final_Energy1_index_1)*(actCaseFinE_1=IF(geoResFinE,Final_Energy1_index_4,Final_Energy1_index_3))*Final_Energy1_vals)) -> 0.6321263879 | AH59: =IF(actCaseFinE_1="",NA(),SUMPRODUCT(($C59=IF(geoResFinE,Final_Energy1_index_5,Final_Energy1_index_4))*('Final Energy Demand'!AH$56=Final_Energy1_index_1)*(actCaseFinE_1=IF(geoResFinE,Final_Energy1_index_4,Final_Energy1_index_3))*Final_Energy1_vals)) -> 0.6333528183 | AI59: =IF(actCaseFinE_1="",NA(),SUMPRODUCT(($C59=IF(geoResFinE,Final_Energy1_index_5,Final_Energy1_index_4))*('Final Energy Demand'!AI$56=Final_Energy1_index_1)*(actCaseFinE_1=IF(geoResFinE,Final_Energy1_index_4,Final_Energy1_index_3))*Final_Energy1_vals)) -> 0.6342113917 | AJ59: =IF(actCaseFinE_1="",NA(),SUMPRODUCT(($C59=IF(geoResFinE,Final_Energy1_index_5,Final_Energy1_index_4))*('Final Energy Demand'!AJ$56=Final_Energy1_index_1)*(actCaseFinE_1=IF(geoResFinE,Final_Energy1_index_4,Final_Energy1_index_3))*Final_Energy1_vals)) -> 0.6348610099 | AK59: =IF(actCaseFinE_1="",NA(),SUMPRODUCT(($C59=IF(geoResFinE,Final_Energy1_index_5,Final_Energy1_index_4))*('Final Energy Demand'!AK$56=Final_Energy1_index_1)*(actCaseFinE_1=IF(geoResFinE,Final_Energy1_index_4,Final_Energy1_index_3))*Final_Energy1_vals)) -> 0.6352760408 | AL59: =IF(actCaseFinE_1="",NA(),SUMPRODUCT(($C59=IF(geoResFinE,Final_Energy1_index_5,Final_Energy1_index_4))*('Final Energy Demand'!AL$56=Final_Energy1_index_1)*(actCaseFinE_1=IF(geoResFinE,Final_Energy1_index_4,Final_Energy1_index_3))*Final_Energy1_vals)) -> 0.6355670112 | AM59: =IF(actCaseFinE_1="",NA(),SUMPRODUCT(($C59=IF(geoResFinE,Final_Energy1_index_5,Final_Energy1_index_4))*('Final Energy Demand'!AM$56=Final_Energy1_index_1)*(actCaseFinE_1=IF(geoResFinE,Final_Energy1_index_4,Final_Energy1_index_3))*Final_Energy1_vals)) -> 0.6357476137 | AP59: 0.5889914168
C60: Electricity | D60: =IF(actCaseFinE_1="",NA(),SUMPRODUCT(($C60=IF(geoResFinE,Final_Energy1_index_5,Final_Energy1_index_4))*('Final Energy Demand'!D$56=Final_Energy1_index_1)*(actCaseFinE_1=IF(geoResFinE,Final_Energy1_index_4,Final_Energy1_index_3))*Final_Energy1_vals)) -> 1.025128136 | E60: =IF(actCaseFinE_1="",NA(),SUMPRODUCT(($C60=IF(geoResFinE,Final_Energy1_index_5,Final_Energy1_index_4))*('Final Energy Demand'!E$56=Final_Energy1_index_1)*(actCaseFinE_1=IF(geoResFinE,Final_Energy1_index_4,Final_Energy1_index_3))*Final_Energy1_vals)) -> 1.030999239 | F60: =IF(actCaseFinE_1="",NA(),SUMPRODUCT(($C60=IF(geoResFinE,Final_Energy1_index_5,Final_Energy1_index_4))*('Final Energy Demand'!F$56=Final_Energy1_index_1)*(actCaseFinE_1=IF(geoResFinE,Final_Energy1_index_4,Final_Energy1_index_3))*Final_Energy1_vals)) -> 1.037309363 | G60: =IF(actCaseFinE_1="",NA(),SUMPRODUCT(($C60=IF(geoResFinE,Final_Energy1_index_5,Final_Energy1_index_4))*('Final Energy Demand'!G$56=Final_Energy1_index_1)*(actCaseFinE_1=IF(geoResFinE,Final_Energy1_index_4,Final_Energy1_index_3))*Final_Energy1_vals)) -> 1.043298273 | H60: =IF(actCaseFinE_1="",NA(),SUMPRODUCT(($C60=IF(geoResFinE,Final_Energy1_index_5,Final_Energy1_index_4))*('Final Energy Demand'!H$56=Final_Energy1_index_1)*(actCaseFinE_1=IF(geoResFinE,Final_Energy1_index_4,Final_Energy1_index_3))*Final_Energy1_vals)) -> 1.049671991 | I60: =IF(actCaseFinE_1="",NA(),SUMPRODUCT(($C60=IF(geoResFinE,Final_Energy1_index_5,Final_Energy1_index_4))*('Final Energy Demand'!I$56=Final_Energy1_index_1)*(actCaseFinE_1=IF(geoResFinE,Final_Energy1_index_4,Final_Energy1_index_3))*Final_Energy1_vals)) -> 1.053364404 | J60: =IF(actCaseFinE_1="",NA(),SUMPRODUCT(($C60=IF(geoResFinE,Final_Energy1_index_5,Final_Energy1_index_4))*('Final Energy Demand'!J$56=Final_Energy1_index_1)*(actCaseFinE_1=IF(geoResFinE,Final_Energy1_index_4,Final_Energy1_index_3))*Final_Energy1_vals)) -> 1.05232364 | K60: =IF(actCaseFinE_1="",NA(),SUMPRODUCT(($C60=IF(geoResFinE,Final_Energy1_index_5,Final_Energy1_index_4))*('Final Energy Demand'!K$56=Final_Energy1_index_1)*(actCaseFinE_1=IF(geoResFinE,Final_Energy1_index_4,Final_Energy1_index_3))*Final_Energy1_vals)) -> 1.051022849 | L60: =IF(actCaseFinE_1="",NA(),SUMPRODUCT(($C60=IF(geoResFinE,Final_Energy1_index_5,Final_Energy1_index_4))*('Final Energy Demand'!L$56=Final_Energy1_index_1)*(actCaseFinE_1=IF(geoResFinE,Final_Energy1_index_4,Final_Energy1_index_3))*Final_Energy1_vals)) -> 1.049280033 | M60: =IF(actCaseFinE_1="",NA(),SUMPRODUCT(($C60=IF(geoResFinE,Final_Energy1_index_5,Final_Energy1_index_4))*('Final Energy Demand'!M$56=Final_Energy1_index_1)*(actCaseFinE_1=IF(geoResFinE,Final_Energy1_index_4,Final_Energy1_index_3))*Final_Energy1_vals)) -> 1.047080371 | N60: =IF(actCaseFinE_1="",NA(),SUMPRODUCT(($C60=IF(geoResFinE,Final_Energy1_index_5,Final_Energy1_index_4))*('Final Energy Demand'!N$56=Final_Energy1_index_1)*(actCaseFinE_1=IF(geoResFinE,Final_Energy1_index_4,Final_Energy1_index_3))*Final_Energy1_vals)) -> 1.046840977 | O60: =IF(actCaseFinE_1="",NA(),SUMPRODUCT(($C60=IF(geoResFinE,Final_Energy1_index_5,Final_Energy1_index_4))*('Final Energy Demand'!O$56=Final_Energy1_index_1)*(actCaseFinE_1=IF(geoResFinE,Final_Energy1_index_4,Final_Energy1_index_3))*Final_Energy1_vals)) -> 1.04583693 | P60: =IF(actCaseFinE_1="",NA(),SUMPRODUCT(($C60=IF(geoResFinE,Final_Energy1_index_5,Final_Energy1_index_4))*('Final Energy Demand'!P$56=Final_Energy1_index_1)*(actCaseFinE_1=IF(geoResFinE,Final_Energy1_index_4,Final_Energy1_index_3))*Final_Energy1_vals)) -> 1.044409483 | Q60: =IF(actCaseFinE_1="",NA(),SUMPRODUCT(($C60=IF(geoResFinE,Final_Energy1_index_5,Final_Energy1_index_4))*('Final Energy Demand'!Q$56=Final_Energy1_index_1)*(actCaseFinE_1=IF(geoResFinE,Final_Energy1_index_4,Final_Energy1_index_3))*Final_Energy1_vals)) -> 1.042909755 | R60: =IF(actCaseFinE_1="",NA(),SUMPRODUCT(($C60=IF(geoResFinE,Final_Energy1_index_5,Final_Energy1_index_4))*('Final Energy Demand'!R$56=Final_Energy1_index_1)*(actCaseFinE_1=IF(geoResFinE,Final_Energy1_index_4,Final_Energy1_index_3))*Final_Energy1_vals)) -> 1.041475564 | S60: =IF(actCaseFinE_1="",NA(),SUMPRODUCT(($C60=IF(geoResFinE,Final_Energy1_index_5,Final_Energy1_index_4))*('Final Energy Demand'!S$56=Final_Energy1_index_1)*(actCaseFinE_1=IF(geoResFinE,Final_Energy1_index_4,Final_Energy1_index_3))*Final_Energy1_vals)) -> 1.040479792 | T60: =IF(actCaseFinE_1="",NA(),SUMPRODUCT(($C60=IF(geoResFinE,Final_Energy1_index_5,Final_Energy1_index_4))*('Final Energy Demand'!T$56=Final_Energy1_index_1)*(actCaseFinE_1=IF(geoResFinE,Final_Energy1_index_4,Final_Energy1_index_3))*Final_Energy1_vals)) -> 1.04026639 | U60: =IF(actCaseFinE_1="",NA(),SUMPRODUCT(($C60=IF(geoResFinE,Final_Energy1_index_5,Final_Energy1_index_4))*('Final Energy Demand'!U$56=Final_Energy1_index_1)*(actCaseFinE_1=IF(geoResFinE,Final_Energy1_index_4,Final_Energy1_index_3))*Final_Energy1_vals)) -> 1.040925159 | V60: =IF(actCaseFinE_1="",NA(),SUMPRODUCT(($C60=IF(geoResFinE,Final_Energy1_index_5,Final_Energy1_index_4))*('Final Energy Demand'!V$56=Final_Energy1_index_1)*(actCaseFinE_1=IF(geoResFinE,Final_Energy1_index_4,Final_Energy1_index_3))*Final_Energy1_vals)) -> 1.042691202 | W60: =IF(actCaseFinE_1="",NA(),SUMPRODUCT(($C60=IF(geoResFinE,Final_Energy1_index_5,Final_Energy1_index_4))*('Final Energy Demand'!W$56=Final_Energy1_index_1)*(actCaseFinE_1=IF(geoResFinE,Final_Energy1_index_4,Final_Energy1_index_3))*Final_Energy1_vals)) -> 1.045357883 | X60: =IF(actCaseFinE_1="",NA(),SUMPRODUCT(($C60=IF(geoResFinE,Final_Energy1_index_5,Final_Energy1_index_4))*('Final Energy Demand'!X$56=Final_Energy1_index_1)*(actCaseFinE_1=IF(geoResFinE,Final_Energy1_index_4,Final_Energy1_index_3))*Final_Energy1_vals)) -> 1.049028198 | Y60: =IF(actCaseFinE_1="",NA(),SUMPRODUCT(($C60=IF(geoResFinE,Final_Energy1_index_5,Final_Energy1_index_4))*('Final Energy Demand'!Y$56=Final_Energy1_index_1)*(actCaseFinE_1=IF(geoResFinE,Final_Energy1_index_4,Final_Energy1_index_3))*Final_Energy1_vals)) -> 1.053809933 | Z60: =IF(actCaseFinE_1="",NA(),SUMPRODUCT(($C60=IF(geoResFinE,Final_Energy1_index_5,Final_Energy1_index_4))*('Final Energy Demand'!Z$56=Final_Energy1_index_1)*(actCaseFinE_1=IF(geoResFinE,Final_Energy1_index_4,Final_Energy1_index_3))*Final_Energy1_vals)) -> 1.05945429 | AA60: =IF(actCaseFinE_1="",NA(),SUMPRODUCT(($C60=IF(geoResFinE,Final_Energy1_index_5,Final_Energy1_index_4))*('Final Energy Demand'!AA$56=Final_Energy1_index_1)*(actCaseFinE_1=IF(geoResFinE,Final_Energy1_index_4,Final_Energy1_index_3))*Final_Energy1_vals)) -> 1.065854969 | AB60: =IF(actCaseFinE_1="",NA(),SUMPRODUCT(($C60=IF(geoResFinE,Final_Energy1_index_5,Final_Energy1_index_4))*('Final Energy Demand'!AB$56=Final_Energy1_index_1)*(actCaseFinE_1=IF(geoResFinE,Final_Energy1_index_4,Final_Energy1_index_3))*Final_Energy1_vals)) -> 1.072821207 | AC60: =IF(actCaseFinE_1="",NA(),SUMPRODUCT(($C60=IF(geoResFinE,Final_Energy1_index_5,Final_Energy1_index_4))*('Final Energy Demand'!AC$56=Final_Energy1_index_1)*(actCaseFinE_1=IF(geoResFinE,Final_Energy1_index_4,Final_Energy1_index_3))*Final_Energy1_vals)) -> 1.080238158 | AD60: =IF(actCaseFinE_1="",NA(),SUMPRODUCT(($C60=IF(geoResFinE,Final_Energy1_index_5,Final_Energy1_index_4))*('Final Energy Demand'!AD$56=Final_Energy1_index_1)*(actCaseFinE_1=IF(geoResFinE,Final_Energy1_index_4,Final_Energy1_index_3))*Final_Energy1_vals)) -> 1.08858385 | AE60: =IF(actCaseFinE_1="",NA(),SUMPRODUCT(($C60=IF(geoResFinE,Final_Energy1_index_5,Final_Energy1_index_4))*('Final Energy Demand'!AE$56=Final_Energy1_index_1)*(actCaseFinE_1=IF(geoResFinE,Final_Energy1_index_4,Final_Energy1_index_3))*Final_Energy1_vals)) -> 1.097152939 | AF60: =IF(actCaseFinE_1="",NA(),SUMPRODUCT(($C60=IF(geoResFinE,Final_Energy1_index_5,Final_Energy1_index_4))*('Final Energy Demand'!AF$56=Final_Energy1_index_1)*(actCaseFinE_1=IF(geoResFinE,Final_Energy1_index_4,Final_Energy1_index_3))*Final_Energy1_vals)) -> 1.105860848 | AG60: =IF(actCaseFinE_1="",NA(),SUMPRODUCT(($C60=IF(geoResFinE,Final_Energy1_index_5,Final_Energy1_index_4))*('Final Energy Demand'!AG$56=Final_Energy1_index_1)*(actCaseFinE_1=IF(geoResFinE,Final_Energy1_index_4,Final_Energy1_index_3))*Final_Energy1_vals)) -> 1.11462175 | AH60: =IF(actCaseFinE_1="",NA(),SUMPRODUCT(($C60=IF(geoResFinE,Final_Energy1_index_5,Final_Energy1_index_4))*('Final Energy Demand'!AH$56=Final_Energy1_index_1)*(actCaseFinE_1=IF(geoResFinE,Final_Energy1_index_4,Final_Energy1_index_3))*Final_Energy1_vals)) -> 1.122577126 | AI60: =IF(actCaseFinE_1="",NA(),SUMPRODUCT(($C60=IF(geoResFinE,Final_Energy1_index_5,Final_Energy1_index_4))*('Final Energy Demand'!AI$56=Final_Energy1_index_1)*(actCaseFinE_1=IF(geoResFinE,Final_Energy1_index_4,Final_Energy1_index_3))*Final_Energy1_vals)) -> 1.13057043 | AJ60: =IF(actCaseFinE_1="",NA(),SUMPRODUCT(($C60=IF(geoResFinE,Final_Energy1_index_5,Final_Energy1_index_4))*('Final Energy Demand'!AJ$56=Final_Energy1_index_1)*(actCaseFinE_1=IF(geoResFinE,Final_Energy1_index_4,Final_Energy1_index_3))*Final_Energy1_vals)) -> 1.138537939 | AK60: =IF(actCaseFinE_1="",NA(),SUMPRODUCT(($C60=IF(geoResFinE,Final_Energy1_index_5,Final_Energy1_index_4))*('Final Energy Demand'!AK$56=Final_Energy1_index_1)*(actCaseFinE_1=IF(geoResFinE,Final_Energy1_index_4,Final_Energy1_index_3))*Final_Energy1_vals)) -> 1.146447315 | AL60: =IF(actCaseFinE_1="",NA(),SUMPRODUCT(($C60=IF(geoResFinE,Final_Energy1_index_5,Final_Energy1_index_4))*('Final Energy Demand'!AL$56=Final_Energy1_index_1)*(actCaseFinE_1=IF(geoResFinE,Final_Energy1_index_4,Final_Energy1_index_3))*Final_Energy1_vals)) -> 1.154260349 | AM60: =IF(actCaseFinE_1="",NA(),SUMPRODUCT(($C60=IF(geoResFinE,Final_Energy1_index_5,Final_Energy1_index_4))*('Final Energy Demand'!AM$56=Final_Energy1_index_1)*(actCaseFinE_1=IF(geoResFinE,Final_Energy1_index_4,Final_Energy1_index_3))*Final_Energy1_vals)) -> 1.16190792 | AP60: 1.040479792
C61: Fuel Oil | D61: =IF(actCaseFinE_1="",NA(),SUMPRODUCT(($C61=IF(geoResFinE,Final_Energy1_index_5,Final_Energy1_index_4))*('Final Energy Demand'!D$56=Final_Energy1_index_1)*(actCaseFinE_1=IF(geoResFinE,Final_Energy1_index_4,Final_Energy1_index_3))*Final_Energy1_vals)) -> 0.0007932997011 | E61: =IF(actCaseFinE_1="",NA(),SUMPRODUCT(($C61=IF(geoResFinE,Final_Energy1_index_5,Final_Energy1_index_4))*('Final Energy Demand'!E$56=Final_Energy1_index_1)*(actCaseFinE_1=IF(geoResFinE,Final_Energy1_index_4,Final_Energy1_index_3))*Final_Energy1_vals)) -> 0.0007649511414 | F61: =IF(actCaseFinE_1="",NA(),SUMPRODUCT(($C61=IF(geoResFinE,Final_Energy1_index_5,Final_Energy1_index_4))*('Final Energy Demand'!F$56=Final_Energy1_index_1)*(actCaseFinE_1=IF(geoResFinE,Final_Energy1_index_4,Final_Energy1_index_3))*Final_Energy1_vals)) -> 0.0007359813153 | G61: =IF(actCaseFinE_1="",NA(),SUMPRODUCT(($C61=IF(geoResFinE,Final_Energy1_index_5,Final_Energy1_index_4))*('Final Energy Demand'!G$56=Final_Energy1_index_1)*(actCaseFinE_1=IF(geoResFinE,Final_Energy1_index_4,Final_Energy1_index_3))*Final_Energy1_vals)) -> 0.0007063361076 | H61: =IF(actCaseFinE_1="",NA(),SUMPRODUCT(($C61=IF(geoResFinE,Final_Energy1_index_5,Final_Energy1_index_4))*('Final Energy Demand'!H$56=Final_Energy1_index_1)*(actCaseFinE_1=IF(geoResFinE,Final_Energy1_index_4,Final_Energy1_index_3))*Final_Energy1_vals)) -> 0.0006760217894 | I61: =IF(actCaseFinE_1="",NA(),SUMPRODUCT(($C61=IF(geoResFinE,Final_Energy1_index_5,Final_Energy1_index_4))*('Final Energy Demand'!I$56=Final_Energy1_index_1)*(actCaseFinE_1=IF(geoResFinE,Final_Energy1_index_4,Final_Energy1_index_3))*Final_Energy1_vals)) -> 0.0006451003238 | J61: =IF(actCaseFinE_1="",NA(),SUMPRODUCT(($C61=IF(geoResFinE,Final_Energy1_index_5,Final_Energy1_index_4))*('Final Energy Demand'!J$56=Final_Energy1_index_1)*(actCaseFinE_1=IF(geoResFinE,Final_Energy1_index_4,Final_Energy1_index_3))*Final_Energy1_vals)) -> 0.0006505499379 | K61: =IF(actCaseFinE_1="",NA(),SUMPRODUCT(($C61=IF(geoResFinE,Final_Energy1_index_5,Final_Energy1_index_4))*('Final Energy Demand'!K$56=Final_Energy1_index_1)*(actCaseFinE_1=IF(geoResFinE,Final_Energy1_index_4,Final_Energy1_index_3))*Final_Energy1_vals)) -> 0.0006560514788 | L61: =IF(actCaseFinE_1="",NA(),SUMPRODUCT(($C61=IF(geoResFinE,Final_Energy1_index_5,Final_Energy1_index_4))*('Final Energy Demand'!L$56=Final_Energy1_index_1)*(actCaseFinE_1=IF(geoResFinE,Final_Energy1_index_4,Final_Energy1_index_3))*Final_Energy1_vals)) -> 0.0006615800742 | M61: =IF(actCaseFinE_1="",NA(),SUMPRODUCT(($C61=IF(geoResFinE,Final_Energy1_index_5,Final_Energy1_index_4))*('Final Energy Demand'!M$56=Final_Energy1_index_1)*(actCaseFinE_1=IF(geoResFinE,Final_Energy1_index_4,Final_Energy1_index_3))*Final_Energy1_vals)) -> 0.0006671381681 | N61: =IF(actCaseFinE_1="",NA(),SUMPRODUCT(($C61=IF(geoResFinE,Final_Energy1_index_5,Final_Energy1_index_4))*('Final Energy Demand'!N$56=Final_Energy1_index_1)*(actCaseFinE_1=IF(geoResFinE,Final_Energy1_index_4,Final_Energy1_index_3))*Final_Energy1_vals)) -> 0.0006726686452 | O61: =IF(actCaseFinE_1="",NA(),SUMPRODUCT(($C61=IF(geoResFinE,Final_Energy1_index_5,Final_Energy1_index_4))*('Final Energy Demand'!O$56=Final_Energy1_index_1)*(actCaseFinE_1=IF(geoResFinE,Final_Energy1_index_4,Final_Energy1_index_3))*Final_Energy1_vals)) -> 0.0006781539354 | P61: =IF(actCaseFinE_1="",NA(),SUMPRODUCT(($C61=IF(geoResFinE,Final_Energy1_index_5,Final_Energy1_index_4))*('Final Energy Demand'!P$56=Final_Energy1_index_1)*(actCaseFinE_1=IF(geoResFinE,Final_Energy1_index_4,Final_Energy1_index_3))*Final_Energy1_vals)) -> 0.0006836914541 | Q61: =IF(actCaseFinE_1="",NA(),SUMPRODUCT(($C61=IF(geoResFinE,Final_Energy1_index_5,Final_Energy1_index_4))*('Final Energy Demand'!Q$56=Final_Energy1_index_1)*(actCaseFinE_1=IF(geoResFinE,Final_Energy1_index_4,Final_Energy1_index_3))*Final_Energy1_vals)) -> 0.0006891600528 | R61: =IF(actCaseFinE_1="",NA(),SUMPRODUCT(($C61=IF(geoResFinE,Final_Energy1_index_5,Final_Energy1_index_4))*('Final Energy Demand'!R$56=Final_Energy1_index_1)*(actCaseFinE_1=IF(geoResFinE,Final_Energy1_index_4,Final_Energy1_index_3))*Final_Energy1_vals)) -> 0.0006943576093 | S61: =IF(actCaseFinE_1="",NA(),SUMPRODUCT(($C61=IF(geoResFinE,Final_Energy1_index_5,Final_Energy1_index_4))*('Final Energy Demand'!S$56=Final_Energy1_index_1)*(actCaseFinE_1=IF(geoResFinE,Final_Energy1_index_4,Final_Energy1_index_3))*Final_Energy1_vals)) -> 0.0006995064454 | T61: =IF(actCaseFinE_1="",NA(),SUMPRODUCT(($C61=IF(geoResFinE,Final_Energy1_index_5,Final_Energy1_index_4))*('Final Energy Demand'!T$56=Final_Energy1_index_1)*(actCaseFinE_1=IF(geoResFinE,Final_Energy1_index_4,Final_Energy1_index_3))*Final_Energy1_vals)) -> 0.000704515964 | U61: =IF(actCaseFinE_1="",NA(),SUMPRODUCT(($C61=IF(geoResFinE,Final_Energy1_index_5,Final_Energy1_index_4))*('Final Energy Demand'!U$56=Final_Energy1_index_1)*(actCaseFinE_1=IF(geoResFinE,Final_Energy1_index_4,Final_Energy1_index_3))*Final_Energy1_vals)) -> 0.0007098256534 | V61: =IF(actCaseFinE_1="",NA(),SUMPRODUCT(($C61=IF(geoResFinE,Final_Energy1_index_5,Final_Energy1_index_4))*('Final Energy Demand'!V$56=Final_Energy1_index_1)*(actCaseFinE_1=IF(geoResFinE,Final_Energy1_index_4,Final_Energy1_index_3))*Final_Energy1_vals)) -> 0.0007153295473 | W61: =IF(actCaseFinE_1="",NA(),SUMPRODUCT(($C61=IF(geoResFinE,Final_Energy1_index_5,Final_Energy1_index_4))*('Final Energy Demand'!W$56=Final_Energy1_index_1)*(actCaseFinE_1=IF(geoResFinE,Final_Energy1_index_4,Final_Energy1_index_3))*Final_Energy1_vals)) -> 0.0007205010953 | X61: =IF(actCaseFinE_1="",NA(),SUMPRODUCT(($C61=IF(geoResFinE,Final_Energy1_index_5,Final_Energy1_index_4))*('Final Energy Demand'!X$56=Final_Energy1_index_1)*(actCaseFinE_1=IF(geoResFinE,Final_Energy1_index_4,Final_Energy1_index_3))*Final_Energy1_vals)) -> 0.0007255568133 | Y61: =IF(actCaseFinE_1="",NA(),SUMPRODUCT(($C61=IF(geoResFinE,Final_Energy1_index_5,Final_Energy1_index_4))*('Final Energy Demand'!Y$56=Final_Energy1_index_1)*(actCaseFinE_1=IF(geoResFinE,Final_Energy1_index_4,Final_Energy1_index_3))*Final_Energy1_vals)) -> 0.000730336105 | Z61: =IF(actCaseFinE_1="",NA(),SUMPRODUCT(($C61=IF(geoResFinE,Final_Energy1_index_5,Final_Energy1_index_4))*('Final Energy Demand'!Z$56=Final_Energy1_index_1)*(actCaseFinE_1=IF(geoResFinE,Final_Energy1_index_4,Final_Energy1_index_3))*Final_Energy1_vals)) -> 0.0007350712946 | AA61: =IF(actCaseFinE_1="",NA(),SUMPRODUCT(($C61=IF(geoResFinE,Final_Energy1_index_5,Final_Energy1_index_4))*('Final Energy Demand'!AA$56=Final_Energy1_index_1)*(actCaseFinE_1=IF(geoResFinE,Final_Energy1_index_4,Final_Energy1_index_3))*Final_Energy1_vals)) -> 0.0007398189916 | AB61: =IF(actCaseFinE_1="",NA(),SUMPRODUCT(($C61=IF(geoResFinE,Final_Energy1_index_5,Final_Energy1_index_4))*('Final Energy Demand'!AB$56=Final_Energy1_index_1)*(actCaseFinE_1=IF(geoResFinE,Final_Energy1_index_4,Final_Energy1_index_3))*Final_Energy1_vals)) -> 0.0007444281703 | AC61: =IF(actCaseFinE_1="",NA(),SUMPRODUCT(($C61=IF(geoResFinE,Final_Energy1_index_5,Final_Energy1_index_4))*('Final Energy Demand'!AC$56=Final_Energy1_index_1)*(actCaseFinE_1=IF(geoResFinE,Final_Energy1_index_4,Final_Energy1_index_3))*Final_Energy1_vals)) -> 0.0007488515902 | AD61: =IF(actCaseFinE_1="",NA(),SUMPRODUCT(($C61=IF(geoResFinE,Final_Energy1_index_5,Final_Energy1_index_4))*('Final Energy Demand'!AD$56=Final_Energy1_index_1)*(actCaseFinE_1=IF(geoResFinE,Final_Energy1_index_4,Final_Energy1_index_3))*Final_Energy1_vals)) -> 0.0007532276635 | AE61: =IF(actCaseFinE_1="",NA(),SUMPRODUCT(($C61=IF(geoResFinE,Final_Energy1_index_5,Final_Energy1_index_4))*('Final Energy Demand'!AE$56=Final_Energy1_index_1)*(actCaseFinE_1=IF(geoResFinE,Final_Energy1_index_4,Final_Energy1_index_3))*Final_Energy1_vals)) -> 0.0007575185242 | AF61: =IF(actCaseFinE_1="",NA(),SUMPRODUCT(($C61=IF(geoResFinE,Final_Energy1_index_5,Final_Energy1_index_4))*('Final Energy Demand'!AF$56=Final_Energy1_index_1)*(actCaseFinE_1=IF(geoResFinE,Final_Energy1_index_4,Final_Energy1_index_3))*Final_Energy1_vals)) -> 0.0007617283632 | AG61: =IF(actCaseFinE_1="",NA(),SUMPRODUCT(($C61=IF(geoResFinE,Final_Energy1_index_5,Final_Energy1_index_4))*('Final Energy Demand'!AG$56=Final_Energy1_index_1)*(actCaseFinE_1=IF(geoResFinE,Final_Energy1_index_4,Final_Energy1_index_3))*Final_Energy1_vals)) -> 0.0007658618353 | AH61: =IF(actCaseFinE_1="",NA(),SUMPRODUCT(($C61=IF(geoResFinE,Final_Energy1_index_5,Final_Energy1_index_4))*('Final Energy Demand'!AH$56=Final_Energy1_index_1)*(actCaseFinE_1=IF(geoResFinE,Final_Energy1_index_4,Final_Energy1_index_3))*Final_Energy1_vals)) -> 0.0007699049495 | AI61: =IF(actCaseFinE_1="",NA(),SUMPRODUCT(($C61=IF(geoResFinE,Final_Energy1_index_5,Final_Energy1_index_4))*('Final Energy Demand'!AI$56=Final_Energy1_index_1)*(actCaseFinE_1=IF(geoResFinE,Final_Energy1_index_4,Final_Energy1_index_3))*Final_Energy1_vals)) -> 0.0007738420054 | AJ61: =IF(actCaseFinE_1="",NA(),SUMPRODUCT(($C61=IF(geoResFinE,Final_Energy1_index_5,Final_Energy1_index_4))*('Final Energy Demand'!AJ$56=Final_Energy1_index_1)*(actCaseFinE_1=IF(geoResFinE,Final_Energy1_index_4,Final_Energy1_index_3))*Final_Energy1_vals)) -> 0.0007776955527 | AK61: =IF(actCaseFinE_1="",NA(),SUMPRODUCT(($C61=IF(geoResFinE,Final_Energy1_index_5,Final_Energy1_index_4))*('Final Energy Demand'!AK$56=Final_Energy1_index_1)*(actCaseFinE_1=IF(geoResFinE,Final_Energy1_index_4,Final_Energy1_index_3))*Final_Energy1_vals)) -> 0.0007814882517 | AL61: =IF(actCaseFinE_1="",NA(),SUMPRODUCT(($C61=IF(geoResFinE,Final_Energy1_index_5,Final_Energy1_index_4))*('Final Energy Demand'!AL$56=Final_Energy1_index_1)*(actCaseFinE_1=IF(geoResFinE,Final_Energy1_index_4,Final_Energy1_index_3))*Final_Energy1_vals)) -> 0.0007852170439 | AM61: =IF(actCaseFinE_1="",NA(),SUMPRODUCT(($C61=IF(geoResFinE,Final_Energy1_index_5,Final_Energy1_index_4))*('Final Energy Demand'!AM$56=Final_Energy1_index_1)*(actCaseFinE_1=IF(geoResFinE,Final_Energy1_index_4,Final_Energy1_index_3))*Final_Energy1_vals)) -> 0.0007888182788 | AP61: 0.0006995064454
C62: Gasoline | D62: =IF(actCaseFinE_1="",NA(),SUMPRODUCT(($C62=IF(geoResFinE,Final_Energy1_index_5,Final_Energy1_index_4))*('Final Energy Demand'!D$56=Final_Energy1_index_1)*(actCaseFinE_1=IF(geoResFinE,Final_Energy1_index_4,Final_Energy1_index_3))*Final_Energy1_vals)) -> 2.064593007 | E62: =IF(actCaseFinE_1="",NA(),SUMPRODUCT(($C62=IF(geoResFinE,Final_Energy1_index_5,Final_Energy1_index_4))*('Final Energy Demand'!E$56=Final_Energy1_index_1)*(actCaseFinE_1=IF(geoResFinE,Final_Energy1_index_4,Final_Energy1_index_3))*Final_Energy1_vals)) -> 2.070014313 | F62: =IF(actCaseFinE_1="",NA(),SUMPRODUCT(($C62=IF(geoResFinE,Final_Energy1_index_5,Final_Energy1_index_4))*('Final Energy Demand'!F$56=Final_Energy1_index_1)*(actCaseFinE_1=IF(geoResFinE,Final_Energy1_index_4,Final_Energy1_index_3))*Final_Energy1_vals)) -> 2.055943263 | G62: =IF(actCaseFinE_1="",NA(),SUMPRODUCT(($C62=IF(geoResFinE,Final_Energy1_index_5,Final_Energy1_index_4))*('Final Energy Demand'!G$56=Final_Energy1_index_1)*(actCaseFinE_1=IF(geoResFinE,Final_Energy1_index_4,Final_Energy1_index_3))*Final_Energy1_vals)) -> 2.002985904 | H62: =IF(actCaseFinE_1="",NA(),SUMPRODUCT(($C62=IF(geoResFinE,Final_Energy1_index_5,Final_Energy1_index_4))*('Final Energy Demand'!H$56=Final_Energy1_index_1)*(actCaseFinE_1=IF(geoResFinE,Final_Energy1_index_4,Final_Energy1_index_3))*Final_Energy1_vals)) -> 1.939217611 | I62: =IF(actCaseFinE_1="",NA(),SUMPRODUCT(($C62=IF(geoResFinE,Final_Energy1_index_5,Final_Energy1_index_4))*('Final Energy Demand'!I$56=Final_Energy1_index_1)*(actCaseFinE_1=IF(geoResFinE,Final_Energy1_index_4,Final_Energy1_index_3))*Final_Energy1_vals)) -> 1.87758033 | J62: =IF(actCaseFinE_1="",NA(),SUMPRODUCT(($C62=IF(geoResFinE,Final_Energy1_index_5,Final_Energy1_index_4))*('Final Energy Demand'!J$56=Final_Energy1_index_1)*(actCaseFinE_1=IF(geoResFinE,Final_Energy1_index_4,Final_Energy1_index_3))*Final_Energy1_vals)) -> 1.810790945 | K62: =IF(actCaseFinE_1="",NA(),SUMPRODUCT(($C62=IF(geoResFinE,Final_Energy1_index_5,Final_Energy1_index_4))*('Final Energy Demand'!K$56=Final_Energy1_index_1)*(actCaseFinE_1=IF(geoResFinE,Final_Energy1_index_4,Final_Energy1_index_3))*Final_Energy1_vals)) -> 1.733759369 | L62: =IF(actCaseFinE_1="",NA(),SUMPRODUCT(($C62=IF(geoResFinE,Final_Energy1_index_5,Final_Energy1_index_4))*('Final Energy Demand'!L$56=Final_Energy1_index_1)*(actCaseFinE_1=IF(geoResFinE,Final_Energy1_index_4,Final_Energy1_index_3))*Final_Energy1_vals)) -> 1.658931434 | M62: =IF(actCaseFinE_1="",NA(),SUMPRODUCT(($C62=IF(geoResFinE,Final_Energy1_index_5,Final_Energy1_index_4))*('Final Energy Demand'!M$56=Final_Energy1_index_1)*(actCaseFinE_1=IF(geoResFinE,Final_Energy1_index_4,Final_Energy1_index_3))*Final_Energy1_vals)) -> 1.587717201 | N62: =IF(actCaseFinE_1="",NA(),SUMPRODUCT(($C62=IF(geoResFinE,Final_Energy1_index_5,Final_Energy1_index_4))*('Final Energy Demand'!N$56=Final_Energy1_index_1)*(actCaseFinE_1=IF(geoResFinE,Final_Energy1_index_4,Final_Energy1_index_3))*Final_Energy1_vals)) -> 1.516467626 | O62: =IF(actCaseFinE_1="",NA(),SUMPRODUCT(($C62=IF(geoResFinE,Final_Energy1_index_5,Final_Energy1_index_4))*('Final Energy Demand'!O$56=Final_Energy1_index_1)*(actCaseFinE_1=IF(geoResFinE,Final_Energy1_index_4,Final_Energy1_index_3))*Final_Energy1_vals)) -> 1.442374824 | P62: =IF(actCaseFinE_1="",NA(),SUMPRODUCT(($C62=IF(geoResFinE,Final_Energy1_index_5,Final_Energy1_index_4))*('Final Energy Demand'!P$56=Final_Energy1_index_1)*(actCaseFinE_1=IF(geoResFinE,Final_Energy1_index_4,Final_Energy1_index_3))*Final_Energy1_vals)) -> 1.378713984 | Q62: =IF(actCaseFinE_1="",NA(),SUMPRODUCT(($C62=IF(geoResFinE,Final_Energy1_index_5,Final_Energy1_index_4))*('Final Energy Demand'!Q$56=Final_Energy1_index_1)*(actCaseFinE_1=IF(geoResFinE,Final_Energy1_index_4,Final_Energy1_index_3))*Final_Energy1_vals)) -> 1.317328501 | R62: =IF(actCaseFinE_1="",NA(),SUMPRODUCT(($C62=IF(geoResFinE,Final_Energy1_index_5,Final_Energy1_index_4))*('Final Energy Demand'!R$56=Final_Energy1_index_1)*(actCaseFinE_1=IF(geoResFinE,Final_Energy1_index_4,Final_Energy1_index_3))*Final_Energy1_vals)) -> 1.258542069 | S62: =IF(actCaseFinE_1="",NA(),SUMPRODUCT(($C62=IF(geoResFinE,Final_Energy1_index_5,Final_Energy1_index_4))*('Final Energy Demand'!S$56=Final_Energy1_index_1)*(actCaseFinE_1=IF(geoResFinE,Final_Energy1_index_4,Final_Energy1_index_3))*Final_Energy1_vals)) -> 1.202075057 | T62: =IF(actCaseFinE_1="",NA(),SUMPRODUCT(($C62=IF(geoResFinE,Final_Energy1_index_5,Final_Energy1_index_4))*('Final Energy Demand'!T$56=Final_Energy1_index_1)*(actCaseFinE_1=IF(geoResFinE,Final_Energy1_index_4,Final_Energy1_index_3))*Final_Energy1_vals)) -> 1.1478537 | U62: =IF(actCaseFinE_1="",NA(),SUMPRODUCT(($C62=IF(geoResFinE,Final_Energy1_index_5,Final_Energy1_index_4))*('Final Energy Demand'!U$56=Final_Energy1_index_1)*(actCaseFinE_1=IF(geoResFinE,Final_Energy1_index_4,Final_Energy1_index_3))*Final_Energy1_vals)) -> 1.096606405 | V62: =IF(actCaseFinE_1="",NA(),SUMPRODUCT(($C62=IF(geoResFinE,Final_Energy1_index_5,Final_Energy1_index_4))*('Final Energy Demand'!V$56=Final_Energy1_index_1)*(actCaseFinE_1=IF(geoResFinE,Final_Energy1_index_4,Final_Energy1_index_3))*Final_Energy1_vals)) -> 1.046445899 | W62: =IF(actCaseFinE_1="",NA(),SUMPRODUCT(($C62=IF(geoResFinE,Final_Energy1_index_5,Final_Energy1_index_4))*('Final Energy Demand'!W$56=Final_Energy1_index_1)*(actCaseFinE_1=IF(geoResFinE,Final_Energy1_index_4,Final_Energy1_index_3))*Final_Energy1_vals)) -> 0.9969236092 | X62: =IF(actCaseFinE_1="",NA(),SUMPRODUCT(($C62=IF(geoResFinE,Final_Energy1_index_5,Final_Energy1_index_4))*('Final Energy Demand'!X$56=Final_Energy1_index_1)*(actCaseFinE_1=IF(geoResFinE,Final_Energy1_index_4,Final_Energy1_index_3))*Final_Energy1_vals)) -> 0.9471243763 | Y62: =IF(actCaseFinE_1="",NA(),SUMPRODUCT(($C62=IF(geoResFinE,Final_Energy1_index_5,Final_Energy1_index_4))*('Final Energy Demand'!Y$56=Final_Energy1_index_1)*(actCaseFinE_1=IF(geoResFinE,Final_Energy1_index_4,Final_Energy1_index_3))*Final_Energy1_vals)) -> 0.8980962827 | Z62: =IF(actCaseFinE_1="",NA(),SUMPRODUCT(($C62=IF(geoResFinE,Final_Energy1_index_5,Final_Energy1_index_4))*('Final Energy Demand'!Z$56=Final_Energy1_index_1)*(actCaseFinE_1=IF(geoResFinE,Final_Energy1_index_4,Final_Energy1_index_3))*Final_Energy1_vals)) -> 0.8493340347 | AA62: =IF(actCaseFinE_1="",NA(),SUMPRODUCT(($C62=IF(geoResFinE,Final_Energy1_index_5,Final_Energy1_index_4))*('Final Energy Demand'!AA$56=Final_Energy1_index_1)*(actCaseFinE_1=IF(geoResFinE,Final_Energy1_index_4,Final_Energy1_index_3))*Final_Energy1_vals)) -> 0.8009801359 | AB62: =IF(actCaseFinE_1="",NA(),SUMPRODUCT(($C62=IF(geoResFinE,Final_Energy1_index_5,Final_Energy1_index_4))*('Final Energy Demand'!AB$56=Final_Energy1_index_1)*(actCaseFinE_1=IF(geoResFinE,Final_Energy1_index_4,Final_Energy1_index_3))*Final_Energy1_vals)) -> 0.7530848425 | AC62: =IF(actCaseFinE_1="",NA(),SUMPRODUCT(($C62=IF(geoResFinE,Final_Energy1_index_5,Final_Energy1_index_4))*('Final Energy Demand'!AC$56=Final_Energy1_index_1)*(actCaseFinE_1=IF(geoResFinE,Final_Energy1_index_4,Final_Energy1_index_3))*Final_Energy1_vals)) -> 0.7060893741 | AD62: =IF(actCaseFinE_1="",NA(),SUMPRODUCT(($C62=IF(geoResFinE,Final_Energy1_index_5,Final_Energy1_index_4))*('Final Energy Demand'!AD$56=Final_Energy1_index_1)*(actCaseFinE_1=IF(geoResFinE,Final_Energy1_index_4,Final_Energy1_index_3))*Final_Energy1_vals)) -> 0.6618864798 | AE62: =IF(actCaseFinE_1="",NA(),SUMPRODUCT(($C62=IF(geoResFinE,Final_Energy1_index_5,Final_Energy1_index_4))*('Final Energy Demand'!AE$56=Final_Energy1_index_1)*(actCaseFinE_1=IF(geoResFinE,Final_Energy1_index_4,Final_Energy1_index_3))*Final_Energy1_vals)) -> 0.6195281266 | AF62: =IF(actCaseFinE_1="",NA(),SUMPRODUCT(($C62=IF(geoResFinE,Final_Energy1_index_5,Final_Energy1_index_4))*('Final Energy Demand'!AF$56=Final_Energy1_index_1)*(actCaseFinE_1=IF(geoResFinE,Final_Energy1_index_4,Final_Energy1_index_3))*Final_Energy1_vals)) -> 0.5792006521 | AG62: =IF(actCaseFinE_1="",NA(),SUMPRODUCT(($C62=IF(geoResFinE,Final_Energy1_index_5,Final_Energy1_index_4))*('Final Energy Demand'!AG$56=Final_Energy1_index_1)*(actCaseFinE_1=IF(geoResFinE,Final_Energy1_index_4,Final_Energy1_index_3))*Final_Energy1_vals)) -> 0.5409771276 | AH62: =IF(actCaseFinE_1="",NA(),SUMPRODUCT(($C62=IF(geoResFinE,Final_Energy1_index_5,Final_Energy1_index_4))*('Final Energy Demand'!AH$56=Final_Energy1_index_1)*(actCaseFinE_1=IF(geoResFinE,Final_Energy1_index_4,Final_Energy1_index_3))*Final_Energy1_vals)) -> 0.5074399292 | AI62: =IF(actCaseFinE_1="",NA(),SUMPRODUCT(($C62=IF(geoResFinE,Final_Energy1_index_5,Final_Energy1_index_4))*('Final Energy Demand'!AI$56=Final_Energy1_index_1)*(actCaseFinE_1=IF(geoResFinE,Final_Energy1_index_4,Final_Energy1_index_3))*Final_Energy1_vals)) -> 0.4758455889 | AJ62: =IF(actCaseFinE_1="",NA(),SUMPRODUCT(($C62=IF(geoResFinE,Final_Energy1_index_5,Final_Energy1_index_4))*('Final Energy Demand'!AJ$56=Final_Energy1_index_1)*(actCaseFinE_1=IF(geoResFinE,Final_Energy1_index_4,Final_Energy1_index_3))*Final_Energy1_vals)) -> 0.4465159341 | AK62: =IF(actCaseFinE_1="",NA(),SUMPRODUCT(($C62=IF(geoResFinE,Final_Energy1_index_5,Final_Energy1_index_4))*('Final Energy Demand'!AK$56=Final_Energy1_index_1)*(actCaseFinE_1=IF(geoResFinE,Final_Energy1_index_4,Final_Energy1_index_3))*Final_Energy1_vals)) -> 0.4193779815 | AL62: =IF(actCaseFinE_1="",NA(),SUMPRODUCT(($C62=IF(geoResFinE,Final_Energy1_index_5,Final_Energy1_index_4))*('Final Energy Demand'!AL$56=Final_Energy1_index_1)*(actCaseFinE_1=IF(geoResFinE,Final_Energy1_index_4,Final_Energy1_index_3))*Final_Energy1_vals)) -> 0.3942028206 | AM62: =IF(actCaseFinE_1="",NA(),SUMPRODUCT(($C62=IF(geoResFinE,Final_Energy1_index_5,Final_Energy1_index_4))*('Final Energy Demand'!AM$56=Final_Energy1_index_1)*(actCaseFinE_1=IF(geoResFinE,Final_Energy1_index_4,Final_Energy1_index_3))*Final_Energy1_vals)) -> 0.3708214502 | AP62: 1.202075057
C63: Hydrogen | D63: =IF(actCaseFinE_1="",NA(),SUMPRODUCT(($C63=IF(geoResFinE,Final_Energy1_index_5,Final_Energy1_index_4))*('Final Energy Demand'!D$56=Final_Energy1_index_1)*(actCaseFinE_1=IF(geoResFinE,Final_Energy1_index_4,Final_Energy1_index_3))*Final_Energy1_vals)) -> 0.0001254042382 | E63: =IF(actCaseFinE_1="",NA(),SUMPRODUCT(($C63=IF(geoResFinE,Final_Energy1_index_5,Final_Energy1_index_4))*('Final Energy Demand'!E$56=Final_Energy1_index_1)*(actCaseFinE_1=IF(geoResFinE,Final_Energy1_index_4,Final_Energy1_index_3))*Final_Energy1_vals)) -> 0.0001940679182 | F63: =IF(actCaseFinE_1="",NA(),SUMPRODUCT(($C63=IF(geoResFinE,Final_Energy1_index_5,Final_Energy1_index_4))*('Final Energy Demand'!F$56=Final_Energy1_index_1)*(actCaseFinE_1=IF(geoResFinE,Final_Energy1_index_4,Final_Energy1_index_3))*Final_Energy1_vals)) -> 0.0002862853923 | G63: =IF(actCaseFinE_1="",NA(),SUMPRODUCT(($C63=IF(geoResFinE,Final_Energy1_index_5,Final_Energy1_index_4))*('Final Energy Demand'!G$56=Final_Energy1_index_1)*(actCaseFinE_1=IF(geoResFinE,Final_Energy1_index_4,Final_Energy1_index_3))*Final_Energy1_vals)) -> 0.0004710995041 | H63: =IF(actCaseFinE_1="",NA(),SUMPRODUCT(($C63=IF(geoResFinE,Final_Energy1_index_5,Final_Energy1_index_4))*('Final Energy Demand'!H$56=Final_Energy1_index_1)*(actCaseFinE_1=IF(geoResFinE,Final_Energy1_index_4,Final_Energy1_index_3))*Final_Energy1_vals)) -> 0.0007262418147 | I63: =IF(actCaseFinE_1="",NA(),SUMPRODUCT(($C63=IF(geoResFinE,Final_Energy1_index_5,Final_Energy1_index_4))*('Final Energy Demand'!I$56=Final_Energy1_index_1)*(actCaseFinE_1=IF(geoResFinE,Final_Energy1_index_4,Final_Energy1_index_3))*Final_Energy1_vals)) -> 0.0009849786722 | J63: =IF(actCaseFinE_1="",NA(),SUMPRODUCT(($C63=IF(geoResFinE,Final_Energy1_index_5,Final_Energy1_index_4))*('Final Energy Demand'!J$56=Final_Energy1_index_1)*(actCaseFinE_1=IF(geoResFinE,Final_Energy1_index_4,Final_Energy1_index_3))*Final_Energy1_vals)) -> 0.001270261858 | K63: =IF(actCaseFinE_1="",NA(),SUMPRODUCT(($C63=IF(geoResFinE,Final_Energy1_index_5,Final_Energy1_index_4))*('Final Energy Demand'!K$56=Final_Energy1_index_1)*(actCaseFinE_1=IF(geoResFinE,Final_Energy1_index_4,Final_Energy1_index_3))*Final_Energy1_vals)) -> 0.001882774631 | L63: =IF(actCaseFinE_1="",NA(),SUMPRODUCT(($C63=IF(geoResFinE,Final_Energy1_index_5,Final_Energy1_index_4))*('Final Energy Demand'!L$56=Final_Energy1_index_1)*(actCaseFinE_1=IF(geoResFinE,Final_Energy1_index_4,Final_Energy1_index_3))*Final_Energy1_vals)) -> 0.002752189224 | M63: =IF(actCaseFinE_1="",NA(),SUMPRODUCT(($C63=IF(geoResFinE,Final_Energy1_index_5,Final_Energy1_index_4))*('Final Energy Demand'!M$56=Final_Energy1_index_1)*(actCaseFinE_1=IF(geoResFinE,Final_Energy1_index_4,Final_Energy1_index_3))*Final_Energy1_vals)) -> 0.003774045113 | N63: =IF(actCaseFinE_1="",NA(),SUMPRODUCT(($C63=IF(geoResFinE,Final_Energy1_index_5,Final_Energy1_index_4))*('Final Energy Demand'!N$56=Final_Energy1_index_1)*(actCaseFinE_1=IF(geoResFinE,Final_Energy1_index_4,Final_Energy1_index_3))*Final_Energy1_vals)) -> 0.004958582943 | O63: =IF(actCaseFinE_1="",NA(),SUMPRODUCT(($C63=IF(geoResFinE,Final_Energy1_index_5,Final_Energy1_index_4))*('Final Energy Demand'!O$56=Final_Energy1_index_1)*(actCaseFinE_1=IF(geoResFinE,Final_Energy1_index_4,Final_Energy1_index_3))*Final_Energy1_vals)) -> 0.006159854742 | P63: =IF(actCaseFinE_1="",NA(),SUMPRODUCT(($C63=IF(geoResFinE,Final_Energy1_index_5,Final_Energy1_index_4))*('Final Energy Demand'!P$56=Final_Energy1_index_1)*(actCaseFinE_1=IF(geoResFinE,Final_Energy1_index_4,Final_Energy1_index_3))*Final_Energy1_vals)) -> 0.007575303604 | Q63: =IF(actCaseFinE_1="",NA(),SUMPRODUCT(($C63=IF(geoResFinE,Final_Energy1_index_5,Final_Energy1_index_4))*('Final Energy Demand'!Q$56=Final_Energy1_index_1)*(actCaseFinE_1=IF(geoResFinE,Final_Energy1_index_4,Final_Energy1_index_3))*Final_Energy1_vals)) -> 0.00927665853 | R63: =IF(actCaseFinE_1="",NA(),SUMPRODUCT(($C63=IF(geoResFinE,Final_Energy1_index_5,Final_Energy1_index_4))*('Final Energy Demand'!R$56=Final_Energy1_index_1)*(actCaseFinE_1=IF(geoResFinE,Final_Energy1_index_4,Final_Energy1_index_3))*Final_Energy1_vals)) -> 0.01120853801 | S63: =IF(actCaseFinE_1="",NA(),SUMPRODUCT(($C63=IF(geoResFinE,Final_Energy1_index_5,Final_Energy1_index_4))*('Final Energy Demand'!S$56=Final_Energy1_index_1)*(actCaseFinE_1=IF(geoResFinE,Final_Energy1_index_4,Final_Energy1_index_3))*Final_Energy1_vals)) -> 0.01333656295 | T63: =IF(actCaseFinE_1="",NA(),SUMPRODUCT(($C63=IF(geoResFinE,Final_Energy1_index_5,Final_Energy1_index_4))*('Final Energy Demand'!T$56=Final_Energy1_index_1)*(actCaseFinE_1=IF(geoResFinE,Final_Energy1_index_4,Final_Energy1_index_3))*Final_Energy1_vals)) -> 0.01593222661 | U63: =IF(actCaseFinE_1="",NA(),SUMPRODUCT(($C63=IF(geoResFinE,Final_Energy1_index_5,Final_Energy1_index_4))*('Final Energy Demand'!U$56=Final_Energy1_index_1)*(actCaseFinE_1=IF(geoResFinE,Final_Energy1_index_4,Final_Energy1_index_3))*Final_Energy1_vals)) -> 0.0188373273 | V63: =IF(actCaseFinE_1="",NA(),SUMPRODUCT(($C63=IF(geoResFinE,Final_Energy1_index_5,Final_Energy1_index_4))*('Final Energy Demand'!V$56=Final_Energy1_index_1)*(actCaseFinE_1=IF(geoResFinE,Final_Energy1_index_4,Final_Energy1_index_3))*Final_Energy1_vals)) -> 0.02210902763 | W63: =IF(actCaseFinE_1="",NA(),SUMPRODUCT(($C63=IF(geoResFinE,Final_Energy1_index_5,Final_Energy1_index_4))*('Final Energy Demand'!W$56=Final_Energy1_index_1)*(actCaseFinE_1=IF(geoResFinE,Final_Energy1_index_4,Final_Energy1_index_3))*Final_Energy1_vals)) -> 0.02573037717 | X63: =IF(actCaseFinE_1="",NA(),SUMPRODUCT(($C63=IF(geoResFinE,Final_Energy1_index_5,Final_Energy1_index_4))*('Final Energy Demand'!X$56=Final_Energy1_index_1)*(actCaseFinE_1=IF(geoResFinE,Final_Energy1_index_4,Final_Energy1_index_3))*Final_Energy1_vals)) -> 0.02971524016 | Y63: =IF(actCaseFinE_1="",NA(),SUMPRODUCT(($C63=IF(geoResFinE,Final_Energy1_index_5,Final_Energy1_index_4))*('Final Energy Demand'!Y$56=Final_Energy1_index_1)*(actCaseFinE_1=IF(geoResFinE,Final_Energy1_index_4,Final_Energy1_index_3))*Final_Energy1_vals)) -> 0.03398225427 | Z63: =IF(actCaseFinE_1="",NA(),SUMPRODUCT(($C63=IF(geoResFinE,Final_Energy1_index_5,Final_Energy1_index_4))*('Final Energy Demand'!Z$56=Final_Energy1_index_1)*(actCaseFinE_1=IF(geoResFinE,Final_Energy1_index_4,Final_Energy1_index_3))*Final_Energy1_vals)) -> 0.03833011336 | AA63: =IF(actCaseFinE_1="",NA(),SUMPRODUCT(($C63=IF(geoResFinE,Final_Energy1_index_5,Final_Energy1_index_4))*('Final Energy Demand'!AA$56=Final_Energy1_index_1)*(actCaseFinE_1=IF(geoResFinE,Final_Energy1_index_4,Final_Energy1_index_3))*Final_Energy1_vals)) -> 0.04273136182 | AB63: =IF(actCaseFinE_1="",NA(),SUMPRODUCT(($C63=IF(geoResFinE,Final_Energy1_index_5,Final_Energy1_index_4))*('Final Energy Demand'!AB$56=Final_Energy1_index_1)*(actCaseFinE_1=IF(geoResFinE,Final_Energy1_index_4,Final_Energy1_index_3))*Final_Energy1_vals)) -> 0.04714062161 | AC63: =IF(actCaseFinE_1="",NA(),SUMPRODUCT(($C63=IF(geoResFinE,Final_Energy1_index_5,Final_Energy1_index_4))*('Final Energy Demand'!AC$56=Final_Energy1_index_1)*(actCaseFinE_1=IF(geoResFinE,Final_Energy1_index_4,Final_Energy1_index_3))*Final_Energy1_vals)) -> 0.05155081857 | AD63: =IF(actCaseFinE_1="",NA(),SUMPRODUCT(($C63=IF(geoResFinE,Final_Energy1_index_5,Final_Energy1_index_4))*('Final Energy Demand'!AD$56=Final_Energy1_index_1)*(actCaseFinE_1=IF(geoResFinE,Final_Energy1_index_4,Final_Energy1_index_3))*Final_Energy1_vals)) -> 0.05618617153 | AE63: =IF(actCaseFinE_1="",NA(),SUMPRODUCT(($C63=IF(geoResFinE,Final_Energy1_index_5,Final_Energy1_index_4))*('Final Energy Demand'!AE$56=Final_Energy1_index_1)*(actCaseFinE_1=IF(geoResFinE,Final_Energy1_index_4,Final_Energy1_index_3))*Final_Energy1_vals)) -> 0.06076505291 | AF63: =IF(actCaseFinE_1="",NA(),SUMPRODUCT(($C63=IF(geoResFinE,Final_Energy1_index_5,Final_Energy1_index_4))*('Final Energy Demand'!AF$56=Final_Energy1_index_1)*(actCaseFinE_1=IF(geoResFinE,Final_Energy1_index_4,Final_Energy1_index_3))*Final_Energy1_vals)) -> 0.06528071399 | AG63: =IF(actCaseFinE_1="",NA(),SUMPRODUCT(($C63=IF(geoResFinE,Final_Energy1_index_5,Final_Energy1_index_4))*('Final Energy Demand'!AG$56=Final_Energy1_index_1)*(actCaseFinE_1=IF(geoResFinE,Final_Energy1_index_4,Final_Energy1_index_3))*Final_Energy1_vals)) -> 0.06970483627 | AH63: =IF(actCaseFinE_1="",NA(),SUMPRODUCT(($C63=IF(geoResFinE,Final_Energy1_index_5,Final_Energy1_index_4))*('Final Energy Demand'!AH$56=Final_Energy1_index_1)*(actCaseFinE_1=IF(geoResFinE,Final_Energy1_index_4,Final_Energy1_index_3))*Final_Energy1_vals)) -> 0.07400698419 | AI63: =IF(actCaseFinE_1="",NA(),SUMPRODUCT(($C63=IF(geoResFinE,Final_Energy1_index_5,Final_Energy1_index_4))*('Final Energy Demand'!AI$56=Final_Energy1_index_1)*(actCaseFinE_1=IF(geoResFinE,Final_Energy1_index_4,Final_Energy1_index_3))*Final_Energy1_vals)) -> 0.07816086407 | AJ63: =IF(actCaseFinE_1="",NA(),SUMPRODUCT(($C63=IF(geoResFinE,Final_Energy1_index_5,Final_Energy1_index_4))*('Final Energy Demand'!AJ$56=Final_Energy1_index_1)*(actCaseFinE_1=IF(geoResFinE,Final_Energy1_index_4,Final_Energy1_index_3))*Final_Energy1_vals)) -> 0.08190091029 | AK63: =IF(actCaseFinE_1="",NA(),SUMPRODUCT(($C63=IF(geoResFinE,Final_Energy1_index_5,Final_Energy1_index_4))*('Final Energy Demand'!AK$56=Final_Energy1_index_1)*(actCaseFinE_1=IF(geoResFinE,Final_Energy1_index_4,Final_Energy1_index_3))*Final_Energy1_vals)) -> 0.08526457963 | AL63: =IF(actCaseFinE_1="",NA(),SUMPRODUCT(($C63=IF(geoResFinE,Final_Energy1_index_5,Final_Energy1_index_4))*('Final Energy Demand'!AL$56=Final_Energy1_index_1)*(actCaseFinE_1=IF(geoResFinE,Final_Energy1_index_4,Final_Energy1_index_3))*Final_Energy1_vals)) -> 0.08826778169 | AM63: =IF(actCaseFinE_1="",NA(),SUMPRODUCT(($C63=IF(geoResFinE,Final_Energy1_index_5,Final_Energy1_index_4))*('Final Energy Demand'!AM$56=Final_Energy1_index_1)*(actCaseFinE_1=IF(geoResFinE,Final_Energy1_index_4,Final_Energy1_index_3))*Final_Energy1_vals)) -> 0.09093009234 | AP63: 0.01333656295
C64: Kerosene | D64: =IF(actCaseFinE_1="",NA(),SUMPRODUCT(($C64=IF(geoResFinE,Final_Energy1_index_5,Final_Energy1_index_4))*('Final Energy Demand'!D$56=Final_Energy1_index_1)*(actCaseFinE_1=IF(geoResFinE,Final_Energy1_index_4,Final_Energy1_index_3))*Final_Energy1_vals)) -> 0.001298888929 | E64: =IF(actCaseFinE_1="",NA(),SUMPRODUCT(($C64=IF(geoResFinE,Final_Energy1_index_5,Final_Energy1_index_4))*('Final Energy Demand'!E$56=Final_Energy1_index_1)*(actCaseFinE_1=IF(geoResFinE,Final_Energy1_index_4,Final_Energy1_index_3))*Final_Energy1_vals)) -> 0.001326117307 | F64: =IF(actCaseFinE_1="",NA(),SUMPRODUCT(($C64=IF(geoResFinE,Final_Energy1_index_5,Final_Energy1_index_4))*('Final Energy Demand'!F$56=Final_Energy1_index_1)*(actCaseFinE_1=IF(geoResFinE,Final_Energy1_index_4,Final_Energy1_index_3))*Final_Energy1_vals)) -> 0.001353644146 | G64: =IF(actCaseFinE_1="",NA(),SUMPRODUCT(($C64=IF(geoResFinE,Final_Energy1_index_5,Final_Energy1_index_4))*('Final Energy Demand'!G$56=Final_Energy1_index_1)*(actCaseFinE_1=IF(geoResFinE,Final_Energy1_index_4,Final_Energy1_index_3))*Final_Energy1_vals)) -> 0.001381367877 | H64: =IF(actCaseFinE_1="",NA(),SUMPRODUCT(($C64=IF(geoResFinE,Final_Energy1_index_5,Final_Energy1_index_4))*('Final Energy Demand'!H$56=Final_Energy1_index_1)*(actCaseFinE_1=IF(geoResFinE,Final_Energy1_index_4,Final_Energy1_index_3))*Final_Energy1_vals)) -> 0.001409291374 | I64: =IF(actCaseFinE_1="",NA(),SUMPRODUCT(($C64=IF(geoResFinE,Final_Energy1_index_5,Final_Energy1_index_4))*('Final Energy Demand'!I$56=Final_Energy1_index_1)*(actCaseFinE_1=IF(geoResFinE,Final_Energy1_index_4,Final_Energy1_index_3))*Final_Energy1_vals)) -> 0.00143753489 | J64: =IF(actCaseFinE_1="",NA(),SUMPRODUCT(($C64=IF(geoResFinE,Final_Energy1_index_5,Final_Energy1_index_4))*('Final Energy Demand'!J$56=Final_Energy1_index_1)*(actCaseFinE_1=IF(geoResFinE,Final_Energy1_index_4,Final_Energy1_index_3))*Final_Energy1_vals)) -> 0.001449793907 | K64: =IF(actCaseFinE_1="",NA(),SUMPRODUCT(($C64=IF(geoResFinE,Final_Energy1_index_5,Final_Energy1_index_4))*('Final Energy Demand'!K$56=Final_Energy1_index_1)*(actCaseFinE_1=IF(geoResFinE,Final_Energy1_index_4,Final_Energy1_index_3))*Final_Energy1_vals)) -> 0.001462172893 | L64: =IF(actCaseFinE_1="",NA(),SUMPRODUCT(($C64=IF(geoResFinE,Final_Energy1_index_5,Final_Energy1_index_4))*('Final Energy Demand'!L$56=Final_Energy1_index_1)*(actCaseFinE_1=IF(geoResFinE,Final_Energy1_index_4,Final_Energy1_index_3))*Final_Energy1_vals)) -> 0.001474612267 | M64: =IF(actCaseFinE_1="",NA(),SUMPRODUCT(($C64=IF(geoResFinE,Final_Energy1_index_5,Final_Energy1_index_4))*('Final Energy Demand'!M$56=Final_Energy1_index_1)*(actCaseFinE_1=IF(geoResFinE,Final_Energy1_index_4,Final_Energy1_index_3))*Final_Energy1_vals)) -> 0.001487116952 | N64: =IF(actCaseFinE_1="",NA(),SUMPRODUCT(($C64=IF(geoResFinE,Final_Energy1_index_5,Final_Energy1_index_4))*('Final Energy Demand'!N$56=Final_Energy1_index_1)*(actCaseFinE_1=IF(geoResFinE,Final_Energy1_index_4,Final_Energy1_index_3))*Final_Energy1_vals)) -> 0.001499565938 | O64: =IF(actCaseFinE_1="",NA(),SUMPRODUCT(($C64=IF(geoResFinE,Final_Energy1_index_5,Final_Energy1_index_4))*('Final Energy Demand'!O$56=Final_Energy1_index_1)*(actCaseFinE_1=IF(geoResFinE,Final_Energy1_index_4,Final_Energy1_index_3))*Final_Energy1_vals)) -> 0.001511920993 | P64: =IF(actCaseFinE_1="",NA(),SUMPRODUCT(($C64=IF(geoResFinE,Final_Energy1_index_5,Final_Energy1_index_4))*('Final Energy Demand'!P$56=Final_Energy1_index_1)*(actCaseFinE_1=IF(geoResFinE,Final_Energy1_index_4,Final_Energy1_index_3))*Final_Energy1_vals)) -> 0.001524397349 | Q64: =IF(actCaseFinE_1="",NA(),SUMPRODUCT(($C64=IF(geoResFinE,Final_Energy1_index_5,Final_Energy1_index_4))*('Final Energy Demand'!Q$56=Final_Energy1_index_1)*(actCaseFinE_1=IF(geoResFinE,Final_Energy1_index_4,Final_Energy1_index_3))*Final_Energy1_vals)) -> 0.001536727265 | R64: =IF(actCaseFinE_1="",NA(),SUMPRODUCT(($C64=IF(geoResFinE,Final_Energy1_index_5,Final_Energy1_index_4))*('Final Energy Demand'!R$56=Final_Energy1_index_1)*(actCaseFinE_1=IF(geoResFinE,Final_Energy1_index_4,Final_Energy1_index_3))*Final_Energy1_vals)) -> 0.001548456467 | S64: =IF(actCaseFinE_1="",NA(),SUMPRODUCT(($C64=IF(geoResFinE,Final_Energy1_index_5,Final_Energy1_index_4))*('Final Energy Demand'!S$56=Final_Energy1_index_1)*(actCaseFinE_1=IF(geoResFinE,Final_Energy1_index_4,Final_Energy1_index_3))*Final_Energy1_vals)) -> 0.001560078835 | T64: =IF(actCaseFinE_1="",NA(),SUMPRODUCT(($C64=IF(geoResFinE,Final_Energy1_index_5,Final_Energy1_index_4))*('Final Energy Demand'!T$56=Final_Energy1_index_1)*(actCaseFinE_1=IF(geoResFinE,Final_Energy1_index_4,Final_Energy1_index_3))*Final_Energy1_vals)) -> 0.001571395346 | U64: =IF(actCaseFinE_1="",NA(),SUMPRODUCT(($C64=IF(geoResFinE,Final_Energy1_index_5,Final_Energy1_index_4))*('Final Energy Demand'!U$56=Final_Energy1_index_1)*(actCaseFinE_1=IF(geoResFinE,Final_Energy1_index_4,Final_Energy1_index_3))*Final_Energy1_vals)) -> 0.001583378181 | V64: =IF(actCaseFinE_1="",NA(),SUMPRODUCT(($C64=IF(geoResFinE,Final_Energy1_index_5,Final_Energy1_index_4))*('Final Energy Demand'!V$56=Final_Energy1_index_1)*(actCaseFinE_1=IF(geoResFinE,Final_Energy1_index_4,Final_Energy1_index_3))*Final_Energy1_vals)) -> 0.001595796382 | W64: =IF(actCaseFinE_1="",NA(),SUMPRODUCT(($C64=IF(geoResFinE,Final_Energy1_index_5,Final_Energy1_index_4))*('Final Energy Demand'!W$56=Final_Energy1_index_1)*(actCaseFinE_1=IF(geoResFinE,Final_Energy1_index_4,Final_Energy1_index_3))*Final_Energy1_vals)) -> 0.001607468062 | X64: =IF(actCaseFinE_1="",NA(),SUMPRODUCT(($C64=IF(geoResFinE,Final_Energy1_index_5,Final_Energy1_index_4))*('Final Energy Demand'!X$56=Final_Energy1_index_1)*(actCaseFinE_1=IF(geoResFinE,Final_Energy1_index_4,Final_Energy1_index_3))*Final_Energy1_vals)) -> 0.001618879199 | Y64: =IF(actCaseFinE_1="",NA(),SUMPRODUCT(($C64=IF(geoResFinE,Final_Energy1_index_5,Final_Energy1_index_4))*('Final Energy Demand'!Y$56=Final_Energy1_index_1)*(actCaseFinE_1=IF(geoResFinE,Final_Energy1_index_4,Final_Energy1_index_3))*Final_Energy1_vals)) -> 0.001629674377 | Z64: =IF(actCaseFinE_1="",NA(),SUMPRODUCT(($C64=IF(geoResFinE,Final_Energy1_index_5,Final_Energy1_index_4))*('Final Energy Demand'!Z$56=Final_Energy1_index_1)*(actCaseFinE_1=IF(geoResFinE,Final_Energy1_index_4,Final_Energy1_index_3))*Final_Energy1_vals)) -> 0.001640366247 | AA64: =IF(actCaseFinE_1="",NA(),SUMPRODUCT(($C64=IF(geoResFinE,Final_Energy1_index_5,Final_Energy1_index_4))*('Final Energy Demand'!AA$56=Final_Energy1_index_1)*(actCaseFinE_1=IF(geoResFinE,Final_Energy1_index_4,Final_Energy1_index_3))*Final_Energy1_vals)) -> 0.001651085669 | AB64: =IF(actCaseFinE_1="",NA(),SUMPRODUCT(($C64=IF(geoResFinE,Final_Energy1_index_5,Final_Energy1_index_4))*('Final Energy Demand'!AB$56=Final_Energy1_index_1)*(actCaseFinE_1=IF(geoResFinE,Final_Energy1_index_4,Final_Energy1_index_3))*Final_Energy1_vals)) -> 0.001661492473 | AC64: =IF(actCaseFinE_1="",NA(),SUMPRODUCT(($C64=IF(geoResFinE,Final_Energy1_index_5,Final_Energy1_index_4))*('Final Energy Demand'!AC$56=Final_Energy1_index_1)*(actCaseFinE_1=IF(geoResFinE,Final_Energy1_index_4,Final_Energy1_index_3))*Final_Energy1_vals)) -> 0.001671481148 | AD64: =IF(actCaseFinE_1="",NA(),SUMPRODUCT(($C64=IF(geoResFinE,Final_Energy1_index_5,Final_Energy1_index_4))*('Final Energy Demand'!AD$56=Final_Energy1_index_1)*(actCaseFinE_1=IF(geoResFinE,Final_Energy1_index_4,Final_Energy1_index_3))*Final_Energy1_vals)) -> 0.00168136353 | AE64: =IF(actCaseFinE_1="",NA(),SUMPRODUCT(($C64=IF(geoResFinE,Final_Energy1_index_5,Final_Energy1_index_4))*('Final Energy Demand'!AE$56=Final_Energy1_index_1)*(actCaseFinE_1=IF(geoResFinE,Final_Energy1_index_4,Final_Energy1_index_3))*Final_Energy1_vals)) -> 0.001691056708 | AF64: =IF(actCaseFinE_1="",NA(),SUMPRODUCT(($C64=IF(geoResFinE,Final_Energy1_index_5,Final_Energy1_index_4))*('Final Energy Demand'!AF$56=Final_Energy1_index_1)*(actCaseFinE_1=IF(geoResFinE,Final_Energy1_index_4,Final_Energy1_index_3))*Final_Energy1_vals)) -> 0.001700567975 | AG64: =IF(actCaseFinE_1="",NA(),SUMPRODUCT(($C64=IF(geoResFinE,Final_Energy1_index_5,Final_Energy1_index_4))*('Final Energy Demand'!AG$56=Final_Energy1_index_1)*(actCaseFinE_1=IF(geoResFinE,Final_Energy1_index_4,Final_Energy1_index_3))*Final_Energy1_vals)) -> 0.001709903651 | AH64: =IF(actCaseFinE_1="",NA(),SUMPRODUCT(($C64=IF(geoResFinE,Final_Energy1_index_5,Final_Energy1_index_4))*('Final Energy Demand'!AH$56=Final_Energy1_index_1)*(actCaseFinE_1=IF(geoResFinE,Final_Energy1_index_4,Final_Energy1_index_3))*Final_Energy1_vals)) -> 0.001719035855 | AI64: =IF(actCaseFinE_1="",NA(),SUMPRODUCT(($C64=IF(geoResFinE,Final_Energy1_index_5,Final_Energy1_index_4))*('Final Energy Demand'!AI$56=Final_Energy1_index_1)*(actCaseFinE_1=IF(geoResFinE,Final_Energy1_index_4,Final_Energy1_index_3))*Final_Energy1_vals)) -> 0.001727929554 | AJ64: =IF(actCaseFinE_1="",NA(),SUMPRODUCT(($C64=IF(geoResFinE,Final_Energy1_index_5,Final_Energy1_index_4))*('Final Energy Demand'!AJ$56=Final_Energy1_index_1)*(actCaseFinE_1=IF(geoResFinE,Final_Energy1_index_4,Final_Energy1_index_3))*Final_Energy1_vals)) -> 0.001736637658 | AK64: =IF(actCaseFinE_1="",NA(),SUMPRODUCT(($C64=IF(geoResFinE,Final_Energy1_index_5,Final_Energy1_index_4))*('Final Energy Demand'!AK$56=Final_Energy1_index_1)*(actCaseFinE_1=IF(geoResFinE,Final_Energy1_index_4,Final_Energy1_index_3))*Final_Energy1_vals)) -> 0.001745211051 | AL64: =IF(actCaseFinE_1="",NA(),SUMPRODUCT(($C64=IF(geoResFinE,Final_Energy1_index_5,Final_Energy1_index_4))*('Final Energy Demand'!AL$56=Final_Energy1_index_1)*(actCaseFinE_1=IF(geoResFinE,Final_Energy1_index_4,Final_Energy1_index_3))*Final_Energy1_vals)) -> 0.001753641992 | AM64: =IF(actCaseFinE_1="",NA(),SUMPRODUCT(($C64=IF(geoResFinE,Final_Energy1_index_5,Final_Energy1_index_4))*('Final Energy Demand'!AM$56=Final_Energy1_index_1)*(actCaseFinE_1=IF(geoResFinE,Final_Energy1_index_4,Final_Energy1_index_3))*Final_Energy1_vals)) -> 0.001761788137 | AP64: 0.001560078835
C65: Kerosene-Jet Fuel | D65: =IF(actCaseFinE_1="",NA(),SUMPRODUCT(($C65=IF(geoResFinE,Final_Energy1_index_5,Final_Energy1_index_4))*('Final Energy Demand'!D$56=Final_Energy1_index_1)*(actCaseFinE_1=IF(geoResFinE,Final_Energy1_index_4,Final_Energy1_index_3))*Final_Energy1_vals)) -> 0.07849671419 | E65: =IF(actCaseFinE_1="",NA(),SUMPRODUCT(($C65=IF(geoResFinE,Final_Energy1_index_5,Final_Energy1_index_4))*('Final Energy Demand'!E$56=Final_Energy1_index_1)*(actCaseFinE_1=IF(geoResFinE,Final_Energy1_index_4,Final_Energy1_index_3))*Final_Energy1_vals)) -> 0.0800479622 | F65: =IF(actCaseFinE_1="",NA(),SUMPRODUCT(($C65=IF(geoResFinE,Final_Energy1_index_5,Final_Energy1_index_4))*('Final Energy Demand'!F$56=Final_Energy1_index_1)*(actCaseFinE_1=IF(geoResFinE,Final_Energy1_index_4,Final_Energy1_index_3))*Final_Energy1_vals)) -> 0.08166953454 | G65: =IF(actCaseFinE_1="",NA(),SUMPRODUCT(($C65=IF(geoResFinE,Final_Energy1_index_5,Final_Energy1_index_4))*('Final Energy Demand'!G$56=Final_Energy1_index_1)*(actCaseFinE_1=IF(geoResFinE,Final_Energy1_index_4,Final_Energy1_index_3))*Final_Energy1_vals)) -> 0.08335877446 | H65: =IF(actCaseFinE_1="",NA(),SUMPRODUCT(($C65=IF(geoResFinE,Final_Energy1_index_5,Final_Energy1_index_4))*('Final Energy Demand'!H$56=Final_Energy1_index_1)*(actCaseFinE_1=IF(geoResFinE,Final_Energy1_index_4,Final_Energy1_index_3))*Final_Energy1_vals)) -> 0.08511307926 | I65: =IF(actCaseFinE_1="",NA(),SUMPRODUCT(($C65=IF(geoResFinE,Final_Energy1_index_5,Final_Energy1_index_4))*('Final Energy Demand'!I$56=Final_Energy1_index_1)*(actCaseFinE_1=IF(geoResFinE,Final_Energy1_index_4,Final_Energy1_index_3))*Final_Energy1_vals)) -> 0.08496937677 | J65: =IF(actCaseFinE_1="",NA(),SUMPRODUCT(($C65=IF(geoResFinE,Final_Energy1_index_5,Final_Energy1_index_4))*('Final Energy Demand'!J$56=Final_Energy1_index_1)*(actCaseFinE_1=IF(geoResFinE,Final_Energy1_index_4,Final_Energy1_index_3))*Final_Energy1_vals)) -> 0.0848053564 | K65: =IF(actCaseFinE_1="",NA(),SUMPRODUCT(($C65=IF(geoResFinE,Final_Energy1_index_5,Final_Energy1_index_4))*('Final Energy Demand'!K$56=Final_Energy1_index_1)*(actCaseFinE_1=IF(geoResFinE,Final_Energy1_index_4,Final_Energy1_index_3))*Final_Energy1_vals)) -> 0.08461643185 | L65: =IF(actCaseFinE_1="",NA(),SUMPRODUCT(($C65=IF(geoResFinE,Final_Energy1_index_5,Final_Energy1_index_4))*('Final Energy Demand'!L$56=Final_Energy1_index_1)*(actCaseFinE_1=IF(geoResFinE,Final_Energy1_index_4,Final_Energy1_index_3))*Final_Energy1_vals)) -> 0.08439559348 | M65: =IF(actCaseFinE_1="",NA(),SUMPRODUCT(($C65=IF(geoResFinE,Final_Energy1_index_5,Final_Energy1_index_4))*('Final Energy Demand'!M$56=Final_Energy1_index_1)*(actCaseFinE_1=IF(geoResFinE,Final_Energy1_index_4,Final_Energy1_index_3))*Final_Energy1_vals)) -> 0.0841373419 | N65: =IF(actCaseFinE_1="",NA(),SUMPRODUCT(($C65=IF(geoResFinE,Final_Energy1_index_5,Final_Energy1_index_4))*('Final Energy Demand'!N$56=Final_Energy1_index_1)*(actCaseFinE_1=IF(geoResFinE,Final_Energy1_index_4,Final_Energy1_index_3))*Final_Energy1_vals)) -> 0.08383140243 | O65: =IF(actCaseFinE_1="",NA(),SUMPRODUCT(($C65=IF(geoResFinE,Final_Energy1_index_5,Final_Energy1_index_4))*('Final Energy Demand'!O$56=Final_Energy1_index_1)*(actCaseFinE_1=IF(geoResFinE,Final_Energy1_index_4,Final_Energy1_index_3))*Final_Energy1_vals)) -> 0.08346954451 | P65: =IF(actCaseFinE_1="",NA(),SUMPRODUCT(($C65=IF(geoResFinE,Final_Energy1_index_5,Final_Energy1_index_4))*('Final Energy Demand'!P$56=Final_Energy1_index_1)*(actCaseFinE_1=IF(geoResFinE,Final_Energy1_index_4,Final_Energy1_index_3))*Final_Energy1_vals)) -> 0.08305435234 | Q65: =IF(actCaseFinE_1="",NA(),SUMPRODUCT(($C65=IF(geoResFinE,Final_Energy1_index_5,Final_Energy1_index_4))*('Final Energy Demand'!Q$56=Final_Energy1_index_1)*(actCaseFinE_1=IF(geoResFinE,Final_Energy1_index_4,Final_Energy1_index_3))*Final_Energy1_vals)) -> 0.08256864139 | R65: =IF(actCaseFinE_1="",NA(),SUMPRODUCT(($C65=IF(geoResFinE,Final_Energy1_index_5,Final_Energy1_index_4))*('Final Energy Demand'!R$56=Final_Energy1_index_1)*(actCaseFinE_1=IF(geoResFinE,Final_Energy1_index_4,Final_Energy1_index_3))*Final_Energy1_vals)) -> 0.08198310081 | S65: =IF(actCaseFinE_1="",NA(),SUMPRODUCT(($C65=IF(geoResFinE,Final_Energy1_index_5,Final_Energy1_index_4))*('Final Energy Demand'!S$56=Final_Energy1_index_1)*(actCaseFinE_1=IF(geoResFinE,Final_Energy1_index_4,Final_Energy1_index_3))*Final_Energy1_vals)) -> 0.08131306436 | T65: =IF(actCaseFinE_1="",NA(),SUMPRODUCT(($C65=IF(geoResFinE,Final_Energy1_index_5,Final_Energy1_index_4))*('Final Energy Demand'!T$56=Final_Energy1_index_1)*(actCaseFinE_1=IF(geoResFinE,Final_Energy1_index_4,Final_Energy1_index_3))*Final_Energy1_vals)) -> 0.08043773888 | U65: =IF(actCaseFinE_1="",NA(),SUMPRODUCT(($C65=IF(geoResFinE,Final_Energy1_index_5,Final_Energy1_index_4))*('Final Energy Demand'!U$56=Final_Energy1_index_1)*(actCaseFinE_1=IF(geoResFinE,Final_Energy1_index_4,Final_Energy1_index_3))*Final_Energy1_vals)) -> 0.07951117372 | V65: =IF(actCaseFinE_1="",NA(),SUMPRODUCT(($C65=IF(geoResFinE,Final_Energy1_index_5,Final_Energy1_index_4))*('Final Energy Demand'!V$56=Final_Energy1_index_1)*(actCaseFinE_1=IF(geoResFinE,Final_Energy1_index_4,Final_Energy1_index_3))*Final_Energy1_vals)) -> 0.07851985041 | W65: =IF(actCaseFinE_1="",NA(),SUMPRODUCT(($C65=IF(geoResFinE,Final_Energy1_index_5,Final_Energy1_index_4))*('Final Energy Demand'!W$56=Final_Energy1_index_1)*(actCaseFinE_1=IF(geoResFinE,Final_Energy1_index_4,Final_Energy1_index_3))*Final_Energy1_vals)) -> 0.07740458901 | X65: =IF(actCaseFinE_1="",NA(),SUMPRODUCT(($C65=IF(geoResFinE,Final_Energy1_index_5,Final_Energy1_index_4))*('Final Energy Demand'!X$56=Final_Energy1_index_1)*(actCaseFinE_1=IF(geoResFinE,Final_Energy1_index_4,Final_Energy1_index_3))*Final_Energy1_vals)) -> 0.07618829765 | Y65: =IF(actCaseFinE_1="",NA(),SUMPRODUCT(($C65=IF(geoResFinE,Final_Energy1_index_5,Final_Energy1_index_4))*('Final Energy Demand'!Y$56=Final_Energy1_index_1)*(actCaseFinE_1=IF(geoResFinE,Final_Energy1_index_4,Final_Energy1_index_3))*Final_Energy1_vals)) -> 0.07485547514 | Z65: =IF(actCaseFinE_1="",NA(),SUMPRODUCT(($C65=IF(geoResFinE,Final_Energy1_index_5,Final_Energy1_index_4))*('Final Energy Demand'!Z$56=Final_Energy1_index_1)*(actCaseFinE_1=IF(geoResFinE,Final_Energy1_index_4,Final_Energy1_index_3))*Final_Energy1_vals)) -> 0.07342866707 | AA65: =IF(actCaseFinE_1="",NA(),SUMPRODUCT(($C65=IF(geoResFinE,Final_Energy1_index_5,Final_Energy1_index_4))*('Final Energy Demand'!AA$56=Final_Energy1_index_1)*(actCaseFinE_1=IF(geoResFinE,Final_Energy1_index_4,Final_Energy1_index_3))*Final_Energy1_vals)) -> 0.07191338878 | AB65: =IF(actCaseFinE_1="",NA(),SUMPRODUCT(($C65=IF(geoResFinE,Final_Energy1_index_5,Final_Energy1_index_4))*('Final Energy Demand'!AB$56=Final_Energy1_index_1)*(actCaseFinE_1=IF(geoResFinE,Final_Energy1_index_4,Final_Energy1_index_3))*Final_Energy1_vals)) -> 0.07029348231 | AC65: =IF(actCaseFinE_1="",NA(),SUMPRODUCT(($C65=IF(geoResFinE,Final_Energy1_index_5,Final_Energy1_index_4))*('Final Energy Demand'!AC$56=Final_Energy1_index_1)*(actCaseFinE_1=IF(geoResFinE,Final_Energy1_index_4,Final_Energy1_index_3))*Final_Energy1_vals)) -> 0.06856424819 | AD65: =IF(actCaseFinE_1="",NA(),SUMPRODUCT(($C65=IF(geoResFinE,Final_Energy1_index_5,Final_Energy1_index_4))*('Final Energy Demand'!AD$56=Final_Energy1_index_1)*(actCaseFinE_1=IF(geoResFinE,Final_Energy1_index_4,Final_Energy1_index_3))*Final_Energy1_vals)) -> 0.06673943024 | AE65: =IF(actCaseFinE_1="",NA(),SUMPRODUCT(($C65=IF(geoResFinE,Final_Energy1_index_5,Final_Energy1_index_4))*('Final Energy Demand'!AE$56=Final_Energy1_index_1)*(actCaseFinE_1=IF(geoResFinE,Final_Energy1_index_4,Final_Energy1_index_3))*Final_Energy1_vals)) -> 0.06481477436 | AF65: =IF(actCaseFinE_1="",NA(),SUMPRODUCT(($C65=IF(geoResFinE,Final_Energy1_index_5,Final_Energy1_index_4))*('Final Energy Demand'!AF$56=Final_Energy1_index_1)*(actCaseFinE_1=IF(geoResFinE,Final_Energy1_index_4,Final_Energy1_index_3))*Final_Energy1_vals)) -> 0.06279024105 | AG65: =IF(actCaseFinE_1="",NA(),SUMPRODUCT(($C65=IF(geoResFinE,Final_Energy1_index_5,Final_Energy1_index_4))*('Final Energy Demand'!AG$56=Final_Energy1_index_1)*(actCaseFinE_1=IF(geoResFinE,Final_Energy1_index_4,Final_Energy1_index_3))*Final_Energy1_vals)) -> 0.06066594544 | AH65: =IF(actCaseFinE_1="",NA(),SUMPRODUCT(($C65=IF(geoResFinE,Final_Energy1_index_5,Final_Energy1_index_4))*('Final Energy Demand'!AH$56=Final_Energy1_index_1)*(actCaseFinE_1=IF(geoResFinE,Final_Energy1_index_4,Final_Energy1_index_3))*Final_Energy1_vals)) -> 0.05844048027 | AI65: =IF(actCaseFinE_1="",NA(),SUMPRODUCT(($C65=IF(geoResFinE,Final_Energy1_index_5,Final_Energy1_index_4))*('Final Energy Demand'!AI$56=Final_Energy1_index_1)*(actCaseFinE_1=IF(geoResFinE,Final_Energy1_index_4,Final_Energy1_index_3))*Final_Energy1_vals)) -> 0.0561125461 | AJ65: =IF(actCaseFinE_1="",NA(),SUMPRODUCT(($C65=IF(geoResFinE,Final_Energy1_index_5,Final_Energy1_index_4))*('Final Energy Demand'!AJ$56=Final_Energy1_index_1)*(actCaseFinE_1=IF(geoResFinE,Final_Energy1_index_4,Final_Energy1_index_3))*Final_Energy1_vals)) -> 0.05368392735 | AK65: =IF(actCaseFinE_1="",NA(),SUMPRODUCT(($C65=IF(geoResFinE,Final_Energy1_index_5,Final_Energy1_index_4))*('Final Energy Demand'!AK$56=Final_Energy1_index_1)*(actCaseFinE_1=IF(geoResFinE,Final_Energy1_index_4,Final_Energy1_index_3))*Final_Energy1_vals)) -> 0.05115589403 | AL65: =IF(actCaseFinE_1="",NA(),SUMPRODUCT(($C65=IF(geoResFinE,Final_Energy1_index_5,Final_Energy1_index_4))*('Final Energy Demand'!AL$56=Final_Energy1_index_1)*(actCaseFinE_1=IF(geoResFinE,Final_Energy1_index_4,Final_Energy1_index_3))*Final_Energy1_vals)) -> 0.04852798694 | AM65: =IF(actCaseFinE_1="",NA(),SUMPRODUCT(($C65=IF(geoResFinE,Final_Energy1_index_5,Final_Energy1_index_4))*('Final Energy Demand'!AM$56=Final_Energy1_index_1)*(actCaseFinE_1=IF(geoResFinE,Final_Energy1_index_4,Final_Energy1_index_3))*Final_Energy1_vals)) -> 0.04579630595 | AP65: 0.08131306436
C66: Liquified Pipeline Gas (LNG) | D66: =IF(actCaseFinE_1="",NA(),SUMPRODUCT(($C66=IF(geoResFinE,Final_Energy1_index_5,Final_Energy1_index_4))*('Final Energy Demand'!D$56=Final_Energy1_index_1)*(actCaseFinE_1=IF(geoResFinE,Final_Energy1_index_4,Final_Energy1_index_3))*Final_Energy1_vals)) -> 9.3672088e-08 | E66: =IF(actCaseFinE_1="",NA(),SUMPRODUCT(($C66=IF(geoResFinE,Final_Energy1_index_5,Final_Energy1_index_4))*('Final Energy Demand'!E$56=Final_Energy1_index_1)*(actCaseFinE_1=IF(geoResFinE,Final_Energy1_index_4,Final_Energy1_index_3))*Final_Energy1_vals)) -> 4.4827449e-08 | F66: =IF(actCaseFinE_1="",NA(),SUMPRODUCT(($C66=IF(geoResFinE,Final_Energy1_index_5,Final_Energy1_index_4))*('Final Energy Demand'!F$56=Final_Energy1_index_1)*(actCaseFinE_1=IF(geoResFinE,Final_Energy1_index_4,Final_Energy1_index_3))*Final_Energy1_vals)) -> 0 | G66: =IF(actCaseFinE_1="",NA(),SUMPRODUCT(($C66=IF(geoResFinE,Final_Energy1_index_5,Final_Energy1_index_4))*('Final Energy Demand'!G$56=Final_Energy1_index_1)*(actCaseFinE_1=IF(geoResFinE,Final_Energy1_index_4,Final_Energy1_index_3))*Final_Energy1_vals)) -> 0 | H66: =IF(actCaseFinE_1="",NA(),SUMPRODUCT(($C66=IF(geoResFinE,Final_Energy1_index_5,Final_Energy1_index_4))*('Final Energy Demand'!H$56=Final_Energy1_index_1)*(actCaseFinE_1=IF(geoResFinE,Final_Energy1_index_4,Final_Energy1_index_3))*Final_Energy1_vals)) -> 0 | I66: =IF(actCaseFinE_1="",NA(),SUMPRODUCT(($C66=IF(geoResFinE,Final_Energy1_index_5,Final_Energy1_index_4))*('Final Energy Demand'!I$56=Final_Energy1_index_1)*(actCaseFinE_1=IF(geoResFinE,Final_Energy1_index_4,Final_Energy1_index_3))*Final_Energy1_vals)) -> 0 | J66: =IF(actCaseFinE_1="",NA(),SUMPRODUCT(($C66=IF(geoResFinE,Final_Energy1_index_5,Final_Energy1_index_4))*('Final Energy Demand'!J$56=Final_Energy1_index_1)*(actCaseFinE_1=IF(geoResFinE,Final_Energy1_index_4,Final_Energy1_index_3))*Final_Energy1_vals)) -> 0 | K66: =IF(actCaseFinE_1="",NA(),SUMPRODUCT(($C66=IF(geoResFinE,Final_Energy1_index_5,Final_Energy1_index_4))*('Final Energy Demand'!K$56=Final_Energy1_index_1)*(actCaseFinE_1=IF(geoResFinE,Final_Energy1_index_4,Final_Energy1_index_3))*Final_Energy1_vals)) -> 0 | L66: =IF(actCaseFinE_1="",NA(),SUMPRODUCT(($C66=IF(geoResFinE,Final_Energy1_index_5,Final_Energy1_index_4))*('Final Energy Demand'!L$56=Final_Energy1_index_1)*(actCaseFinE_1=IF(geoResFinE,Final_Energy1_index_4,Final_Energy1_index_3))*Final_Energy1_vals)) -> 0 | M66: =IF(actCaseFinE_1="",NA(),SUMPRODUCT(($C66=IF(geoResFinE,Final_Energy1_index_5,Final_Energy1_index_4))*('Final Energy Demand'!M$56=Final_Energy1_index_1)*(actCaseFinE_1=IF(geoResFinE,Final_Energy1_index_4,Final_Energy1_index_3))*Final_Energy1_vals)) -> 0 | N66: =IF(actCaseFinE_1="",NA(),SUMPRODUCT(($C66=IF(geoResFinE,Final_Energy1_index_5,Final_Energy1_index_4))*('Final Energy Demand'!N$56=Final_Energy1_index_1)*(actCaseFinE_1=IF(geoResFinE,Final_Energy1_index_4,Final_Energy1_index_3))*Final_Energy1_vals)) -> 0 | O66: =IF(actCaseFinE_1="",NA(),SUMPRODUCT(($C66=IF(geoResFinE,Final_Energy1_index_5,Final_Energy1_index_4))*('Final Energy Demand'!O$56=Final_Energy1_index_1)*(actCaseFinE_1=IF(geoResFinE,Final_Energy1_index_4,Final_Energy1_index_3))*Final_Energy1_vals)) -> 0 | P66: =IF(actCaseFinE_1="",NA(),SUMPRODUCT(($C66=IF(geoResFinE,Final_Energy1_index_5,Final_Energy1_index_4))*('Final Energy Demand'!P$56=Final_Energy1_index_1)*(actCaseFinE_1=IF(geoResFinE,Final_Energy1_index_4,Final_Energy1_index_3))*Final_Energy1_vals)) -> 0 | Q66: =IF(actCaseFinE_1="",NA(),SUMPRODUCT(($C66=IF(geoResFinE,Final_Energy1_index_5,Final_Energy1_index_4))*('Final Energy Demand'!Q$56=Final_Energy1_index_1)*(actCaseFinE_1=IF(geoResFinE,Final_Energy1_index_4,Final_Energy1_index_3))*Final_Energy1_vals)) -> 0 | R66: =IF(actCaseFinE_1="",NA(),SUMPRODUCT(($C66=IF(geoResFinE,Final_Energy1_index_5,Final_Energy1_index_4))*('Final Energy Demand'!R$56=Final_Energy1_index_1)*(actCaseFinE_1=IF(geoResFinE,Final_Energy1_index_4,Final_Energy1_index_3))*Final_Energy1_vals)) -> 0 | S66: =IF(actCaseFinE_1="",NA(),SUMPRODUCT(($C66=IF(geoResFinE,Final_Energy1_index_5,Final_Energy1_index_4))*('Final Energy Demand'!S$56=Final_Energy1_index_1)*(actCaseFinE_1=IF(geoResFinE,Final_Energy1_index_4,Final_Energy1_index_3))*Final_Energy1_vals)) -> 0 | T66: =IF(actCaseFinE_1="",NA(),SUMPRODUCT(($C66=IF(geoResFinE,Final_Energy1_index_5,Final_Energy1_index_4))*('Final Energy Demand'!T$56=Final_Energy1_index_1)*(actCaseFinE_1=IF(geoResFinE,Final_Energy1_index_4,Final_Energy1_index_3))*Final_Energy1_vals)) -> 0 | U66: =IF(actCaseFinE_1="",NA(),SUMPRODUCT(($C66=IF(geoResFinE,Final_Energy1_index_5,Final_Energy1_index_4))*('Final Energy Demand'!U$56=Final_Energy1_index_1)*(actCaseFinE_1=IF(geoResFinE,Final_Energy1_index_4,Final_Energy1_index_3))*Final_Energy1_vals)) -> 0 | V66: =IF(actCaseFinE_1="",NA(),SUMPRODUCT(($C66=IF(geoResFinE,Final_Energy1_index_5,Final_Energy1_index_4))*('Final Energy Demand'!V$56=Final_Energy1_index_1)*(actCaseFinE_1=IF(geoResFinE,Final_Energy1_index_4,Final_Energy1_index_3))*Final_Energy1_vals)) -> 0 | W66: =IF(actCaseFinE_1="",NA(),SUMPRODUCT(($C66=IF(geoResFinE,Final_Energy1_index_5,Final_Energy1_index_4))*('Final Energy Demand'!W$56=Final_Energy1_index_1)*(actCaseFinE_1=IF(geoResFinE,Final_Energy1_index_4,Final_Energy1_index_3))*Final_Energy1_vals)) -> 0 | X66: =IF(actCaseFinE_1="",NA(),SUMPRODUCT(($C66=IF(geoResFinE,Final_Energy1_index_5,Final_Energy1_index_4))*('Final Energy Demand'!X$56=Final_Energy1_index_1)*(actCaseFinE_1=IF(geoResFinE,Final_Energy1_index_4,Final_Energy1_index_3))*Final_Energy1_vals)) -> 0 | Y66: =IF(actCaseFinE_1="",NA(),SUMPRODUCT(($C66=IF(geoResFinE,Final_Energy1_index_5,Final_Energy1_index_4))*('Final Energy Demand'!Y$56=Final_Energy1_index_1)*(actCaseFinE_1=IF(geoResFinE,Final_Energy1_index_4,Final_Energy1_index_3))*Final_Energy1_vals)) -> 0 | Z66: =IF(actCaseFinE_1="",NA(),SUMPRODUCT(($C66=IF(geoResFinE,Final_Energy1_index_5,Final_Energy1_index_4))*('Final Energy Demand'!Z$56=Final_Energy1_index_1)*(actCaseFinE_1=IF(geoResFinE,Final_Energy1_index_4,Final_Energy1_index_3))*Final_Energy1_vals)) -> 0 | AA66: =IF(actCaseFinE_1="",NA(),SUMPRODUCT(($C66=IF(geoResFinE,Final_Energy1_index_5,Final_Energy1_index_4))*('Final Energy Demand'!AA$56=Final_Energy1_index_1)*(actCaseFinE_1=IF(geoResFinE,Final_Energy1_index_4,Final_Energy1_index_3))*Final_Energy1_vals)) -> 0 | AB66: =IF(actCaseFinE_1="",NA(),SUMPRODUCT(($C66=IF(geoResFinE,Final_Energy1_index_5,Final_Energy1_index_4))*('Final Energy Demand'!AB$56=Final_Energy1_index_1)*(actCaseFinE_1=IF(geoResFinE,Final_Energy1_index_4,Final_Energy1_index_3))*Final_Energy1_vals)) -> 0 | AC66: =IF(actCaseFinE_1="",NA(),SUMPRODUCT(($C66=IF(geoResFinE,Final_Energy1_index_5,Final_Energy1_index_4))*('Final Energy Demand'!AC$56=Final_Energy1_index_1)*(actCaseFinE_1=IF(geoResFinE,Final_Energy1_index_4,Final_Energy1_index_3))*Final_Energy1_vals)) -> 0 | AD66: =IF(actCaseFinE_1="",NA(),SUMPRODUCT(($C66=IF(geoResFinE,Final_Energy1_index_5,Final_Energy1_index_4))*('Final Energy Demand'!AD$56=Final_Energy1_index_1)*(actCaseFinE_1=IF(geoResFinE,Final_Energy1_index_4,Final_Energy1_index_3))*Final_Energy1_vals)) -> 0 | AE66: =IF(actCaseFinE_1="",NA(),SUMPRODUCT(($C66=IF(geoResFinE,Final_Energy1_index_5,Final_Energy1_index_4))*('Final Energy Demand'!AE$56=Final_Energy1_index_1)*(actCaseFinE_1=IF(geoResFinE,Final_Energy1_index_4,Final_Energy1_index_3))*Final_Energy1_vals)) -> 0 | AF66: =IF(actCaseFinE_1="",NA(),SUMPRODUCT(($C66=IF(geoResFinE,Final_Energy1_index_5,Final_Energy1_index_4))*('Final Energy Demand'!AF$56=Final_Energy1_index_1)*(actCaseFinE_1=IF(geoResFinE,Final_Energy1_index_4,Final_Energy1_index_3))*Final_Energy1_vals)) -> 0 | AG66: =IF(actCaseFinE_1="",NA(),SUMPRODUCT(($C66=IF(geoResFinE,Final_Energy1_index_5,Final_Energy1_index_4))*('Final Energy Demand'!AG$56=Final_Energy1_index_1)*(actCaseFinE_1=IF(geoResFinE,Final_Energy1_index_4,Final_Energy1_index_3))*Final_Energy1_vals)) -> 0 | AH66: =IF(actCaseFinE_1="",NA(),SUMPRODUCT(($C66=IF(geoResFinE,Final_Energy1_index_5,Final_Energy1_index_4))*('Final Energy Demand'!AH$56=Final_Energy1_index_1)*(actCaseFinE_1=IF(geoResFinE,Final_Energy1_index_4,Final_Energy1_index_3))*Final_Energy1_vals)) -> 0 | AI66: =IF(actCaseFinE_1="",NA(),SUMPRODUCT(($C66=IF(geoResFinE,Final_Energy1_index_5,Final_Energy1_index_4))*('Final Energy Demand'!AI$56=Final_Energy1_index_1)*(actCaseFinE_1=IF(geoResFinE,Final_Energy1_index_4,Final_Energy1_index_3))*Final_Energy1_vals)) -> 0 | AJ66: =IF(actCaseFinE_1="",NA(),SUMPRODUCT(($C66=IF(geoResFinE,Final_Energy1_index_5,Final_Energy1_index_4))*('Final Energy Demand'!AJ$56=Final_Energy1_index_1)*(actCaseFinE_1=IF(geoResFinE,Final_Energy1_index_4,Final_Energy1_index_3))*Final_Energy1_vals)) -> 0 | AK66: =IF(actCaseFinE_1="",NA(),SUMPRODUCT(($C66=IF(geoResFinE,Final_Energy1_index_5,Final_Energy1_index_4))*('Final Energy Demand'!AK$56=Final_Energy1_index_1)*(actCaseFinE_1=IF(geoResFinE,Final_Energy1_index_4,Final_Energy1_index_3))*Final_Energy1_vals)) -> 0 | AL66: =IF(actCaseFinE_1="",NA(),SUMPRODUCT(($C66=IF(geoResFinE,Final_Energy1_index_5,Final_Energy1_index_4))*('Final Energy Demand'!AL$56=Final_Energy1_index_1)*(actCaseFinE_1=IF(geoResFinE,Final_Energy1_index_4,Final_Energy1_index_3))*Final_Energy1_vals)) -> 0 | AM66: =IF(actCaseFinE_1="",NA(),SUMPRODUCT(($C66=IF(geoResFinE,Final_Energy1_index_5,Final_Energy1_index_4))*('Final Energy Demand'!AM$56=Final_Energy1_index_1)*(actCaseFinE_1=IF(geoResFinE,Final_Energy1_index_4,Final_Energy1_index_3))*Final_Energy1_vals)) -> 0 | AP66: 0
C67: LPG | D67: =IF(actCaseFinE_1="",NA(),SUMPRODUCT(($C67=IF(geoResFinE,Final_Energy1_index_5,Final_Energy1_index_4))*('Final Energy Demand'!D$56=Final_Energy1_index_1)*(actCaseFinE_1=IF(geoResFinE,Final_Energy1_index_4,Final_Energy1_index_3))*Final_Energy1_vals)) -> 0.01931667286 | E67: =IF(actCaseFinE_1="",NA(),SUMPRODUCT(($C67=IF(geoResFinE,Final_Energy1_index_5,Final_Energy1_index_4))*('Final Energy Demand'!E$56=Final_Energy1_index_1)*(actCaseFinE_1=IF(geoResFinE,Final_Energy1_index_4,Final_Energy1_index_3))*Final_Energy1_vals)) -> 0.01907553354 | F67: =IF(actCaseFinE_1="",NA(),SUMPRODUCT(($C67=IF(geoResFinE,Final_Energy1_index_5,Final_Energy1_index_4))*('Final Energy Demand'!F$56=Final_Energy1_index_1)*(actCaseFinE_1=IF(geoResFinE,Final_Energy1_index_4,Final_Energy1_index_3))*Final_Energy1_vals)) -> 0.01882587123 | G67: =IF(actCaseFinE_1="",NA(),SUMPRODUCT(($C67=IF(geoResFinE,Final_Energy1_index_5,Final_Energy1_index_4))*('Final Energy Demand'!G$56=Final_Energy1_index_1)*(actCaseFinE_1=IF(geoResFinE,Final_Energy1_index_4,Final_Energy1_index_3))*Final_Energy1_vals)) -> 0.01853622964 | H67: =IF(actCaseFinE_1="",NA(),SUMPRODUCT(($C67=IF(geoResFinE,Final_Energy1_index_5,Final_Energy1_index_4))*('Final Energy Demand'!H$56=Final_Energy1_index_1)*(actCaseFinE_1=IF(geoResFinE,Final_Energy1_index_4,Final_Energy1_index_3))*Final_Energy1_vals)) -> 0.0182779755 | I67: =IF(actCaseFinE_1="",NA(),SUMPRODUCT(($C67=IF(geoResFinE,Final_Energy1_index_5,Final_Energy1_index_4))*('Final Energy Demand'!I$56=Final_Energy1_index_1)*(actCaseFinE_1=IF(geoResFinE,Final_Energy1_index_4,Final_Energy1_index_3))*Final_Energy1_vals)) -> 0.01800866924 | J67: =IF(actCaseFinE_1="",NA(),SUMPRODUCT(($C67=IF(geoResFinE,Final_Energy1_index_5,Final_Energy1_index_4))*('Final Energy Demand'!J$56=Final_Energy1_index_1)*(actCaseFinE_1=IF(geoResFinE,Final_Energy1_index_4,Final_Energy1_index_3))*Final_Energy1_vals)) -> 0.01791059788 | K67: =IF(actCaseFinE_1="",NA(),SUMPRODUCT(($C67=IF(geoResFinE,Final_Energy1_index_5,Final_Energy1_index_4))*('Final Energy Demand'!K$56=Final_Energy1_index_1)*(actCaseFinE_1=IF(geoResFinE,Final_Energy1_index_4,Final_Energy1_index_3))*Final_Energy1_vals)) -> 0.01779858603 | L67: =IF(actCaseFinE_1="",NA(),SUMPRODUCT(($C67=IF(geoResFinE,Final_Energy1_index_5,Final_Energy1_index_4))*('Final Energy Demand'!L$56=Final_Energy1_index_1)*(actCaseFinE_1=IF(geoResFinE,Final_Energy1_index_4,Final_Energy1_index_3))*Final_Energy1_vals)) -> 0.01769598753 | M67: =IF(actCaseFinE_1="",NA(),SUMPRODUCT(($C67=IF(geoResFinE,Final_Energy1_index_5,Final_Energy1_index_4))*('Final Energy Demand'!M$56=Final_Energy1_index_1)*(actCaseFinE_1=IF(geoResFinE,Final_Energy1_index_4,Final_Energy1_index_3))*Final_Energy1_vals)) -> 0.01759784551 | N67: =IF(actCaseFinE_1="",NA(),SUMPRODUCT(($C67=IF(geoResFinE,Final_Energy1_index_5,Final_Energy1_index_4))*('Final Energy Demand'!N$56=Final_Energy1_index_1)*(actCaseFinE_1=IF(geoResFinE,Final_Energy1_index_4,Final_Energy1_index_3))*Final_Energy1_vals)) -> 0.01752937703 | O67: =IF(actCaseFinE_1="",NA(),SUMPRODUCT(($C67=IF(geoResFinE,Final_Energy1_index_5,Final_Energy1_index_4))*('Final Energy Demand'!O$56=Final_Energy1_index_1)*(actCaseFinE_1=IF(geoResFinE,Final_Energy1_index_4,Final_Energy1_index_3))*Final_Energy1_vals)) -> 0.01746836008 | P67: =IF(actCaseFinE_1="",NA(),SUMPRODUCT(($C67=IF(geoResFinE,Final_Energy1_index_5,Final_Energy1_index_4))*('Final Energy Demand'!P$56=Final_Energy1_index_1)*(actCaseFinE_1=IF(geoResFinE,Final_Energy1_index_4,Final_Energy1_index_3))*Final_Energy1_vals)) -> 0.01741792469 | Q67: =IF(actCaseFinE_1="",NA(),SUMPRODUCT(($C67=IF(geoResFinE,Final_Energy1_index_5,Final_Energy1_index_4))*('Final Energy Demand'!Q$56=Final_Energy1_index_1)*(actCaseFinE_1=IF(geoResFinE,Final_Energy1_index_4,Final_Energy1_index_3))*Final_Energy1_vals)) -> 0.01737514565 | R67: =IF(actCaseFinE_1="",NA(),SUMPRODUCT(($C67=IF(geoResFinE,Final_Energy1_index_5,Final_Energy1_index_4))*('Final Energy Demand'!R$56=Final_Energy1_index_1)*(actCaseFinE_1=IF(geoResFinE,Final_Energy1_index_4,Final_Energy1_index_3))*Final_Energy1_vals)) -> 0.01733532681 | S67: =IF(actCaseFinE_1="",NA(),SUMPRODUCT(($C67=IF(geoResFinE,Final_Energy1_index_5,Final_Energy1_index_4))*('Final Energy Demand'!S$56=Final_Energy1_index_1)*(actCaseFinE_1=IF(geoResFinE,Final_Energy1_index_4,Final_Energy1_index_3))*Final_Energy1_vals)) -> 0.01730445008 | T67: =IF(actCaseFinE_1="",NA(),SUMPRODUCT(($C67=IF(geoResFinE,Final_Energy1_index_5,Final_Energy1_index_4))*('Final Energy Demand'!T$56=Final_Energy1_index_1)*(actCaseFinE_1=IF(geoResFinE,Final_Energy1_index_4,Final_Energy1_index_3))*Final_Energy1_vals)) -> 0.01728050318 | U67: =IF(actCaseFinE_1="",NA(),SUMPRODUCT(($C67=IF(geoResFinE,Final_Energy1_index_5,Final_Energy1_index_4))*('Final Energy Demand'!U$56=Final_Energy1_index_1)*(actCaseFinE_1=IF(geoResFinE,Final_Energy1_index_4,Final_Energy1_index_3))*Final_Energy1_vals)) -> 0.01727516166 | V67: =IF(actCaseFinE_1="",NA(),SUMPRODUCT(($C67=IF(geoResFinE,Final_Energy1_index_5,Final_Energy1_index_4))*('Final Energy Demand'!V$56=Final_Energy1_index_1)*(actCaseFinE_1=IF(geoResFinE,Final_Energy1_index_4,Final_Energy1_index_3))*Final_Energy1_vals)) -> 0.01728522772 | W67: =IF(actCaseFinE_1="",NA(),SUMPRODUCT(($C67=IF(geoResFinE,Final_Energy1_index_5,Final_Energy1_index_4))*('Final Energy Demand'!W$56=Final_Energy1_index_1)*(actCaseFinE_1=IF(geoResFinE,Final_Energy1_index_4,Final_Energy1_index_3))*Final_Energy1_vals)) -> 0.0172982758 | X67: =IF(actCaseFinE_1="",NA(),SUMPRODUCT(($C67=IF(geoResFinE,Final_Energy1_index_5,Final_Energy1_index_4))*('Final Energy Demand'!X$56=Final_Energy1_index_1)*(actCaseFinE_1=IF(geoResFinE,Final_Energy1_index_4,Final_Energy1_index_3))*Final_Energy1_vals)) -> 0.01732032674 | Y67: =IF(actCaseFinE_1="",NA(),SUMPRODUCT(($C67=IF(geoResFinE,Final_Energy1_index_5,Final_Energy1_index_4))*('Final Energy Demand'!Y$56=Final_Energy1_index_1)*(actCaseFinE_1=IF(geoResFinE,Final_Energy1_index_4,Final_Energy1_index_3))*Final_Energy1_vals)) -> 0.0173463669 | Z67: =IF(actCaseFinE_1="",NA(),SUMPRODUCT(($C67=IF(geoResFinE,Final_Energy1_index_5,Final_Energy1_index_4))*('Final Energy Demand'!Z$56=Final_Energy1_index_1)*(actCaseFinE_1=IF(geoResFinE,Final_Energy1_index_4,Final_Energy1_index_3))*Final_Energy1_vals)) -> 0.01738237975 | AA67: =IF(actCaseFinE_1="",NA(),SUMPRODUCT(($C67=IF(geoResFinE,Final_Energy1_index_5,Final_Energy1_index_4))*('Final Energy Demand'!AA$56=Final_Energy1_index_1)*(actCaseFinE_1=IF(geoResFinE,Final_Energy1_index_4,Final_Energy1_index_3))*Final_Energy1_vals)) -> 0.01742822255 | AB67: =IF(actCaseFinE_1="",NA(),SUMPRODUCT(($C67=IF(geoResFinE,Final_Energy1_index_5,Final_Energy1_index_4))*('Final Energy Demand'!AB$56=Final_Energy1_index_1)*(actCaseFinE_1=IF(geoResFinE,Final_Energy1_index_4,Final_Energy1_index_3))*Final_Energy1_vals)) -> 0.01747969149 | AC67: =IF(actCaseFinE_1="",NA(),SUMPRODUCT(($C67=IF(geoResFinE,Final_Energy1_index_5,Final_Energy1_index_4))*('Final Energy Demand'!AC$56=Final_Energy1_index_1)*(actCaseFinE_1=IF(geoResFinE,Final_Energy1_index_4,Final_Energy1_index_3))*Final_Energy1_vals)) -> 0.01753457518 | AD67: =IF(actCaseFinE_1="",NA(),SUMPRODUCT(($C67=IF(geoResFinE,Final_Energy1_index_5,Final_Energy1_index_4))*('Final Energy Demand'!AD$56=Final_Energy1_index_1)*(actCaseFinE_1=IF(geoResFinE,Final_Energy1_index_4,Final_Energy1_index_3))*Final_Energy1_vals)) -> 0.01759391831 | AE67: =IF(actCaseFinE_1="",NA(),SUMPRODUCT(($C67=IF(geoResFinE,Final_Energy1_index_5,Final_Energy1_index_4))*('Final Energy Demand'!AE$56=Final_Energy1_index_1)*(actCaseFinE_1=IF(geoResFinE,Final_Energy1_index_4,Final_Energy1_index_3))*Final_Energy1_vals)) -> 0.01765571593 | AF67: =IF(actCaseFinE_1="",NA(),SUMPRODUCT(($C67=IF(geoResFinE,Final_Energy1_index_5,Final_Energy1_index_4))*('Final Energy Demand'!AF$56=Final_Energy1_index_1)*(actCaseFinE_1=IF(geoResFinE,Final_Energy1_index_4,Final_Energy1_index_3))*Final_Energy1_vals)) -> 0.01771870545 | AG67: =IF(actCaseFinE_1="",NA(),SUMPRODUCT(($C67=IF(geoResFinE,Final_Energy1_index_5,Final_Energy1_index_4))*('Final Energy Demand'!AG$56=Final_Energy1_index_1)*(actCaseFinE_1=IF(geoResFinE,Final_Energy1_index_4,Final_Energy1_index_3))*Final_Energy1_vals)) -> 0.01778161531 | AH67: =IF(actCaseFinE_1="",NA(),SUMPRODUCT(($C67=IF(geoResFinE,Final_Energy1_index_5,Final_Energy1_index_4))*('Final Energy Demand'!AH$56=Final_Energy1_index_1)*(actCaseFinE_1=IF(geoResFinE,Final_Energy1_index_4,Final_Energy1_index_3))*Final_Energy1_vals)) -> 0.01784334869 | AI67: =IF(actCaseFinE_1="",NA(),SUMPRODUCT(($C67=IF(geoResFinE,Final_Energy1_index_5,Final_Energy1_index_4))*('Final Energy Demand'!AI$56=Final_Energy1_index_1)*(actCaseFinE_1=IF(geoResFinE,Final_Energy1_index_4,Final_Energy1_index_3))*Final_Energy1_vals)) -> 0.01790283381 | AJ67: =IF(actCaseFinE_1="",NA(),SUMPRODUCT(($C67=IF(geoResFinE,Final_Energy1_index_5,Final_Energy1_index_4))*('Final Energy Demand'!AJ$56=Final_Energy1_index_1)*(actCaseFinE_1=IF(geoResFinE,Final_Energy1_index_4,Final_Energy1_index_3))*Final_Energy1_vals)) -> 0.01795998707 | AK67: =IF(actCaseFinE_1="",NA(),SUMPRODUCT(($C67=IF(geoResFinE,Final_Energy1_index_5,Final_Energy1_index_4))*('Final Energy Demand'!AK$56=Final_Energy1_index_1)*(actCaseFinE_1=IF(geoResFinE,Final_Energy1_index_4,Final_Energy1_index_3))*Final_Energy1_vals)) -> 0.01801508928 | AL67: =IF(actCaseFinE_1="",NA(),SUMPRODUCT(($C67=IF(geoResFinE,Final_Energy1_index_5,Final_Energy1_index_4))*('Final Energy Demand'!AL$56=Final_Energy1_index_1)*(actCaseFinE_1=IF(geoResFinE,Final_Energy1_index_4,Final_Energy1_index_3))*Final_Energy1_vals)) -> 0.01806771673 | AM67: =IF(actCaseFinE_1="",NA(),SUMPRODUCT(($C67=IF(geoResFinE,Final_Energy1_index_5,Final_Energy1_index_4))*('Final Energy Demand'!AM$56=Final_Energy1_index_1)*(actCaseFinE_1=IF(geoResFinE,Final_Energy1_index_4,Final_Energy1_index_3))*Final_Energy1_vals)) -> 0.01811618016 | AP67: 0.01730445008
C68: Pipeline Gas | D68: =IF(actCaseFinE_1="",NA(),SUMPRODUCT(($C68=IF(geoResFinE,Final_Energy1_index_5,Final_Energy1_index_4))*('Final Energy Demand'!D$56=Final_Energy1_index_1)*(actCaseFinE_1=IF(geoResFinE,Final_Energy1_index_4,Final_Energy1_index_3))*Final_Energy1_vals)) -> 1.508168613 | E68: =IF(actCaseFinE_1="",NA(),SUMPRODUCT(($C68=IF(geoResFinE,Final_Energy1_index_5,Final_Energy1_index_4))*('Final Energy Demand'!E$56=Final_Energy1_index_1)*(actCaseFinE_1=IF(geoResFinE,Final_Energy1_index_4,Final_Energy1_index_3))*Final_Energy1_vals)) -> 1.496049804 | F68: =IF(actCaseFinE_1="",NA(),SUMPRODUCT(($C68=IF(geoResFinE,Final_Energy1_index_5,Final_Energy1_index_4))*('Final Energy Demand'!F$56=Final_Energy1_index_1)*(actCaseFinE_1=IF(geoResFinE,Final_Energy1_index_4,Final_Energy1_index_3))*Final_Energy1_vals)) -> 1.482317284 | G68: =IF(actCaseFinE_1="",NA(),SUMPRODUCT(($C68=IF(geoResFinE,Final_Energy1_index_5,Final_Energy1_index_4))*('Final Energy Demand'!G$56=Final_Energy1_index_1)*(actCaseFinE_1=IF(geoResFinE,Final_Energy1_index_4,Final_Energy1_index_3))*Final_Energy1_vals)) -> 1.470050346 | H68: =IF(actCaseFinE_1="",NA(),SUMPRODUCT(($C68=IF(geoResFinE,Final_Energy1_index_5,Final_Energy1_index_4))*('Final Energy Demand'!H$56=Final_Energy1_index_1)*(actCaseFinE_1=IF(geoResFinE,Final_Energy1_index_4,Final_Energy1_index_3))*Final_Energy1_vals)) -> 1.455641454 | I68: =IF(actCaseFinE_1="",NA(),SUMPRODUCT(($C68=IF(geoResFinE,Final_Energy1_index_5,Final_Energy1_index_4))*('Final Energy Demand'!I$56=Final_Energy1_index_1)*(actCaseFinE_1=IF(geoResFinE,Final_Energy1_index_4,Final_Energy1_index_3))*Final_Energy1_vals)) -> 1.439886442 | J68: =IF(actCaseFinE_1="",NA(),SUMPRODUCT(($C68=IF(geoResFinE,Final_Energy1_index_5,Final_Energy1_index_4))*('Final Energy Demand'!J$56=Final_Energy1_index_1)*(actCaseFinE_1=IF(geoResFinE,Final_Energy1_index_4,Final_Energy1_index_3))*Final_Energy1_vals)) -> 1.422528386 | K68: =IF(actCaseFinE_1="",NA(),SUMPRODUCT(($C68=IF(geoResFinE,Final_Energy1_index_5,Final_Energy1_index_4))*('Final Energy Demand'!K$56=Final_Energy1_index_1)*(actCaseFinE_1=IF(geoResFinE,Final_Energy1_index_4,Final_Energy1_index_3))*Final_Energy1_vals)) -> 1.404187149 | L68: =IF(actCaseFinE_1="",NA(),SUMPRODUCT(($C68=IF(geoResFinE,Final_Energy1_index_5,Final_Energy1_index_4))*('Final Energy Demand'!L$56=Final_Energy1_index_1)*(actCaseFinE_1=IF(geoResFinE,Final_Energy1_index_4,Final_Energy1_index_3))*Final_Energy1_vals)) -> 1.385376373 | M68: =IF(actCaseFinE_1="",NA(),SUMPRODUCT(($C68=IF(geoResFinE,Final_Energy1_index_5,Final_Energy1_index_4))*('Final Energy Demand'!M$56=Final_Energy1_index_1)*(actCaseFinE_1=IF(geoResFinE,Final_Energy1_index_4,Final_Energy1_index_3))*Final_Energy1_vals)) -> 1.365645031 | N68: =IF(actCaseFinE_1="",NA(),SUMPRODUCT(($C68=IF(geoResFinE,Final_Energy1_index_5,Final_Energy1_index_4))*('Final Energy Demand'!N$56=Final_Energy1_index_1)*(actCaseFinE_1=IF(geoResFinE,Final_Energy1_index_4,Final_Energy1_index_3))*Final_Energy1_vals)) -> 1.358877689 | O68: =IF(actCaseFinE_1="",NA(),SUMPRODUCT(($C68=IF(geoResFinE,Final_Energy1_index_5,Final_Energy1_index_4))*('Final Energy Demand'!O$56=Final_Energy1_index_1)*(actCaseFinE_1=IF(geoResFinE,Final_Energy1_index_4,Final_Energy1_index_3))*Final_Energy1_vals)) -> 1.351071154 | P68: =IF(actCaseFinE_1="",NA(),SUMPRODUCT(($C68=IF(geoResFinE,Final_Energy1_index_5,Final_Energy1_index_4))*('Final Energy Demand'!P$56=Final_Energy1_index_1)*(actCaseFinE_1=IF(geoResFinE,Final_Energy1_index_4,Final_Energy1_index_3))*Final_Energy1_vals)) -> 1.343427471 | Q68: =IF(actCaseFinE_1="",NA(),SUMPRODUCT(($C68=IF(geoResFinE,Final_Energy1_index_5,Final_Energy1_index_4))*('Final Energy Demand'!Q$56=Final_Energy1_index_1)*(actCaseFinE_1=IF(geoResFinE,Final_Energy1_index_4,Final_Energy1_index_3))*Final_Energy1_vals)) -> 1.335907821 | R68: =IF(actCaseFinE_1="",NA(),SUMPRODUCT(($C68=IF(geoResFinE,Final_Energy1_index_5,Final_Energy1_index_4))*('Final Energy Demand'!R$56=Final_Energy1_index_1)*(actCaseFinE_1=IF(geoResFinE,Final_Energy1_index_4,Final_Energy1_index_3))*Final_Energy1_vals)) -> 1.328431758 | S68: =IF(actCaseFinE_1="",NA(),SUMPRODUCT(($C68=IF(geoResFinE,Final_Energy1_index_5,Final_Energy1_index_4))*('Final Energy Demand'!S$56=Final_Energy1_index_1)*(actCaseFinE_1=IF(geoResFinE,Final_Energy1_index_4,Final_Energy1_index_3))*Final_Energy1_vals)) -> 1.321213968 | T68: =IF(actCaseFinE_1="",NA(),SUMPRODUCT(($C68=IF(geoResFinE,Final_Energy1_index_5,Final_Energy1_index_4))*('Final Energy Demand'!T$56=Final_Energy1_index_1)*(actCaseFinE_1=IF(geoResFinE,Final_Energy1_index_4,Final_Energy1_index_3))*Final_Energy1_vals)) -> 1.324436574 | U68: =IF(actCaseFinE_1="",NA(),SUMPRODUCT(($C68=IF(geoResFinE,Final_Energy1_index_5,Final_Energy1_index_4))*('Final Energy Demand'!U$56=Final_Energy1_index_1)*(actCaseFinE_1=IF(geoResFinE,Final_Energy1_index_4,Final_Energy1_index_3))*Final_Energy1_vals)) -> 1.328229289 | V68: =IF(actCaseFinE_1="",NA(),SUMPRODUCT(($C68=IF(geoResFinE,Final_Energy1_index_5,Final_Energy1_index_4))*('Final Energy Demand'!V$56=Final_Energy1_index_1)*(actCaseFinE_1=IF(geoResFinE,Final_Energy1_index_4,Final_Energy1_index_3))*Final_Energy1_vals)) -> 1.332530929 | W68: =IF(actCaseFinE_1="",NA(),SUMPRODUCT(($C68=IF(geoResFinE,Final_Energy1_index_5,Final_Energy1_index_4))*('Final Energy Demand'!W$56=Final_Energy1_index_1)*(actCaseFinE_1=IF(geoResFinE,Final_Energy1_index_4,Final_Energy1_index_3))*Final_Energy1_vals)) -> 1.33700305 | X68: =IF(actCaseFinE_1="",NA(),SUMPRODUCT(($C68=IF(geoResFinE,Final_Energy1_index_5,Final_Energy1_index_4))*('Final Energy Demand'!X$56=Final_Energy1_index_1)*(actCaseFinE_1=IF(geoResFinE,Final_Energy1_index_4,Final_Energy1_index_3))*Final_Energy1_vals)) -> 1.341829524 | Y68: =IF(actCaseFinE_1="",NA(),SUMPRODUCT(($C68=IF(geoResFinE,Final_Energy1_index_5,Final_Energy1_index_4))*('Final Energy Demand'!Y$56=Final_Energy1_index_1)*(actCaseFinE_1=IF(geoResFinE,Final_Energy1_index_4,Final_Energy1_index_3))*Final_Energy1_vals)) -> 1.346875273 | Z68: =IF(actCaseFinE_1="",NA(),SUMPRODUCT(($C68=IF(geoResFinE,Final_Energy1_index_5,Final_Energy1_index_4))*('Final Energy Demand'!Z$56=Final_Energy1_index_1)*(actCaseFinE_1=IF(geoResFinE,Final_Energy1_index_4,Final_Energy1_index_3))*Final_Energy1_vals)) -> 1.352337325 | AA68: =IF(actCaseFinE_1="",NA(),SUMPRODUCT(($C68=IF(geoResFinE,Final_Energy1_index_5,Final_Energy1_index_4))*('Final Energy Demand'!AA$56=Final_Energy1_index_1)*(actCaseFinE_1=IF(geoResFinE,Final_Energy1_index_4,Final_Energy1_index_3))*Final_Energy1_vals)) -> 1.35829362 | AB68: =IF(actCaseFinE_1="",NA(),SUMPRODUCT(($C68=IF(geoResFinE,Final_Energy1_index_5,Final_Energy1_index_4))*('Final Energy Demand'!AB$56=Final_Energy1_index_1)*(actCaseFinE_1=IF(geoResFinE,Final_Energy1_index_4,Final_Energy1_index_3))*Final_Energy1_vals)) -> 1.364540277 | AC68: =IF(actCaseFinE_1="",NA(),SUMPRODUCT(($C68=IF(geoResFinE,Final_Energy1_index_5,Final_Energy1_index_4))*('Final Energy Demand'!AC$56=Final_Energy1_index_1)*(actCaseFinE_1=IF(geoResFinE,Final_Energy1_index_4,Final_Energy1_index_3))*Final_Energy1_vals)) -> 1.371030232 | AD68: =IF(actCaseFinE_1="",NA(),SUMPRODUCT(($C68=IF(geoResFinE,Final_Energy1_index_5,Final_Energy1_index_4))*('Final Energy Demand'!AD$56=Final_Energy1_index_1)*(actCaseFinE_1=IF(geoResFinE,Final_Energy1_index_4,Final_Energy1_index_3))*Final_Energy1_vals)) -> 1.377791383 | AE68: =IF(actCaseFinE_1="",NA(),SUMPRODUCT(($C68=IF(geoResFinE,Final_Energy1_index_5,Final_Energy1_index_4))*('Final Energy Demand'!AE$56=Final_Energy1_index_1)*(actCaseFinE_1=IF(geoResFinE,Final_Energy1_index_4,Final_Energy1_index_3))*Final_Energy1_vals)) -> 1.38476823 | AF68: =IF(actCaseFinE_1="",NA(),SUMPRODUCT(($C68=IF(geoResFinE,Final_Energy1_index_5,Final_Energy1_index_4))*('Final Energy Demand'!AF$56=Final_Energy1_index_1)*(actCaseFinE_1=IF(geoResFinE,Final_Energy1_index_4,Final_Energy1_index_3))*Final_Energy1_vals)) -> 1.391915651 | AG68: =IF(actCaseFinE_1="",NA(),SUMPRODUCT(($C68=IF(geoResFinE,Final_Energy1_index_5,Final_Energy1_index_4))*('Final Energy Demand'!AG$56=Final_Energy1_index_1)*(actCaseFinE_1=IF(geoResFinE,Final_Energy1_index_4,Final_Energy1_index_3))*Final_Energy1_vals)) -> 1.399199757 | AH68: =IF(actCaseFinE_1="",NA(),SUMPRODUCT(($C68=IF(geoResFinE,Final_Energy1_index_5,Final_Energy1_index_4))*('Final Energy Demand'!AH$56=Final_Energy1_index_1)*(actCaseFinE_1=IF(geoResFinE,Final_Energy1_index_4,Final_Energy1_index_3))*Final_Energy1_vals)) -> 1.406574166 | AI68: =IF(actCaseFinE_1="",NA(),SUMPRODUCT(($C68=IF(geoResFinE,Final_Energy1_index_5,Final_Energy1_index_4))*('Final Energy Demand'!AI$56=Final_Energy1_index_1)*(actCaseFinE_1=IF(geoResFinE,Final_Energy1_index_4,Final_Energy1_index_3))*Final_Energy1_vals)) -> 1.413989346 | AJ68: =IF(actCaseFinE_1="",NA(),SUMPRODUCT(($C68=IF(geoResFinE,Final_Energy1_index_5,Final_Energy1_index_4))*('Final Energy Demand'!AJ$56=Final_Energy1_index_1)*(actCaseFinE_1=IF(geoResFinE,Final_Energy1_index_4,Final_Energy1_index_3))*Final_Energy1_vals)) -> 1.421436276 | AK68: =IF(actCaseFinE_1="",NA(),SUMPRODUCT(($C68=IF(geoResFinE,Final_Energy1_index_5,Final_Energy1_index_4))*('Final Energy Demand'!AK$56=Final_Energy1_index_1)*(actCaseFinE_1=IF(geoResFinE,Final_Energy1_index_4,Final_Energy1_index_3))*Final_Energy1_vals)) -> 1.428904313 | AL68: =IF(actCaseFinE_1="",NA(),SUMPRODUCT(($C68=IF(geoResFinE,Final_Energy1_index_5,Final_Energy1_index_4))*('Final Energy Demand'!AL$56=Final_Energy1_index_1)*(actCaseFinE_1=IF(geoResFinE,Final_Energy1_index_4,Final_Energy1_index_3))*Final_Energy1_vals)) -> 1.436370634 | AM68: =IF(actCaseFinE_1="",NA(),SUMPRODUCT(($C68=IF(geoResFinE,Final_Energy1_index_5,Final_Energy1_index_4))*('Final Energy Demand'!AM$56=Final_Energy1_index_1)*(actCaseFinE_1=IF(geoResFinE,Final_Energy1_index_4,Final_Energy1_index_3))*Final_Energy1_vals)) -> 1.443775946 | AP68: 1.321213968
C69: Refinery and Process Gas | D69: =IF(actCaseFinE_1="",NA(),SUMPRODUCT(($C69=IF(geoResFinE,Final_Energy1_index_5,Final_Energy1_index_4))*('Final Energy Demand'!D$56=Final_Energy1_index_1)*(actCaseFinE_1=IF(geoResFinE,Final_Energy1_index_4,Final_Energy1_index_3))*Final_Energy1_vals)) -> 0.3336421911 | E69: =IF(actCaseFinE_1="",NA(),SUMPRODUCT(($C69=IF(geoResFinE,Final_Energy1_index_5,Final_Energy1_index_4))*('Final Energy Demand'!E$56=Final_Energy1_index_1)*(actCaseFinE_1=IF(geoResFinE,Final_Energy1_index_4,Final_Energy1_index_3))*Final_Energy1_vals)) -> 0.3348764569 | F69: =IF(actCaseFinE_1="",NA(),SUMPRODUCT(($C69=IF(geoResFinE,Final_Energy1_index_5,Final_Energy1_index_4))*('Final Energy Demand'!F$56=Final_Energy1_index_1)*(actCaseFinE_1=IF(geoResFinE,Final_Energy1_index_4,Final_Energy1_index_3))*Final_Energy1_vals)) -> 0.3361107226 | G69: =IF(actCaseFinE_1="",NA(),SUMPRODUCT(($C69=IF(geoResFinE,Final_Energy1_index_5,Final_Energy1_index_4))*('Final Energy Demand'!G$56=Final_Energy1_index_1)*(actCaseFinE_1=IF(geoResFinE,Final_Energy1_index_4,Final_Energy1_index_3))*Final_Energy1_vals)) -> 0.3373449883 | H69: =IF(actCaseFinE_1="",NA(),SUMPRODUCT(($C69=IF(geoResFinE,Final_Energy1_index_5,Final_Energy1_index_4))*('Final Energy Demand'!H$56=Final_Energy1_index_1)*(actCaseFinE_1=IF(geoResFinE,Final_Energy1_index_4,Final_Energy1_index_3))*Final_Energy1_vals)) -> 0.3385792541 | I69: =IF(actCaseFinE_1="",NA(),SUMPRODUCT(($C69=IF(geoResFinE,Final_Energy1_index_5,Final_Energy1_index_4))*('Final Energy Demand'!I$56=Final_Energy1_index_1)*(actCaseFinE_1=IF(geoResFinE,Final_Energy1_index_4,Final_Energy1_index_3))*Final_Energy1_vals)) -> 0.3398135198 | J69: =IF(actCaseFinE_1="",NA(),SUMPRODUCT(($C69=IF(geoResFinE,Final_Energy1_index_5,Final_Energy1_index_4))*('Final Energy Demand'!J$56=Final_Energy1_index_1)*(actCaseFinE_1=IF(geoResFinE,Final_Energy1_index_4,Final_Energy1_index_3))*Final_Energy1_vals)) -> 0.336505029 | K69: =IF(actCaseFinE_1="",NA(),SUMPRODUCT(($C69=IF(geoResFinE,Final_Energy1_index_5,Final_Energy1_index_4))*('Final Energy Demand'!K$56=Final_Energy1_index_1)*(actCaseFinE_1=IF(geoResFinE,Final_Energy1_index_4,Final_Energy1_index_3))*Final_Energy1_vals)) -> 0.3331636574 | L69: =IF(actCaseFinE_1="",NA(),SUMPRODUCT(($C69=IF(geoResFinE,Final_Energy1_index_5,Final_Energy1_index_4))*('Final Energy Demand'!L$56=Final_Energy1_index_1)*(actCaseFinE_1=IF(geoResFinE,Final_Energy1_index_4,Final_Energy1_index_3))*Final_Energy1_vals)) -> 0.329789405 | M69: =IF(actCaseFinE_1="",NA(),SUMPRODUCT(($C69=IF(geoResFinE,Final_Energy1_index_5,Final_Energy1_index_4))*('Final Energy Demand'!M$56=Final_Energy1_index_1)*(actCaseFinE_1=IF(geoResFinE,Final_Energy1_index_4,Final_Energy1_index_3))*Final_Energy1_vals)) -> 0.3263822717 | N69: =IF(actCaseFinE_1="",NA(),SUMPRODUCT(($C69=IF(geoResFinE,Final_Energy1_index_5,Final_Energy1_index_4))*('Final Energy Demand'!N$56=Final_Energy1_index_1)*(actCaseFinE_1=IF(geoResFinE,Final_Energy1_index_4,Final_Energy1_index_3))*Final_Energy1_vals)) -> 0.3229422576 | O69: =IF(actCaseFinE_1="",NA(),SUMPRODUCT(($C69=IF(geoResFinE,Final_Energy1_index_5,Final_Energy1_index_4))*('Final Energy Demand'!O$56=Final_Energy1_index_1)*(actCaseFinE_1=IF(geoResFinE,Final_Energy1_index_4,Final_Energy1_index_3))*Final_Energy1_vals)) -> 0.3194693626 | P69: =IF(actCaseFinE_1="",NA(),SUMPRODUCT(($C69=IF(geoResFinE,Final_Energy1_index_5,Final_Energy1_index_4))*('Final Energy Demand'!P$56=Final_Energy1_index_1)*(actCaseFinE_1=IF(geoResFinE,Final_Energy1_index_4,Final_Energy1_index_3))*Final_Energy1_vals)) -> 0.3159635868 | Q69: =IF(actCaseFinE_1="",NA(),SUMPRODUCT(($C69=IF(geoResFinE,Final_Energy1_index_5,Final_Energy1_index_4))*('Final Energy Demand'!Q$56=Final_Energy1_index_1)*(actCaseFinE_1=IF(geoResFinE,Final_Energy1_index_4,Final_Energy1_index_3))*Final_Energy1_vals)) -> 0.3124249302 | R69: =IF(actCaseFinE_1="",NA(),SUMPRODUCT(($C69=IF(geoResFinE,Final_Energy1_index_5,Final_Energy1_index_4))*('Final Energy Demand'!R$56=Final_Energy1_index_1)*(actCaseFinE_1=IF(geoResFinE,Final_Energy1_index_4,Final_Energy1_index_3))*Final_Energy1_vals)) -> 0.3088533927 | S69: =IF(actCaseFinE_1="",NA(),SUMPRODUCT(($C69=IF(geoResFinE,Final_Energy1_index_5,Final_Energy1_index_4))*('Final Energy Demand'!S$56=Final_Energy1_index_1)*(actCaseFinE_1=IF(geoResFinE,Final_Energy1_index_4,Final_Energy1_index_3))*Final_Energy1_vals)) -> 0.3052489744 | T69: =IF(actCaseFinE_1="",NA(),SUMPRODUCT(($C69=IF(geoResFinE,Final_Energy1_index_5,Final_Energy1_index_4))*('Final Energy Demand'!T$56=Final_Energy1_index_1)*(actCaseFinE_1=IF(geoResFinE,Final_Energy1_index_4,Final_Energy1_index_3))*Final_Energy1_vals)) -> 0.3063188359 | U69: =IF(actCaseFinE_1="",NA(),SUMPRODUCT(($C69=IF(geoResFinE,Final_Energy1_index_5,Final_Energy1_index_4))*('Final Energy Demand'!U$56=Final_Energy1_index_1)*(actCaseFinE_1=IF(geoResFinE,Final_Energy1_index_4,Final_Energy1_index_3))*Final_Energy1_vals)) -> 0.3073886974 | V69: =IF(actCaseFinE_1="",NA(),SUMPRODUCT(($C69=IF(geoResFinE,Final_Energy1_index_5,Final_Energy1_index_4))*('Final Energy Demand'!V$56=Final_Energy1_index_1)*(actCaseFinE_1=IF(geoResFinE,Final_Energy1_index_4,Final_Energy1_index_3))*Final_Energy1_vals)) -> 0.308458559 | W69: =IF(actCaseFinE_1="",NA(),SUMPRODUCT(($C69=IF(geoResFinE,Final_Energy1_index_5,Final_Energy1_index_4))*('Final Energy Demand'!W$56=Final_Energy1_index_1)*(actCaseFinE_1=IF(geoResFinE,Final_Energy1_index_4,Final_Energy1_index_3))*Final_Energy1_vals)) -> 0.3095284205 | X69: =IF(actCaseFinE_1="",NA(),SUMPRODUCT(($C69=IF(geoResFinE,Final_Energy1_index_5,Final_Energy1_index_4))*('Final Energy Demand'!X$56=Final_Energy1_index_1)*(actCaseFinE_1=IF(geoResFinE,Final_Energy1_index_4,Final_Energy1_index_3))*Final_Energy1_vals)) -> 0.3105982821 | Y69: =IF(actCaseFinE_1="",NA(),SUMPRODUCT(($C69=IF(geoResFinE,Final_Energy1_index_5,Final_Energy1_index_4))*('Final Energy Demand'!Y$56=Final_Energy1_index_1)*(actCaseFinE_1=IF(geoResFinE,Final_Energy1_index_4,Final_Energy1_index_3))*Final_Energy1_vals)) -> 0.3116681436 | Z69: =IF(actCaseFinE_1="",NA(),SUMPRODUCT(($C69=IF(geoResFinE,Final_Energy1_index_5,Final_Energy1_index_4))*('Final Energy Demand'!Z$56=Final_Energy1_index_1)*(actCaseFinE_1=IF(geoResFinE,Final_Energy1_index_4,Final_Energy1_index_3))*Final_Energy1_vals)) -> 0.3127380051 | AA69: =IF(actCaseFinE_1="",NA(),SUMPRODUCT(($C69=IF(geoResFinE,Final_Energy1_index_5,Final_Energy1_index_4))*('Final Energy Demand'!AA$56=Final_Energy1_index_1)*(actCaseFinE_1=IF(geoResFinE,Final_Energy1_index_4,Final_Energy1_index_3))*Final_Energy1_vals)) -> 0.3138078667 | AB69: =IF(actCaseFinE_1="",NA(),SUMPRODUCT(($C69=IF(geoResFinE,Final_Energy1_index_5,Final_Energy1_index_4))*('Final Energy Demand'!AB$56=Final_Energy1_index_1)*(actCaseFinE_1=IF(geoResFinE,Final_Energy1_index_4,Final_Energy1_index_3))*Final_Energy1_vals)) -> 0.3148777282 | AC69: =IF(actCaseFinE_1="",NA(),SUMPRODUCT(($C69=IF(geoResFinE,Final_Energy1_index_5,Final_Energy1_index_4))*('Final Energy Demand'!AC$56=Final_Energy1_index_1)*(actCaseFinE_1=IF(geoResFinE,Final_Energy1_index_4,Final_Energy1_index_3))*Final_Energy1_vals)) -> 0.3159475897 | AD69: =IF(actCaseFinE_1="",NA(),SUMPRODUCT(($C69=IF(geoResFinE,Final_Energy1_index_5,Final_Energy1_index_4))*('Final Energy Demand'!AD$56=Final_Energy1_index_1)*(actCaseFinE_1=IF(geoResFinE,Final_Energy1_index_4,Final_Energy1_index_3))*Final_Energy1_vals)) -> 0.3170174513 | AE69: =IF(actCaseFinE_1="",NA(),SUMPRODUCT(($C69=IF(geoResFinE,Final_Energy1_index_5,Final_Energy1_index_4))*('Final Energy Demand'!AE$56=Final_Energy1_index_1)*(actCaseFinE_1=IF(geoResFinE,Final_Energy1_index_4,Final_Energy1_index_3))*Final_Energy1_vals)) -> 0.3180873128 | AF69: =IF(actCaseFinE_1="",NA(),SUMPRODUCT(($C69=IF(geoResFinE,Final_Energy1_index_5,Final_Energy1_index_4))*('Final Energy Demand'!AF$56=Final_Energy1_index_1)*(actCaseFinE_1=IF(geoResFinE,Final_Energy1_index_4,Final_Energy1_index_3))*Final_Energy1_vals)) -> 0.3191571744 | AG69: =IF(actCaseFinE_1="",NA(),SUMPRODUCT(($C69=IF(geoResFinE,Final_Energy1_index_5,Final_Energy1_index_4))*('Final Energy Demand'!AG$56=Final_Energy1_index_1)*(actCaseFinE_1=IF(geoResFinE,Final_Energy1_index_4,Final_Energy1_index_3))*Final_Energy1_vals)) -> 0.3202270359 | AH69: =IF(actCaseFinE_1="",NA(),SUMPRODUCT(($C69=IF(geoResFinE,Final_Energy1_index_5,Final_Energy1_index_4))*('Final Energy Demand'!AH$56=Final_Energy1_index_1)*(actCaseFinE_1=IF(geoResFinE,Final_Energy1_index_4,Final_Energy1_index_3))*Final_Energy1_vals)) -> 0.3212968974 | AI69: =IF(actCaseFinE_1="",NA(),SUMPRODUCT(($C69=IF(geoResFinE,Final_Energy1_index_5,Final_Energy1_index_4))*('Final Energy Demand'!AI$56=Final_Energy1_index_1)*(actCaseFinE_1=IF(geoResFinE,Final_Energy1_index_4,Final_Energy1_index_3))*Final_Energy1_vals)) -> 0.322366759 | AJ69: =IF(actCaseFinE_1="",NA(),SUMPRODUCT(($C69=IF(geoResFinE,Final_Energy1_index_5,Final_Energy1_index_4))*('Final Energy Demand'!AJ$56=Final_Energy1_index_1)*(actCaseFinE_1=IF(geoResFinE,Final_Energy1_index_4,Final_Energy1_index_3))*Final_Energy1_vals)) -> 0.3234366205 | AK69: =IF(actCaseFinE_1="",NA(),SUMPRODUCT(($C69=IF(geoResFinE,Final_Energy1_index_5,Final_Energy1_index_4))*('Final Energy Demand'!AK$56=Final_Energy1_index_1)*(actCaseFinE_1=IF(geoResFinE,Final_Energy1_index_4,Final_Energy1_index_3))*Final_Energy1_vals)) -> 0.3245064821 | AL69: =IF(actCaseFinE_1="",NA(),SUMPRODUCT(($C69=IF(geoResFinE,Final_Energy1_index_5,Final_Energy1_index_4))*('Final Energy Demand'!AL$56=Final_Energy1_index_1)*(actCaseFinE_1=IF(geoResFinE,Final_Energy1_index_4,Final_Energy1_index_3))*Final_Energy1_vals)) -> 0.3255763436 | AM69: =IF(actCaseFinE_1="",NA(),SUMPRODUCT(($C69=IF(geoResFinE,Final_Energy1_index_5,Final_Energy1_index_4))*('Final Energy Demand'!AM$56=Final_Energy1_index_1)*(actCaseFinE_1=IF(geoResFinE,Final_Energy1_index_4,Final_Energy1_index_3))*Final_Energy1_vals)) -> 0.3266462051 | AP69: 0.3052489744
C70: Waste Heat | D70: =IF(actCaseFinE_1="",NA(),SUMPRODUCT(($C70=IF(geoResFinE,Final_Energy1_index_5,Final_Energy1_index_4))*('Final Energy Demand'!D$56=Final_Energy1_index_1)*(actCaseFinE_1=IF(geoResFinE,Final_Energy1_index_4,Final_Energy1_index_3))*Final_Energy1_vals)) -> 0.1512458417 | E70: =IF(actCaseFinE_1="",NA(),SUMPRODUCT(($C70=IF(geoResFinE,Final_Energy1_index_5,Final_Energy1_index_4))*('Final Energy Demand'!E$56=Final_Energy1_index_1)*(actCaseFinE_1=IF(geoResFinE,Final_Energy1_index_4,Final_Energy1_index_3))*Final_Energy1_vals)) -> 0.1521884844 | F70: =IF(actCaseFinE_1="",NA(),SUMPRODUCT(($C70=IF(geoResFinE,Final_Energy1_index_5,Final_Energy1_index_4))*('Final Energy Demand'!F$56=Final_Energy1_index_1)*(actCaseFinE_1=IF(geoResFinE,Final_Energy1_index_4,Final_Energy1_index_3))*Final_Energy1_vals)) -> 0.1531467347 | G70: =IF(actCaseFinE_1="",NA(),SUMPRODUCT(($C70=IF(geoResFinE,Final_Energy1_index_5,Final_Energy1_index_4))*('Final Energy Demand'!G$56=Final_Energy1_index_1)*(actCaseFinE_1=IF(geoResFinE,Final_Energy1_index_4,Final_Energy1_index_3))*Final_Energy1_vals)) -> 0.1540839753 | H70: =IF(actCaseFinE_1="",NA(),SUMPRODUCT(($C70=IF(geoResFinE,Final_Energy1_index_5,Final_Energy1_index_4))*('Final Energy Demand'!H$56=Final_Energy1_index_1)*(actCaseFinE_1=IF(geoResFinE,Final_Energy1_index_4,Final_Energy1_index_3))*Final_Energy1_vals)) -> 0.1550052053 | I70: =IF(actCaseFinE_1="",NA(),SUMPRODUCT(($C70=IF(geoResFinE,Final_Energy1_index_5,Final_Energy1_index_4))*('Final Energy Demand'!I$56=Final_Energy1_index_1)*(actCaseFinE_1=IF(geoResFinE,Final_Energy1_index_4,Final_Energy1_index_3))*Final_Energy1_vals)) -> 0.1559080037 | J70: =IF(actCaseFinE_1="",NA(),SUMPRODUCT(($C70=IF(geoResFinE,Final_Energy1_index_5,Final_Energy1_index_4))*('Final Energy Demand'!J$56=Final_Energy1_index_1)*(actCaseFinE_1=IF(geoResFinE,Final_Energy1_index_4,Final_Energy1_index_3))*Final_Energy1_vals)) -> 0.1564382882 | K70: =IF(actCaseFinE_1="",NA(),SUMPRODUCT(($C70=IF(geoResFinE,Final_Energy1_index_5,Final_Energy1_index_4))*('Final Energy Demand'!K$56=Final_Energy1_index_1)*(actCaseFinE_1=IF(geoResFinE,Final_Energy1_index_4,Final_Energy1_index_3))*Final_Energy1_vals)) -> 0.1569707295 | L70: =IF(actCaseFinE_1="",NA(),SUMPRODUCT(($C70=IF(geoResFinE,Final_Energy1_index_5,Final_Energy1_index_4))*('Final Energy Demand'!L$56=Final_Energy1_index_1)*(actCaseFinE_1=IF(geoResFinE,Final_Energy1_index_4,Final_Energy1_index_3))*Final_Energy1_vals)) -> 0.1575084839 | M70: =IF(actCaseFinE_1="",NA(),SUMPRODUCT(($C70=IF(geoResFinE,Final_Energy1_index_5,Final_Energy1_index_4))*('Final Energy Demand'!M$56=Final_Energy1_index_1)*(actCaseFinE_1=IF(geoResFinE,Final_Energy1_index_4,Final_Energy1_index_3))*Final_Energy1_vals)) -> 0.1580490473 | N70: =IF(actCaseFinE_1="",NA(),SUMPRODUCT(($C70=IF(geoResFinE,Final_Energy1_index_5,Final_Energy1_index_4))*('Final Energy Demand'!N$56=Final_Energy1_index_1)*(actCaseFinE_1=IF(geoResFinE,Final_Energy1_index_4,Final_Energy1_index_3))*Final_Energy1_vals)) -> 0.1586442505 | O70: =IF(actCaseFinE_1="",NA(),SUMPRODUCT(($C70=IF(geoResFinE,Final_Energy1_index_5,Final_Energy1_index_4))*('Final Energy Demand'!O$56=Final_Energy1_index_1)*(actCaseFinE_1=IF(geoResFinE,Final_Energy1_index_4,Final_Energy1_index_3))*Final_Energy1_vals)) -> 0.1592509007 | P70: =IF(actCaseFinE_1="",NA(),SUMPRODUCT(($C70=IF(geoResFinE,Final_Energy1_index_5,Final_Energy1_index_4))*('Final Energy Demand'!P$56=Final_Energy1_index_1)*(actCaseFinE_1=IF(geoResFinE,Final_Energy1_index_4,Final_Energy1_index_3))*Final_Energy1_vals)) -> 0.1598674186 | Q70: =IF(actCaseFinE_1="",NA(),SUMPRODUCT(($C70=IF(geoResFinE,Final_Energy1_index_5,Final_Energy1_index_4))*('Final Energy Demand'!Q$56=Final_Energy1_index_1)*(actCaseFinE_1=IF(geoResFinE,Final_Energy1_index_4,Final_Energy1_index_3))*Final_Energy1_vals)) -> 0.1604915259 | R70: =IF(actCaseFinE_1="",NA(),SUMPRODUCT(($C70=IF(geoResFinE,Final_Energy1_index_5,Final_Energy1_index_4))*('Final Energy Demand'!R$56=Final_Energy1_index_1)*(actCaseFinE_1=IF(geoResFinE,Final_Energy1_index_4,Final_Energy1_index_3))*Final_Energy1_vals)) -> 0.1611216466 | S70: =IF(actCaseFinE_1="",NA(),SUMPRODUCT(($C70=IF(geoResFinE,Final_Energy1_index_5,Final_Energy1_index_4))*('Final Energy Demand'!S$56=Final_Energy1_index_1)*(actCaseFinE_1=IF(geoResFinE,Final_Energy1_index_4,Final_Energy1_index_3))*Final_Energy1_vals)) -> 0.1617551123 | T70: =IF(actCaseFinE_1="",NA(),SUMPRODUCT(($C70=IF(geoResFinE,Final_Energy1_index_5,Final_Energy1_index_4))*('Final Energy Demand'!T$56=Final_Energy1_index_1)*(actCaseFinE_1=IF(geoResFinE,Final_Energy1_index_4,Final_Energy1_index_3))*Final_Energy1_vals)) -> 0.1560587611 | U70: =IF(actCaseFinE_1="",NA(),SUMPRODUCT(($C70=IF(geoResFinE,Final_Energy1_index_5,Final_Energy1_index_4))*('Final Energy Demand'!U$56=Final_Energy1_index_1)*(actCaseFinE_1=IF(geoResFinE,Final_Energy1_index_4,Final_Energy1_index_3))*Final_Energy1_vals)) -> 0.1503691142 | V70: =IF(actCaseFinE_1="",NA(),SUMPRODUCT(($C70=IF(geoResFinE,Final_Energy1_index_5,Final_Energy1_index_4))*('Final Energy Demand'!V$56=Final_Energy1_index_1)*(actCaseFinE_1=IF(geoResFinE,Final_Energy1_index_4,Final_Energy1_index_3))*Final_Energy1_vals)) -> 0.1446750127 | W70: =IF(actCaseFinE_1="",NA(),SUMPRODUCT(($C70=IF(geoResFinE,Final_Energy1_index_5,Final_Energy1_index_4))*('Final Energy Demand'!W$56=Final_Energy1_index_1)*(actCaseFinE_1=IF(geoResFinE,Final_Energy1_index_4,Final_Energy1_index_3))*Final_Energy1_vals)) -> 0.1389851408 | X70: =IF(actCaseFinE_1="",NA(),SUMPRODUCT(($C70=IF(geoResFinE,Final_Energy1_index_5,Final_Energy1_index_4))*('Final Energy Demand'!X$56=Final_Energy1_index_1)*(actCaseFinE_1=IF(geoResFinE,Final_Energy1_index_4,Final_Energy1_index_3))*Final_Energy1_vals)) -> 0.1332887895 | Y70: =IF(actCaseFinE_1="",NA(),SUMPRODUCT(($C70=IF(geoResFinE,Final_Energy1_index_5,Final_Energy1_index_4))*('Final Energy Demand'!Y$56=Final_Energy1_index_1)*(actCaseFinE_1=IF(geoResFinE,Final_Energy1_index_4,Final_Energy1_index_3))*Final_Energy1_vals)) -> 0.1275968928 | Z70: =IF(actCaseFinE_1="",NA(),SUMPRODUCT(($C70=IF(geoResFinE,Final_Energy1_index_5,Final_Energy1_index_4))*('Final Energy Demand'!Z$56=Final_Energy1_index_1)*(actCaseFinE_1=IF(geoResFinE,Final_Energy1_index_4,Final_Energy1_index_3))*Final_Energy1_vals)) -> 0.1219050411 | AA70: =IF(actCaseFinE_1="",NA(),SUMPRODUCT(($C70=IF(geoResFinE,Final_Energy1_index_5,Final_Energy1_index_4))*('Final Energy Demand'!AA$56=Final_Energy1_index_1)*(actCaseFinE_1=IF(geoResFinE,Final_Energy1_index_4,Final_Energy1_index_3))*Final_Energy1_vals)) -> 0.1162106697 | AB70: =IF(actCaseFinE_1="",NA(),SUMPRODUCT(($C70=IF(geoResFinE,Final_Energy1_index_5,Final_Energy1_index_4))*('Final Energy Demand'!AB$56=Final_Energy1_index_1)*(actCaseFinE_1=IF(geoResFinE,Final_Energy1_index_4,Final_Energy1_index_3))*Final_Energy1_vals)) -> 0.1105210678 | AC70: =IF(actCaseFinE_1="",NA(),SUMPRODUCT(($C70=IF(geoResFinE,Final_Energy1_index_5,Final_Energy1_index_4))*('Final Energy Demand'!AC$56=Final_Energy1_index_1)*(actCaseFinE_1=IF(geoResFinE,Final_Energy1_index_4,Final_Energy1_index_3))*Final_Energy1_vals)) -> 0.1048269213 | AD70: =IF(actCaseFinE_1="",NA(),SUMPRODUCT(($C70=IF(geoResFinE,Final_Energy1_index_5,Final_Energy1_index_4))*('Final Energy Demand'!AD$56=Final_Energy1_index_1)*(actCaseFinE_1=IF(geoResFinE,Final_Energy1_index_4,Final_Energy1_index_3))*Final_Energy1_vals)) -> 0.0991328198 | AE70: =IF(actCaseFinE_1="",NA(),SUMPRODUCT(($C70=IF(geoResFinE,Final_Energy1_index_5,Final_Energy1_index_4))*('Final Energy Demand'!AE$56=Final_Energy1_index_1)*(actCaseFinE_1=IF(geoResFinE,Final_Energy1_index_4,Final_Energy1_index_3))*Final_Energy1_vals)) -> 0.09343844835 | AF70: =IF(actCaseFinE_1="",NA(),SUMPRODUCT(($C70=IF(geoResFinE,Final_Energy1_index_5,Final_Energy1_index_4))*('Final Energy Demand'!AF$56=Final_Energy1_index_1)*(actCaseFinE_1=IF(geoResFinE,Final_Energy1_index_4,Final_Energy1_index_3))*Final_Energy1_vals)) -> 0.0877510962 | AG70: =IF(actCaseFinE_1="",NA(),SUMPRODUCT(($C70=IF(geoResFinE,Final_Energy1_index_5,Final_Energy1_index_4))*('Final Energy Demand'!AG$56=Final_Energy1_index_1)*(actCaseFinE_1=IF(geoResFinE,Final_Energy1_index_4,Final_Energy1_index_3))*Final_Energy1_vals)) -> 0.08205582484 | AH70: =IF(actCaseFinE_1="",NA(),SUMPRODUCT(($C70=IF(geoResFinE,Final_Energy1_index_5,Final_Energy1_index_4))*('Final Energy Demand'!AH$56=Final_Energy1_index_1)*(actCaseFinE_1=IF(geoResFinE,Final_Energy1_index_4,Final_Energy1_index_3))*Final_Energy1_vals)) -> 0.07635857367 | AI70: =IF(actCaseFinE_1="",NA(),SUMPRODUCT(($C70=IF(geoResFinE,Final_Energy1_index_5,Final_Energy1_index_4))*('Final Energy Demand'!AI$56=Final_Energy1_index_1)*(actCaseFinE_1=IF(geoResFinE,Final_Energy1_index_4,Final_Energy1_index_3))*Final_Energy1_vals)) -> 0.0706684768 | AJ70: =IF(actCaseFinE_1="",NA(),SUMPRODUCT(($C70=IF(geoResFinE,Final_Energy1_index_5,Final_Energy1_index_4))*('Final Energy Demand'!AJ$56=Final_Energy1_index_1)*(actCaseFinE_1=IF(geoResFinE,Final_Energy1_index_4,Final_Energy1_index_3))*Final_Energy1_vals)) -> 0.06497415034 | AK70: =IF(actCaseFinE_1="",NA(),SUMPRODUCT(($C70=IF(geoResFinE,Final_Energy1_index_5,Final_Energy1_index_4))*('Final Energy Demand'!AK$56=Final_Energy1_index_1)*(actCaseFinE_1=IF(geoResFinE,Final_Energy1_index_4,Final_Energy1_index_3))*Final_Energy1_vals)) -> 0.05928202866 | AL70: =IF(actCaseFinE_1="",NA(),SUMPRODUCT(($C70=IF(geoResFinE,Final_Energy1_index_5,Final_Energy1_index_4))*('Final Energy Demand'!AL$56=Final_Energy1_index_1)*(actCaseFinE_1=IF(geoResFinE,Final_Energy1_index_4,Final_Energy1_index_3))*Final_Energy1_vals)) -> 0.05358972701 | AM70: =IF(actCaseFinE_1="",NA(),SUMPRODUCT(($C70=IF(geoResFinE,Final_Energy1_index_5,Final_Energy1_index_4))*('Final Energy Demand'!AM$56=Final_Energy1_index_1)*(actCaseFinE_1=IF(geoResFinE,Final_Energy1_index_4,Final_Energy1_index_3))*Final_Energy1_vals)) -> 0.04789963013 | AP70: 0.1617551123
C71: Wood | D71: =IF(actCaseFinE_1="",NA(),SUMPRODUCT(($C71=IF(geoResFinE,Final_Energy1_index_5,Final_Energy1_index_4))*('Final Energy Demand'!D$56=Final_Energy1_index_1)*(actCaseFinE_1=IF(geoResFinE,Final_Energy1_index_4,Final_Energy1_index_3))*Final_Energy1_vals)) -> 0 | E71: =IF(actCaseFinE_1="",NA(),SUMPRODUCT(($C71=IF(geoResFinE,Final_Energy1_index_5,Final_Energy1_index_4))*('Final Energy Demand'!E$56=Final_Energy1_index_1)*(actCaseFinE_1=IF(geoResFinE,Final_Energy1_index_4,Final_Energy1_index_3))*Final_Energy1_vals)) -> 0 | F71: =IF(actCaseFinE_1="",NA(),SUMPRODUCT(($C71=IF(geoResFinE,Final_Energy1_index_5,Final_Energy1_index_4))*('Final Energy Demand'!F$56=Final_Energy1_index_1)*(actCaseFinE_1=IF(geoResFinE,Final_Energy1_index_4,Final_Energy1_index_3))*Final_Energy1_vals)) -> 0 | G71: =IF(actCaseFinE_1="",NA(),SUMPRODUCT(($C71=IF(geoResFinE,Final_Energy1_index_5,Final_Energy1_index_4))*('Final Energy Demand'!G$56=Final_Energy1_index_1)*(actCaseFinE_1=IF(geoResFinE,Final_Energy1_index_4,Final_Energy1_index_3))*Final_Energy1_vals)) -> 0 | H71: =IF(actCaseFinE_1="",NA(),SUMPRODUCT(($C71=IF(geoResFinE,Final_Energy1_index_5,Final_Energy1_index_4))*('Final Energy Demand'!H$56=Final_Energy1_index_1)*(actCaseFinE_1=IF(geoResFinE,Final_Energy1_index_4,Final_Energy1_index_3))*Final_Energy1_vals)) -> 0 | I71: =IF(actCaseFinE_1="",NA(),SUMPRODUCT(($C71=IF(geoResFinE,Final_Energy1_index_5,Final_Energy1_index_4))*('Final Energy Demand'!I$56=Final_Energy1_index_1)*(actCaseFinE_1=IF(geoResFinE,Final_Energy1_index_4,Final_Energy1_index_3))*Final_Energy1_vals)) -> 0 | J71: =IF(actCaseFinE_1="",NA(),SUMPRODUCT(($C71=IF(geoResFinE,Final_Energy1_index_5,Final_Energy1_index_4))*('Final Energy Demand'!J$56=Final_Energy1_index_1)*(actCaseFinE_1=IF(geoResFinE,Final_Energy1_index_4,Final_Energy1_index_3))*Final_Energy1_vals)) -> 0 | K71: =IF(actCaseFinE_1="",NA(),SUMPRODUCT(($C71=IF(geoResFinE,Final_Energy1_index_5,Final_Energy1_index_4))*('Final Energy Demand'!K$56=Final_Energy1_index_1)*(actCaseFinE_1=IF(geoResFinE,Final_Energy1_index_4,Final_Energy1_index_3))*Final_Energy1_vals)) -> 0 | L71: =IF(actCaseFinE_1="",NA(),SUMPRODUCT(($C71=IF(geoResFinE,Final_Energy1_index_5,Final_Energy1_index_4))*('Final Energy Demand'!L$56=Final_Energy1_index_1)*(actCaseFinE_1=IF(geoResFinE,Final_Energy1_index_4,Final_Energy1_index_3))*Final_Energy1_vals)) -> 0 | M71: =IF(actCaseFinE_1="",NA(),SUMPRODUCT(($C71=IF(geoResFinE,Final_Energy1_index_5,Final_Energy1_index_4))*('Final Energy Demand'!M$56=Final_Energy1_index_1)*(actCaseFinE_1=IF(geoResFinE,Final_Energy1_index_4,Final_Energy1_index_3))*Final_Energy1_vals)) -> 0 | N71: =IF(actCaseFinE_1="",NA(),SUMPRODUCT(($C71=IF(geoResFinE,Final_Energy1_index_5,Final_Energy1_index_4))*('Final Energy Demand'!N$56=Final_Energy1_index_1)*(actCaseFinE_1=IF(geoResFinE,Final_Energy1_index_4,Final_Energy1_index_3))*Final_Energy1_vals)) -> 0 | O71: =IF(actCaseFinE_1="",NA(),SUMPRODUCT(($C71=IF(geoResFinE,Final_Energy1_index_5,Final_Energy1_index_4))*('Final Energy Demand'!O$56=Final_Energy1_index_1)*(actCaseFinE_1=IF(geoResFinE,Final_Energy1_index_4,Final_Energy1_index_3))*Final_Energy1_vals)) -> 0 | P71: =IF(actCaseFinE_1="",NA(),SUMPRODUCT(($C71=IF(geoResFinE,Final_Energy1_index_5,Final_Energy1_index_4))*('Final Energy Demand'!P$56=Final_Energy1_index_1)*(actCaseFinE_1=IF(geoResFinE,Final_Energy1_index_4,Final_Energy1_index_3))*Final_Energy1_vals)) -> 0 | Q71: =IF(actCaseFinE_1="",NA(),SUMPRODUCT(($C71=IF(geoResFinE,Final_Energy1_index_5,Final_Energy1_index_4))*('Final Energy Demand'!Q$56=Final_Energy1_index_1)*(actCaseFinE_1=IF(geoResFinE,Final_Energy1_index_4,Final_Energy1_index_3))*Final_Energy1_vals)) -> 0 | R71: =IF(actCaseFinE_1="",NA(),SUMPRODUCT(($C71=IF(geoResFinE,Final_Energy1_index_5,Final_Energy1_index_4))*('Final Energy Demand'!R$56=Final_Energy1_index_1)*(actCaseFinE_1=IF(geoResFinE,Final_Energy1_index_4,Final_Energy1_index_3))*Final_Energy1_vals)) -> 0 | S71: =IF(actCaseFinE_1="",NA(),SUMPRODUCT(($C71=IF(geoResFinE,Final_Energy1_index_5,Final_Energy1_index_4))*('Final Energy Demand'!S$56=Final_Energy1_index_1)*(actCaseFinE_1=IF(geoResFinE,Final_Energy1_index_4,Final_Energy1_index_3))*Final_Energy1_vals)) -> 0 | T71: =IF(actCaseFinE_1="",NA(),SUMPRODUCT(($C71=IF(geoResFinE,Final_Energy1_index_5,Final_Energy1_index_4))*('Final Energy Demand'!T$56=Final_Energy1_index_1)*(actCaseFinE_1=IF(geoResFinE,Final_Energy1_index_4,Final_Energy1_index_3))*Final_Energy1_vals)) -> 0 | U71: =IF(actCaseFinE_1="",NA(),SUMPRODUCT(($C71=IF(geoResFinE,Final_Energy1_index_5,Final_Energy1_index_4))*('Final Energy Demand'!U$56=Final_Energy1_index_1)*(actCaseFinE_1=IF(geoResFinE,Final_Energy1_index_4,Final_Energy1_index_3))*Final_Energy1_vals)) -> 0 | V71: =IF(actCaseFinE_1="",NA(),SUMPRODUCT(($C71=IF(geoResFinE,Final_Energy1_index_5,Final_Energy1_index_4))*('Final Energy Demand'!V$56=Final_Energy1_index_1)*(actCaseFinE_1=IF(geoResFinE,Final_Energy1_index_4,Final_Energy1_index_3))*Final_Energy1_vals)) -> 0 | W71: =IF(actCaseFinE_1="",NA(),SUMPRODUCT(($C71=IF(geoResFinE,Final_Energy1_index_5,Final_Energy1_index_4))*('Final Energy Demand'!W$56=Final_Energy1_index_1)*(actCaseFinE_1=IF(geoResFinE,Final_Energy1_index_4,Final_Energy1_index_3))*Final_Energy1_vals)) -> 0 | X71: =IF(actCaseFinE_1="",NA(),SUMPRODUCT(($C71=IF(geoResFinE,Final_Energy1_index_5,Final_Energy1_index_4))*('Final Energy Demand'!X$56=Final_Energy1_index_1)*(actCaseFinE_1=IF(geoResFinE,Final_Energy1_index_4,Final_Energy1_index_3))*Final_Energy1_vals)) -> 0 | Y71: =IF(actCaseFinE_1="",NA(),SUMPRODUCT(($C71=IF(geoResFinE,Final_Energy1_index_5,Final_Energy1_index_4))*('Final Energy Demand'!Y$56=Final_Energy1_index_1)*(actCaseFinE_1=IF(geoResFinE,Final_Energy1_index_4,Final_Energy1_index_3))*Final_Energy1_vals)) -> 0 | Z71: =IF(actCaseFinE_1="",NA(),SUMPRODUCT(($C71=IF(geoResFinE,Final_Energy1_index_5,Final_Energy1_index_4))*('Final Energy Demand'!Z$56=Final_Energy1_index_1)*(actCaseFinE_1=IF(geoResFinE,Final_Energy1_index_4,Final_Energy1_index_3))*Final_Energy1_vals)) -> 0 | AA71: =IF(actCaseFinE_1="",NA(),SUMPRODUCT(($C71=IF(geoResFinE,Final_Energy1_index_5,Final_Energy1_index_4))*('Final Energy Demand'!AA$56=Final_Energy1_index_1)*(actCaseFinE_1=IF(geoResFinE,Final_Energy1_index_4,Final_Energy1_index_3))*Final_Energy1_vals)) -> 0 | AB71: =IF(actCaseFinE_1="",NA(),SUMPRODUCT(($C71=IF(geoResFinE,Final_Energy1_index_5,Final_Energy1_index_4))*('Final Energy Demand'!AB$56=Final_Energy1_index_1)*(actCaseFinE_1=IF(geoResFinE,Final_Energy1_index_4,Final_Energy1_index_3))*Final_Energy1_vals)) -> 0 | AC71: =IF(actCaseFinE_1="",NA(),SUMPRODUCT(($C71=IF(geoResFinE,Final_Energy1_index_5,Final_Energy1_index_4))*('Final Energy Demand'!AC$56=Final_Energy1_index_1)*(actCaseFinE_1=IF(geoResFinE,Final_Energy1_index_4,Final_Energy1_index_3))*Final_Energy1_vals)) -> 0 | AD71: =IF(actCaseFinE_1="",NA(),SUMPRODUCT(($C71=IF(geoResFinE,Final_Energy1_index_5,Final_Energy1_index_4))*('Final Energy Demand'!AD$56=Final_Energy1_index_1)*(actCaseFinE_1=IF(geoResFinE,Final_Energy1_index_4,Final_Energy1_index_3))*Final_Energy1_vals)) -> 0 | AE71: =IF(actCaseFinE_1="",NA(),SUMPRODUCT(($C71=IF(geoResFinE,Final_Energy1_index_5,Final_Energy1_index_4))*('Final Energy Demand'!AE$56=Final_Energy1_index_1)*(actCaseFinE_1=IF(geoResFinE,Final_Energy1_index_4,Final_Energy1_index_3))*Final_Energy1_vals)) -> 0 | AF71: =IF(actCaseFinE_1="",NA(),SUMPRODUCT(($C71=IF(geoResFinE,Final_Energy1_index_5,Final_Energy1_index_4))*('Final Energy Demand'!AF$56=Final_Energy1_index_1)*(actCaseFinE_1=IF(geoResFinE,Final_Energy1_index_4,Final_Energy1_index_3))*Final_Energy1_vals)) -> 0 | AG71: =IF(actCaseFinE_1="",NA(),SUMPRODUCT(($C71=IF(geoResFinE,Final_Energy1_index_5,Final_Energy1_index_4))*('Final Energy Demand'!AG$56=Final_Energy1_index_1)*(actCaseFinE_1=IF(geoResFinE,Final_Energy1_index_4,Final_Energy1_index_3))*Final_Energy1_vals)) -> 0 | AH71: =IF(actCaseFinE_1="",NA(),SUMPRODUCT(($C71=IF(geoResFinE,Final_Energy1_index_5,Final_Energy1_index_4))*('Final Energy Demand'!AH$56=Final_Energy1_index_1)*(actCaseFinE_1=IF(geoResFinE,Final_Energy1_index_4,Final_Energy1_index_3))*Final_Energy1_vals)) -> 0 | AI71: =IF(actCaseFinE_1="",NA(),SUMPRODUCT(($C71=IF(geoResFinE,Final_Energy1_index_5,Final_Energy1_index_4))*('Final Energy Demand'!AI$56=Final_Energy1_index_1)*(actCaseFinE_1=IF(geoResFinE,Final_Energy1_index_4,Final_Energy1_index_3))*Final_Energy1_vals)) -> 0 | AJ71: =IF(actCaseFinE_1="",NA(),SUMPRODUCT(($C71=IF(geoResFinE,Final_Energy1_index_5,Final_Energy1_index_4))*('Final Energy Demand'!AJ$56=Final_Energy1_index_1)*(actCaseFinE_1=IF(geoResFinE,Final_Energy1_index_4,Final_Energy1_index_3))*Final_Energy1_vals)) -> 0 | AK71: =IF(actCaseFinE_1="",NA(),SUMPRODUCT(($C71=IF(geoResFinE,Final_Energy1_index_5,Final_Energy1_index_4))*('Final Energy Demand'!AK$56=Final_Energy1_index_1)*(actCaseFinE_1=IF(geoResFinE,Final_Energy1_index_4,Final_Energy1_index_3))*Final_Energy1_vals)) -> 0 | AL71: =IF(actCaseFinE_1="",NA(),SUMPRODUCT(($C71=IF(geoResFinE,Final_Energy1_index_5,Final_Energy1_index_4))*('Final Energy Demand'!AL$56=Final_Energy1_index_1)*(actCaseFinE_1=IF(geoResFinE,Final_Energy1_index_4,Final_Energy1_index_3))*Final_Energy1_vals)) -> 0 | AM71: =IF(actCaseFinE_1="",NA(),SUMPRODUCT(($C71=IF(geoResFinE,Final_Energy1_index_5,Final_Energy1_index_4))*('Final Energy Demand'!AM$56=Final_Energy1_index_1)*(actCaseFinE_1=IF(geoResFinE,Final_Energy1_index_4,Final_Energy1_index_3))*Final_Energy1_vals)) -> 0 | AP71: 0
C72: Total | D72: =IF(actCaseFinE_1="",NA(),SUM(D57:D71)) -> 5.83105453 | E72: 5.831579067 | F72: 5.812722199 | G72: 5.757000348 | H72: 5.692991579 | I72: 5.624716357 | J72: 5.543933301 | K72: 5.451992631 | L72: 5.362790913 | M72: 5.269102652 | N72: 5.186587659 | O72: 5.099671492 | P72: 5.023756391 | Q72: 4.950745982 | R72: 4.881536684 | S72: 4.815907447 | T72: 4.764281322 | U72: 4.718142531 | V72: 4.675241007 | W72: 4.634532896 | X72: 4.595504021 | Y72: 4.559894345 | Z72: 4.526097555 | AA72: 4.494382801 | AB72: 4.464171888 | AC72: 4.435662375 | AD72: 4.409248633 | AE72: 4.384996942 | AF72: 4.362715464 | AG72: 4.342200809 | AH72: 4.325090912 | AI72: 4.309418995 | AJ72: 4.295201805 | AK72: 4.282321675 | AL72: 4.270571559 | AM72: 4.259707493

Sheet Generation Portfolio
B2: Active CSV Directory | D2: =outputDir -> S:\E3 Projects\CARB Scoping Plan Update 2016\Model\Case Outputs\LATEST CASE OUTPUTS\REF-SP-SP+
B3: Active Case | D3: Scoping Plan
C34: 2015 | D34: =+C34+1 -> 2016 | E34: 2017 | F34: 2018 | G34: 2019 | H34: 2020 | I34: 2021 | J34: 2022 | K34: 2023 | L34: 2024 | M34: 2025 | N34: 2026 | O34: 2027 | P34: 2028 | Q34: 2029 | R34: 2030 | S34: 2031 | T34: 2032 | U34: 2033 | V34: 2034 | W34: 2035 | X34: 2036 | Y34: 2037 | Z34: 2038 | AA34: 2039 | AB34: 2040 | AC34: 2041 | AD34: 2042 | AE34: 2043 | AF34: 2044 | AG34: 2045 | AH34: 2046 | AI34: 2047 | AJ34: 2048 | AK34: 2049 | AL34: 2050
B35: Curtailment | C35: =IFERROR(INDEX(Renewable_Curtailmen_vals,MATCH(genActCase&"#"&C$34,Renewable_Curtailmen_index,0)),0) -> 0 | D35: 1.868841982e-05 | E35: 2.430670008e-05 | F35: 0 | G35: 0 | H35: 4.168810095e-05 | I35: 0.0001440456909 | J35: 0.0003407444672 | K35: 0.001024328383 | L35: 0.002271493218 | M35: 0.001858118917 | N35: 0.003950257859 | O35: 0.006983313592 | P35: 0.01078936749 | Q35: 0.01572014272 | R35: 0.02201571241 | S35: 0.02708115525 | T35: 0.03233470262 | U35: 0.03797248607 | V35: 0.04327324941 | W35: 0.04774826515 | X35: 0.05277148237 | Y35: 0.05689279862 | Z35: 0.0625597239 | AA35: 0.06752485915 | AB35: 0.07373862231 | AC35: 0.08001221952 | AD35: 0.08657035982 | AE35: 0.09364844247 | AF35: 0.100747648 | AG35: 0.1081665809 | AH35: 0.1156932335 | AI35: 0.1235293297 | AJ35: 0.1315400753 | AK35: 0.1398654782 | AL35: 0.1482548757
C38: 2015 | D38: =+C38+1 -> 2016 | E38: =+D38+1 -> 2017 | F38: 2018 | G38: 2019 | H38: 2020 | I38: 2021 | J38: 2022 | K38: 2023 | L38: 2024 | M38: 2025 | N38: 2026 | O38: 2027 | P38: 2028 | Q38: 2029 | R38: 2030 | S38: 2031 | T38: 2032 | U38: 2033 | V38: 2034 | W38: 2035 | X38: 2036 | Y38: 2037 | Z38: 2038 | AA38: 2039 | AB38: 2040 | AC38: 2041 | AD38: 2042 | AE38: 2043 | AF38: 2044 | AG38: 2045 | AH38: 2046 | AI38: 2047 | AJ38: 2048 | AK38: 2049 | AL38: 2050
B39: CHP | C39: =IFERROR(INDEX(Gen_by_category_vals,MATCH(C$38&"#"&genActCase&"#"&$B39,Gen_by_category_index,0))/1000000,0) -> 40.79785312 | D39: 41.14638284 | E39: 41.50131607 | F39: 41.86849433 | G39: 42.21708464 | H39: 42.5422588 | I39: 42.75787229 | J39: 42.95823077 | K39: 43.15115842 | L39: 43.32759513 | M39: =IFERROR(INDEX(Gen_by_category_vals,MATCH(M$38&"#"&genActCase&"#"&$B39,Gen_by_category_index,0))/1000000,0) -> 43.75550604 | N39: 43.9918701 | O39: 44.22097406 | P39: 44.55639243 | Q39: 44.79708562 | R39: 45.04046758 | S39: 43.51184355 | T39: 41.96185424 | U39: 40.41108608 | V39: 38.86583259 | W39: =IFERROR(INDEX(Gen_by_category_vals,MATCH(W$38&"#"&genActCase&"#"&$B39,Gen_by_category_index,0))/1000000,0) -> 37.32568368 | X39: 35.78849383 | Y39: 34.25605399 | Z39: 32.71964387 | AA39: 31.18395481 | AB39: 29.64624542 | AC39: 28.11312633 | AD39: 26.58182275 | AE39: 25.05398169 | AF39: 23.52256714 | AG39: =IFERROR(INDEX(Gen_by_category_vals,MATCH(AG$38&"#"&genActCase&"#"&$B39,Gen_by_category_index,0))/1000000,0) -> 21.9908998 | AH39: 20.46155175 | AI39: 18.93443735 | AJ39: 17.40942232 | AK39: 15.88561681 | AL39: 14.36247593
B40: Nuclear | C40: 18.34451358 | D40: 18.33784165 | E40: 18.33145848 | F40: 18.33409392 | G40: 18.33129282 | H40: 18.3215122 | I40: 18.30789508 | J40: 18.2875873 | K40: 18.26350386 | L40: 18.23230471 | M40: 0 | N40: 0 | O40: 0 | P40: 0 | Q40: 0 | R40: 0 | S40: 0 | T40: 0 | U40: 0 | V40: 0 | W40: 0 | X40: 0 | Y40: 0 | Z40: 0 | AA40: 0 | AB40: 0 | AC40: 0 | AD40: 0 | AE40: 0 | AF40: 0 | AG40: 0 | AH40: 0 | AI40: 0 | AJ40: 0 | AK40: 0 | AL40: 0
B41: Coal | C41: 0.5130797277 | D41: 0.5042686066 | E41: 0.4923288011 | F41: 0.5114080257 | G41: 0.513444747 | H41: 0.5073994068 | I41: 0.5011083493 | J41: 0.4916520676 | K41: 0.4802111907 | L41: 0.4667789505 | M41: 0.4723224209 | N41: 0.4602649846 | O41: 0.4436440918 | P41: 0.1240752636 | Q41: 0.1191695808 | R41: 0 | S41: 0 | T41: 0 | U41: 0 | V41: 0 | W41: 0 | X41: 0 | Y41: 0 | Z41: 0 | AA41: 0 | AB41: 0 | AC41: 0 | AD41: 0 | AE41: 0 | AF41: 0 | AG41: 0 | AH41: 0 | AI41: 0 | AJ41: 0 | AK41: 0 | AL41: 0
B42: Natural Gas | C42: 44.49885392 | D42: 40.86757733 | E42: 38.25784739 | F42: 37.63831186 | G42: 37.99252632 | H42: 36.63184938 | I42: 34.70672129 | J42: 31.94197852 | K42: 29.31407207 | L42: 26.75268796 | M42: 32.90347631 | N42: 30.35096627 | O42: 27.84821521 | P42: 26.49469896 | Q42: 23.60378567 | R42: 21.41586723 | S42: 20.67056282 | T42: 20.00851411 | U42: 19.37024842 | V42: 37.42585981 | W42: 36.23888884 | X42: 35.34599807 | Y42: 34.33967034 | Z42: 33.63527289 | AA42: 32.8191437 | AB42: 32.2864065 | AC42: 47.97201206 | AD42: 46.49962657 | AE42: 45.66578159 | AF42: 44.97171063 | AG42: 44.07105995 | AH42: 43.24771467 | AI42: 42.6584206 | AJ42: 41.94589868 | AK42: 41.52778296 | AL42: 41.21011046
B43: Natural Gas with CCS | C43: 0 | D43: 0 | E43: 0 | F43: 0 | G43: 0 | H43: 0 | I43: 0 | J43: 0 | K43: 0 | L43: 0 | M43: 0 | N43: 0 | O43: 0 | P43: 0 | Q43: 0 | R43: 0 | S43: 0 | T43: 0 | U43: 0 | V43: 0 | W43: 0 | X43: 0 | Y43: 0 | Z43: 0 | AA43: 0 | AB43: 0 | AC43: 0 | AD43: 0 | AE43: 0 | AF43: 0 | AG43: 0 | AH43: 0 | AI43: 0 | AJ43: 0 | AK43: 0 | AL43: 0
B44: Hydro | C44: 31.50698052 | D44: 31.61597621 | E44: 31.65129714 | F44: 31.65356749 | G44: 31.65095891 | H44: 31.6418181 | I44: 31.62932566 | J44: 31.60950808 | K44: 31.58551177 | L44: 31.51965 | M44: 31.58673174 | N44: 31.57107633 | O44: 31.55116186 | P44: 31.57136596 | Q44: 31.55315324 | R44: 31.53535973 | S44: 31.53071199 | T44: 31.51820131 | U44: 31.50587536 | V44: 31.49455996 | W44: 31.48404796 | X44: 31.46060996 | Y44: 31.46860208 | Z44: 31.4586169 | AA44: 31.44512043 | AB44: 31.42960373 | AC44: 31.4167642 | AD44: 31.40456992 | AE44: 31.39208121 | AF44: 31.37642807 | AG44: 31.35901174 | AH44: 31.34037625 | AI44: 31.32356424 | AJ44: 31.30592531 | AK44: 31.28819768 | AL44: 31.26675413
B45: Biomass | C45: 6.660674056 | D45: 6.909383649 | E45: 6.868821766 | F45: 6.868869558 | G45: 6.868701932 | H45: 6.868073204 | I45: 7.017271064 | J45: 6.699357547 | K45: 6.6973277 | L45: 6.694288943 | M45: 6.701166609 | N45: 6.700339067 | O45: 6.699192535 | P45: 6.699925502 | Q45: 6.698682685 | R45: 6.697424279 | S45: 6.697150663 | T45: 6.696220235 | U45: 6.695211526 | V45: 6.694307851 | W45: 6.69361772 | X45: 6.692802607 | Y45: 6.692297126 | Z45: 6.691583704 | AA45: 6.690946355 | AB45: 6.69011605 | AC45: 6.648333086 | AD45: 6.689345984 | AE45: 6.689036571 | AF45: 6.688538398 | AG45: 6.687757474 | AH45: 6.686854389 | AI45: 6.685908454 | AJ45: 6.684889968 | AK45: 6.683430843 | AL45: 6.680851673
B46: Geothermal | C46: 12.41569168 | D46: 11.79105355 | E46: 11.64991871 | F46: 12.01425211 | G46: 11.47642912 | H46: 11.36169382 | I46: 11.29055771 | J46: 11.72783169 | K46: 11.96194561 | L46: 12.14081713 | M46: 12.18448607 | N46: 11.72364833 | O46: 11.60788489 | P46: 11.62166112 | Q46: 11.61011382 | R46: 11.59907453 | S46: 11.59899823 | T46: 11.59251622 | U46: 11.58566495 | V46: 11.57958052 | W46: 11.5751212 | X46: 11.57085214 | Y46: 11.56780478 | Z46: 11.56330877 | AA46: 11.55816719 | AB46: 11.55218549 | AC46: 11.54743545 | AD46: 11.54296344 | AE46: 11.53867943 | AF46: 11.53312792 | AG46: 11.52695372 | AH46: 11.52009417 | AI46: 11.51418181 | AJ46: 11.50823728 | AK46: 11.50207262 | AL46: 11.49466854
B47: Solar | C47: 19.38732354 | D47: 24.1429951 | E47: 28.74822242 | F47: 29.06617074 | G47: 30.32482941 | H47: 33.62785963 | I47: 34.88837908 | J47: 35.81349951 | K47: 36.65108805 | L47: 37.45504309 | M47: 38.87968881 | N47: 39.74851082 | O47: 40.45549926 | P47: 41.31646298 | Q47: 41.79743445 | R47: 42.14351387 | S47: 44.52166745 | T47: 46.7199397 | U47: 49.20696503 | V47: 51.45714221 | W47: 53.25020961 | X47: 55.73141496 | Y47: 57.62489185 | Z47: 60.52272658 | AA47: 62.88107614 | AB47: 65.91022698 | AC47: 68.81661429 | AD47: 71.80583162 | AE47: 74.75443428 | AF47: 77.67286336 | AG47: 80.44831949 | AH47: 83.13833653 | AI47: 85.69862811 | AJ47: 88.11640781 | AK47: 90.35623482 | AL47: 92.45907288
B48: Wind | C48: 35.38576138 | D48: 36.48539293 | E48: 37.58397449 | F48: 37.88874419 | G48: 38.41176076 | H48: 38.3767794 | I48: 40.87406588 | J48: 44.18288475 | K48: 47.26292687 | L48: 50.2013765 | M48: 53.89846719 | N48: 57.3750704 | O48: 60.34928786 | P48: 63.35117969 | Q48: 66.00564054 | R48: 68.52557867 | S48: 71.13588243 | T48: 73.9321592 | U48: 76.59460147 | V48: 79.77237573 | W48: 83.83850636 | X48: 87.4169358 | Y48: 91.95341358 | Z48: 95.36495588 | AA48: 99.59405726 | AB48: 102.9980672 | AC48: 106.8533676 | AD48: 110.5463275 | AE48: 114.2497192 | AF48: 117.9507521 | AG48: 121.5113032 | AH48: 125.0615886 | AI48: 128.5369639 | AJ48: 131.9559904 | AK48: 135.2763882 | AL48: 138.4844392
B49: Rooftop PV | C49: 6.422095145 | D49: 7.839620044 | E49: 8.768148699 | F49: 9.690215599 | G49: 10.62918427 | H49: 11.59713839 | I49: 12.76581545 | J49: 14.11252113 | K49: 15.62945853 | L49: 17.26859047 | M49: 19.31024215 | N49: 21.27439182 | O49: 23.42544399 | P49: 25.97497823 | Q49: 28.61521395 | R49: 31.52619884 | S49: 32.46458205 | T49: 33.352608 | U49: 34.23531219 | V49: 35.12190802 | W49: 36.02253092 | X49: 36.92138062 | Y49: 37.83326608 | Z49: 38.73136885 | AA49: 39.63599842 | AB49: 40.53005692 | AC49: 41.44071448 | AD49: 42.34886762 | AE49: 43.26071677 | AF49: 44.16968447 | AG49: 45.07718059 | AH49: 45.97491692 | AI49: 46.88293786 | AJ49: 47.79105239 | AK49: 48.69189626 | AL49: 49.59145426
B50: Imports | C50: 91.33126615 | D50: 89.61060846 | E50: 87.5697503 | F50: 87.75258902 | G50: 87.19079363 | H50: 85.6758254 | I50: 82.43849954 | J50: 79.51539754 | K50: 76.55466231 | L50: 73.69884646 | M50: 78.92901958 | N50: 76.11625202 | O50: 73.37969091 | P50: 68.93299771 | Q50: 66.83096221 | R50: 64.42370846 | S50: 62.3885846 | T50: 60.73944531 | U50: 59.40422414 | V50: 39.49545054 | W50: 38.83470632 | X50: 38.15570106 | Y50: 37.47352528 | Z50: 36.91922557 | AA50: 36.37450107 | AB50: 35.84974704 | AC50: 19.21216317 | AD50: 19.75766732 | AE50: 19.71542304 | AF50: 19.54055866 | AG50: 19.44072343 | AH50: 19.32425808 | AI50: 18.9877316 | AJ50: 18.78990581 | AK50: 18.37737811 | AL50: 17.90491647
B51: Total Generation | C51: =SUM(C39:C50) -> 307.2640928 | D51: =SUM(D39:D50) -> 309.2511004 | E51: 311.4230843 | F51: 313.2867168 | G51: 315.6070065 | H51: 317.1522077 | I51: 317.1775114 | J51: 317.3404489 | K51: 317.5518664 | L51: 317.7579793 | M51: 318.6211069 | N51: 319.3123901 | O51: 319.9809946 | P51: 320.6437378 | Q51: 321.6312418 | R51: 322.9071932 | S51: 324.5199838 | T51: 326.5214583 | U51: 329.0091892 | V51: 331.9070172 | W51: 335.2633126 | X51: 339.0841891 | Y51: 343.2095251 | Z51: 347.606703 | AA51: 352.1829654 | AB51: 356.8926553 | AC51: 362.0205307 | AD51: 367.1770227 | AE51: 372.3198538 | AF51: 377.4262307 | AG51: 382.1132094 | AH51: 386.7556913 | AI51: 391.2227739 | AJ51: 395.50773 | AK51: 399.5889982 | AL51: 403.4547435
C53: 2015 | D53: =+C53+1 -> 2016 | E53: =+D53+1 -> 2017 | F53: 2018 | G53: 2019 | H53: 2020 | I53: 2021 | J53: 2022 | K53: 2023 | L53: 2024 | M53: 2025 | N53: 2026 | O53: 2027 | P53: 2028 | Q53: 2029 | R53: 2030 | S53: 2031 | T53: 2032 | U53: 2033 | V53: 2034 | W53: 2035 | X53: 2036 | Y53: 2037 | Z53: 2038 | AA53: 2039 | AB53: 2040 | AC53: 2041 | AD53: 2042 | AE53: 2043 | AF53: 2044 | AG53: 2045 | AH53: 2046 | AI53: 2047 | AJ53: 2048 | AK53: 2049 | AL53: 2050
B54: Biogas | C54: =IFERROR(INDEX(Delivered_Renewable1_vals,MATCH(C$53&"#"&genActCase&"#"&$B54,Delivered_Renewable1_index,0)),0) -> 0.008418581322 | D54: 0.008441734438 | E54: 0.008269220228 | F54: 0.008242278902 | G54: 0.008212024531 | H54: 0.008203987447 | I54: 0.007930208761 | J54: 0.006424676952 | K54: 0.006459404398 | L54: 0.006497891905 | M54: =IFERROR(INDEX(Delivered_Renewable1_vals,MATCH(M$53&"#"&genActCase&"#"&$B54,Delivered_Renewable1_index,0)),0) -> 0.006535978375 | N54: 0.006573773999 | O54: 0.006616485385 | P54: 0.00666372593 | Q54: 0.006711437409 | R54: 0.006759722958 | S54: 0.006754093155 | T54: 0.006738521274 | U54: 0.006711401474 | V54: 0.006674828613 | W54: =IFERROR(INDEX(Delivered_Renewable1_vals,MATCH(W$53&"#"&genActCase&"#"&$B54,Delivered_Renewable1_index,0)),0) -> 0.006628369512 | X54: 0.006572168703 | Y54: 0.006510764719 | Z54: 0.006444869988 | AA54: 0.006376746454 | AB54: 0.006307017361 | AC54: 0.006088827249 | AD54: 0.00615725855 | AE54: 0.006084365155 | AF54: 0.006013432724 | AG54: =IFERROR(INDEX(Delivered_Renewable1_vals,MATCH(AG$53&"#"&genActCase&"#"&$B54,Delivered_Renewable1_index,0)),0) -> 0.005949239087 | AH54: 0.005887242006 | AI54: 0.005829847605 | AJ54: 0.005776628708 | AK54: 0.005727181554 | AL54: 0.005680949156
B55: Biomass | C55: 0.01534833546 | D55: 0.01617409972 | E55: 0.01611716845 | F55: 0.01606465832 | G55: 0.01600569087 | H55: 0.01599002615 | I55: 0.01689725854 | J55: 0.01739528417 | K55: 0.01748931128 | L55: 0.01759351903 | M55: 0.01769664094 | N55: 0.01779897537 | O55: 0.01791461957 | P55: 0.01804252682 | Q55: 0.01817170915 | R55: 0.01830244581 | S55: 0.0182872027 | T55: 0.0182450407 | U55: 0.01817161185 | V55: 0.01807258814 | W55: 0.01794679672 | X55: 0.01779462891 | Y55: 0.01762837312 | Z55: 0.0174499583 | AA55: 0.01726550883 | AB55: 0.0170767122 | AC55: 0.01687258098 | AD55: 0.01667122923 | AE55: 0.01647386501 | AF55: 0.01628181025 | AG55: 0.01610800128 | AH55: 0.01594013963 | AI55: 0.01578474008 | AJ55: 0.01564064601 | AK55: 0.01550676421 | AL55: 0.0153815866
B56: Geothermal | C56: 0.04430222957 | D56: 0.04200759916 | E56: 0.04136072466 | F56: 0.04251495378 | G56: 0.04046367086 | H56: 0.04002359419 | I56: 0.03994657605 | J56: 0.04169899771 | K56: 0.04277425971 | L56: 0.04369237974 | M56: 0.0440612851 | N56: 0.04264523625 | O56: 0.0425057559 | P56: 0.04285535666 | Q56: 0.04312730986 | R56: 0.04340444199 | S56: 0.04336977931 | T56: 0.04325161616 | U56: 0.04305857316 | V56: 0.04280721941 | W56: 0.04249727719 | X56: 0.04212653934 | Y56: 0.04172511004 | Z56: 0.04129116359 | AA56: 0.04084043196 | AB56: 0.0403779515 | AC56: 0.03988148246 | AD56: 0.03939225156 | AE56: 0.03891325511 | AF56: 0.03844395799 | AG56: 0.03801764491 | AH56: 0.03760415246 | AI56: 0.03722370623 | AJ56: 0.03687047662 | AK56: 0.03654326526 | AL56: 0.03623892265
B57: Small Hydro | C57: 0.01644806706 | D57: 0.01682475738 | E57: 0.01690805758 | F57: 0.01685527631 | G57: 0.01679125086 | H57: 0.01676740195 | I57: 0.01682805934 | J57: 0.0168925712 | K57: 0.01696665518 | L57: 0.01692797844 | M57: 0.01707090546 | N57: 0.01715610131 | O57: 0.01725066521 | P57: 0.01739254824 | Q57: 0.01750291855 | R57: 0.0176153907 | S57: 0.0175868771 | T57: 0.0175338043 | U57: 0.01745554645 | V57: 0.01735363387 | W57: 0.01722217057 | X57: 0.01701767642 | Y57: 0.01690924713 | Z57: 0.01673338881 | AA57: 0.01655072824 | AB57: 0.0163633064 | AC57: 0.01616211059 | AD57: 0.01596384805 | AE57: 0.01576973306 | AF57: 0.01557954876 | AG57: 0.01540678389 | AH57: 0.01523921462 | AI57: 0.01508503745 | AJ57: 0.01494188991 | AK57: 0.01480928636 | AL57: 0.01468595046
B58: Solar Thermal | C58: 0.009785525157 | D58: 0.009760736219 | E58: 0.009707736783 | F58: 0.009724114257 | G58: 0.009705525173 | H58: 0.009681049465 | I58: 0.009700771919 | J58: 0.009715376688 | K58: 0.009726504183 | L58: 0.009726387167 | M58: 0.009870820058 | N58: 0.009868568439 | O58: 0.009851253619 | P58: 0.009890090547 | Q58: 0.009847090124 | R58: 0.009776349292 | S58: 0.009679980141 | T58: 0.009551567373 | U58: 0.009400468295 | V58: 0.009246100291 | W58: 0.009098610294 | X58: 0.008930688079 | Y58: 0.008776848775 | Z58: 0.008590269704 | AA58: 0.008416032857 | AB58: 0.01347519921 | AC58: 0.01314901326 | AD58: 0.01281598049 | AE58: 0.01247947384 | AF58: 0.0121559816 | AG58: 0.01184718335 | AH58: 0.011543565 | AI58: 0.01125025361 | AJ58: 0.01096231752 | AK58: 0.01067799486 | AL58: 0.01040471973
B59: Solar PV | C59: 0.05939319481 | D59: 0.07625271936 | E59: 0.09235712236 | F59: 0.09313263409 | G59: 0.09721396202 | H59: 0.1087790876 | I59: 0.1137361144 | J59: 0.1176216344 | K59: 0.1213327072 | L59: 0.1250668437 | M59: 0.130725102 | N59: 0.1347182177 | O59: 0.138288704 | P59: 0.1424660777 | Q59: 0.1454150317 | R59: 0.1479272414 | S59: 0.1567908524 | T59: 0.1647602784 | U59: 0.1734791258 | V59: 0.1809798905 | W59: 0.1864059446 | X59: 0.1939732654 | Y59: 0.1990763264 | Z59: 0.2075289964 | AA59: 0.2137723357 | AB59: 0.2168985209 | AC59: 0.2245235512 | AD59: 0.2322331698 | AE59: 0.2396237576 | AF59: 0.2467548982 | AG59: 0.2534835986 | AH59: 0.2598384772 | AI59: 0.2658011784 | AJ59: 0.2713479856 | AK59: 0.2763930372 | AL59: 0.2810884347
B60: Wind | C60: 0.1262650655 | D60: 0.1299853109 | E60: 0.1334344436 | F60: 0.134077277 | G60: 0.1354324441 | H60: 0.1351890545 | I60: 0.1446145552 | J60: 0.1570948542 | K60: 0.1690056763 | L60: 0.1806647429 | M60: 0.194906516 | N60: 0.2087040964 | O60: 0.2209870379 | P60: 0.2336100987 | Q60: 0.2451867187 | R60: 0.2564268809 | S60: 0.2659839636 | T60: 0.2758404915 | U60: 0.2846668072 | V60: 0.2949013209 | W60: 0.3078074244 | X60: 0.3182629024 | Y60: 0.3316762664 | Z60: 0.3405366123 | AA60: 0.3519125698 | AB60: 0.3600055559 | AC60: 0.3690404441 | AD60: 0.3772574319 | AE60: 0.385297858 | AF60: 0.3931712013 | AG60: 0.4007627419 | AH60: 0.4082288715 | AI60: 0.4155416567 | AJ60: 0.4227650285 | AK60: 0.4297869697 | AL60: 0.4365960501
B61: CSP with Storage | C61: 0 | D61: 0 | E61: 0 | F61: 0 | G61: 0 | H61: 0 | I61: 0 | J61: 0 | K61: 0 | L61: 0 | M61: 0 | N61: 0 | O61: 0 | P61: 0 | Q61: 0 | R61: 0 | S61: 0 | T61: 0 | U61: 0 | V61: 0 | W61: 0 | X61: 0 | Y61: 0 | Z61: 0 | AA61: 0 | AB61: 0 | AC61: 0 | AD61: 0 | AE61: 0 | AF61: 0 | AG61: 0 | AH61: 0 | AI61: 0 | AJ61: 0 | AK61: 0 | AL61: 0
B62: Total | C62: =SUM(C54:C61) -> 0.2799609989 | D62: =SUM(D54:D61) -> 0.2994469572 | E62: 0.3181544736 | F62: 0.3206111927 | G62: 0.3238245684 | H62: 0.3346342013 | I62: 0.3496535442 | J62: 0.3668433953 | K62: 0.3837545183 | L62: 0.4001697428 | M62: 0.4208672479 | N62: 0.4374649695 | O62: 0.4534145216 | P62: 0.4709204246 | Q62: 0.4859622155 | R62: 0.5002124731 | S62: 0.5184527484 | T62: 0.5359213197 | U62: 0.5529435342 | V62: 0.5700355817 | W62: 0.5876065933 | X62: 0.6046778692 | Y62: 0.6223029366 | Z62: 0.638575259 | AA62: 0.6551343538 | AB62: 0.6705042635 | AC62: 0.6857180098 | AD62: 0.7004911696 | AE62: 0.7146423078 | AF62: 0.7284008308 | AG62: 0.7415751929 | AH62: 0.7542816624 | AI62: 0.7665164201 | AJ62: 0.7783049729 | AK62: 0.7894444992 | AL62: 0.8000766135

Sheet Generation Snapshot
C2: Year | D2: 2030
D10: ="Generation Mix, "&D2 -> Generation Mix, 2030
C28: Case
B29: Auto-Lookup | C29: Reference | D29: Scoping Plan | E29: Alternative 1
B30: Override
C31: Generation (GWh)
C32: =IF(C30="",IF(C29="","",C29),C30) -> Reference | D32: Scoping Plan | E32: Alternative 1
B33: CHP | C33: =IF(C$29="",NA(),INDEX(Gen_by_category_vals,MATCH('Generation Snapshot'!$D$2&"#"&'Generation Snapshot'!C$29&"#"&'Generation Snapshot'!$B33,Gen_by_category_index,0)))/1000000 -> 46.07992655 | D33: =IF(D$29="",NA(),INDEX(Gen_by_category_vals,MATCH('Generation Snapshot'!$D$2&"#"&'Generation Snapshot'!D$29&"#"&'Generation Snapshot'!$B33,Gen_by_category_index,0)))/1000000 -> 45.04046758 | E33: =IF(E$29="",NA(),INDEX(Gen_by_category_vals,MATCH('Generation Snapshot'!$D$2&"#"&'Generation Snapshot'!E$29&"#"&'Generation Snapshot'!$B33,Gen_by_category_index,0)))/1000000 -> 29.9127803
B34: Nuclear | C34: =IF(C$29="",NA(),INDEX(Gen_by_category_vals,MATCH('Generation Snapshot'!$D$2&"#"&'Generation Snapshot'!C$29&"#"&'Generation Snapshot'!$B34,Gen_by_category_index,0)))/1000000 ->  | D34: =IF(D$29="",NA(),INDEX(Gen_by_category_vals,MATCH('Generation Snapshot'!$D$2&"#"&'Generation Snapshot'!D$29&"#"&'Generation Snapshot'!$B34,Gen_by_category_index,0)))/1000000 ->  | E34: =IF(E$29="",NA(),INDEX(Gen_by_category_vals,MATCH('Generation Snapshot'!$D$2&"#"&'Generation Snapshot'!E$29&"#"&'Generation Snapshot'!$B34,Gen_by_category_index,0)))/1000000 -> 
B35: Coal | C35: =IF(C$29="",NA(),INDEX(Gen_by_category_vals,MATCH('Generation Snapshot'!$D$2&"#"&'Generation Snapshot'!C$29&"#"&'Generation Snapshot'!$B35,Gen_by_category_index,0)))/1000000 ->  | D35: =IF(D$29="",NA(),INDEX(Gen_by_category_vals,MATCH('Generation Snapshot'!$D$2&"#"&'Generation Snapshot'!D$29&"#"&'Generation Snapshot'!$B35,Gen_by_category_index,0)))/1000000 ->  | E35: =IF(E$29="",NA(),INDEX(Gen_by_category_vals,MATCH('Generation Snapshot'!$D$2&"#"&'Generation Snapshot'!E$29&"#"&'Generation Snapshot'!$B35,Gen_by_category_index,0)))/1000000 -> 
B36: Natural Gas | C36: =IF(C$29="",NA(),INDEX(Gen_by_category_vals,MATCH('Generation Snapshot'!$D$2&"#"&'Generation Snapshot'!C$29&"#"&'Generation Snapshot'!$B36,Gen_by_category_index,0)))/1000000 -> 72.72250709 | D36: =IF(D$29="",NA(),INDEX(Gen_by_category_vals,MATCH('Generation Snapshot'!$D$2&"#"&'Generation Snapshot'!D$29&"#"&'Generation Snapshot'!$B36,Gen_by_category_index,0)))/1000000 -> 21.41586723 | E36: =IF(E$29="",NA(),INDEX(Gen_by_category_vals,MATCH('Generation Snapshot'!$D$2&"#"&'Generation Snapshot'!E$29&"#"&'Generation Snapshot'!$B36,Gen_by_category_index,0)))/1000000 -> 12.96393589
B37: Natural Gas with CCS | C37: =IF(C$29="",NA(),INDEX(Gen_by_category_vals,MATCH('Generation Snapshot'!$D$2&"#"&'Generation Snapshot'!C$29&"#"&'Generation Snapshot'!$B37,Gen_by_category_index,0)))/1000000 ->  | D37: =IF(D$29="",NA(),INDEX(Gen_by_category_vals,MATCH('Generation Snapshot'!$D$2&"#"&'Generation Snapshot'!D$29&"#"&'Generation Snapshot'!$B37,Gen_by_category_index,0)))/1000000 ->  | E37: =IF(E$29="",NA(),INDEX(Gen_by_category_vals,MATCH('Generation Snapshot'!$D$2&"#"&'Generation Snapshot'!E$29&"#"&'Generation Snapshot'!$B37,Gen_by_category_index,0)))/1000000 -> 
B38: Hydro | C38: =IF(C$29="",NA(),INDEX(Gen_by_category_vals,MATCH('Generation Snapshot'!$D$2&"#"&'Generation Snapshot'!C$29&"#"&'Generation Snapshot'!$B38,Gen_by_category_index,0)))/1000000 -> 31.55373803 | D38: =IF(D$29="",NA(),INDEX(Gen_by_category_vals,MATCH('Generation Snapshot'!$D$2&"#"&'Generation Snapshot'!D$29&"#"&'Generation Snapshot'!$B38,Gen_by_category_index,0)))/1000000 -> 31.53535973 | E38: =IF(E$29="",NA(),INDEX(Gen_by_category_vals,MATCH('Generation Snapshot'!$D$2&"#"&'Generation Snapshot'!E$29&"#"&'Generation Snapshot'!$B38,Gen_by_category_index,0)))/1000000 -> 31.51247675
B39: Biomass | C39: =IF(C$29="",NA(),INDEX(Gen_by_category_vals,MATCH('Generation Snapshot'!$D$2&"#"&'Generation Snapshot'!C$29&"#"&'Generation Snapshot'!$B39,Gen_by_category_index,0)))/1000000 -> 6.698746925 | D39: =IF(D$29="",NA(),INDEX(Gen_by_category_vals,MATCH('Generation Snapshot'!$D$2&"#"&'Generation Snapshot'!D$29&"#"&'Generation Snapshot'!$B39,Gen_by_category_index,0)))/1000000 -> 6.697424279 | E39: =IF(E$29="",NA(),INDEX(Gen_by_category_vals,MATCH('Generation Snapshot'!$D$2&"#"&'Generation Snapshot'!E$29&"#"&'Generation Snapshot'!$B39,Gen_by_category_index,0)))/1000000 -> 8.252570421
B40: Geothermal | C40: =IF(C$29="",NA(),INDEX(Gen_by_category_vals,MATCH('Generation Snapshot'!$D$2&"#"&'Generation Snapshot'!C$29&"#"&'Generation Snapshot'!$B40,Gen_by_category_index,0)))/1000000 -> 11.6092755 | D40: =IF(D$29="",NA(),INDEX(Gen_by_category_vals,MATCH('Generation Snapshot'!$D$2&"#"&'Generation Snapshot'!D$29&"#"&'Generation Snapshot'!$B40,Gen_by_category_index,0)))/1000000 -> 11.59907453 | E40: =IF(E$29="",NA(),INDEX(Gen_by_category_vals,MATCH('Generation Snapshot'!$D$2&"#"&'Generation Snapshot'!E$29&"#"&'Generation Snapshot'!$B40,Gen_by_category_index,0)))/1000000 -> 35.27429444
B41: Solar | C41: =IF(C$29="",NA(),INDEX(Gen_by_category_vals,MATCH('Generation Snapshot'!$D$2&"#"&'Generation Snapshot'!C$29&"#"&'Generation Snapshot'!$B41,Gen_by_category_index,0)))/1000000 -> 37.2008428 | D41: =IF(D$29="",NA(),INDEX(Gen_by_category_vals,MATCH('Generation Snapshot'!$D$2&"#"&'Generation Snapshot'!D$29&"#"&'Generation Snapshot'!$B41,Gen_by_category_index,0)))/1000000 -> 42.14351387 | E41: =IF(E$29="",NA(),INDEX(Gen_by_category_vals,MATCH('Generation Snapshot'!$D$2&"#"&'Generation Snapshot'!E$29&"#"&'Generation Snapshot'!$B41,Gen_by_category_index,0)))/1000000 -> 45.60024826
B42: Wind | C42: =IF(C$29="",NA(),INDEX(Gen_by_category_vals,MATCH('Generation Snapshot'!$D$2&"#"&'Generation Snapshot'!C$29&"#"&'Generation Snapshot'!$B42,Gen_by_category_index,0)))/1000000 -> 32.86740362 | D42: =IF(D$29="",NA(),INDEX(Gen_by_category_vals,MATCH('Generation Snapshot'!$D$2&"#"&'Generation Snapshot'!D$29&"#"&'Generation Snapshot'!$B42,Gen_by_category_index,0)))/1000000 -> 68.52557867 | E42: =IF(E$29="",NA(),INDEX(Gen_by_category_vals,MATCH('Generation Snapshot'!$D$2&"#"&'Generation Snapshot'!E$29&"#"&'Generation Snapshot'!$B42,Gen_by_category_index,0)))/1000000 -> 64.02192234
B43: Rooftop PV | C43: =IF(C$29="",NA(),INDEX(Gen_by_category_vals,MATCH('Generation Snapshot'!$D$2&"#"&'Generation Snapshot'!C$29&"#"&'Generation Snapshot'!$B43,Gen_by_category_index,0)))/1000000 -> 31.56248498 | D43: =IF(D$29="",NA(),INDEX(Gen_by_category_vals,MATCH('Generation Snapshot'!$D$2&"#"&'Generation Snapshot'!D$29&"#"&'Generation Snapshot'!$B43,Gen_by_category_index,0)))/1000000 -> 31.52619884 | E43: =IF(E$29="",NA(),INDEX(Gen_by_category_vals,MATCH('Generation Snapshot'!$D$2&"#"&'Generation Snapshot'!E$29&"#"&'Generation Snapshot'!$B43,Gen_by_category_index,0)))/1000000 -> 48.94820848
B44: Imports | C44: =IF(C$29="",NA(),INDEX(Gen_by_category_vals,MATCH('Generation Snapshot'!$D$2&"#"&'Generation Snapshot'!C$29&"#"&'Generation Snapshot'!$B44,Gen_by_category_index,0)))/1000000 -> 70.73466924 | D44: =IF(D$29="",NA(),INDEX(Gen_by_category_vals,MATCH('Generation Snapshot'!$D$2&"#"&'Generation Snapshot'!D$29&"#"&'Generation Snapshot'!$B44,Gen_by_category_index,0)))/1000000 -> 64.42370846 | E44: =IF(E$29="",NA(),INDEX(Gen_by_category_vals,MATCH('Generation Snapshot'!$D$2&"#"&'Generation Snapshot'!E$29&"#"&'Generation Snapshot'!$B44,Gen_by_category_index,0)))/1000000 -> 56.99234001
B45: Total Generation | C45: =SUM(IFERROR(C33:C44,0)) -> 341.0295947 | D45: =SUM(IFERROR(D33:D44,0)) -> 322.9071932 | E45: =SUM(IFERROR(E33:E44,0)) -> 333.4787769

Sheet Electricity Retail Sales
B2: Active CSV Directory | D2: =outputDir -> S:\E3 Projects\CARB Scoping Plan Update 2016\Model\Case Outputs\LATEST CASE OUTPUTS\REF-SP-SP+
B3: Active Case 1 | D3: Reference
B4: Active Case 2 | D4: Scoping Plan
B5: Active Case 3 | D5: Alternative 1
C31: Retail Sales by Case (MWh)
C32: 2015 | D32: =+C32+1 -> 2016 | E32: 2017 | F32: 2018 | G32: 2019 | H32: 2020 | I32: 2021 | J32: 2022 | K32: 2023 | L32: 2024 | M32: 2025 | N32: 2026 | O32: 2027 | P32: 2028 | Q32: 2029 | R32: 2030
B33: ="PATHWAYS - "&ElecSummActCase1 -> PATHWAYS - Reference | C33: =IF(ElecSummActCase1="",NA(),INDEX(Electricity_Summary_vals,MATCH(C$32&"#"&ElecSummActCase1&"#Retail Sales (MWh/yr)",Electricity_Summary_index,0)))/1000 -> 279774.5641 | D33: 280560.091 | E33: 281882.0608 | F33: 283121.8838 | G33: 284384.3237 | H33: 285619.6728 | I33: 285317.1335 | J33: 284829.1738 | K33: 284392.9867 | L33: 284060.8162 | M33: 284520.2467 | N33: 284701.8205 | O33: 284111.3644 | P33: 283398.0146 | Q33: 282500.2504 | R33: 281413.0593
B34: ="PATHWAYS - "&ElecSummActCase2 -> PATHWAYS - Scoping Plan | C34: =IF(ElecSummActCase2="",NA(),INDEX(Electricity_Summary_vals,MATCH(C$32&"#"&ElecSummActCase2&"#Retail Sales (MWh/yr)",Electricity_Summary_index,0)))/1000 -> 279482.0083 | D34: 279919.5748 | E34: 280894.5254 | F34: 281814.6389 | G34: 282845.9851 | H34: 283097.1611 | I34: 281867.0781 | J34: 280479.1791 | K34: 278886.7239 | L34: 277109.0678 | M34: 275777.338 | N34: 274157.9078 | O34: 272341.527 | P34: 270440.4269 | Q34: 268468.0619 | R34: 266500.287
B35: ="PATHWAYS - "&ElecSummActCase3 -> PATHWAYS - Alternative 1 | C35: =IF(ElecSummActCase3="",NA(),INDEX(Electricity_Summary_vals,MATCH(C$32&"#"&ElecSummActCase3&"#Retail Sales (MWh/yr)",Electricity_Summary_index,0)))/1000 -> 279505.0013 | D35: 278865.5519 | E35: 278657.8626 | F35: 278178.9292 | G35: 277602.1403 | H35: 275766.7474 | I35: 272009.3387 | J35: 267841.1192 | K35: 263962.8987 | L35: 260117.4038 | M35: 257645.0859 | N35: 255607.356 | O35: 256362.4167 | P35: 257216.6923 | Q35: 258908.651 | R35: 261165.6109
B36: IEPR 2015 Mid Demand + Mid AAEE | C36: 283799.385 | D36: 284736.9311 | E36: 285140.6786 | F36: 284374.2101 | G36: 284298.9692 | H36: 284703.3804 | I36: 285482.5127 | J36: 287262.1847 | K36: 288742.5063 | L36: 290146.2768 | M36: 291802.1277 | N36: 293309.387

Sheet Energy Intensity
C2: Case 1 | E2: Reference | I2: [Solid black line]
C3: Case 2 | E3: Scoping Plan | I3: [Darker colored line]
C4: Case 3 | E4: Alternative 1 | I4: [Lighter colored line]
C6: Active CSV Directory | E6: =outputDir -> S:\E3 Projects\CARB Scoping Plan Update 2016\Model\Case Outputs\LATEST CASE OUTPUTS\REF-SP-SP+
C7: Geo Resolution? | E7: =NOT(ISERROR(Final_Energy1_index_5)) -> TRUE
C8: Conversion - EJ to MMBtu | E8: 947000000
B36: Energy Intensity
C37: 2015 | D37: =+C37+1 -> 2016 | E37: 2017 | F37: 2018 | G37: 2019 | H37: 2020 | I37: 2021 | J37: 2022 | K37: 2023 | L37: 2024 | M37: 2025 | N37: 2026 | O37: 2027 | P37: 2028 | Q37: 2029 | R37: 2030 | S37: 2031 | T37: 2032 | U37: 2033 | V37: 2034 | W37: 2035 | X37: 2036 | Y37: 2037 | Z37: 2038 | AA37: 2039 | AB37: 2040 | AC37: 2041 | AD37: 2042 | AE37: 2043 | AF37: 2044 | AG37: 2045 | AH37: 2046 | AI37: 2047 | AJ37: 2048 | AK37: 2049 | AL37: 2050
B38: ="PATHWAYS - "&PillarCase_1 -> PATHWAYS - Reference | C38: =IF(PillarCase_1="",NA(),SUMPRODUCT((PillarCase_1=IF(PillarGeoRes,Final_Energy1_index_4,Final_Energy1_index_3))*(C$37=Final_Energy1_index_1)*(Final_Energy1_vals))*EJtoMMBtu) -> 5535182087 | D38: 5544241923 | E38: 5534891894 | F38: 5490399479 | G38: 5437534273 | H38: 5388588035 | I38: 5340716861 | J38: 5279428518 | K38: 5222208117 | L38: 5163313355 | M38: 5115786546 | N38: 5071182084 | O38: 5040900964 | P38: 5017905038 | Q38: 5001821387 | R38: 4991399418 | S38: 4986554142 | T38: 4986624430 | U38: 4990162089 | V38: 4995801469 | W38: 5003789949 | X38: 5015140132 | Y38: 5031786999 | Z38: 5051336766 | AA38: 5071951344 | AB38: 5093728293 | AC38: 5119111803 | AD38: 5145566854 | AE38: 5172531751 | AF38: 5199905747 | AG38: 5227564275 | AH38: 5255330669 | AI38: 5283060278 | AJ38: 5310723030 | AK38: 5338131968 | AL38: 5365013878
B39: ="PATHWAYS - "&PillarCase_2 -> PATHWAYS - Scoping Plan | C39: =IF(PillarCase_2="",NA(),SUMPRODUCT((PillarCase_2=IF(PillarGeoRes,Final_Energy1_index_4,Final_Energy1_index_3))*(C$37=Final_Energy1_index_1)*(Final_Energy1_vals))*EJtoMMBtu) -> 5522008640 | D39: 5522505376 | E39: 5504647922 | F39: 5451879329 | G39: 5391263025 | H39: 5326606391 | I39: 5250104836 | J39: 5163037021 | K39: 5078562995 | L39: 4989840211 | M39: 4911698513 | N39: 4829388902 | O39: 4757497302 | P39: 4688356445 | Q39: 4622815240 | R39: 4560664352 | S39: 4511774412 | T39: 4468080977 | U39: 4427453234 | V39: 4388902653 | W39: 4351942308 | X39: 4318219945 | Y39: 4286214385 | Z39: 4256180513 | AA39: 4227570778 | AB39: 4200572269 | AC39: 4175558455 | AD39: 4152592104 | AE39: 4131491544 | AF39: 4112064166 | AG39: 4095861093 | AH39: 4081019788 | AI39: 4067556109 | AJ39: 4055358627 | AK39: 4044231266 | AL39: 4033942996
B40: ="PATHWAYS - "&PillarCase_3 -> PATHWAYS - Alternative 1 | C40: =IF(PillarCase_3="",NA(),SUMPRODUCT((PillarCase_3=IF(PillarGeoRes,Final_Energy1_index_4,Final_Energy1_index_3))*(C$37=Final_Energy1_index_1)*(Final_Energy1_vals))*EJtoMMBtu) -> 5522187440 | D40: 5519705985 | E40: 5498826804 | F40: 5436263814 | G40: 5366076111 | H40: 5282675900 | I40: 5174766913 | J40: 5056049743 | K40: 4938225874 | L40: 4811926207 | M40: 4676674757 | N40: 4540482342 | O40: 4417316421 | P40: 4300390564 | Q40: 4186992959 | R40: 4077268960 | S40: 4015017582 | T40: 3958000747 | U40: 3904268947 | V40: 3853131356 | W40: 3804152401 | X40: 3758762852 | Y40: 3715665213 | Z40: 3675118117 | AA40: 3636670709 | AB40: 3600495909 | AC40: 3566777489 | AD40: 3535686075 | AE40: 3507056201 | AF40: 3480748508 | AG40: 3456766514 | AH40: 3435006183 | AI40: 3415438771 | AJ40: 3397885805 | AK40: 3382083110 | AL40: 3367730246
B42: Population | C42: =INDEX(Population1_vals,MATCH(C$37,Population1_index,0))*1000000 -> 38896969 | D42: 39242698 | E42: 39589144 | F42: 39933359 | G42: 40275584 | H42: 40619346 | I42: 40965875 | J42: 41315865 | K42: 41667586 | L42: 42021197 | M42: 42373301 | N42: 42722810 | O42: 43075670 | P42: 43424440 | Q42: 43756527 | R42: 44085600 | S42: 44406080 | T42: 44744838 | U42: 45095505 | V42: 45425255 | W42: 45747645 | X42: 46052773 | Y42: 46354827 | Z42: 46657547 | AA42: 46951285 | AB42: 47233240 | AC42: 47512007 | AD42: 47785335 | AE42: 48053471 | AF42: 48316652 | AG42: 48574095 | AH42: 48824838 | AI42: 49070383 | AJ42: 49312072 | AK42: 49549701 | AL42: 49779362
C44: 2015 | D44: =+C44+1 -> 2016 | E44: 2017 | F44: 2018 | G44: 2019 | H44: 2020 | I44: 2021 | J44: 2022 | K44: 2023 | L44: 2024 | M44: 2025 | N44: 2026 | O44: 2027 | P44: 2028 | Q44: 2029 | R44: 2030 | S44: 2031 | T44: 2032 | U44: 2033 | V44: 2034 | W44: 2035 | X44: 2036 | Y44: 2037 | Z44: 2038 | AA44: 2039 | AB44: 2040 | AC44: 2041 | AD44: 2042 | AE44: 2043 | AF44: 2044 | AG44: 2045 | AH44: 2046 | AI44: 2047 | AJ44: 2048 | AK44: 2049 | AL44: 2050
B45: =B38 -> PATHWAYS - Reference | C45: =IF(PillarCase_1="",NA(),C38/C$42) -> 142.3036866 | D45: 141.2808549 | E45: 139.8083246 | F45: 137.4890472 | G45: 135.0082043 | H45: 132.6606301 | I45: 130.369896 | J45: 127.7821127 | K45: 125.3302295 | L45: 122.8740189 | M45: 120.7313668 | N45: 118.6996381 | O45: 117.0243194 | P45: 115.5548589 | Q45: 114.3102922 | R45: 113.2206303 | S45: 112.2944007 | T45: 111.4458037 | U45: 110.6576385 | V45: 109.9785014 | W45: 109.3780882 | X45: 108.8998513 | Y45: 108.5493642 | Z45: 108.2640878 | AA45: 108.025826 | AB45: 107.8420259 | AC45: 107.7435395 | AD45: 107.6808785 | AE45: 107.6411681 | AF45: 107.6214003 | AG45: 107.6204153 | AH45: 107.6364179 | AI45: 107.662911 | AJ45: 107.6962053 | AK45: 107.7328795 | AL45: 107.7758666
B46: =B39 -> PATHWAYS - Scoping Plan | C46: =IF(PillarCase_2="",NA(),C39/C$42) -> 141.9650112 | D46: 140.7269545 | E46: 139.0443785 | F46: 136.5244364 | G46: 133.8593383 | H46: 131.1347157 | I46: 128.1580056 | J46: 124.9649988 | K46: 121.8828227 | L46: 118.7457894 | M46: 115.9149369 | N46: 113.0400576 | O46: 110.4451144 | P46: 107.965847 | Q46: 105.6485868 | R46: 103.4502049 | S46: 101.6026277 | T46: 99.85690366 | U46: 98.17948006 | V46: 96.61811811 | W46: 95.12931886 | X46: 93.76677371 | Y46: 92.46533019 | Z46: 91.2216948 | AA46: 90.04164162 | AB46: 88.93254557 | AC46: 87.8842785 | AD46: 86.90097295 | AE46: 85.97696396 | AF46: 85.10656256 | AG46: 84.3219229 | AH46: 83.58491202 | AI46: 82.89228371 | AJ46: 82.23865804 | AK46: 81.61969063 | AL46: 81.03645435
B47: =B40 -> PATHWAYS - Alternative 1 | C47: =IF(PillarCase_3="",NA(),C40/C$42) -> 141.969608 | D47: 140.6556192 | E47: 138.8973402 | F47: 136.133397 | G47: 133.233974 | H47: 130.0531993 | I47: 126.3189646 | J47: 122.3755026 | K47: 118.5148061 | L47: 114.5118785 | M47: 110.3684312 | N47: 106.2777084 | O47: 102.5478285 | P47: 99.03157216 | Q47: 95.68842059 | R47: 92.48527773 | S47: 90.41594264 | T47: 88.45714778 | U47: 86.57778523 | V47: 84.82354927 | W47: 83.15515261 | X47: 81.61859986 | Y47: 80.15702902 | Z47: 78.76792401 | AA47: 77.45625512 | AB47: 76.22801038 | AC47: 75.07107601 | AD47: 73.99102831 | AE47: 72.98237001 | AF47: 72.04034974 | AG47: 71.1648156 | AH47: 70.35366268 | AI47: 69.60285538 | AJ47: 68.90576015 | AK47: 68.25637777 | AL47: 67.653142
B50: Fuel Share (Electricity and Hydrogen)
C51: 2015 | D51: =+C51+1 -> 2016 | E51: 2017 | F51: 2018 | G51: 2019 | H51: 2020 | I51: 2021 | J51: 2022 | K51: 2023 | L51: 2024 | M51: 2025 | N51: 2026 | O51: 2027 | P51: 2028 | Q51: 2029 | R51: 2030 | S51: 2031 | T51: 2032 | U51: 2033 | V51: 2034 | W51: 2035 | X51: 2036 | Y51: 2037 | Z51: 2038 | AA51: 2039 | AB51: 2040 | AC51: 2041 | AD51: 2042 | AE51: 2043 | AF51: 2044 | AG51: 2045 | AH51: 2046 | AI51: 2047 | AJ51: 2048 | AK51: 2049 | AL51: 2050
B52: ="PATHWAYS - "&PillarCase_1 -> PATHWAYS - Reference | C52: =IF(PillarCase_1="",NA(),SUM(SUMPRODUCT((PillarCase_1=IF(PillarGeoRes,Final_Energy1_index_4,Final_Energy1_index_3))*("Electricity"=IF(PillarGeoRes,Final_Energy1_index_5,Final_Energy1_index_4))*(C$51=Final_Energy1_index_1)*(Final_Energy1_vals)),SUMPRODUCT((PillarCase_1=IF(PillarGeoRes,Final_Energy1_index_4,Final_Energy1_index_3))*("Hydrogen"=IF(PillarGeoRes,Final_Energy1_index_5,Final_Energy1_index_4))*(C$51=Final_Energy1_index_1)*(Final_Energy1_vals)))/(C38/EJtoMMBtu)) -> 0.1755903204 | D52: 0.1765315033 | E52: 0.1781374417 | F52: 0.1808435526 | G52: 0.1839039577 | H52: 0.1868879044 | I52: 0.1890097448 | J52: 0.191695035 | K52: 0.1944447339 | L52: 0.1974890351 | M52: 0.2007937002 | N52: 0.2039039067 | O52: 0.2060743437 | P52: 0.2080226025 | Q52: 0.2097224071 | R52: 0.2112303644 | S52: 0.2124945372 | T52: 0.2136186047 | U52: 0.2146646434 | V52: 0.2156391441 | W52: 0.2165539508 | X52: 0.2174413142 | Y52: 0.2179714505 | Z52: 0.2183005551 | AA52: 0.2186264328 | AB52: 0.2189339154 | AC52: 0.2191752007 | AD52: 0.2194008386 | AE52: 0.2196319103 | AF52: 0.2198707171 | AG52: 0.2201185382 | AH52: 0.2203807377 | AI52: 0.2206614252 | AJ52: 0.2209607017 | AK52: 0.2212828083 | AL52: 0.2216274912
B53: ="PATHWAYS - "&PillarCase_2 -> PATHWAYS - Scoping Plan | C53: =IF(PillarCase_2="",NA(),SUM(SUMPRODUCT((PillarCase_2=IF(PillarGeoRes,Final_Energy1_index_4,Final_Energy1_index_3))*("Electricity"=IF(PillarGeoRes,Final_Energy1_index_5,Final_Energy1_index_4))*(C$51=Final_Energy1_index_1)*(Final_Energy1_vals)),SUMPRODUCT((PillarCase_2=IF(PillarGeoRes,Final_Energy1_index_4,Final_Energy1_index_3))*("Hydrogen"=IF(PillarGeoRes,Final_Energy1_index_5,Final_Energy1_index_4))*(C$51=Final_Energy1_index_1)*(Final_Energy1_vals)))/(C39/EJtoMMBtu)) -> 0.1758264367 | D53: 0.1768291735 | E53: 0.1785042555 | F53: 0.1813043788 | G53: 0.1845072522 | H53: 0.1874493425 | I53: 0.1900444765 | J53: 0.1931230827 | K53: 0.1961725226 | L53: 0.1994370741 | M53: 0.2027922072 | N53: 0.206287167 | O53: 0.2094020301 | P53: 0.2125308827 | Q53: 0.2156460497 | R53: 0.2188198936 | S53: 0.2216910684 | T53: 0.2246143433 | U53: 0.2277530138 | V53: 0.2311102941 | W53: 0.2347388737 | X53: 0.2385564456 | Y53: 0.2425454578 | Z53: 0.2466604158 | AA53: 0.2508778462 | AB53: 0.2551567006 | AC53: 0.2596292739 | AD53: 0.2640635803 | AE53: 0.2684432601 | AF53: 0.272748 | AG53: 0.2766610309 | AH53: 0.2804859067 | AI53: 0.2841400486 | AJ53: 0.2876271303 | AK53: 0.2909512495 | AL53: 0.2941136251
B54: ="PATHWAYS - "&PillarCase_3 -> PATHWAYS - Alternative 1 | C54: =IF(PillarCase_3="",NA(),SUM(SUMPRODUCT((PillarCase_3=IF(PillarGeoRes,Final_Energy1_index_4,Final_Energy1_index_3))*("Electricity"=IF(PillarGeoRes,Final_Energy1_index_5,Final_Energy1_index_4))*(C$51=Final_Energy1_index_1)*(Final_Energy1_vals)),SUMPRODUCT((PillarCase_3=IF(PillarGeoRes,Final_Energy1_index_4,Final_Energy1_index_3))*("Hydrogen"=IF(PillarGeoRes,Final_Energy1_index_5,Final_Energy1_index_4))*(C$51=Final_Energy1_index_1)*(Final_Energy1_vals)))/(C40/EJtoMMBtu)) -> 0.1758349387 | D54: 0.1763334812 | E54: 0.1774842663 | F54: 0.1799387324 | G54: 0.1827260183 | H54: 0.1853864845 | I54: 0.1879375061 | J54: 0.1909238556 | K54: 0.1939451619 | L54: 0.1976097803 | M54: 0.2030055642 | N54: 0.2092095963 | O54: 0.2155261795 | P54: 0.2222880602 | Q54: 0.2301827982 | R54: 0.2391207166 | S54: 0.246530123 | T54: 0.2540452622 | U54: 0.2617747909 | V54: 0.2696313601 | W54: 0.2776381471 | X54: 0.2855769478 | Y54: 0.2935501168 | Z54: 0.3014905445 | AA54: 0.3093618834 | AB54: 0.3171150847 | AC54: 0.3249521382 | AD54: 0.3325654235 | AE54: 0.3399363151 | AF54: 0.347035293 | AG54: 0.353821938 | AH54: 0.3602741166 | AI54: 0.3663104887 | AJ54: 0.3719520325 | AK54: 0.3772237043 | AL54: 0.3821489453
B56: Electricity Emissions
C57: 2015 | D57: =+C57+1 -> 2016 | E57: 2017 | F57: 2018 | G57: 2019 | H57: 2020 | I57: 2021 | J57: 2022 | K57: 2023 | L57: 2024 | M57: 2025 | N57: 2026 | O57: 2027 | P57: 2028 | Q57: 2029 | R57: 2030 | S57: 2031 | T57: 2032 | U57: 2033 | V57: 2034 | W57: 2035 | X57: 2036 | Y57: 2037 | Z57: 2038 | AA57: 2039 | AB57: 2040 | AC57: 2041 | AD57: 2042 | AE57: 2043 | AF57: 2044 | AG57: 2045 | AH57: 2046 | AI57: 2047 | AJ57: 2048 | AK57: 2049 | AL57: 2050
B58: ="PATHWAYS - "&PillarCase_1 -> PATHWAYS - Reference | C58: =IF(PillarCase_1="",NA(),SUMPRODUCT((PillarCase_1=IF(PillarGeoRes,Energy_GHGs_by_Sect1_index_4,Energy_GHGs_by_Sect1_index_3))*("Electricity"=IF(PillarGeoRes,Energy_GHGs_by_Sect1_index_5,Energy_GHGs_by_Sect1_index_4))*(C$57=Energy_GHGs_by_Sect1_index_1)*(Energy_GHGs_by_Sect1_vals))/(SUMPRODUCT((PillarCase_1=IF(PillarGeoRes,Final_Energy1_index_4,Final_Energy1_index_3))*("Electricity"=IF(PillarGeoRes,Final_Energy1_index_5,Final_Energy1_index_4))*(C$57=Final_Energy1_index_1)*(Final_Energy1_vals))*277777778)) -> 0.2626249865 | D58: 0.2541187717 | E58: 0.2368085857 | F58: 0.235961453 | G58: 0.2335117593 | H58: 0.2300158764 | I58: 0.2277471837 | J58: 0.2269957269 | K58: 0.2262883217 | L58: 0.2261781732 | M58: 0.2502579686 | N58: 0.249403272 | O58: 0.2482771686 | P58: 0.2231790626 | Q58: 0.2220411673 | R58: 0.2119171924 | S58: 0.2078720174 | T58: 0.2077209771 | U58: 0.2077600189 | V58: 0.2041480635 | W58: 0.2040025736 | X58: 0.2039374547 | Y58: 0.2033333183 | Z58: 0.2030220005 | AA58: 0.2025894722 | AB58: 0.2023844976 | AC58: 0.2022141843 | AD58: 0.2020867311 | AE58: 0.2021425144 | AF58: 0.2021007953 | AG58: 0.2022473508 | AH58: 0.2023834936 | AI58: 0.2024071647 | AJ58: 0.2024660931 | AK58: 0.2026229868 | AL58: 0.2030648053
B59: ="PATHWAYS - "&PillarCase_2 -> PATHWAYS - Scoping Plan | C59: =IF(PillarCase_2="",NA(),SUMPRODUCT((PillarCase_2=IF(PillarGeoRes,Energy_GHGs_by_Sect1_index_4,Energy_GHGs_by_Sect1_index_3))*("Electricity"=IF(PillarGeoRes,Energy_GHGs_by_Sect1_index_5,Energy_GHGs_by_Sect1_index_4))*(C$57=Energy_GHGs_by_Sect1_index_1)*(Energy_GHGs_by_Sect1_vals))/(SUMPRODUCT((PillarCase_2=IF(PillarGeoRes,Final_Energy1_index_4,Final_Energy1_index_3))*("Electricity"=IF(PillarGeoRes,Final_Energy1_index_5,Final_Energy1_index_4))*(C$57=Final_Energy1_index_1)*(Final_Energy1_vals))*277777778)) -> 0.2638226267 | D59: 0.2550997311 | E59: 0.2374504175 | F59: 0.2358543411 | G59: 0.232888148 | H59: 0.2282295558 | I59: 0.2201791442 | J59: 0.2124517361 | K59: 0.2049081693 | L59: 0.1976241041 | M59: 0.2144243164 | N59: 0.2065978512 | O59: 0.1993146042 | P59: 0.1675466455 | Q59: 0.1611296051 | R59: 0.1460295272 | S59: 0.1356394508 | T59: 0.1302029773 | U59: 0.1251603965 | V59: 0.1174106515 | W59: 0.1124939977 | X59: 0.1078086839 | Y59: 0.1029958979 | Z59: 0.09868906644 | AA59: 0.09433063953 | AB59: 0.09038232008 | AC59: 0.08571535829 | AD59: 0.08212395094 | AE59: 0.07865204367 | AF59: 0.07524313767 | AG59: 0.07184330131 | AH59: 0.06855887977 | AI59: 0.06541758327 | AJ59: 0.06243219079 | AK59: 0.0595969271 | AL59: 0.05701327065
B60: ="PATHWAYS - "&PillarCase_3 -> PATHWAYS - Alternative 1 | C60: =IF(PillarCase_3="",NA(),SUMPRODUCT((PillarCase_3=IF(PillarGeoRes,Energy_GHGs_by_Sect1_index_4,Energy_GHGs_by_Sect1_index_3))*("Electricity"=IF(PillarGeoRes,Energy_GHGs_by_Sect1_index_5,Energy_GHGs_by_Sect1_index_4))*(C$57=Energy_GHGs_by_Sect1_index_1)*(Energy_GHGs_by_Sect1_vals))/(SUMPRODUCT((PillarCase_3=IF(PillarGeoRes,Final_Energy1_index_4,Final_Energy1_index_3))*("Electricity"=IF(PillarGeoRes,Final_Energy1_index_5,Final_Energy1_index_4))*(C$57=Final_Energy1_index_1)*(Final_Energy1_vals))*277777778)) -> 0.2629761979 | D60: 0.2537119627 | E60: 0.2352157328 | F60: 0.2325966742 | G60: 0.2283033105 | H60: 0.2218484395 | I60: 0.2116790097 | J60: 0.1994922997 | K60: 0.1877473387 | L60: 0.1766697269 | M60: 0.1896589092 | N60: 0.1784449233 | O60: 0.1675843822 | P60: 0.1315983464 | Q60: 0.1222672693 | R60: 0.1064843143 | S60: 0.1007594292 | T60: 0.09988471116 | U60: 0.09929394897 | V60: 0.09603450565 | W60: 0.09508227899 | X60: 0.09424322759 | Y60: 0.09308539895 | Z60: 0.09229450453 | AA60: 0.091230512 | AB60: 0.09049544675 | AC60: 0.08670674689 | AD60: 0.08401150637 | AE60: 0.08130646857 | AF60: 0.07861863645 | AG60: 0.07596711747 | AH60: 0.07336510823 | AI60: 0.07092977039 | AJ60: 0.06863243054 | AK60: 0.06639115792 | AL60: 0.06438748969
B62: Liquid Fuel Demand
B63: Emissions | C63: 2015 | D63: =+C63+1 -> 2016 | E63: 2017 | F63: 2018 | G63: 2019 | H63: 2020 | I63: 2021 | J63: 2022 | K63: 2023 | L63: 2024 | M63: 2025 | N63: 2026 | O63: 2027 | P63: 2028 | Q63: 2029 | R63: 2030 | S63: 2031 | T63: 2032 | U63: 2033 | V63: 2034 | W63: 2035 | X63: 2036 | Y63: 2037 | Z63: 2038 | AA63: 2039 | AB63: 2040 | AC63: 2041 | AD63: 2042 | AE63: 2043 | AF63: 2044 | AG63: 2045 | AH63: 2046 | AI63: 2047 | AJ63: 2048 | AK63: 2049 | AL63: 2050
B64: ="PATHWAYS - "&PillarCase_1 -> PATHWAYS - Reference | C64: =IF(PillarCase_1="",NA(),SUM( SUMPRODUCT((PillarCase_1=IF(PillarGeoRes,Energy_GHGs_by_Sect1_index_4,Energy_GHGs_by_Sect1_index_3))*("Pipeline Gas"=IF(PillarGeoRes,Energy_GHGs_by_Sect1_index_5,Energy_GHGs_by_Sect1_index_4))*(C$57=Energy_GHGs_by_Sect1_index_1)*(Energy_GHGs_by_Sect1_vals)), SUMPRODUCT((PillarCase_1=IF(PillarGeoRes,Energy_GHGs_by_Sect1_index_4,Energy_GHGs_by_Sect1_index_3))*("Compressed Pipeline Gas (CNG)"=IF(PillarGeoRes,Energy_GHGs_by_Sect1_index_5,Energy_GHGs_by_Sect1_index_4))*(C$57=Energy_GHGs_by_Sect1_index_1)*(Energy_GHGs_by_Sect1_vals)), SUMPRODUCT((PillarCase_1=IF(PillarGeoRes,Energy_GHGs_by_Sect1_index_4,Energy_GHGs_by_Sect1_index_3))*("Liquified Pipeline Gas (LNG)"=IF(PillarGeoRes,Energy_GHGs_by_Sect1_index_5,Energy_GHGs_by_Sect1_index_4))*(C$57=Energy_GHGs_by_Sect1_index_1)*(Energy_GHGs_by_Sect1_vals)), SUMPRODUCT((PillarCase_1=IF(PillarGeoRes,Energy_GHGs_by_Sect1_index_4,Energy_GHGs_by_Sect1_index_3))*("Gasoline"=IF(PillarGeoRes,Energy_GHGs_by_Sect1_index_5,Energy_GHGs_by_Sect1_index_4))*(C$57=Energy_GHGs_by_Sect1_index_1)*(Energy_GHGs_by_Sect1_vals)), SUMPRODUCT((PillarCase_1=IF(PillarGeoRes,Energy_GHGs_by_Sect1_index_4,Energy_GHGs_by_Sect1_index_3))*("Diesel"=IF(PillarGeoRes,Energy_GHGs_by_Sect1_index_5,Energy_GHGs_by_Sect1_index_4))*(C$57=Energy_GHGs_by_Sect1_index_1)*(Energy_GHGs_by_Sect1_vals)))/1000000) -> 242.8261314 | D64: 241.4012598 | E64: 238.1062746 | F64: 233.7447151 | G64: 228.4828053 | H64: 223.0963781 | I64: 217.7888122 | J64: 211.4566376 | K64: 205.4471966 | L64: 201.7546075 | M64: 198.5021654 | N64: 195.4604522 | O64: 193.4979426 | P64: 191.9726315 | Q64: 190.8851977 | R64: 190.1298326 | S64: 187.770429 | T64: 187.8094151 | U64: 187.9631496 | V64: 188.3699875 | W64: 187.1653562 | X64: 187.8608472 | Y64: 189.0047784 | Z64: 190.0574246 | AA64: 191.237921 | AB64: 192.6214429 | AC64: 194.3954162 | AD64: 196.1682318 | AE64: 197.333312 | AF64: 199.1662635 | AG64: 201.1722817 | AH64: 203.1753246 | AI64: 205.1613384 | AJ64: 207.1302304 | AK64: 209.288311 | AL64: 211.6147232
B65: ="PATHWAYS - "&PillarCase_2 -> PATHWAYS - Scoping Plan | C65: =IF(PillarCase_2="",NA(),SUM( SUMPRODUCT((PillarCase_2=IF(PillarGeoRes,Energy_GHGs_by_Sect1_index_4,Energy_GHGs_by_Sect1_index_3))*("Pipeline Gas"=IF(PillarGeoRes,Energy_GHGs_by_Sect1_index_5,Energy_GHGs_by_Sect1_index_4))*(C$57=Energy_GHGs_by_Sect1_index_1)*(Energy_GHGs_by_Sect1_vals)), SUMPRODUCT((PillarCase_2=IF(PillarGeoRes,Energy_GHGs_by_Sect1_index_4,Energy_GHGs_by_Sect1_index_3))*("Compressed Pipeline Gas (CNG)"=IF(PillarGeoRes,Energy_GHGs_by_Sect1_index_5,Energy_GHGs_by_Sect1_index_4))*(C$57=Energy_GHGs_by_Sect1_index_1)*(Energy_GHGs_by_Sect1_vals)), SUMPRODUCT((PillarCase_2=IF(PillarGeoRes,Energy_GHGs_by_Sect1_index_4,Energy_GHGs_by_Sect1_index_3))*("Liquified Pipeline Gas (LNG)"=IF(PillarGeoRes,Energy_GHGs_by_Sect1_index_5,Energy_GHGs_by_Sect1_index_4))*(C$57=Energy_GHGs_by_Sect1_index_1)*(Energy_GHGs_by_Sect1_vals)), SUMPRODUCT((PillarCase_2=IF(PillarGeoRes,Energy_GHGs_by_Sect1_index_4,Energy_GHGs_by_Sect1_index_3))*("Gasoline"=IF(PillarGeoRes,Energy_GHGs_by_Sect1_index_5,Energy_GHGs_by_Sect1_index_4))*(C$57=Energy_GHGs_by_Sect1_index_1)*(Energy_GHGs_by_Sect1_vals)), SUMPRODUCT((PillarCase_2=IF(PillarGeoRes,Energy_GHGs_by_Sect1_index_4,Energy_GHGs_by_Sect1_index_3))*("Diesel"=IF(PillarGeoRes,Energy_GHGs_by_Sect1_index_5,Energy_GHGs_by_Sect1_index_4))*(C$57=Energy_GHGs_by_Sect1_index_1)*(Energy_GHGs_by_Sect1_vals)))/1000000) -> 242.0082596 | D65: 240.3067336 | E65: 236.631298 | F65: 231.9077557 | G65: 226.2502317 | H65: 220.3163471 | I65: 214.0771675 | J65: 206.6293526 | K65: 199.4889412 | L65: 191.8381688 | M65: 187.4796055 | N65: 182.945126 | O65: 179.1020226 | P65: 175.3437184 | Q65: 169.7009306 | R65: 166.4427887 | S65: 163.8909223 | T65: 161.682347 | U65: 159.2220175 | V65: 157.0462696 | W65: 154.6459064 | X65: 152.4949466 | Y65: 150.4306421 | Z65: 148.2095129 | AA65: 144.8869253 | AB65: 142.6352131 | AC65: 141.3724237 | AD65: 140.2274191 | AE65: 139.187627 | AF65: 138.2498168 | AG65: 137.5764589 | AH65: 136.9960561 | AI65: 136.542728 | AJ65: 136.2398465 | AK65: 136.8608339 | AL65: 137.5772238
